Workbook

Sheet Disclaimer
B5: Disclaimer
B8: This model is provided as an example of an hourly analysis for small Combined Heat and Power Projects. It is designed primarily for buildings such as hotels, apartment complexes, nursing homes, etc. which use boilers to produce hot water for space heating and domestic hot water purposes. It has limited applicability for industrial processes and buildings with complex processes. EVERSOURCE assumes no responsibility for the results of this model and does not guarantee that it is free from errors. Contractors using this model for their proposals are assuming responsibility for the methodology and results.

Sheet Changes
B1: Change Log
B3: Prior Version | C3: New Version | D3: Changes
B4: 2010-06-04 | C4: 2010-06-15 | D4: Minor changes on BCR sheet (utility use only) to reflect kW as being total for all CHP units (rather than just 1 unit). Add indicator as to what is limiting CHP run hours.
B5: 2010-06-15 | C5: 2010-07-30 | D5: Instructions to add in toolpak. Also new sheet called "Custom Application Info" which gives out the correct data in the same format as the custom application
B6: 2010-07-30 | C6: 2010-08-12 | D6: Minor changes in instructions and Custom Tab.
B7: 2010-08-12 | C7: 2010-08-13 | D7: Added Project Name to last page.
B8: 2010-08-13 | C8: 2010-08-26 | D8: Added tab listing Model limitations.
B9: 2010-08-26 | C9: 2011-02-25 | D9: Added an Error Check tab to summarize error checks in one place.
B10: 2010-08-26 | C10: 2011-02-25 | D10: Added questions regarding Temp vs. Non Temp Sensitive Use and additional error checking.
B11: 2010-08-26 | C11: 2011-02-25 | D11: Added calculation of Total Run Hours and Avg. Percent Loading by Month.
B12: 2010-08-26 | C12: 2011-02-25 | D12: Added a Tab: 17 CHP Operation Metrics which provides key summary information not included in other tabs (for thermal tracking case)
B13: 2010-08-26 | C13: 2011-02-25 | D13: Added Summer and Winter Average Coincident Peak kW Reduction in Tab 16
B14: 2011-02-25 | C14: 2011-05-04 | D14: Improved Error Checking, format changes, and info screens regarding whether space heating/DHW or both is being utilized.
B15: 2011-02-25 | C15: 2011-05-04 | D15: Deleted Detail and Tab 15) as it was redundant with Custom Application Form.

Sheet Read This Tab First
B8: Before using this model, it is very important that the correct add-ins be installed in Excel. Otherwise, errors will result. The Excel default set up does not typically have these add-ins already in place. Refer to Tab: General Instructions, Cells B4 and B5 for how to install these add-ins.

Sheet General Instructions
B1: EVERSOURCE CHP Hourly Demonstration Model
B2: General Instructions: The below is a description of each tab. Each tab includes more detail.
B4: On each tab, the Input data is in blue fonts in the yellow cells.
B5: Under 'Tools' -> 'Ad-ins,' turn on 'Analysis ToolPak,' Analysis ToolPak-vba' and 'Solver Add-ins' for proper formula use.
B6: Make sure the model is finished calculating (as given the size of the model it can take several seconds to update) before viewing or printing results.
B8: Version: 4-22-2011 | C8: It's important to review Tab 17: Error Checks
C9: Weather Data is for Boston. If other locations are desired, follow instructions in Tab: 12 Hourly Simulations
B11: Input Data
B12: Tab | C12: Description
B13: 1) Thermal Billing Info | C13: Define breakdown of facility's thermal fuel use.
B14: 2 a) Base thermal profile | C14: Enter user defined hourly data for Base Load Fuel Fired available for offset by a CHP system or allow spreadsheet to calculate based on Tab 2b) DHW Profile defined below.
B15: 2 b) DHW Profile | C15: Defines typical Domestic Hot Water Load Profiles which can be offset by a CHP system. Select profile most closely matching building type. Profile excludes temperature sensitive use such as for space heating (which is separately modeled).
B16: 3) Base Temp & Degree Days | C16: Defines the building base temperature assumption and degree days corresponding to that assumption. There is a separate model available to estimate the building base temperature. If unsure, use 55 F (which should lead to a conservative result).
B17: 4) Hourly Electric Interval Data | C17: This is hourly interval data which is generally available from the electric utility serving the customer.
B18: 5) CHP System | C18: This defines the CHP unit performance specifications, offsetting boiler efficiency, and thermal dumping assumptions.
B19: 6) Run Schedule (optional) | C19: Only used when CHP is run according to a schedule.
B20: 7) Peak & Seasons | C20: Defines peak & offpeak seasons, Winter/Summer, and Holidays. Generally does not need changing. Holidays are defined for 2009 (but it doesn't require updating for 2010 and beyond as the impact is immaterial).
B21: User Added Tabs==> | C21: User adds additional tabs as necessary to provide supporting assumptions into the model.
B23: Output Tabs
B25: Tab | C25: Description
B26: 8) Building Use - Thermal Track | C26: Shows the therms and kWh & kW building use on a historical versus post-CHP basis (for thermal tracking).
B27: 9) CHP Unit - Thermal Track | C27: Shows a monthly & annual summary of CHP performance (for thermal tracking).
B28: 10) Building Use - Scheduled Hours | C28: Shows the therms and kWh & kW building use on a historical versus post-CHP basis (for CHP units on a timer).
B29: 11) CHP Unit - Scheduled Hours | C29: Shows a monthly & annual summary of CHP performance (for CHP units on a timer).
B30: 12) Hourly Simulation | C30: This is an intermediate calculation page. It is not something that would typically be printed out as its rather long.
B31: 13) Normalized Monthly Data | C31: This is an intermediate calculation page. It is not something that would typically be printed out.
B32: 14) Reconcile | C32: This pages reconciles intermediate calculation with billing data. It is worth checking to ensure the data is 100% reconciled to bills.
B33: 15) Deleted | C33: Intentionally Left Blank. Prior Tab was redundant with Tab 16)
B34: 16) Custom Application Info | C34: Information to be transferred to the Custom Application.
B35: 17 CHP Operation Add'l Metrics | C35: Includes useful summary information not included in the other sheets (Thermal Tracking Case Only)
B36: 18) Error Checks | C36: Examine to make sure there are no errors.
B37: There are also two hidden tabs which are used for intermediate calculation purposes.

Sheet Model Limitations
A1: The below are known limitations of the EVERSOURCE CHP hourly model. These may be enhanced in future versions.
B4: Limitation | C4: Impact of Limitation | D4: Compensating for Impact
B5: Thermal Storage is not being modeled. | C5: May result in a reduced estimate of run hours in the thermal load following mode. | D5: The thermal load curves can be reshaped outside of the model based on thermal storage and put in as an input to the model.
B6: CHP performance variations due to changes in temperature are not considered. | C6: This is a more significant issue for combustion turbines than reciprocating engines. | D6: Perform the simulation once based on cut-sheet information then determine the weight averaged temperature throughout the year. Re-enter performance data under Tab 5 based on such weighted average temperature.
B7: CHP Performance is NOT adjusted for Part Load. | C7: If equipment cut-sheet information is used, this will result in an optimistic estimate of performance. | D7: If part load data is available then perform initial modeling based on cut sheet data. Determine the average loading of the engine. Then re-enter data based on the average percentage of full load operation.
B8: Thermal Load Following - Dumping Mode Assumed Percentages. | C8: Monthly percentages can be input for projects. In theory, thermal following should have zero dumping. In reality, there is likely some dumping for projects with a dump radiator. The model carves thermal dumping out of existing predicted thermal following run hours (rather than purely a run hour add on while retaining boiler fuel offsets from all predicted thermal load following hours). This will lead to a reduced BCR result (all else being the same). | D8: No quick manner of adjustment has been identified.
B9: Seasonal variations in make up water temperature for Domestic Hot Water is NOT considered. | C9: Minimum summer use is identified for Domestic Hot Water. The associated therms/hour daily profile and use is applied throughout the year (according to the input profile). The balance of therms fired is assigned to space heating. In reality, DHW therms will increase in the colder months due to a lower make-up water temperature. This is not considered in the model. However, it is not expected to have a material impact on the results. | D9: No adjustment is made.

Sheet Key Inputs===>
D11: Key Inputs ====>

Sheet 1) Thermal Billing Info
A1: Project Name: | C1: Customer's Name
A5: Base Load Therms Fired | C5: 3751 | D5: Enter the value in Col K which corresponds to the Row with the Minimum Billing Use per Billing Day
A6: # of Billing Days in the month with Minimum Daily Therms Use | C6: 33 | D6: Enter the value in Col E which corresponds to the Row with the Minimum Billing Use per Billing Day
B8: Questions: | H8: =IF(AND(LEFT(G9,1)="N",LEFT(G10,1)="N"),"Model will simulate either space heating or DHW or both. Neither is specified.","") ->  | L8: Annual Temperature Sensitive therms which are available to be partially offset by CHP System
B9: Will the CHP System provide for space heating (Y or N)? | G9: Y | H9: =IF(LEFT(G9,1)="N","If no space heating, deduct space heating use shown in Col M by pasting values into Col I or J. This will recalculate Col M to show all zeros ","") ->  | L9: =M27 -> 57981 | M9: =IF(AND(ABS(L9)>1,LEFT(G9,1)="N"),"This value should be zero if there is no space heating to be offset by CHP system","") -> 
B10: Will the CHP System provide heating for non-temp sensitive load (Y or N)? | G10: Y | H10: =IF(LEFT(G10,1)="Y","Enter Daily Profile in Tabs 2a or 2b","") -> Enter Daily Profile in Tabs 2a or 2b
A12: A | B12: B | C12: C | D12: D | E12: E = D - C | F12: F | G12: G | H12: H | I12: I | J12: J | K12: K = F - G thru J | L12: L | M12: M = K - L | N12: N = K ÷ E
G13: Deduct fuel for end-uses which can't be supplied from CHP thermal output (enter as positive values)
A14: Calendar Month | B14: Days in Calendar Month | C14: Beginning of Billing Period | D14: End of Billing Period | E14: # Billing Days in Month | F14: Total Fuel Use (therms) | G14: Dryer (therms) | H14: Cooking (therms) | I14: Other 1 (therms) | J14: Other 2 (therms) | K14: Fuel Use (therms) which can be offset by CHP unit | L14: Non Temp Sensitive Base Load (therms) | M14: Temp Sensitive Load (therms) | N14: Fuel Use Therms per Billing Day
A15: Jan | B15: 31 | C15: 2007-12-21 | D15: 2008-01-23 | E15: =D15-C15 -> 33 | F15: 15993 | K15: =F15-SUM(G15:J15) -> 15993 | L15: =E15/$C$6*$C$5 -> 3751 | M15: =K15-L15 -> 12242 | N15: =K15/E15 -> 484.6363636 | O15: =IF(N15<=MIN($N$15:$N$26),"Row with Minimum Use/Day","") -> 
A16: Feb | B16: 28 | C16: 2008-01-23 | D16: 2008-02-21 | E16: =D16-C16 -> 29 | F16: 14076 | K16: =F16-SUM(G16:J16) -> 14076 | L16: 3296.333333 | M16: =K16-L16 -> 10779.66667 | N16: =K16/E16 -> 485.3793103
A17: Mar | B17: 31 | C17: 2008-02-21 | D17: 2008-03-20 | E17: 28 | F17: 12894 | K17: 12894 | L17: 3182.666667 | M17: 9711.333333 | N17: 460.5
A18: Apr | B18: 30 | C18: 2008-03-20 | D18: 2008-04-18 | E18: 29 | F18: 11038 | K18: 11038 | L18: 3296.333333 | M18: 7741.666667 | N18: 380.6206897
A19: May | B19: 31 | C19: 2008-04-18 | D19: 2008-05-21 | E19: 33 | F19: 5577 | K19: 5577 | L19: 3751 | M19: 1826 | N19: 169
A20: Jun | B20: 30 | C20: 2008-05-21 | D20: 2008-06-19 | E20: 29 | F20: 3644 | K20: 3644 | L20: 3296.333333 | M20: 347.6666667 | N20: 125.6551724
A21: Jul | B21: 31 | C21: 2008-06-19 | D21: 2008-07-22 | E21: 33 | F21: 3751 | K21: 3751 | L21: 3751 | M21: 0 | N21: 113.6666667 | O21: =IF(N21<=MIN($N$15:$N$26),"Row with Minimum Use/Day","") -> Row with Minimum Use/Day
A22: Aug | B22: 31 | C22: 2008-07-22 | D22: 2008-08-20 | E22: 29 | F22: 3402 | K22: 3402 | L22: 3296.333333 | M22: 105.6666667 | N22: 117.3103448
A23: Sep | B23: 30 | C23: 2008-08-20 | D23: 2008-09-22 | E23: 33 | F23: 3861 | K23: 3861 | L23: 3751 | M23: 110 | N23: 117
A24: Oct | B24: 31 | C24: 2008-09-22 | D24: 2008-10-20 | E24: 28 | F24: 3536 | K24: 3536 | L24: 3182.666667 | M24: 353.3333333 | N24: 126.2857143
A25: Nov | B25: 30 | C25: 2008-10-20 | D25: 2008-11-21 | E25: 32 | F25: 7695 | K25: 7695 | L25: 3637.333333 | M25: 4057.666667 | N25: 240.46875
A26: Dec | B26: 31 | C26: 2008-11-21 | D26: 2008-12-21 | E26: 30 | F26: 14116 | K26: 14116 | L26: 3410 | M26: 10706 | N26: 470.5333333
D27: Total | F27: =SUM(F15:F26) -> 99583 | G27: =SUM(G15:G26) -> 0 | H27: 0 | I27: 0 | J27: 0 | K27: 99583 | L27: 41602 | M27: 57981

Sheet 2a) Base thermal profile
B1: Base Load - Hourly Profile of Therms Fired (HHV)
B3: Domestic Hot Water may be defined according to either Tab 2a or Tab 2b.
B4: Hint: It's easier to define DHW loads using Tab 2b) rather than this Tab 2a) as it will automatically reconcile with the billing data.
B6: Method of Determining Profile (User Defined or Typical Profile) | G6: If Therms Fired are User Defined values for each hour, Enter U in the box to the left and enter the data for each hour. Otherwise leave all the yellow boxes blank and enter the profiles in Tab 2b)
G8: Reconciliation Error Check: | J8: =IF(ABS(E41)<1,"Reconciles","Error: Base Load Hourly Profile") -> Reconciles
B10: Hour of Day | D10: Therms Fired (HHV)
B11: From | C11: To | D11: User Defined (Leave blank if using Typical DHW profiles) | E11: Hourly Therms Fired for Base Load
B12: 0 | C12: 1 | E12: =IF(LEFT($F$6,1)="U",D12,'1) Thermal Billing Info'!$C$5/'1) Thermal Billing Info'!$C$6*'2b) DHW Profile'!E9) -> 4.200153965
B13: 1 | C13: 2 | E13: =IF(LEFT($F$6,1)="U",D13,'1) Thermal Billing Info'!$C$5/'1) Thermal Billing Info'!$C$6*'2b) DHW Profile'!E10) -> 3.937644342
B14: 2 | C14: 3 | E14: =IF(LEFT($F$6,1)="U",D14,'1) Thermal Billing Info'!$C$5/'1) Thermal Billing Info'!$C$6*'2b) DHW Profile'!E11) -> 3.150115473
B15: 3 | C15: 4 | E15: =IF(LEFT($F$6,1)="U",D15,'1) Thermal Billing Info'!$C$5/'1) Thermal Billing Info'!$C$6*'2b) DHW Profile'!E12) -> 3.412625096
B16: 4 | C16: 5 | E16: =IF(LEFT($F$6,1)="U",D16,'1) Thermal Billing Info'!$C$5/'1) Thermal Billing Info'!$C$6*'2b) DHW Profile'!E13) -> 3.150115473
B17: 5 | C17: 6 | E17: =IF(LEFT($F$6,1)="U",D17,'1) Thermal Billing Info'!$C$5/'1) Thermal Billing Info'!$C$6*'2b) DHW Profile'!E14) -> 3.150115473
B18: 6 | C18: 7 | E18: =IF(LEFT($F$6,1)="U",D18,'1) Thermal Billing Info'!$C$5/'1) Thermal Billing Info'!$C$6*'2b) DHW Profile'!E15) -> 3.937644342
B19: 7 | C19: 8 | E19: =IF(LEFT($F$6,1)="U",D19,'1) Thermal Billing Info'!$C$5/'1) Thermal Billing Info'!$C$6*'2b) DHW Profile'!E16) -> 4.72517321
B20: 8 | C20: 9 | E20: =IF(LEFT($F$6,1)="U",D20,'1) Thermal Billing Info'!$C$5/'1) Thermal Billing Info'!$C$6*'2b) DHW Profile'!E17) -> 7.612779061
B21: 9 | C21: 10 | E21: =IF(LEFT($F$6,1)="U",D21,'1) Thermal Billing Info'!$C$5/'1) Thermal Billing Info'!$C$6*'2b) DHW Profile'!E18) -> 6.56274057
B22: 10 | C22: 11 | E22: =IF(LEFT($F$6,1)="U",D22,'1) Thermal Billing Info'!$C$5/'1) Thermal Billing Info'!$C$6*'2b) DHW Profile'!E19) -> 6.037721324
B23: 11 | C23: 12 | E23: =IF(LEFT($F$6,1)="U",D23,'1) Thermal Billing Info'!$C$5/'1) Thermal Billing Info'!$C$6*'2b) DHW Profile'!E20) -> 5.250192456
B24: 12 | C24: 13 | E24: =IF(LEFT($F$6,1)="U",D24,'1) Thermal Billing Info'!$C$5/'1) Thermal Billing Info'!$C$6*'2b) DHW Profile'!E21) -> 5.250192456
B25: 13 | C25: 14 | E25: =IF(LEFT($F$6,1)="U",D25,'1) Thermal Billing Info'!$C$5/'1) Thermal Billing Info'!$C$6*'2b) DHW Profile'!E22) -> 4.72517321
B26: 14 | C26: 15 | E26: =IF(LEFT($F$6,1)="U",D26,'1) Thermal Billing Info'!$C$5/'1) Thermal Billing Info'!$C$6*'2b) DHW Profile'!E23) -> 3.937644342
B27: 15 | C27: 16 | E27: =IF(LEFT($F$6,1)="U",D27,'1) Thermal Billing Info'!$C$5/'1) Thermal Billing Info'!$C$6*'2b) DHW Profile'!E24) -> 3.675134719
B28: 16 | C28: 17 | E28: =IF(LEFT($F$6,1)="U",D28,'1) Thermal Billing Info'!$C$5/'1) Thermal Billing Info'!$C$6*'2b) DHW Profile'!E25) -> 3.675134719
B29: 17 | C29: 18 | E29: =IF(LEFT($F$6,1)="U",D29,'1) Thermal Billing Info'!$C$5/'1) Thermal Billing Info'!$C$6*'2b) DHW Profile'!E26) -> 4.72517321
B30: 18 | C30: 19 | E30: =IF(LEFT($F$6,1)="U",D30,'1) Thermal Billing Info'!$C$5/'1) Thermal Billing Info'!$C$6*'2b) DHW Profile'!E27) -> 6.037721324 | G30: Note 1: This is daily profile for the portion of Therms fired to the boiler which results in a year round base consumption of hot water or steam which CAN be offset by a CHP unit. It DOES not include boiler fuel being fired for non year round base use (i.e. space heating). Temperature sensitive loads are analyzed automatically within the model algorithm. It also does NOT include the portion of therms being fired for the boiler which cannot be offset by a CHP unit.
B31: 19 | C31: 20 | E31: =IF(LEFT($F$6,1)="U",D31,'1) Thermal Billing Info'!$C$5/'1) Thermal Billing Info'!$C$6*'2b) DHW Profile'!E28) -> 6.56274057
B32: 20 | C32: 21 | E32: =IF(LEFT($F$6,1)="U",D32,'1) Thermal Billing Info'!$C$5/'1) Thermal Billing Info'!$C$6*'2b) DHW Profile'!E29) -> 5.775211701
B33: 21 | C33: 22 | E33: =IF(LEFT($F$6,1)="U",D33,'1) Thermal Billing Info'!$C$5/'1) Thermal Billing Info'!$C$6*'2b) DHW Profile'!E30) -> 4.72517321
B34: 22 | C34: 23 | E34: =IF(LEFT($F$6,1)="U",D34,'1) Thermal Billing Info'!$C$5/'1) Thermal Billing Info'!$C$6*'2b) DHW Profile'!E31) -> 4.200153965
B35: 23 | C35: 24 | E35: =IF(LEFT($F$6,1)="U",D35,'1) Thermal Billing Info'!$C$5/'1) Thermal Billing Info'!$C$6*'2b) DHW Profile'!E32) -> 5.250192456
B37: Total per day | E37: =SUM(E12:E35) -> 113.6666667 | F37: per day
B38: X Billing Days in Base Month | E38: ='1) Thermal Billing Info'!C6 -> 33 | F38: days/month
B39: Total per month | E39: =E37*E38 -> 3751 | F39: Therms per month in Base Billing Month
B41: Difference: Above and Base Load Determined in Tab 1) | E41: ='1) Thermal Billing Info'!C5-'2a) Base thermal profile'!E39 -> 0

Sheet 2b) DHW Profile
C1: Typical Domestic Hot Water Profiles (For use when base load profile consists entirely of hot water.)
C3: =IF(LEFT('2a) Base thermal profile'!F6,1)="U","No selection is needed if user defines load directly in Tab 2a)","Enter Profile # if typical profile is used") -> Enter Profile # if typical profile is used
C5: Profile # to Use (Numbers in Blue Cells) | E5: 2 | G5: Note 1: Source: ASHRAE Handbook 2007
G6: Non Temp Sensitive Profiles (typically DHW). Enter Listed Colum Number to use in Cell to the Left.
G7: 1 | H7: 2 | I7: 3 | J7: 4 | K7: 5
B8: # | C8: Hour Begin | D8: Hour Ending | E8: =IF($E$5=0,"None Selected",INDEX($G$8:$K$32,$B9,$E$5)) -> Apt (Note 1) | G8: Hotel (Note 1) | H8: Apt (Note 1) | I8: Nursing Home (Note 1) | J8: TBD | K8: TBD
B9: 1 | C9: 0 | D9: 1 | E9: =IF($E$5=0,0,INDEX($G$8:$K$32,$B10,$E$5)) -> 0.03695150115 | G9: 0.02158273381 | H9: 0.03695150115 | I9: 0
B10: 2 | C10: 1 | D10: 2 | E10: =IF($E$5=0,0,INDEX($G$8:$K$32,$B11,$E$5)) -> 0.03464203233 | G10: 0.01438848921 | H10: 0.03464203233 | I10: 0.004854368932
B11: 3 | C11: 2 | D11: 3 | E11: 0.02771362587 | G11: 0.01438848921 | H11: 0.02771362587 | I11: 0.009708737864
B12: 4 | C12: 3 | D12: 4 | E12: 0.03002309469 | G12: 0 | H12: 0.03002309469 | I12: 0.009708737864
B13: 5 | C13: 4 | D13: 5 | E13: 0.02771362587 | G13: 0 | H13: 0.02771362587 | I13: 0.01213592233
B14: 6 | C14: 5 | D14: 6 | E14: 0.02771362587 | G14: 0 | H14: 0.02771362587 | I14: 0.01213592233
B15: 7 | C15: 6 | D15: 7 | E15: 0.03464203233 | G15: 0.03597122302 | H15: 0.03464203233 | I15: 0.08252427184
B16: 8 | C16: 7 | D16: 8 | E16: 0.0415704388 | G16: 0.08633093525 | H16: 0.0415704388 | I16: 0.08737864078
B17: 9 | C17: 8 | D17: 9 | E17: 0.06697459584 | G17: 0.1438848921 | H17: 0.06697459584 | I17: 0.09708737864
B18: 10 | C18: 9 | D18: 10 | E18: 0.05773672055 | G18: 0.1079136691 | H18: 0.05773672055 | I18: 0.1019417476
B19: 11 | C19: 10 | D19: 11 | E19: 0.05311778291 | G19: 0.07194244604 | H19: 0.05311778291 | I19: 0.06067961165
B20: 12 | C20: 11 | D20: 12 | E20: 0.04618937644 | G20: 0.05755395683 | H20: 0.04618937644 | I20: 0.09223300971
B21: 13 | C21: 12 | D21: 13 | E21: 0.04618937644 | G21: 0.05035971223 | H21: 0.04618937644 | I21: 0.06796116505
B22: 14 | C22: 13 | D22: 14 | E22: 0.0415704388 | G22: 0.05035971223 | H22: 0.0415704388 | I22: 0.08495145631
B23: 15 | C23: 14 | D23: 15 | E23: 0.03464203233 | G23: 0.03597122302 | H23: 0.03464203233 | I23: 0.04854368932
B24: 16 | C24: 15 | D24: 16 | E24: 0.03233256351 | G24: 0.03597122302 | H24: 0.03233256351 | I24: 0.02427184466
B25: 17 | C25: 16 | D25: 17 | E25: 0.03233256351 | G25: 0.03597122302 | H25: 0.03233256351 | I25: 0.02427184466
B26: 18 | C26: 17 | D26: 18 | E26: 0.0415704388 | G26: 0.01438848921 | H26: 0.0415704388 | I26: 0.04854368932
B27: 19 | C27: 18 | D27: 19 | E27: 0.05311778291 | G27: 0.03597122302 | H27: 0.05311778291 | I27: 0.08737864078
B28: 20 | C28: 19 | D28: 20 | E28: 0.05773672055 | G28: 0.04316546763 | H28: 0.05773672055 | I28: 0.01941747573
B29: 21 | C29: 20 | D29: 21 | E29: 0.05080831409 | G29: 0.03597122302 | H29: 0.05080831409 | I29: 0.0145631068
B30: 22 | C30: 21 | D30: 22 | E30: 0.0415704388 | G30: 0.03597122302 | H30: 0.0415704388 | I30: 0.004854368932
B31: 23 | C31: 22 | D31: 23 | E31: 0.03695150115 | G31: 0.03597122302 | H31: 0.03695150115 | I31: 0.004854368932
B32: 24 | C32: 23 | D32: 24 | E32: 0.04618937644 | G32: 0.03597122302 | H32: 0.04618937644 | I32: 0
E33: =SUM(E9:E32) -> 1 | G33: =SUM(G9:G32) -> 1 | H33: =SUM(H9:H32) -> 1 | I33: =SUM(I9:I32) -> 1 | J33: =SUM(J9:J32) -> 0 | K33: =SUM(K9:K32) -> 0

Sheet 3) Base Temp & Degree Days
A1: Project Name: | C1: ='1) Thermal Billing Info'!C1 -> Customer's Name
A5: Building Base Temp, F | C5: 55 | D5: See a separate spreadsheet tool which uses regression analysis to estimate the Building Base Temp
A8: Beginning of Billing Period | B8: End of Billing Period | C8: Paste degree data used (corresponding to Building Base Temp) Instructions: Note 1 below
A9: ='1) Thermal Billing Info'!C15 -> 2007-12-21 | B9: ='1) Thermal Billing Info'!D15 -> 2008-01-23 | C9: =KBOS_HDD_55F!D242 -> 670.1
A10: ='1) Thermal Billing Info'!C16 -> 2008-01-23 | B10: ='1) Thermal Billing Info'!D16 -> 2008-02-21 | C10: =KBOS_HDD_55F!D276 -> 632.8
A11: ='1) Thermal Billing Info'!C17 -> 2008-02-21 | B11: ='1) Thermal Billing Info'!D17 -> 2008-03-20 | C11: =KBOS_HDD_55F!D305 -> 536 | E11: See example format of downloaded degree day information after User Added Tabs
A12: ='1) Thermal Billing Info'!C18 -> 2008-03-20 | B12: ='1) Thermal Billing Info'!D18 -> 2008-04-18 | C12: =KBOS_HDD_55F!D333 -> 346.6
A13: ='1) Thermal Billing Info'!C19 -> 2008-04-18 | B13: ='1) Thermal Billing Info'!D19 -> 2008-05-21 | C13: =KBOS_HDD_55F!D362 -> 111.6
A14: ='1) Thermal Billing Info'!C20 -> 2008-05-21 | B14: ='1) Thermal Billing Info'!D20 -> 2008-06-19 | C14: =KBOS_HDD_55F!D395 -> 8.2
A15: ='1) Thermal Billing Info'!C21 -> 2008-06-19 | B15: ='1) Thermal Billing Info'!D21 -> 2008-07-22 | C15: =KBOS_HDD_55F!D424 -> 0
A16: ='1) Thermal Billing Info'!C22 -> 2008-07-22 | B16: ='1) Thermal Billing Info'!D22 -> 2008-08-20 | C16: =KBOS_HDD_55F!D457 -> 0
A17: ='1) Thermal Billing Info'!C23 -> 2008-08-20 | B17: ='1) Thermal Billing Info'!D23 -> 2008-09-22 | C17: =KBOS_HDD_55F!D486 -> 7.2
A18: ='1) Thermal Billing Info'!C24 -> 2008-09-22 | B18: ='1) Thermal Billing Info'!D24 -> 2008-10-20 | C18: =KBOS_HDD_55F!D519 -> 55.6
A19: ='1) Thermal Billing Info'!C25 -> 2008-10-20 | B19: ='1) Thermal Billing Info'!D25 -> 2008-11-21 | C19: =KBOS_HDD_55F!D547 -> 290.5
A20: ='1) Thermal Billing Info'!C26 -> 2008-11-21 | B20: ='1) Thermal Billing Info'!D26 -> 2008-12-21 | C20: =KBOS_HDD_55F!D211 -> 651.8
C42: =SUM(C9:C20) -> 3310.4
C44: Note 1:
C45: Above Degree Data at defined base temperature can be obtained from: | J45: www.degreedays.net
C47: Select Weather Station ID: KBOS | F47: If a weather station other than Boston is desired, then the temperature data in the orange cells for Tab: ... for Typ Temp & Hourly Alloc would require adjustment.
C48: Select Heating Degree Days
C49: Enter Building Base Temperature (as entered above)
C51: For Breakdown
C53: If meter reading dates are 1st of month to last of month, select monthly degree day data (going back enough months to capture billing period).
C55: If meter reading dates are other than 1st to last day of month, select daily degree day data (then across the days corresponding to a billing month).
C57: Period Covered
C59: - Select a long enough time period to capture the same time periods being used for billing data
C61: Click on Generate Degree Days, wait several seconds, then click on Download Now, then click on Open Excel File. It may be necessary to minimizie this model to see the downloaded excel file as it may not be on top.
C64: An excel file will open up.
C65: - If monthly data is selected, then paste into corresponding months above.
C66: - If daily data is selected, then sum for each month correponding to meter read days, then paste into corresponding months above.

Sheet 4) Hrly Electric Interval Data
A1: Enter the electric interval data format for kWh for each hour for the previous 12 months (enter in order from Jan 1 to Dec 31 regardless of year). If not available, allocate bills based on protypical data for the customer's rate class.
A2: Please review data for missing records. If records are missing, then substitute an estimated value (i.e. averaging across adjacent time periods) and add a cell note. If data covers a leap year, delete the February 29th interval data row before pasting in the data.
C3: 0 | D3: 1 | E3: 2 | F3: 3 | G3: 4 | H3: 5 | I3: 6 | J3: 7 | K3: 8 | L3: 9 | M3: 10 | N3: 11 | O3: 12 | P3: 13 | Q3: 14 | R3: 15 | S3: 16 | T3: 17 | U3: 18 | V3: 19 | W3: 20 | X3: 21 | Y3: 22 | Z3: 23
B4: Date / Time | C4: 01:00:00 | D4: 02:00:00 | E4: 03:00:00 | F4: 04:00:00 | G4: 05:00:00 | H4: 06:00:00 | I4: 07:00:00 | J4: 08:00:00 | K4: 09:00:00 | L4: 10:00:00 | M4: 11:00:00 | N4: 12:00:00 | O4: 13:00:00 | P4: 14:00:00 | Q4: 15:00:00 | R4: 16:00:00 | S4: 17:00:00 | T4: 18:00:00 | U4: 19:00:00 | V4: 20:00:00 | W4: 21:00:00 | X4: 22:00:00 | Y4: 23:00:00 | Z4: 1
A5: 0 | B5: 2014-01-01 | C5: 636.25 | D5: 644 | E5: 651.5 | F5: 649 | G5: 632.5 | H5: 627.5 | I5: 640 | J5: 713 | K5: 707.75 | L5: 675.75 | M5: 717.5 | N5: 699.5 | O5: 642 | P5: 645.75 | Q5: 645.75 | R5: 645 | S5: 629.75 | T5: 627.75 | U5: 678 | V5: 727.25 | W5: 683 | X5: 690.75 | Y5: 714.25 | Z5: 636.25
A6: 1 | B6: 2014-01-02 | C6: 644 | D6: 651.5 | E6: 649 | F6: 632.5 | G6: 627.5 | H6: 640 | I6: 713 | J6: 707.75 | K6: 675.75 | L6: 717.5 | M6: 671.5 | N6: 642 | O6: 645.75 | P6: 645.75 | Q6: 645 | R6: 629.75 | S6: 627.75 | T6: 678 | U6: 727.25 | V6: 683 | W6: 690.75 | X6: 714.25 | Y6: 636.25 | Z6: 644
A7: 2 | B7: 2014-01-03 | C7: 651.5 | D7: 649 | E7: 632.5 | F7: 627.5 | G7: 640 | H7: 713 | I7: 707.75 | J7: 675.75 | K7: 717.5 | L7: 671.5 | M7: 642 | N7: 645.75 | O7: 645.75 | P7: 645 | Q7: 629.75 | R7: 627.75 | S7: 678 | T7: 727.25 | U7: 683 | V7: 690.75 | W7: 714.25 | X7: 636.25 | Y7: 644 | Z7: 651.5
A8: 3 | B8: 2014-01-04 | C8: 649 | D8: 632.5 | E8: 627.5 | F8: 640 | G8: 713 | H8: 707.75 | I8: 675.75 | J8: 717.5 | K8: 671.5 | L8: 642 | M8: 645.75 | N8: 645.75 | O8: 645 | P8: 629.75 | Q8: 627.75 | R8: 678 | S8: 727.25 | T8: 683 | U8: 690.75 | V8: 714.25 | W8: 636.25 | X8: 644 | Y8: 651.5 | Z8: 649
A9: 4 | B9: 2014-01-05 | C9: 632.5 | D9: 627.5 | E9: 640 | F9: 713 | G9: 707.75 | H9: 675.75 | I9: 717.5 | J9: 671.5 | K9: 642 | L9: 645.75 | M9: 645.75 | N9: 645 | O9: 629.75 | P9: 627.75 | Q9: 678 | R9: 727.25 | S9: 683 | T9: 690.75 | U9: 714.25 | V9: 636.25 | W9: 644 | X9: 651.5 | Y9: 649 | Z9: 632.5
A10: 5 | B10: 2014-01-06 | C10: 627.5 | D10: 640 | E10: 713 | F10: 707.75 | G10: 675.75 | H10: 717.5 | I10: 671.5 | J10: 642 | K10: 645.75 | L10: 645.75 | M10: 645 | N10: 629.75 | O10: 627.75 | P10: 678 | Q10: 727.25 | R10: 683 | S10: 690.75 | T10: 714.25 | U10: 740.25 | V10: 803.25 | W10: 810.25 | X10: 785 | Y10: 771.25 | Z10: 749
A11: 6 | B11: 2014-01-07 | C11: 753 | D11: 737.25 | E11: 731.25 | F11: 733.25 | G11: 738.25 | H11: 747.75 | I11: 736.75 | J11: 719.25 | K11: 715.25 | L11: 713.25 | M11: 712 | N11: 720 | O11: 708.25 | P11: 702 | Q11: 735 | R11: 745.5 | S11: 750 | T11: 753 | U11: 755.75 | V11: 774.25 | W11: 744 | X11: 748.75 | Y11: 722.5 | Z11: 729.5
A12: 7 | B12: 2014-01-08 | C12: 741 | D12: 735 | E12: 736.5 | F12: 726 | G12: 702.5 | H12: 700.75 | I12: 711 | J12: 700.25 | K12: 710 | L12: 707.25 | M12: 709.25 | N12: 692.25 | O12: 710 | P12: 712 | Q12: 754.75 | R12: 752.25 | S12: 759.5 | T12: 773.25 | U12: 786 | V12: 805.75 | W12: 782.5 | X12: 826.5 | Y12: 791.25 | Z12: 791
A13: 8 | B13: 2014-01-09 | C13: 789.5 | D13: 770.25 | E13: 733.5 | F13: 732.25 | G13: 695.25 | H13: 694.75 | I13: 704 | J13: 700 | K13: 689.5 | L13: 678.75 | M13: 687.75 | N13: 685.5 | O13: 678.25 | P13: 696.5 | Q13: 754.25 | R13: 808.5 | S13: 856.25 | T13: 877.75 | U13: 861 | V13: 885.25 | W13: 901.5 | X13: 902.5 | Y13: 878.75 | Z13: 890
A14: 9 | B14: 2014-01-10 | C14: 868.75 | D14: 854 | E14: 797.25 | F14: 789.25 | G14: 764.75 | H14: 738.5 | I14: 736.5 | J14: 744.25 | K14: 705.5 | L14: 715 | M14: 691.25 | N14: 697 | O14: 721.5 | P14: 703.25 | Q14: 755.25 | R14: 781.75 | S14: 839.75 | T14: 856 | U14: 909.75 | V14: 881.25 | W14: 886.25 | X14: 882 | Y14: 885 | Z14: 876.5
A15: 10 | B15: 2014-01-11 | C15: 849.75 | D15: 852.25 | E15: 808.75 | F15: 795 | G15: 761 | H15: 747.25 | I15: 733.25 | J15: 743.75 | K15: 733.25 | L15: 694 | M15: 685 | N15: 709.25 | O15: 713.75 | P15: 691.25 | Q15: 758.75 | R15: 817 | S15: 813 | T15: 851.5 | U15: 847.25 | V15: 869.5 | W15: 853.75 | X15: 853.5 | Y15: 861.5 | Z15: 844.75
A16: 11 | B16: 2014-01-12 | C16: 845.75 | D16: 817.5 | E16: 766.75 | F16: 751.75 | G16: 718.5 | H16: 700.25 | I16: 723.5 | J16: 707.25 | K16: 733.5 | L16: 727.5 | M16: 713.75 | N16: 699.5 | O16: 695.5 | P16: 676.5 | Q16: 753 | R16: 792 | S16: 834.25 | T16: 847.75 | U16: 877.25 | V16: 897.25 | W16: 890.25 | X16: 895 | Y16: 849.5 | Z16: 846.75
A17: 12 | B17: 2014-01-13 | C17: 830.75 | D17: 803.75 | E17: 765.25 | F17: 742 | G17: 713.75 | H17: 725 | I17: 731.25 | J17: 725 | K17: 720.25 | L17: 715 | M17: 694 | N17: 710 | O17: 699.75 | P17: 703.25 | Q17: 736 | R17: 740.5 | S17: 762 | T17: 764.5 | U17: 731.75 | V17: 740 | W17: 722.25 | X17: 745.5 | Y17: 759.5 | Z17: 715.75
A18: 13 | B18: 2014-01-14 | C18: 696 | D18: 696.5 | E18: 684.5 | F18: 684.75 | G18: 681.5 | H18: 667.25 | I18: 673.75 | J18: 707.5 | K18: 714 | L18: 716.25 | M18: 684.5 | N18: 677 | O18: 691 | P18: 670.5 | Q18: 688 | R18: 686.5 | S18: 681.25 | T18: 723.5 | U18: 687.5 | V18: 683.25 | W18: 693 | X18: 685.25 | Y18: 714.75 | Z18: 740.25
A19: 14 | B19: 2014-01-15 | C19: 713.25 | D19: 681.25 | E19: 655.25 | F19: 651.25 | G19: 649.25 | H19: 669.25 | I19: 657.75 | J19: 642 | K19: 651.25 | L19: 655.5 | M19: 654 | N19: 654.5 | O19: 648.75 | P19: 646.5 | Q19: 695 | R19: 788.75 | S19: 815.25 | T19: 884.5 | U19: 870.75 | V19: 868.25 | W19: 867.25 | X19: 896.75 | Y19: 871.5 | Z19: 858
A20: 15 | B20: 2014-01-16 | C20: 848.75 | D20: 869.5 | E20: 827.75 | F20: 823 | G20: 815.25 | H20: 790 | I20: 759.25 | J20: 766.75 | K20: 761.75 | L20: 750 | M20: 752.25 | N20: 746.75 | O20: 743.25 | P20: 744.5 | Q20: 806.5 | R20: 838 | S20: 870.5 | T20: 904.25 | U20: 905.25 | V20: 925.5 | W20: 893.25 | X20: 943 | Y20: 899 | Z20: 899.25
A21: 16 | B21: 2014-01-17 | C21: 902.75 | D21: 861 | E21: 819.75 | F21: 798.5 | G21: 808.25 | H21: 783.5 | I21: 746.75 | J21: 737.5 | K21: 734 | L21: 733 | M21: 730.5 | N21: 726.25 | O21: 721 | P21: 728.75 | Q21: 775.25 | R21: 830 | S21: 881.5 | T21: 907.5 | U21: 926.25 | V21: 926.5 | W21: 934.5 | X21: 905.25 | Y21: 881.75 | Z21: 930.25
A22: 17 | B22: 2014-01-18 | C22: 901.75 | D22: 873.75 | E22: 827.75 | F22: 800.25 | G22: 784.25 | H22: 751.25 | I22: 785.25 | J22: 765 | K22: 745.5 | L22: 725 | M22: 744.25 | N22: 732.75 | O22: 761.75 | P22: 749 | Q22: 762 | R22: 793.25 | S22: 841.25 | T22: 902 | U22: 875.5 | V22: 887.5 | W22: 889.75 | X22: 907 | Y22: 890 | Z22: 881.5
A23: 18 | B23: 2014-01-19 | C23: 892.75 | D23: 855 | E23: 814 | F23: 785.5 | G23: 784.5 | H23: 756.75 | I23: 738.5 | J23: 754.25 | K23: 749.5 | L23: 740.25 | M23: 716.75 | N23: 742.5 | O23: 724.75 | P23: 755.25 | Q23: 775 | R23: 794.75 | S23: 836.75 | T23: 892 | U23: 873.5 | V23: 883.5 | W23: 853.25 | X23: 891.25 | Y23: 911 | Z23: 881.25
A24: 19 | B24: 2014-01-20 | C24: 850.75 | D24: 822 | E24: 791.25 | F24: 783.75 | G24: 760.75 | H24: 727.75 | I24: 734.75 | J24: 717 | K24: 745.25 | L24: 800 | M24: 806 | N24: 781.25 | O24: 779.5 | P24: 750.25 | Q24: 746 | R24: 739.25 | S24: 740.25 | T24: 732.75 | U24: 733.25 | V24: 740.25 | W24: 749 | X24: 724.75 | Y24: 718.5 | Z24: 715.25
A25: 20 | B25: 2014-01-21 | C25: 709.25 | D25: 709.25 | E25: 713.75 | F25: 708.75 | G25: 729.25 | H25: 746 | I25: 751.75 | J25: 749.5 | K25: 751.75 | L25: 755.5 | M25: 767.5 | N25: 739.25 | O25: 731.75 | P25: 732.25 | Q25: 733 | R25: 742.5 | S25: 737.5 | T25: 729.75 | U25: 701.75 | V25: 699 | W25: 713.75 | X25: 706.5 | Y25: 694.75 | Z25: 708.75
A26: 21 | B26: 2014-01-22 | C26: 705 | D26: 706 | E26: 701 | F26: 716 | G26: 727.75 | H26: 769.75 | I26: 750.75 | J26: 771.25 | K26: 779.5 | L26: 815 | M26: 770.25 | N26: 824 | O26: 801.75 | P26: 792.75 | Q26: 787.25 | R26: 787.75 | S26: 731.5 | T26: 744 | U26: 682.25 | V26: 708.5 | W26: 701.25 | X26: 704.25 | Y26: 687.5 | Z26: 685.5
A27: 22 | B27: 2014-01-23 | C27: 680.5 | D27: 684 | E27: 681.5 | F27: 686.25 | G27: 737.75 | H27: 792 | I27: 851.5 | J27: 874.25 | K27: 863.5 | L27: 879.5 | M27: 899.75 | N27: 900.25 | O27: 891.25 | P27: 882.25 | Q27: 873.75 | R27: 849 | S27: 826.75 | T27: 784.75 | U27: 774.75 | V27: 743.75 | W27: 741.25 | X27: 742 | Y27: 707.5 | Z27: 716
A28: 23 | B28: 2014-01-24 | C28: 699 | D28: 691.75 | E28: 710.5 | F28: 709.75 | G28: 729.5 | H28: 785.75 | I28: 825 | J28: 866.75 | K28: 890.25 | L28: 879.25 | M28: 888.25 | N28: 884.75 | O28: 880.75 | P28: 892.75 | Q28: 854.75 | R28: 848 | S28: 813.25 | T28: 798 | U28: 777.5 | V28: 749.75 | W28: 737.5 | X28: 739.25 | Y28: 734.25 | Z28: 704.25
A29: 24 | B29: 2014-01-25 | C29: 684.5 | D29: 700.25 | E29: 721 | F29: 692 | G29: 736.75 | H29: 799.25 | I29: 827 | J29: 826.25 | K29: 856.75 | L29: 867 | M29: 860.25 | N29: 853 | O29: 856.75 | P29: 853 | Q29: 853 | R29: 821.5 | S29: 766 | T29: 763.25 | U29: 729.25 | V29: 699 | W29: 714.25 | X29: 714.5 | Y29: 719.25 | Z29: 729
A30: 25 | B30: 2014-01-26 | C30: 725 | D30: 707.25 | E30: 688 | F30: 686.5 | G30: 735.25 | H30: 776.25 | I30: 815.5 | J30: 848.75 | K30: 886.75 | L30: 901 | M30: 887.5 | N30: 883 | O30: 862.25 | P30: 845.25 | Q30: 836 | R30: 817 | S30: 767 | T30: 747.25 | U30: 728.75 | V30: 724.25 | W30: 732.5 | X30: 722 | Y30: 718.25 | Z30: 719.25
A31: 26 | B31: 2014-01-27 | C31: 701 | D31: 703 | E31: 699.25 | F31: 702.75 | G31: 730.75 | H31: 737.75 | I31: 755.5 | J31: 767.75 | K31: 732.5 | L31: 741 | M31: 715.25 | N31: 748 | O31: 746.25 | P31: 744.25 | Q31: 697 | R31: 691.75 | S31: 683.25 | T31: 692.75 | U31: 679.25 | V31: 673.25 | W31: 665.75 | X31: 695.25 | Y31: 708.75 | Z31: 719.25
A32: 27 | B32: 2014-01-28 | C32: 696.25 | D32: 688.25 | E32: 687 | F32: 673 | G32: 680.75 | H32: 689.25 | I32: 681 | J32: 722 | K32: 689.75 | L32: 685.25 | M32: 687.5 | N32: 682 | O32: 697.5 | P32: 738.25 | Q32: 723.5 | R32: 690 | S32: 661 | T32: 653.25 | U32: 656 | V32: 660.5 | W32: 671.5 | X32: 638.5 | Y32: 648.5 | Z32: 652.5
A33: 28 | B33: 2014-01-29 | C33: 657 | D33: 655 | E33: 648.75 | F33: 648.75 | G33: 677 | H33: 764 | I33: 819.25 | J33: 865.75 | K33: 879.75 | L33: 863.75 | M33: 860.25 | N33: 898.75 | O33: 874.75 | P33: 858.25 | Q33: 848.5 | R33: 875 | S33: 835 | T33: 822.5 | U33: 817 | V33: 797.75 | W33: 770.75 | X33: 766 | Y33: 763.75 | Z33: 752
A34: 29 | B34: 2014-01-30 | C34: 748.75 | D34: 745.75 | E34: 740.5 | F34: 747.5 | G34: 786 | H34: 839 | I34: 860 | J34: 900.75 | K34: 901.25 | L34: 921.75 | M34: 889.75 | N34: 931.75 | O34: 894.25 | P34: 920 | Q34: 905.5 | R34: 873.25 | S34: 823.75 | T34: 806.5 | U34: 788.5 | V34: 817 | W34: 746.25 | X34: 735.5 | Y34: 738.5 | Z34: 735.25
A35: 30 | B35: 2014-01-31 | C35: 723 | D35: 733.75 | E35: 717.5 | F35: 727.25 | G35: 760 | H35: 815.25 | I35: 869.5 | J35: 906.75 | K35: 929.75 | L35: 924.25 | M35: 933 | N35: 905.5 | O35: 895.5 | P35: 910.5 | Q35: 910.75 | R35: 886 | S35: 838.25 | T35: 798.75 | U35: 793.5 | V35: 756.5 | W35: 784 | X35: 762.75 | Y35: 746 | Z35: 735.75
A36: 31 | B36: 2014-02-01 | C36: 719 | D36: 727.75 | E36: 686.5 | F36: 671.75 | G36: 677.25 | H36: 690.75 | I36: 711.75 | J36: 695 | K36: 699.5 | L36: 689.75 | M36: 747.5 | N36: 700.75 | O36: 706.75 | P36: 717 | Q36: 716 | R36: 737 | S36: 726 | T36: 717.5 | U36: 724.25 | V36: 692.75 | W36: 686.25 | X36: 692 | Y36: 682 | Z36: 696.75
A37: 32 | B37: 2014-02-02 | C37: 681.5 | D37: 687 | E37: 707.5 | F37: 687.75 | G37: 690.25 | H37: 696.75 | I37: 675 | J37: 735 | K37: 779.5 | L37: 767 | M37: 785.5 | N37: 841 | O37: 814.75 | P37: 822.5 | Q37: 809.5 | R37: 835.25 | S37: 812 | T37: 840.75 | U37: 819.5 | V37: 762.75 | W37: 750 | X37: 726.5 | Y37: 725.5 | Z37: 719.5
A38: 33 | B38: 2014-02-03 | C38: 711 | D38: 722.5 | E38: 700.5 | F38: 695.25 | G38: 704.75 | H38: 678.25 | I38: 686.75 | J38: 746 | K38: 750.75 | L38: 803.5 | M38: 863.25 | N38: 863.75 | O38: 879.75 | P38: 873.75 | Q38: 859.75 | R38: 853.5 | S38: 832.5 | T38: 834.5 | U38: 804.75 | V38: 764.75 | W38: 758 | X38: 736.25 | Y38: 715.5 | Z38: 715.25
A39: 34 | B39: 2014-02-04 | C39: 700 | D39: 694.25 | E39: 687 | F39: 674.25 | G39: 674 | H39: 683.75 | I39: 712.5 | J39: 739.25 | K39: 759.75 | L39: 791.25 | M39: 813 | N39: 852.5 | O39: 905.75 | P39: 880.75 | Q39: 893.5 | R39: 868 | S39: 867.75 | T39: 873.5 | U39: 829.25 | V39: 761.25 | W39: 732.25 | X39: 711 | Y39: 700.75 | Z39: 692.75
A40: 35 | B40: 2014-02-05 | C40: 689.25 | D40: 675.5 | E40: 677.5 | F40: 671.75 | G40: 676 | H40: 673 | I40: 683.25 | J40: 755.5 | K40: 752 | L40: 784.5 | M40: 838.5 | N40: 847.5 | O40: 878.75 | P40: 880.5 | Q40: 864.75 | R40: 848 | S40: 834 | T40: 879.75 | U40: 837.25 | V40: 810.25 | W40: 796 | X40: 737.25 | Y40: 719.5 | Z40: 707
A41: 36 | B41: 2014-02-06 | C41: 709.25 | D41: 701.25 | E41: 692.75 | F41: 681.5 | G41: 700 | H41: 697.25 | I41: 712 | J41: 784 | K41: 795 | L41: 794.5 | M41: 851.75 | N41: 842.5 | O41: 836 | P41: 870 | Q41: 868.25 | R41: 864.25 | S41: 842.75 | T41: 816.25 | U41: 795 | V41: 762.25 | W41: 750.5 | X41: 746.25 | Y41: 734.75 | Z41: 714.25
A42: 37 | B42: 2014-02-07 | C42: 717.75 | D42: 683.75 | E42: 685.75 | F42: 691 | G42: 688.75 | H42: 697 | I42: 694.75 | J42: 708.75 | K42: 706.75 | L42: 727 | M42: 737.5 | N42: 744.5 | O42: 756.75 | P42: 764.25 | Q42: 772.75 | R42: 741 | S42: 706.5 | T42: 728 | U42: 716.5 | V42: 684.25 | W42: 697.5 | X42: 707.75 | Y42: 712.25 | Z42: 709.25
A43: 38 | B43: 2014-02-08 | C43: 702.5 | D43: 717.5 | E43: 692 | F43: 674.5 | G43: 699.25 | H43: 697.75 | I43: 685.75 | J43: 679.5 | K43: 694 | L43: 698.5 | M43: 701 | N43: 718.5 | O43: 721 | P43: 731.75 | Q43: 741 | R43: 733.5 | S43: 727.5 | T43: 723.75 | U43: 732.75 | V43: 730 | W43: 715.25 | X43: 703.5 | Y43: 730.75 | Z43: 718.5
A44: 39 | B44: 2014-02-09 | C44: 719 | D44: 727 | E44: 735.5 | F44: 700.5 | G44: 695 | H44: 710 | I44: 706.5 | J44: 755.5 | K44: 773 | L44: 783.5 | M44: 795.5 | N44: 841 | O44: 823.5 | P44: 878.75 | Q44: 821 | R44: 821.75 | S44: 810 | T44: 819.75 | U44: 793.75 | V44: 759 | W44: 728.75 | X44: 727 | Y44: 690.25 | Z44: 703.25
A45: 40 | B45: 2014-02-10 | C45: 720.75 | D45: 699.75 | E45: 703.5 | F45: 707.5 | G45: 692 | H45: 722 | I45: 727 | J45: 748.5 | K45: 742.25 | L45: 762.5 | M45: 766 | N45: 770.5 | O45: 799 | P45: 827 | Q45: 786.25 | R45: 779.5 | S45: 776.5 | T45: 806.75 | U45: 760.75 | V45: 734.25 | W45: 725 | X45: 700.75 | Y45: 709.75 | Z45: 710.25
A46: 41 | B46: 2014-02-11 | C46: 692.75 | D46: 703.25 | E46: 686.25 | F46: 673 | G46: 724 | H46: 703.5 | I46: 685.25 | J46: 740.25 | K46: 777.25 | L46: 849.75 | M46: 857.75 | N46: 838.25 | O46: 880 | P46: 885.5 | Q46: 870 | R46: 853.5 | S46: 870 | T46: 850 | U46: 851.75 | V46: 787.25 | W46: 777.5 | X46: 719.25 | Y46: 724.5 | Z46: 704
A47: 42 | B47: 2014-02-12 | C47: 708.25 | D47: 708.25 | E47: 694.5 | F47: 684.25 | G47: 690 | H47: 691.75 | I47: 715.25 | J47: 770.75 | K47: 792.25 | L47: 824.25 | M47: 844.75 | N47: 875.5 | O47: 861.5 | P47: 881.5 | Q47: 849.5 | R47: 900.25 | S47: 878.5 | T47: 846.75 | U47: 818.25 | V47: 777.5 | W47: 757.25 | X47: 742.75 | Y47: 720.25 | Z47: 706.25
A48: 43 | B48: 2014-02-13 | C48: 714.25 | D48: 709.25 | E48: 702.75 | F48: 707.75 | G48: 713.5 | H48: 711.75 | I48: 705.5 | J48: 777.75 | K48: 785.5 | L48: 828.75 | M48: 886.75 | N48: 881.5 | O48: 862.5 | P48: 890.5 | Q48: 864.75 | R48: 859.5 | S48: 860.25 | T48: 845.5 | U48: 815 | V48: 782 | W48: 752 | X48: 784.5 | Y48: 749 | Z48: 725
A49: 44 | B49: 2014-02-14 | C49: 721.5 | D49: 700.75 | E49: 695.5 | F49: 695 | G49: 724 | H49: 704.75 | I49: 694.5 | J49: 699 | K49: 728.25 | L49: 746.25 | M49: 750.25 | N49: 794 | O49: 773.5 | P49: 762.25 | Q49: 763 | R49: 798.25 | S49: 746 | T49: 761.5 | U49: 747 | V49: 736 | W49: 723.75 | X49: 739.25 | Y49: 708 | Z49: 707.25
A50: 45 | B50: 2014-02-15 | C50: 724 | D50: 717.5 | E50: 700.75 | F50: 712.75 | G50: 713.5 | H50: 696.25 | I50: 714.25 | J50: 738.25 | K50: 739 | L50: 731.75 | M50: 748.5 | N50: 757.75 | O50: 741 | P50: 746.5 | Q50: 765 | R50: 751.25 | S50: 755.5 | T50: 758 | U50: 736 | V50: 732.75 | W50: 720.5 | X50: 713.25 | Y50: 725.5 | Z50: 732.5
A51: 46 | B51: 2014-02-16 | C51: 717.25 | D51: 728.75 | E51: 724 | F51: 698.25 | G51: 735.75 | H51: 720.75 | I51: 700.75 | J51: 774.25 | K51: 763.5 | L51: 782.75 | M51: 771.25 | N51: 804.25 | O51: 812.25 | P51: 792.5 | Q51: 805 | R51: 792.75 | S51: 789.5 | T51: 775 | U51: 788.25 | V51: 737.25 | W51: 749.75 | X51: 728.25 | Y51: 719 | Z51: 712.75
A52: 47 | B52: 2014-02-17 | C52: 708.5 | D52: 706.75 | E52: 710.75 | F52: 691 | G52: 701.5 | H52: 686.25 | I52: 702 | J52: 755.5 | K52: 816.75 | L52: 810 | M52: 850.5 | N52: 846.5 | O52: 887.75 | P52: 865.5 | Q52: 900.5 | R52: 885.75 | S52: 850.5 | T52: 874 | U52: 818.5 | V52: 792.25 | W52: 758.5 | X52: 735.25 | Y52: 708.75 | Z52: 719.5
A53: 48 | B53: 2014-02-18 | C53: 713.25 | D53: 693.5 | E53: 679.75 | F53: 681.75 | G53: 697.25 | H53: 705.5 | I53: 676.25 | J53: 738 | K53: 785.5 | L53: 824 | M53: 846.25 | N53: 846.75 | O53: 840 | P53: 867.75 | Q53: 885.25 | R53: 857.75 | S53: 840.5 | T53: 831.75 | U53: 820.75 | V53: 770 | W53: 748.25 | X53: 718 | Y53: 712.5 | Z53: 697.75
A54: 49 | B54: 2014-02-19 | C54: 719.5 | D54: 728.25 | E54: 677.75 | F54: 671 | G54: 673 | H54: 701.75 | I54: 672.25 | J54: 722.5 | K54: 780.75 | L54: 831.75 | M54: 832.25 | N54: 845.75 | O54: 842.75 | P54: 839 | Q54: 882.75 | R54: 876.25 | S54: 837.5 | T54: 845.5 | U54: 821.75 | V54: 774 | W54: 757.5 | X54: 723.75 | Y54: 710 | Z54: 700.5
A55: 50 | B55: 2014-02-20 | C55: 702.25 | D55: 697 | E55: 701 | F55: 698 | G55: 699 | H55: 707.5 | I55: 704.5 | J55: 755 | K55: 774.75 | L55: 807.5 | M55: 850.25 | N55: 888.75 | O55: 876.75 | P55: 854 | Q55: 857.5 | R55: 860.5 | S55: 808.75 | T55: 818.5 | U55: 807.25 | V55: 791.5 | W55: 750 | X55: 695.75 | Y55: 670.25 | Z55: 667
A56: 51 | B56: 2014-02-21 | C56: 694.5 | D56: 676.25 | E56: 673.75 | F56: 659 | G56: 661.75 | H56: 675.25 | I56: 669 | J56: 681.5 | K56: 722 | L56: 725.5 | M56: 733.5 | N56: 762.5 | O56: 726.25 | P56: 741 | Q56: 741 | R56: 723.5 | S56: 707.25 | T56: 725.25 | U56: 698.75 | V56: 702.5 | W56: 689.75 | X56: 682.75 | Y56: 687 | Z56: 681.75
A57: 52 | B57: 2014-02-22 | C57: 696.75 | D57: 700.25 | E57: 677.25 | F57: 665.5 | G57: 668.25 | H57: 686.25 | I57: 663.5 | J57: 682 | K57: 694.75 | L57: 683.5 | M57: 706.75 | N57: 705.5 | O57: 708.5 | P57: 708 | Q57: 731 | R57: 715.75 | S57: 689 | T57: 720.5 | U57: 728 | V57: 701.5 | W57: 699.25 | X57: 699 | Y57: 690.25 | Z57: 697.5
A58: 53 | B58: 2014-02-23 | C58: 698 | D58: 679.25 | E58: 666 | F58: 672.75 | G58: 663.5 | H58: 655.25 | I58: 676 | J58: 705.5 | K58: 748 | L58: 762.25 | M58: 802 | N58: 833.25 | O58: 873 | P58: 845 | Q58: 838.25 | R58: 860.75 | S58: 847.25 | T58: 837.5 | U58: 838.75 | V58: 778.5 | W58: 746 | X58: 734 | Y58: 709.25 | Z58: 706.25
A59: 54 | B59: 2014-02-24 | C59: 694.25 | D59: 685.25 | E59: 693.75 | F59: 689.75 | G59: 684.25 | H59: 694 | I59: 703 | J59: 760.75 | K59: 789.25 | L59: 814.25 | M59: 844.75 | N59: 855 | O59: 898.75 | P59: 876.75 | Q59: 841.25 | R59: 870.25 | S59: 873.5 | T59: 837.75 | U59: 780.25 | V59: 774.25 | W59: 753.5 | X59: 766.5 | Y59: 741 | Z59: 716
A60: 55 | B60: 2014-02-25 | C60: 708 | D60: 724.75 | E60: 719.5 | F60: 704.75 | G60: 685.25 | H60: 693.75 | I60: 712.5 | J60: 769.75 | K60: 791.75 | L60: 815.5 | M60: 848.75 | N60: 853.25 | O60: 870.75 | P60: 858.25 | Q60: 836.75 | R60: 858.5 | S60: 882 | T60: 885.25 | U60: 824.5 | V60: 795.25 | W60: 778 | X60: 741.75 | Y60: 715.75 | Z60: 686.25
A61: 56 | B61: 2014-02-26 | C61: 678.75 | D61: 694 | E61: 678.5 | F61: 689.5 | G61: 694.75 | H61: 694.75 | I61: 703.25 | J61: 756 | K61: 788.5 | L61: 847.75 | M61: 845.25 | N61: 854.75 | O61: 878.75 | P61: 920.75 | Q61: 892.5 | R61: 889 | S61: 849 | T61: 833 | U61: 771 | V61: 751.75 | W61: 749.75 | X61: 717.25 | Y61: 704.5 | Z61: 707.75
A62: 57 | B62: 2014-02-27 | C62: 677.75 | D62: 689.5 | E62: 724.25 | F62: 671.75 | G62: 668.75 | H62: 684.5 | I62: 690.25 | J62: 779.75 | K62: 780.75 | L62: 805 | M62: 820 | N62: 855.75 | O62: 873.25 | P62: 852.5 | Q62: 875.75 | R62: 856.5 | S62: 837.25 | T62: 794.25 | U62: 782.75 | V62: 747 | W62: 756.5 | X62: 737 | Y62: 697.25 | Z62: 683
A63: 58 | B63: 2014-02-28 | C63: 686.75 | D63: 676.75 | E63: 685 | F63: 682.75 | G63: 663.5 | H63: 656.5 | I63: 667 | J63: 713.75 | K63: 714 | L63: 731.75 | M63: 731.5 | N63: 764.75 | O63: 732.75 | P63: 719.75 | Q63: 736.5 | R63: 787 | S63: 702.75 | T63: 728.25 | U63: 703 | V63: 671.5 | W63: 704.5 | X63: 680 | Y63: 694 | Z63: 666.75
A64: 60 | B64: 2014-03-01 | C64: 664.75 | D64: 704 | E64: 670.5 | F64: 684.5 | G64: 684.25 | H64: 656.5 | I64: 676.75 | J64: 677.75 | K64: 694.75 | L64: 709.25 | M64: 708.5 | N64: 709.5 | O64: 729 | P64: 715.75 | Q64: 742.25 | R64: 709.75 | S64: 737 | T64: 718.5 | U64: 720 | V64: 716 | W64: 670.25 | X64: 697 | Y64: 678.25 | Z64: 700.5
A65: 61 | B65: 2014-03-02 | C65: 703.25 | D65: 692 | E65: 678 | F65: 687 | G65: 669.5 | H65: 685.25 | I65: 701 | J65: 761.75 | K65: 791.5 | L65: 792.25 | M65: 842 | N65: 875.75 | O65: 841.25 | P65: 846.75 | Q65: 856.5 | R65: 861.5 | S65: 864.25 | T65: 825 | U65: 788.5 | V65: 765.5 | W65: 773.75 | X65: 712 | Y65: 701 | Z65: 678
A66: 62 | B66: 2014-03-03 | C66: 680.25 | D66: 683.25 | E66: 673.75 | F66: 670.25 | G66: 663.5 | H66: 668 | I66: 675 | J66: 737.75 | K66: 772.75 | L66: 788.75 | M66: 834 | N66: 834.5 | O66: 841 | P66: 807 | Q66: 849.25 | R66: 851 | S66: 816 | T66: 836.75 | U66: 765.5 | V66: 746 | W66: 731 | X66: 693.5 | Y66: 697.25 | Z66: 678
A67: 63 | B67: 2014-03-04 | C67: 672.75 | D67: 693 | E67: 695.75 | F67: 699.75 | G67: 664.25 | H67: 650 | I67: 672.75 | J67: 707 | K67: 750.25 | L67: 803.75 | M67: 828.75 | N67: 808.25 | O67: 847.25 | P67: 870.25 | Q67: 850.75 | R67: 837.5 | S67: 836.25 | T67: 798.5 | U67: 777.75 | V67: 749.5 | W67: 726.5 | X67: 696 | Y67: 691.5 | Z67: 688.75
A68: 64 | B68: 2014-03-05 | C68: 666.75 | D68: 669.75 | E68: 655 | F68: 655.75 | G68: 649.75 | H68: 650 | I68: 673.75 | J68: 709.75 | K68: 766.5 | L68: 817.75 | M68: 861.25 | N68: 873 | O68: 825 | P68: 826.5 | Q68: 851.5 | R68: 827.25 | S68: 827.75 | T68: 852 | U68: 785.5 | V68: 737.5 | W68: 731 | X68: 726.25 | Y68: 693 | Z68: 677.25
A69: 65 | B69: 2014-03-06 | C69: 691.5 | D69: 683.75 | E69: 680.25 | F69: 680.25 | G69: 672.5 | H69: 681 | I69: 703.25 | J69: 788.25 | K69: 809.25 | L69: 839.75 | M69: 836.75 | N69: 840.25 | O69: 868.75 | P69: 816.5 | Q69: 841.75 | R69: 838.5 | S69: 813.25 | T69: 781 | U69: 774.5 | V69: 751.25 | W69: 743 | X69: 706 | Y69: 678.5 | Z69: 653.25
A70: 66 | B70: 2014-03-07 | C70: 666 | D70: 651.25 | E70: 666.75 | F70: 652.75 | G70: 695.5 | H70: 683.25 | I70: 652.75 | J70: 685 | K70: 703.75 | L70: 753.5 | M70: 736.25 | N70: 713.25 | O70: 727.25 | P70: 716.5 | Q70: 763.25 | R70: 731.25 | S70: 705.5 | T70: 686 | U70: 665.75 | V70: 703.75 | W70: 677 | X70: 665.75 | Y70: 663.25 | Z70: 663
A71: 67 | B71: 2014-03-08 | C71: 672.25 | D71: 701.5 | E71: 662.75 | F71: 666.75 | G71: 669.75 | H71: 689.5 | I71: 685 | J71: 686.25 | K71: 680.5 | L71: 689.75 | M71: 712.25 | N71: 697.5 | O71: 678 | P71: 701 | Q71: 708.75 | R71: 686.75 | S71: 675.5 | T71: 673.25 | U71: 676.75 | V71: 675.5 | W71: 657.5 | X71: 663.5 | Y71: 670 | Z71: 669.5
A72: 68 | B72: 2014-03-09 | C72: 675.25 | D72: 663.5 | E72: 655.75 | F72: 658.5 | G72: 672.75 | H72: 668.5 | I72: 707.5 | J72: 743.75 | K72: 775.25 | L72: 788.5 | M72: 772.75 | N72: 792 | O72: 801.25 | P72: 783.75 | Q72: 767.75 | R72: 754 | S72: 757.5 | T72: 728.5 | U72: 691.75 | V72: 702 | W72: 668 | X72: 662.5 | Y72: 668.5 | Z72: 660
A73: 69 | B73: 2014-03-10 | C73: 660 | D73: 651 | E73: 663.5 | F73: 665 | G73: 637.25 | H73: 667 | I73: 689.25 | J73: 725.75 | K73: 757 | L73: 750.25 | M73: 763 | N73: 817.75 | O73: 773.25 | P73: 758.25 | Q73: 770 | R73: 769.25 | S73: 733.5 | T73: 704 | U73: 686.75 | V73: 681.25 | W73: 666.5 | X73: 634.5 | Y73: 647.25 | Z73: 643.5
A74: 70 | B74: 2014-03-11 | C74: 643 | D74: 658.5 | E74: 658.75 | F74: 652 | G74: 639.5 | H74: 633 | I74: 684.5 | J74: 731.5 | K74: 746.75 | L74: 727.5 | M74: 753 | N74: 744.5 | O74: 756.75 | P74: 780.25 | Q74: 774.75 | R74: 757.5 | S74: 740.75 | T74: 704 | U74: 664 | V74: 626.75 | W74: 596.5 | X74: 603.5 | Y74: 599.5 | Z74: 604.25
A75: 71 | B75: 2014-03-12 | C75: 597 | D75: 615.75 | E75: 592 | F75: 589.25 | G75: 588.75 | H75: 590.25 | I75: 681 | J75: 676.5 | K75: 720 | L75: 762.5 | M75: 741.25 | N75: 776.25 | O75: 743.5 | P75: 740 | Q75: 755.75 | R75: 731.25 | S75: 717.5 | T75: 687.75 | U75: 665.75 | V75: 651.25 | W75: 654.25 | X75: 630.75 | Y75: 597.25 | Z75: 610.75
A76: 72 | B76: 2014-03-13 | C76: 626.75 | D76: 643.5 | E76: 618 | F76: 616.75 | G76: 646.25 | H76: 631 | I76: 674.25 | J76: 712.5 | K76: 738 | L76: 756.25 | M76: 765.25 | N76: 805 | O76: 758.5 | P76: 763 | Q76: 744 | R76: 738 | S76: 736.5 | T76: 696.25 | U76: 671 | V76: 662.5 | W76: 646.25 | X76: 624 | Y76: 609.75 | Z76: 607
A77: 73 | B77: 2014-03-14 | C77: 614.75 | D77: 657 | E77: 623 | F77: 621 | G77: 635.5 | H77: 652 | I77: 654.75 | J77: 659.25 | K77: 686.25 | L77: 693.75 | M77: 690.75 | N77: 715.5 | O77: 689.25 | P77: 708 | Q77: 705.25 | R77: 692.75 | S77: 653 | T77: 666.75 | U77: 655.75 | V77: 634.75 | W77: 622 | X77: 645 | Y77: 646.5 | Z77: 651
A78: 74 | B78: 2014-03-15 | C78: 663.5 | D78: 650.75 | E78: 634.5 | F78: 629 | G78: 652.25 | H78: 640.5 | I78: 636.5 | J78: 665.25 | K78: 665 | L78: 652.75 | M78: 663.5 | N78: 673 | O78: 655.75 | P78: 652 | Q78: 674 | R78: 650.75 | S78: 657 | T78: 694 | U78: 644 | V78: 662.5 | W78: 665.5 | X78: 641.5 | Y78: 675.5 | Z78: 626.75
A79: 75 | B79: 2014-03-16 | C79: 663.25 | D79: 660 | E79: 633.25 | F79: 668.75 | G79: 646.5 | H79: 678.25 | I79: 711 | J79: 737 | K79: 803.5 | L79: 810.25 | M79: 823.75 | N79: 823.25 | O79: 841.5 | P79: 808.5 | Q79: 827.25 | R79: 805.75 | S79: 796.25 | T79: 758.75 | U79: 750.25 | V79: 730.75 | W79: 688.75 | X79: 662 | Y79: 653 | Z79: 649.75
A80: 76 | B80: 2014-03-17 | C80: 648.75 | D80: 649 | E80: 650.25 | F80: 663 | G80: 675 | H80: 669.75 | I80: 706.25 | J80: 747 | K80: 775.25 | L80: 810.25 | M80: 814.75 | N80: 829.5 | O80: 855 | P80: 813.5 | Q80: 833.75 | R80: 781 | S80: 799.5 | T80: 766 | U80: 722 | V80: 746.25 | W80: 713.75 | X80: 690.5 | Y80: 663.25 | Z80: 648.25
A81: 77 | B81: 2014-03-18 | C81: 648.75 | D81: 655.75 | E81: 634 | F81: 670.75 | G81: 655 | H81: 657 | I81: 722 | J81: 745.75 | K81: 815.5 | L81: 833 | M81: 819.25 | N81: 864.75 | O81: 827.25 | P81: 843.25 | Q81: 850 | R81: 835 | S81: 848.5 | T81: 773.25 | U81: 740.75 | V81: 713.25 | W81: 692.25 | X81: 677.75 | Y81: 659.25 | Z81: 677.25
A82: 78 | B82: 2014-03-19 | C82: 685.25 | D82: 669 | E82: 654.5 | F82: 659.5 | G82: 660.25 | H82: 672.5 | I82: 744.25 | J82: 756.75 | K82: 807.25 | L82: 837.5 | M82: 845 | N82: 865.5 | O82: 843 | P82: 853.5 | Q82: 840.25 | R82: 830 | S82: 820.5 | T82: 749.75 | U82: 739 | V82: 726 | W82: 730.25 | X82: 702 | Y82: 656.25 | Z82: 670.5
A83: 79 | B83: 2014-03-20 | C83: 658.75 | D83: 653.5 | E83: 647.5 | F83: 664 | G83: 656.25 | H83: 679.75 | I83: 724.25 | J83: 752.75 | K83: 822 | L83: 808.75 | M83: 818.75 | N83: 790.5 | O83: 807.75 | P83: 777.75 | Q83: 791.5 | R83: 790 | S83: 758.5 | T83: 778.25 | U83: 758 | V83: 713 | W83: 683.75 | X83: 668 | Y83: 658.5 | Z83: 660.75
A84: 80 | B84: 2014-03-21 | C84: 657.75 | D84: 646.75 | E84: 645.25 | F84: 661.75 | G84: 656.25 | H84: 676.5 | I84: 690.5 | J84: 714 | K84: 737.25 | L84: 742.25 | M84: 734 | N84: 775.5 | O84: 744.75 | P84: 750.25 | Q84: 700.25 | R84: 703.75 | S84: 709 | T84: 694.25 | U84: 653.75 | V84: 649 | W84: 671.5 | X84: 665.5 | Y84: 640.5 | Z84: 647.75
A85: 81 | B85: 2014-03-22 | C85: 642.75 | D85: 639.75 | E85: 628.75 | F85: 668.75 | G85: 660.25 | H85: 662 | I85: 678.75 | J85: 663.25 | K85: 663.75 | L85: 675.25 | M85: 682.5 | N85: 693.5 | O85: 710 | P85: 714.5 | Q85: 709.75 | R85: 709.25 | S85: 708.25 | T85: 679 | U85: 662.25 | V85: 680.5 | W85: 671.5 | X85: 676.5 | Y85: 673.25 | Z85: 661
A86: 82 | B86: 2014-03-23 | C86: 652.75 | D86: 643 | E86: 650.75 | F86: 687 | G86: 675 | H86: 754 | I86: 778.75 | J86: 788.25 | K86: 810.25 | L86: 860.75 | M86: 848.5 | N86: 834.75 | O86: 874 | P86: 843.25 | Q86: 840.75 | R86: 804.75 | S86: 768.5 | T86: 749.5 | U86: 785.5 | V86: 706.5 | W86: 689.75 | X86: 662.75 | Y86: 668.75 | Z86: 655.5
A87: 83 | B87: 2014-03-24 | C87: 646.5 | D87: 646.25 | E87: 647.75 | F87: 686.25 | G87: 649.75 | H87: 723.5 | I87: 760.25 | J87: 783.75 | K87: 797.75 | L87: 814 | M87: 865 | N87: 844.5 | O87: 818.5 | P87: 822.75 | Q87: 800.75 | R87: 818 | S87: 777 | T87: 744.75 | U87: 740.75 | V87: 725 | W87: 674.5 | X87: 657 | Y87: 666.25 | Z87: 654
A88: 84 | B88: 2014-03-25 | C88: 639.5 | D88: 636.75 | E88: 636.25 | F88: 672.75 | G88: 653 | H88: 721.75 | I88: 754.75 | J88: 772 | K88: 822 | L88: 815.75 | M88: 847.25 | N88: 818 | O88: 816.75 | P88: 834.25 | Q88: 827.25 | R88: 775.5 | S88: 759.5 | T88: 736.5 | U88: 728.5 | V88: 715.75 | W88: 695.25 | X88: 681 | Y88: 672.25 | Z88: 655.5
A89: 85 | B89: 2014-03-26 | C89: 661.5 | D89: 644.75 | E89: 647.25 | F89: 653.25 | G89: 632 | H89: 733.75 | I89: 730.75 | J89: 765 | K89: 813 | L89: 824.5 | M89: 850.75 | N89: 828.75 | O89: 831.5 | P89: 814.25 | Q89: 808.75 | R89: 801.25 | S89: 771.75 | T89: 769.75 | U89: 723.25 | V89: 656.5 | W89: 650.75 | X89: 657.5 | Y89: 646.25 | Z89: 632.25
A90: 86 | B90: 2014-03-27 | C90: 624 | D90: 619.5 | E90: 608.75 | F90: 642.75 | G90: 622.25 | H90: 697.5 | I90: 704.75 | J90: 763 | K90: 797.25 | L90: 804.75 | M90: 824.25 | N90: 828.75 | O90: 859.75 | P90: 813 | Q90: 803.5 | R90: 783 | S90: 766.75 | T90: 735 | U90: 718.75 | V90: 713 | W90: 676.5 | X90: 672.75 | Y90: 663.25 | Z90: 653.25
A91: 87 | B91: 2014-03-28 | C91: 653.25 | D91: 646.75 | E91: 651.75 | F91: 676.75 | G91: 652.75 | H91: 694.75 | I91: 690.25 | J91: 711.5 | K91: 754 | L91: 747 | M91: 737.75 | N91: 760 | O91: 763.75 | P91: 758 | Q91: 746 | R91: 737.25 | S91: 709 | T91: 687.75 | U91: 704 | V91: 676.25 | W91: 676.75 | X91: 682.75 | Y91: 671.5 | Z91: 678.5
A92: 88 | B92: 2014-03-29 | C92: 669.75 | D92: 660.5 | E92: 656.25 | F92: 686.75 | G92: 677.5 | H92: 705.5 | I92: 689 | J92: 680.25 | K92: 740.75 | L92: 708.25 | M92: 709.75 | N92: 708.75 | O92: 734 | P92: 719.5 | Q92: 705.25 | R92: 694.5 | S92: 692.75 | T92: 688.25 | U92: 683.75 | V92: 683.75 | W92: 682 | X92: 665.75 | Y92: 668 | Z92: 669.25
A93: 89 | B93: 2014-03-30 | C93: 649.75 | D93: 649.25 | E93: 642.75 | F93: 672.5 | G93: 665.5 | H93: 732 | I93: 782.25 | J93: 818.25 | K93: 822.25 | L93: 868.75 | M93: 896 | N93: 864.25 | O93: 872.25 | P93: 850.5 | Q93: 848 | R93: 805.75 | S93: 772.5 | T93: 749.75 | U93: 719 | V93: 747.25 | W93: 740 | X93: 664.75 | Y93: 662 | Z93: 650.75
A94: 90 | B94: 2014-03-31 | C94: 649.5 | D94: 639 | E94: 675.25 | F94: 666.25 | G94: 647.75 | H94: 750.75 | I94: 748.25 | J94: 763.25 | K94: 806 | L94: 831.5 | M94: 859.25 | N94: 831.75 | O94: 822.5 | P94: 807 | Q94: 795 | R94: 786.25 | S94: 756 | T94: 727.25 | U94: 739.75 | V94: 681 | W94: 677 | X94: 656.75 | Y94: 659.25 | Z94: 651
A95: 91 | B95: 2014-04-01 | C95: 657.75 | D95: 637 | E95: 636 | F95: 656.5 | G95: 631 | H95: 677.75 | I95: 728 | J95: 757.25 | K95: 779.5 | L95: 811.75 | M95: 802.75 | N95: 807 | O95: 797.75 | P95: 852 | Q95: 822.75 | R95: 796.75 | S95: 788 | T95: 754.5 | U95: 709.75 | V95: 704 | W95: 680.5 | X95: 660.75 | Y95: 636.5 | Z95: 641.25
A96: 92 | B96: 2014-04-02 | C96: 633.25 | D96: 631.25 | E96: 631 | F96: 654 | G96: 634 | H96: 663 | I96: 715.25 | J96: 752.25 | K96: 803.75 | L96: 816 | M96: 836.25 | N96: 901 | O96: 1017.5 | P96: 1078.25 | Q96: 1063.5 | R96: 1084.25 | S96: 1014.75 | T96: 1013.75 | U96: 952.75 | V96: 957.75 | W96: 939 | X96: 880.25 | Y96: 863.5 | Z96: 831.5
A97: 93 | B97: 2014-04-03 | C97: 813.75 | D97: 856.75 | E97: 835 | F97: 866.75 | G97: 825 | H97: 882.25 | I97: 891.5 | J97: 971.25 | K97: 999.5 | L97: 1031.5 | M97: 1034.75 | N97: 1066.5 | O97: 1053 | P97: 1052 | Q97: 1057 | R97: 1032.25 | S97: 1014.5 | T97: 982.75 | U97: 951.25 | V97: 940.25 | W97: 916.75 | X97: 858.25 | Y97: 859.25 | Z97: 750.75
A98: 94 | B98: 2014-04-04 | C98: 783.75 | D98: 797.25 | E98: 759.25 | F98: 797 | G98: 775.25 | H98: 791 | I98: 763.25 | J98: 638.25 | K98: 677 | L98: 670.5 | M98: 816 | N98: 952.75 | O98: 873 | P98: 682.5 | Q98: 721.5 | R98: 683 | S98: 662.5 | T98: 644.25 | U98: 646.75 | V98: 634 | W98: 660.75 | X98: 654.25 | Y98: 639.75 | Z98: 640.5
A99: 95 | B99: 2014-04-05 | C99: 627.75 | D99: 630.25 | E99: 634 | F99: 640.5 | G99: 658.25 | H99: 638.5 | I99: 663.25 | J99: 655 | K99: 653.75 | L99: 662.25 | M99: 665.25 | N99: 680 | O99: 656 | P99: 684.5 | Q99: 683 | R99: 669 | S99: 658 | T99: 677 | U99: 664.25 | V99: 670.75 | W99: 651.25 | X99: 650 | Y99: 645.25 | Z99: 636
A100: 96 | B100: 2014-04-06 | C100: 634.5 | D100: 619.25 | E100: 618.5 | F100: 655 | G100: 627.5 | H100: 649.75 | I100: 706 | J100: 733 | K100: 744.75 | L100: 788.5 | M100: 760.75 | N100: 805.25 | O100: 805 | P100: 804 | Q100: 808.5 | R100: 792.75 | S100: 769 | T100: 733.75 | U100: 713.75 | V100: 698.25 | W100: 674.5 | X100: 659.25 | Y100: 646 | Z100: 624.25
A101: 97 | B101: 2014-04-07 | C101: 622.75 | D101: 608 | E101: 606.75 | F101: 635.75 | G101: 617.5 | H101: 634.5 | I101: 690.75 | J101: 729.75 | K101: 765.25 | L101: 818.5 | M101: 816.25 | N101: 853.75 | O101: 833.75 | P101: 811.25 | Q101: 825.75 | R101: 792.25 | S101: 797.5 | T101: 768.25 | U101: 764.75 | V101: 737.25 | W101: 691.75 | X101: 669.5 | Y101: 644.25 | Z101: 670.5
A102: 98 | B102: 2014-04-08 | C102: 646 | D102: 643.75 | E102: 651.5 | F102: 659.75 | G102: 643.5 | H102: 684.25 | I102: 728 | J102: 725.75 | K102: 778.5 | L102: 830.5 | M102: 793 | N102: 835.5 | O102: 821.25 | P102: 820 | Q102: 831 | R102: 820 | S102: 800.5 | T102: 759.5 | U102: 739 | V102: 730.75 | W102: 685.5 | X102: 693 | Y102: 668 | Z102: 653
A103: 99 | B103: 2014-04-09 | C103: 673.75 | D103: 649 | E103: 657.5 | F103: 666 | G103: 655.5 | H103: 663.75 | I103: 733.75 | J103: 738.25 | K103: 792.5 | L103: 827 | M103: 842 | N103: 864.25 | O103: 851.5 | P103: 847.25 | Q103: 838.25 | R103: 825.75 | S103: 784.25 | T103: 768 | U103: 759.5 | V103: 728.75 | W103: 680 | X103: 688.5 | Y103: 671 | Z103: 658.25
A104: 100 | B104: 2014-04-10 | C104: 660.75 | D104: 658 | E104: 644.25 | F104: 671 | G104: 647 | H104: 673 | I104: 727.75 | J104: 750.25 | K104: 779.25 | L104: 792.75 | M104: 824.75 | N104: 838 | O104: 799.5 | P104: 798.75 | Q104: 775.5 | R104: 767.75 | S104: 783 | T104: 740.75 | U104: 699.5 | V104: 688 | W104: 675 | X104: 648 | Y104: 650.5 | Z104: 642.5
A105: 101 | B105: 2014-04-11 | C105: 640 | D105: 636.75 | E105: 627.75 | F105: 662.25 | G105: 629.25 | H105: 634.75 | I105: 672.75 | J105: 693.25 | K105: 713.75 | L105: 718.5 | M105: 723.25 | N105: 731.75 | O105: 947 | P105: 975.75 | Q105: 991.75 | R105: 955.5 | S105: 974.5 | T105: 950.25 | U105: 935.5 | V105: 894.25 | W105: 707.25 | X105: 653.75 | Y105: 659.75 | Z105: 660.25
A106: 102 | B106: 2014-04-12 | C106: 653 | D106: 664 | E106: 648.25 | F106: 654.75 | G106: 645.5 | H106: 663.25 | I106: 671.5 | J106: 656.75 | K106: 641.25 | L106: 878.5 | M106: 780.75 | N106: 843 | O106: 871 | P106: 958.25 | Q106: 877.5 | R106: 955.5 | S106: 844 | T106: 859.75 | U106: 891 | V106: 842 | W106: 856.25 | X106: 869.5 | Y106: 785.75 | Z106: 819.5
A107: 103 | B107: 2014-04-13 | C107: 895.5 | D107: 881.25 | E107: 873.5 | F107: 519.75 | G107: 638.75 | H107: 652 | I107: 688.75 | J107: 946.25 | K107: 1075.5 | L107: 1106.25 | M107: 1104.75 | N107: 1146.75 | O107: 1136.75 | P107: 1112 | Q107: 1144.25 | R107: 1135.75 | S107: 1131.5 | T107: 1046.75 | U107: 1041.75 | V107: 980.25 | W107: 917.25 | X107: 912.75 | Y107: 901.25 | Z107: 883.25
A108: 104 | B108: 2014-04-14 | C108: 882.75 | D108: 867.25 | E108: 874.5 | F108: 896.75 | G108: 863.75 | H108: 903 | I108: 977.75 | J108: 989.75 | K108: 1022.25 | L108: 1045.25 | M108: 1111.5 | N108: 1076.5 | O108: 1091.5 | P108: 1134 | Q108: 1099.5 | R108: 1057.5 | S108: 1072.5 | T108: 1065.75 | U108: 1014 | V108: 997.5 | W108: 930.25 | X108: 911 | Y108: 907.25 | Z108: 899.75
A109: 105 | B109: 2014-04-15 | C109: 869.5 | D109: 854.75 | E109: 861.25 | F109: 876.5 | G109: 850.75 | H109: 864.75 | I109: 949.75 | J109: 958.25 | K109: 1032.25 | L109: 1070.5 | M109: 1088.5 | N109: 1114 | O109: 1089 | P109: 1089.5 | Q109: 1067 | R109: 1097.25 | S109: 1092.75 | T109: 1003.75 | U109: 990 | V109: 979.75 | W109: 917.5 | X109: 903 | Y109: 900.5 | Z109: 899
A110: 106 | B110: 2014-04-16 | C110: 845.5 | D110: 828 | E110: 605.75 | F110: 638.25 | G110: 647 | H110: 660.5 | I110: 701.25 | J110: 705.5 | K110: 779.75 | L110: 1082.5 | M110: 1061 | N110: 1101 | O110: 1126 | P110: 1104.5 | Q110: 1101 | R110: 1079.25 | S110: 1106.25 | T110: 1080.5 | U110: 994.5 | V110: 973.75 | W110: 935 | X110: 911 | Y110: 902 | Z110: 871.25
A111: 107 | B111: 2014-04-17 | C111: 668 | D111: 616.75 | E111: 602.75 | F111: 621 | G111: 604.25 | H111: 657.75 | I111: 988.75 | J111: 890 | K111: 958.75 | L111: 991.75 | M111: 1004.5 | N111: 1018.5 | O111: 1014.5 | P111: 1034.5 | Q111: 1000.25 | R111: 1027 | S111: 996.5 | T111: 968.75 | U111: 913.5 | V111: 902.75 | W111: 841.5 | X111: 828.25 | Y111: 826 | Z111: 793.25
A112: 108 | B112: 2014-04-18 | C112: 809 | D112: 792.25 | E112: 772.25 | F112: 799.5 | G112: 763 | H112: 801.5 | I112: 811.5 | J112: 849.25 | K112: 870.75 | L112: 908.75 | M112: 910.5 | N112: 888 | O112: 880.25 | P112: 882 | Q112: 743.25 | R112: 675.5 | S112: 668.75 | T112: 653.75 | U112: 643.75 | V112: 844 | W112: 811.5 | X112: 757.25 | Y112: 624.75 | Z112: 638.25
A113: 109 | B113: 2014-04-19 | C113: 610.75 | D113: 603.75 | E113: 608.25 | F113: 637.75 | G113: 615.75 | H113: 637.25 | I113: 649.5 | J113: 633.75 | K113: 647.5 | L113: 653 | M113: 667.25 | N113: 670 | O113: 676.5 | P113: 670.75 | Q113: 677 | R113: 676.75 | S113: 658 | T113: 652.5 | U113: 648.5 | V113: 655.75 | W113: 633.5 | X113: 621.25 | Y113: 616.25 | Z113: 635.5
A114: 110 | B114: 2014-04-20 | C114: 629.25 | D114: 629 | E114: 632 | F114: 650.5 | G114: 645.75 | H114: 650.5 | I114: 689.75 | J114: 711.25 | K114: 734.75 | L114: 778.25 | M114: 780.25 | N114: 787.75 | O114: 787.75 | P114: 774 | Q114: 783 | R114: 773.25 | S114: 765.25 | T114: 717.5 | U114: 696.75 | V114: 700.5 | W114: 669.5 | X114: 743.25 | Y114: 837 | Z114: 804.75
A115: 111 | B115: 2014-04-21 | C115: 911.5 | D115: 907.5 | E115: 804.5 | F115: 943.25 | G115: 758.75 | H115: 866 | I115: 925.75 | J115: 961 | K115: 1046.25 | L115: 1030 | M115: 1111.75 | N115: 1097.25 | O115: 1050.75 | P115: 1065.5 | Q115: 1118 | R115: 1133.25 | S115: 1041.5 | T115: 1061.75 | U115: 991 | V115: 974.25 | W115: 965 | X115: 936.25 | Y115: 922.5 | Z115: 907.25
A116: 112 | B116: 2014-04-22 | C116: 897.25 | D116: 825.75 | E116: 789.5 | F116: 631 | G116: 619.25 | H116: 626 | I116: 686.75 | J116: 937.25 | K116: 982.25 | L116: 1016 | M116: 1019.75 | N116: 1070.75 | O116: 1052.5 | P116: 1066 | Q116: 1104.75 | R116: 1104 | S116: 1120 | T116: 1064.5 | U116: 987.75 | V116: 955.75 | W116: 950.25 | X116: 916 | Y116: 799.75 | Z116: 892.75
A117: 113 | B117: 2014-04-23 | C117: 847.75 | D117: 720.75 | E117: 623.5 | F117: 652.25 | G117: 620.75 | H117: 660.5 | I117: 696 | J117: 728.75 | K117: 757.5 | L117: 794.25 | M117: 809.25 | N117: 789.25 | O117: 788 | P117: 795 | Q117: 771.5 | R117: 780 | S117: 763 | T117: 713 | U117: 690.25 | V117: 700.25 | W117: 666 | X117: 667.25 | Y117: 653.25 | Z117: 650
A118: 114 | B118: 2014-04-24 | C118: 630.5 | D118: 650.25 | E118: 636.25 | F118: 645.75 | G118: 654 | H118: 685.25 | I118: 729.75 | J118: 730.25 | K118: 761.25 | L118: 789.25 | M118: 797 | N118: 793.5 | O118: 789.5 | P118: 804.5 | Q118: 792.75 | R118: 767.5 | S118: 788.25 | T118: 713 | U118: 720 | V118: 703.25 | W118: 680.75 | X118: 634.5 | Y118: 639.25 | Z118: 638.75
A119: 115 | B119: 2014-04-25 | C119: 638.5 | D119: 655.5 | E119: 637.25 | F119: 661 | G119: 642.75 | H119: 649.5 | I119: 668.5 | J119: 672.75 | K119: 700.75 | L119: 704.25 | M119: 691.75 | N119: 711.5 | O119: 808 | P119: 984 | Q119: 940.25 | R119: 960.75 | S119: 946.5 | T119: 831 | U119: 914.5 | V119: 705.25 | W119: 657.5 | X119: 634.25 | Y119: 657.25 | Z119: 653
A120: 116 | B120: 2014-04-26 | C120: 659.5 | D120: 634 | E120: 643.5 | F120: 660 | G120: 629.25 | H120: 642 | I120: 665.5 | J120: 649.75 | K120: 639.25 | L120: 677.5 | M120: 821.5 | N120: 896.25 | O120: 954.25 | P120: 952 | Q120: 958.75 | R120: 926 | S120: 932.5 | T120: 944.25 | U120: 904.25 | V120: 896.75 | W120: 910.5 | X120: 894 | Y120: 858.25 | Z120: 879.75
A121: 117 | B121: 2014-04-27 | C121: 851.5 | D121: 892 | E121: 838.5 | F121: 624.25 | G121: 619.5 | H121: 640 | I121: 699 | J121: 704.5 | K121: 732.5 | L121: 905 | M121: 960.5 | N121: 953.25 | O121: 985 | P121: 972.75 | Q121: 962.25 | R121: 965.75 | S121: 943 | T121: 901.75 | U121: 881.75 | V121: 861.5 | W121: 862.5 | X121: 820.25 | Y121: 670.25 | Z121: 631.5
A122: 118 | B122: 2014-04-28 | C122: 633.75 | D122: 640.5 | E122: 627.75 | F122: 640.25 | G122: 628 | H122: 648.5 | I122: 709.5 | J122: 713.75 | K122: 734.5 | L122: 781 | M122: 783.5 | N122: 817 | O122: 1022.75 | P122: 984.75 | Q122: 989.5 | R122: 1058.25 | S122: 997.5 | T122: 943.25 | U122: 934.75 | V122: 880 | W122: 883.75 | X122: 827 | Y122: 832.75 | Z122: 762
A123: 119 | B123: 2014-04-29 | C123: 691.5 | D123: 698.25 | E123: 719 | F123: 751.75 | G123: 707.75 | H123: 737.25 | I123: 910.25 | J123: 964.5 | K123: 1048.25 | L123: 1041.75 | M123: 1016.5 | N123: 1079 | O123: 939.75 | P123: 775.75 | Q123: 783.75 | R123: 1000 | S123: 1055.25 | T123: 945.5 | U123: 935.75 | V123: 940.25 | W123: 873.5 | X123: 892 | Y123: 860.25 | Z123: 869.5
A124: 120 | B124: 2014-04-30 | C124: 917.25 | D124: 898.75 | E124: 885.75 | F124: 885.5 | G124: 839 | H124: 753.75 | I124: 702.25 | J124: 717.25 | K124: 761.75 | L124: 857.25 | M124: 979 | N124: 1026 | O124: 960.75 | P124: 989.75 | Q124: 986 | R124: 947.5 | S124: 942.5 | T124: 884.25 | U124: 871.75 | V124: 712.5 | W124: 653.5 | X124: 642.5 | Y124: 624.5 | Z124: 617
A125: 121 | B125: 2014-05-01 | C125: 624 | D125: 610.75 | E125: 615.75 | F125: 642.75 | G125: 610.75 | H125: 638.5 | I125: 706.75 | J125: 747.25 | K125: 892.5 | L125: 903.5 | M125: 957 | N125: 936 | O125: 946 | P125: 941.5 | Q125: 890.75 | R125: 749 | S125: 736.5 | T125: 718.25 | U125: 693 | V125: 696 | W125: 650.5 | X125: 632 | Y125: 620.5 | Z125: 614.5
A126: 122 | B126: 2014-05-02 | C126: 626.75 | D126: 621.75 | E126: 611.25 | F126: 619.25 | G126: 617.5 | H126: 629 | I126: 638.75 | J126: 673.25 | K126: 680.75 | L126: 691.75 | M126: 706.75 | N126: 666.75 | O126: 657 | P126: 689.75 | Q126: 860.5 | R126: 813 | S126: 787 | T126: 789 | U126: 780.5 | V126: 783.75 | W126: 749 | X126: 754.5 | Y126: 752 | Z126: 756
A127: 123 | B127: 2014-05-03 | C127: 768.75 | D127: 589.75 | E127: 561.5 | F127: 596.25 | G127: 573 | H127: 576.75 | I127: 601 | J127: 627.5 | K127: 728.25 | L127: 728.5 | M127: 767.25 | N127: 781.25 | O127: 785.5 | P127: 797.25 | Q127: 806 | R127: 752.75 | S127: 759.25 | T127: 764 | U127: 753.5 | V127: 739.25 | W127: 738.25 | X127: 697.75 | Y127: 668 | Z127: 668.5
A128: 124 | B128: 2014-05-04 | C128: 656.75 | D128: 718.5 | E128: 657.75 | F128: 667 | G128: 652.25 | H128: 650 | I128: 872.25 | J128: 871 | K128: 1021.25 | L128: 1107.5 | M128: 1110.75 | N128: 1132.5 | O128: 1151 | P128: 1112.75 | Q128: 1185.25 | R128: 1140.5 | S128: 1108.25 | T128: 1053.5 | U128: 990 | V128: 972.25 | W128: 909 | X128: 944.25 | Y128: 893 | Z128: 885.5
A129: 125 | B129: 2014-05-05 | C129: 850.5 | D129: 880.5 | E129: 857 | F129: 880.75 | G129: 856 | H129: 898.25 | I129: 979 | J129: 999.5 | K129: 1025 | L129: 1067 | M129: 1081.5 | N129: 1119.75 | O129: 1112.5 | P129: 1130.75 | Q129: 1118 | R129: 1108.25 | S129: 1081.5 | T129: 1011.5 | U129: 962.25 | V129: 933.5 | W129: 907.25 | X129: 890.5 | Y129: 880.75 | Z129: 895
A130: 126 | B130: 2014-05-06 | C130: 875 | D130: 878.5 | E130: 867.5 | F130: 828.25 | G130: 800 | H130: 903.25 | I130: 906.25 | J130: 950.75 | K130: 970 | L130: 1002.25 | M130: 1012 | N130: 1011 | O130: 1002.75 | P130: 998.25 | Q130: 1029 | R130: 1014 | S130: 1011.75 | T130: 965.5 | U130: 945.5 | V130: 889 | W130: 846.25 | X130: 803.5 | Y130: 812 | Z130: 801.75
A131: 127 | B131: 2014-05-07 | C131: 797 | D131: 790.5 | E131: 786.75 | F131: 805.25 | G131: 786.5 | H131: 838.5 | I131: 936.75 | J131: 1035.25 | K131: 1043.75 | L131: 1069.25 | M131: 1089 | N131: 1125.5 | O131: 1123.5 | P131: 1149.75 | Q131: 1117.75 | R131: 1136 | S131: 1119.75 | T131: 1050.75 | U131: 1045 | V131: 991 | W131: 921.5 | X131: 916.75 | Y131: 887.5 | Z131: 791
A132: 128 | B132: 2014-05-08 | C132: 782.5 | D132: 717.25 | E132: 767 | F132: 775.5 | G132: 825 | H132: 838.75 | I132: 974.25 | J132: 1012 | K132: 1095.25 | L132: 1068.75 | M132: 1045.75 | N132: 1038.75 | O132: 1029 | P132: 1025.5 | Q132: 1028.75 | R132: 1019.75 | S132: 987.5 | T132: 911.25 | U132: 890.75 | V132: 647.25 | W132: 629.75 | X132: 607.75 | Y132: 607.25 | Z132: 619.25
A133: 129 | B133: 2014-05-09 | C133: 602.5 | D133: 597 | E133: 599.25 | F133: 616.5 | G133: 607.5 | H133: 629.25 | I133: 629 | J133: 641.25 | K133: 880.75 | L133: 977.75 | M133: 972 | N133: 1014 | O133: 995.25 | P133: 982 | Q133: 973.5 | R133: 966.75 | S133: 1030.5 | T133: 1017.75 | U133: 1015.5 | V133: 967.25 | W133: 970.25 | X133: 945 | Y133: 932.5 | Z133: 939.25
A134: 130 | B134: 2014-05-10 | C134: 935.75 | D134: 938.75 | E134: 921.75 | F134: 958.5 | G134: 945 | H134: 985.25 | I134: 1012 | J134: 1028.5 | K134: 1073 | L134: 1094 | M134: 1113 | N134: 1124.25 | O134: 1136.75 | P134: 1142 | Q134: 1124.75 | R134: 1124 | S134: 1111 | T134: 1076.5 | U134: 1070 | V134: 1104.5 | W134: 1075.5 | X134: 1052.5 | Y134: 1048.75 | Z134: 1042.5
A135: 131 | B135: 2014-05-11 | C135: 1030.5 | D135: 1015 | E135: 1002 | F135: 1044 | G135: 1005.5 | H135: 1083.5 | I135: 1179.5 | J135: 1244.5 | K135: 1306.75 | L135: 1360.75 | M135: 1313.5 | N135: 1194.5 | O135: 1134.25 | P135: 1092.5 | Q135: 1096.25 | R135: 1083.5 | S135: 1018 | T135: 972 | U135: 936.25 | V135: 895.5 | W135: 902.25 | X135: 871.25 | Y135: 868.5 | Z135: 881.25
A136: 132 | B136: 2014-05-12 | C136: 876.25 | D136: 844.25 | E136: 865 | F136: 882.75 | G136: 871.25 | H136: 931.5 | I136: 953.75 | J136: 909.5 | K136: 1025 | L136: 1087.25 | M136: 1121.25 | N136: 1235.25 | O136: 1272 | P136: 1287.25 | Q136: 1283.5 | R136: 1262.5 | S136: 1207 | T136: 1162.25 | U136: 1049 | V136: 1000.25 | W136: 955.75 | X136: 922.25 | Y136: 902.25 | Z136: 883.75
A137: 133 | B137: 2014-05-13 | C137: 885 | D137: 881.5 | E137: 857.75 | F137: 872.75 | G137: 846.25 | H137: 892.25 | I137: 961.5 | J137: 993.5 | K137: 1018.75 | L137: 1079.5 | M137: 1081.5 | N137: 1053 | O137: 1056 | P137: 1058.25 | Q137: 1066 | R137: 1036 | S137: 1004.75 | T137: 994 | U137: 953.75 | V137: 859 | W137: 883.5 | X137: 842.25 | Y137: 819.5 | Z137: 829.75
A138: 134 | B138: 2014-05-14 | C138: 789 | D138: 791 | E138: 842.25 | F138: 824.75 | G138: 769.25 | H138: 801.75 | I138: 864.5 | J138: 903.5 | K138: 979.25 | L138: 1058.75 | M138: 1082.5 | N138: 1137.5 | O138: 1072.75 | P138: 1081.75 | Q138: 1086 | R138: 1067.75 | S138: 1048.5 | T138: 1000.25 | U138: 972 | V138: 953 | W138: 908.5 | X138: 875 | Y138: 865.25 | Z138: 847.5
A139: 135 | B139: 2014-05-15 | C139: 822.25 | D139: 789.25 | E139: 804 | F139: 807.5 | G139: 853.75 | H139: 858.25 | I139: 904.5 | J139: 910.25 | K139: 975 | L139: 994.25 | M139: 1000.75 | N139: 1034.5 | O139: 1032.5 | P139: 1032.5 | Q139: 994.25 | R139: 1007 | S139: 991.75 | T139: 935.25 | U139: 911.5 | V139: 863 | W139: 840.75 | X139: 816 | Y139: 784.75 | Z139: 715.5
A140: 136 | B140: 2014-05-16 | C140: 675.5 | D140: 653.5 | E140: 654.25 | F140: 695 | G140: 686.25 | H140: 667.5 | I140: 827 | J140: 855.5 | K140: 868.5 | L140: 929 | M140: 938.25 | N140: 931.5 | O140: 966 | P140: 962.5 | Q140: 937.25 | R140: 908.25 | S140: 893.25 | T140: 884.5 | U140: 857.25 | V140: 840.25 | W140: 845.25 | X140: 842.75 | Y140: 827 | Z140: 819
A141: 137 | B141: 2014-05-17 | C141: 809 | D141: 798 | E141: 811 | F141: 813 | G141: 799 | H141: 832.5 | I141: 847.25 | J141: 886.25 | K141: 929.75 | L141: 994 | M141: 947.5 | N141: 946.75 | O141: 940 | P141: 965.25 | Q141: 929.5 | R141: 913.25 | S141: 895 | T141: 885 | U141: 887.5 | V141: 835.75 | W141: 838.5 | X141: 798 | Y141: 774.25 | Z141: 768.25
A142: 138 | B142: 2014-05-18 | C142: 765 | D142: 758.5 | E142: 748.75 | F142: 758 | G142: 745 | H142: 799.5 | I142: 870.5 | J142: 884.75 | K142: 898.5 | L142: 953 | M142: 967.5 | N142: 978.25 | O142: 965.25 | P142: 981 | Q142: 973 | R142: 942.5 | S142: 929.5 | T142: 901.5 | U142: 830.5 | V142: 821 | W142: 795.25 | X142: 792.5 | Y142: 762.5 | Z142: 769.25
A143: 139 | B143: 2014-05-19 | C143: 769.5 | D143: 769 | E143: 754 | F143: 776.5 | G143: 784 | H143: 815.5 | I143: 892.5 | J143: 918.5 | K143: 975 | L143: 1010.25 | M143: 1016 | N143: 1061 | O143: 1027.25 | P143: 1056.25 | Q143: 1054 | R143: 1064.75 | S143: 1075 | T143: 1001.25 | U143: 1015.25 | V143: 951.25 | W143: 911.5 | X143: 908.5 | Y143: 898.75 | Z143: 900.75
A144: 140 | B144: 2014-05-20 | C144: 905 | D144: 846.25 | E144: 792.75 | F144: 817 | G144: 797 | H144: 837.25 | I144: 921.75 | J144: 953.5 | K144: 999.5 | L144: 995.75 | M144: 992 | N144: 1011.75 | O144: 1015.75 | P144: 1011.75 | Q144: 1023.75 | R144: 982.25 | S144: 970.5 | T144: 913.25 | U144: 876.5 | V144: 848.25 | W144: 833.25 | X144: 804 | Y144: 793.75 | Z144: 783.25
A145: 141 | B145: 2014-05-21 | C145: 778 | D145: 775.25 | E145: 766.5 | F145: 613.25 | G145: 608.5 | H145: 632.5 | I145: 866.5 | J145: 1020.5 | K145: 1025.75 | L145: 1051 | M145: 1087.25 | N145: 1092.5 | O145: 1127.25 | P145: 1092.5 | Q145: 1114.75 | R145: 1132.25 | S145: 1082.5 | T145: 1015.25 | U145: 981.25 | V145: 921.75 | W145: 893.5 | X145: 895.25 | Y145: 863 | Z145: 890.5
A146: 142 | B146: 2014-05-22 | C146: 806.5 | D146: 803.5 | E146: 794.25 | F146: 805.75 | G146: 826.25 | H146: 914.5 | I146: 918.25 | J146: 939.5 | K146: 975.75 | L146: 977.25 | M146: 1005.25 | N146: 1023.25 | O146: 1004.5 | P146: 1007.75 | Q146: 1025.75 | R146: 999.25 | S146: 1000 | T146: 944.75 | U146: 909.5 | V146: 869 | W146: 822.25 | X146: 823.75 | Y146: 809.5 | Z146: 779.25
A147: 143 | B147: 2014-05-23 | C147: 788.75 | D147: 759 | E147: 643.5 | F147: 619.5 | G147: 613.5 | H147: 629.75 | I147: 620.5 | J147: 645 | K147: 678 | L147: 732.75 | M147: 913.75 | N147: 886.5 | O147: 905 | P147: 917.75 | Q147: 914 | R147: 892.75 | S147: 899.75 | T147: 854.25 | U147: 873.5 | V147: 825.75 | W147: 841.75 | X147: 819.5 | Y147: 802.5 | Z147: 796.5
A148: 144 | B148: 2014-05-24 | C148: 791.25 | D148: 795.75 | E148: 793.5 | F148: 794.75 | G148: 805 | H148: 809 | I148: 816 | J148: 864.25 | K148: 870.5 | L148: 903 | M148: 924 | N148: 908.75 | O148: 911.75 | P148: 913 | Q148: 932.5 | R148: 923.5 | S148: 910.5 | T148: 906.75 | U148: 877 | V148: 874.25 | W148: 856.25 | X148: 849.5 | Y148: 841.75 | Z148: 822.75
A149: 145 | B149: 2014-05-25 | C149: 838.25 | D149: 827.75 | E149: 813.75 | F149: 817.5 | G149: 807.5 | H149: 848.5 | I149: 920.5 | J149: 950.5 | K149: 960 | L149: 1003.25 | M149: 1045.5 | N149: 1023.25 | O149: 1106.5 | P149: 1161.5 | Q149: 1274.5 | R149: 1235.75 | S149: 1270.5 | T149: 1032.75 | U149: 993.5 | V149: 939.75 | W149: 893 | X149: 893.75 | Y149: 884 | Z149: 881.75
A150: 146 | B150: 2014-05-26 | C150: 860 | D150: 860 | E150: 850.75 | F150: 876.25 | G150: 849.25 | H150: 908.75 | I150: 993 | J150: 1104 | K150: 1157.5 | L150: 1186.5 | M150: 1215.75 | N150: 1182.75 | O150: 1261 | P150: 1295.5 | Q150: 1290.25 | R150: 1351 | S150: 1355.25 | T150: 1243.75 | U150: 1160 | V150: 1082.25 | W150: 1054.75 | X150: 998 | Y150: 972.75 | Z150: 974.25
A151: 147 | B151: 2014-05-27 | C151: 961.5 | D151: 951.5 | E151: 937.5 | F151: 968 | G151: 969.5 | H151: 1002.5 | I151: 1098.75 | J151: 1164.75 | K151: 1219.5 | L151: 1276 | M151: 1322.5 | N151: 1372.5 | O151: 1353 | P151: 1443 | Q151: 1518 | R151: 1508 | S151: 1499.75 | T151: 1390.75 | U151: 1234.25 | V151: 1128.75 | W151: 1038.5 | X151: 1006.75 | Y151: 1002 | Z151: 983.5
A152: 148 | B152: 2014-05-28 | C152: 964.75 | D152: 955.75 | E152: 955.25 | F152: 975.25 | G152: 961.75 | H152: 1030.5 | I152: 1125.5 | J152: 1189.75 | K152: 1239.75 | L152: 1253.25 | M152: 1285 | N152: 1344.75 | O152: 1362 | P152: 1441.5 | Q152: 1527 | R152: 1512 | S152: 1495 | T152: 1394.75 | U152: 1140.5 | V152: 1119 | W152: 1037.75 | X152: 969.75 | Y152: 951.75 | Z152: 952.5
A153: 149 | B153: 2014-05-29 | C153: 940.75 | D153: 925.25 | E153: 943.5 | F153: 953 | G153: 946 | H153: 978 | I153: 1086.25 | J153: 1128.25 | K153: 1158.75 | L153: 1177.25 | M153: 1176.25 | N153: 1164 | O153: 1178 | P153: 1179.25 | Q153: 1186.5 | R153: 1202.75 | S153: 1156.25 | T153: 1064 | U153: 1027.5 | V153: 1006.25 | W153: 986.75 | X153: 921.75 | Y153: 918 | Z153: 836.75
A154: 150 | B154: 2014-05-30 | C154: 787.5 | D154: 766.75 | E154: 770 | F154: 818.25 | G154: 771.25 | H154: 792.5 | I154: 1105 | J154: 1044.5 | K154: 1117.25 | L154: 1155 | M154: 1227.75 | N154: 1250.75 | O154: 1224 | P154: 1230.5 | Q154: 1189 | R154: 1156 | S154: 1127.5 | T154: 1078.75 | U154: 1076.75 | V154: 1007.25 | W154: 991.5 | X154: 990.5 | Y154: 991.5 | Z154: 974.5
A155: 151 | B155: 2014-05-31 | C155: 984 | D155: 965.25 | E155: 953.75 | F155: 979 | G155: 966 | H155: 993.5 | I155: 1022 | J155: 1019.25 | K155: 1066 | L155: 1123.5 | M155: 1147 | N155: 1166.25 | O155: 1177.25 | P155: 1157.5 | Q155: 971.5 | R155: 933.5 | S155: 904.25 | T155: 857.75 | U155: 860.5 | V155: 755 | W155: 803.25 | X155: 900 | Y155: 841 | Z155: 847.75
A156: 152 | B156: 2014-06-01 | C156: 845.25 | D156: 575.25 | E156: 574.75 | F156: 584.75 | G156: 590.75 | H156: 589.75 | I156: 685 | J156: 890.5 | K156: 915.25 | L156: 933 | M156: 928.25 | N156: 956 | O156: 952.25 | P156: 955 | Q156: 921.5 | R156: 745.25 | S156: 759.5 | T156: 705 | U156: 675.25 | V156: 663.5 | W156: 630.5 | X156: 637.5 | Y156: 603.5 | Z156: 601.75
A157: 153 | B157: 2014-06-02 | C157: 612.25 | D157: 591 | E157: 605.75 | F157: 619.75 | G157: 617.25 | H157: 628.25 | I157: 696.75 | J157: 702.25 | K157: 728.5 | L157: 761.5 | M157: 759 | N157: 766.5 | O157: 776.5 | P157: 797.5 | Q157: 771.75 | R157: 791.5 | S157: 761.5 | T157: 713.5 | U157: 675.75 | V157: 678.5 | W157: 645 | X157: 624.25 | Y157: 609.75 | Z157: 614.75
A158: 154 | B158: 2014-06-03 | C158: 600.75 | D158: 606 | E158: 593.25 | F158: 624.25 | G158: 616 | H158: 627.75 | I158: 678.5 | J158: 943 | K158: 944.5 | L158: 983 | M158: 981.75 | N158: 977 | O158: 986.5 | P158: 983.75 | Q158: 975 | R158: 984.75 | S158: 959.75 | T158: 928.5 | U158: 890 | V158: 849.5 | W158: 824.25 | X158: 806.5 | Y158: 795.5 | Z158: 787
A159: 155 | B159: 2014-06-04 | C159: 780.75 | D159: 783.75 | E159: 787 | F159: 789.75 | G159: 782.75 | H159: 806 | I159: 888.5 | J159: 906.5 | K159: 925 | L159: 982.75 | M159: 976.75 | N159: 1014 | O159: 1010 | P159: 1029.75 | Q159: 1017.75 | R159: 985.5 | S159: 971 | T159: 910.75 | U159: 915.75 | V159: 881.5 | W159: 829.75 | X159: 799 | Y159: 790 | Z159: 791.25
A160: 156 | B160: 2014-06-05 | C160: 792.25 | D160: 788.5 | E160: 773.5 | F160: 805 | G160: 782 | H160: 821.5 | I160: 890.5 | J160: 919.25 | K160: 959 | L160: 977 | M160: 993.75 | N160: 991.5 | O160: 967.5 | P160: 978.75 | Q160: 975.25 | R160: 1008 | S160: 987.25 | T160: 936.75 | U160: 914.25 | V160: 896.25 | W160: 837.25 | X160: 843.75 | Y160: 808.25 | Z160: 829.75
A161: 157 | B161: 2014-06-06 | C161: 808.25 | D161: 816.75 | E161: 815 | F161: 829 | G161: 808 | H161: 830.75 | I161: 833 | J161: 863.5 | K161: 899 | L161: 932.5 | M161: 961.25 | N161: 965.25 | O161: 959 | P161: 964.25 | Q161: 916.5 | R161: 867 | S161: 834.75 | T161: 782.25 | U161: 806.25 | V161: 788.5 | W161: 781.5 | X161: 811 | Y161: 774.75 | Z161: 726.75
A162: 158 | B162: 2014-06-07 | C162: 787.25 | D162: 769 | E162: 755.75 | F162: 791.5 | G162: 709.25 | H162: 762.25 | I162: 780.25 | J162: 793.75 | K162: 810.5 | L162: 823.75 | M162: 820.25 | N162: 816.5 | O162: 834.5 | P162: 813.5 | Q162: 820.75 | R162: 822.5 | S162: 804.5 | T162: 1017 | U162: 906.75 | V162: 892.25 | W162: 840.5 | X162: 830.25 | Y162: 825 | Z162: 821.25
A163: 159 | B163: 2014-06-08 | C163: 824.75 | D163: 815.75 | E163: 804.5 | F163: 822.5 | G163: 797.75 | H163: 835.75 | I163: 924.25 | J163: 964.5 | K163: 1004.25 | L163: 1049.75 | M163: 1084.75 | N163: 1115.25 | O163: 1096.75 | P163: 1077.5 | Q163: 1086.75 | R163: 1184.5 | S163: 1147 | T163: 1040.25 | U163: 991.75 | V163: 961.75 | W163: 913.75 | X163: 863 | Y163: 869 | Z163: 871
A164: 160 | B164: 2014-06-09 | C164: 885.5 | D164: 862.5 | E164: 874 | F164: 878.25 | G164: 870.75 | H164: 911.5 | I164: 1088 | J164: 1080.25 | K164: 1144.25 | L164: 1137.75 | M164: 1284.25 | N164: 1241.25 | O164: 1350.5 | P164: 1357.5 | Q164: 1185 | R164: 1285.75 | S164: 1244 | T164: 1171 | U164: 1159 | V164: 1126.25 | W164: 1012.5 | X164: 983 | Y164: 962.5 | Z164: 936.25
A165: 161 | B165: 2014-06-10 | C165: 920.5 | D165: 906.25 | E165: 899.75 | F165: 904.75 | G165: 898 | H165: 924.25 | I165: 1034.5 | J165: 1046.25 | K165: 1107 | L165: 1154.75 | M165: 1159 | N165: 1151 | O165: 1158.25 | P165: 1130.25 | Q165: 1170.5 | R165: 1172 | S165: 1164.75 | T165: 1105.25 | U165: 1074.5 | V165: 1023 | W165: 981.25 | X165: 974.75 | Y165: 953.5 | Z165: 942.25
A166: 162 | B166: 2014-06-11 | C166: 941 | D166: 924.75 | E166: 931.25 | F166: 943.5 | G166: 919.5 | H166: 969.75 | I166: 1123.75 | J166: 1130.5 | K166: 1160.5 | L166: 1221.5 | M166: 1265.5 | N166: 1302.25 | O166: 1323.5 | P166: 1306 | Q166: 1460.5 | R166: 1459.25 | S166: 1419.75 | T166: 1226.5 | U166: 1119 | V166: 1105 | W166: 994.5 | X166: 975.75 | Y166: 965.5 | Z166: 957.75
A167: 163 | B167: 2014-06-12 | C167: 964.25 | D167: 964 | E167: 946.75 | F167: 967.5 | G167: 944.5 | H167: 976.75 | I167: 1081.75 | J167: 1106 | K167: 1127.75 | L167: 1156.75 | M167: 1143 | N167: 1166 | O167: 1187.25 | P167: 1191 | Q167: 1180.5 | R167: 1159.25 | S167: 1126.75 | T167: 1063.75 | U167: 1034.75 | V167: 1042 | W167: 1003 | X167: 1048.75 | Y167: 1049.75 | Z167: 1050.5
A168: 164 | B168: 2014-06-13 | C168: 1051.75 | D168: 1052.75 | E168: 1050.5 | F168: 1072 | G168: 1036.75 | H168: 1039.25 | I168: 1048.5 | J168: 1032 | K168: 1065.75 | L168: 1064.75 | M168: 1077.25 | N168: 1107.75 | O168: 1091 | P168: 1089.25 | Q168: 1079 | R168: 1080.75 | S168: 1060.5 | T168: 1019.75 | U168: 1001.75 | V168: 999.25 | W168: 993.75 | X168: 983.75 | Y168: 983 | Z168: 956
A169: 165 | B169: 2014-06-14 | C169: 954.75 | D169: 975.75 | E169: 951.25 | F169: 973.5 | G169: 948.75 | H169: 973.75 | I169: 1001.5 | J169: 985.25 | K169: 990.25 | L169: 1022.25 | M169: 986 | N169: 983.25 | O169: 983.5 | P169: 990 | Q169: 990 | R169: 997 | S169: 957 | T169: 977.25 | U169: 972.75 | V169: 942.75 | W169: 948 | X169: 938.75 | Y169: 913.25 | Z169: 889.75
A170: 166 | B170: 2014-06-15 | C170: 906.25 | D170: 889 | E170: 898.5 | F170: 960.75 | G170: 898.25 | H170: 935.25 | I170: 1013.25 | J170: 1019 | K170: 1029.75 | L170: 1072.5 | M170: 1056.5 | N170: 1090.5 | O170: 1120.25 | P170: 1078 | Q170: 1064.25 | R170: 1054.75 | S170: 1063.25 | T170: 1025 | U170: 985.25 | V170: 957 | W170: 916.5 | X170: 900.25 | Y170: 895.25 | Z170: 900.5
A171: 167 | B171: 2014-06-16 | C171: 893 | D171: 886 | E171: 891.25 | F171: 920 | G171: 912.75 | H171: 914.25 | I171: 1014 | J171: 1062 | K171: 1086.25 | L171: 1093.75 | M171: 1145 | N171: 1181.75 | O171: 1225.75 | P171: 1200 | Q171: 1259.75 | R171: 1262.5 | S171: 1299.5 | T171: 1249.75 | U171: 1204 | V171: 1148 | W171: 1076.5 | X171: 1072.75 | Y171: 1029.75 | Z171: 1005.25
A172: 168 | B172: 2014-06-17 | C172: 1007 | D172: 969.25 | E172: 948 | F172: 992.5 | G172: 926 | H172: 936 | I172: 1060 | J172: 1103 | K172: 1088.75 | L172: 1054 | M172: 1098.75 | N172: 1134 | O172: 1100 | P172: 1075.5 | Q172: 1103.75 | R172: 1083.75 | S172: 1106.75 | T172: 1029.75 | U172: 999.75 | V172: 981.75 | W172: 918.5 | X172: 908.5 | Y172: 916.25 | Z172: 899.25
A173: 169 | B173: 2014-06-18 | C173: 893 | D173: 886.75 | E173: 881.5 | F173: 884.5 | G173: 874 | H173: 920.25 | I173: 983.25 | J173: 1005.5 | K173: 1068.5 | L173: 1076.25 | M173: 1115.25 | N173: 1106.25 | O173: 1106.25 | P173: 1142 | Q173: 1115 | R173: 1141.75 | S173: 1128.75 | T173: 1066 | U173: 1037 | V173: 978.75 | W173: 930.75 | X173: 906.25 | Y173: 903.5 | Z173: 892.25
A174: 170 | B174: 2014-06-19 | C174: 889.25 | D174: 883.75 | E174: 892 | F174: 920 | G174: 910.25 | H174: 946.25 | I174: 1064.5 | J174: 1090.75 | K174: 1148 | L174: 1181 | M174: 1212 | N174: 1246.25 | O174: 1242.5 | P174: 1232.75 | Q174: 1188.25 | R174: 1184.5 | S174: 1135 | T174: 1111.5 | U174: 1057.25 | V174: 1023 | W174: 986 | X174: 941.75 | Y174: 899.75 | Z174: 881.5
A175: 171 | B175: 2014-06-20 | C175: 868 | D175: 854 | E175: 881.5 | F175: 875.5 | G175: 855.5 | H175: 881.5 | I175: 900.75 | J175: 933.25 | K175: 970.75 | L175: 1017 | M175: 994 | N175: 1037.25 | O175: 1047 | P175: 1035.75 | Q175: 1030.25 | R175: 1016.25 | S175: 1015.5 | T175: 982.75 | U175: 915.5 | V175: 919 | W175: 917.25 | X175: 924.5 | Y175: 914.75 | Z175: 947.5
A176: 172 | B176: 2014-06-21 | C176: 939 | D176: 932 | E176: 960.75 | F176: 964.75 | G176: 945.25 | H176: 982.75 | I176: 1042 | J176: 1001.5 | K176: 1031.25 | L176: 1126 | M176: 1170.75 | N176: 1179.25 | O176: 1146 | P176: 1140.25 | Q176: 1190 | R176: 1153 | S176: 1197.25 | T176: 1136.25 | U176: 1096.5 | V176: 1112 | W176: 1040 | X176: 1006 | Y176: 962.5 | Z176: 964.75
A177: 173 | B177: 2014-06-22 | C177: 959.75 | D177: 956.75 | E177: 960.75 | F177: 986 | G177: 938.5 | H177: 971.5 | I177: 1106.25 | J177: 1173.25 | K177: 1226.75 | L177: 1213 | M177: 1193.75 | N177: 1236.5 | O177: 1239 | P177: 1247.25 | Q177: 1267.75 | R177: 1277.5 | S177: 1301 | T177: 1183.5 | U177: 1131.25 | V177: 1152.5 | W177: 1047.75 | X177: 1042.25 | Y177: 1039.75 | Z177: 1021.75
A178: 174 | B178: 2014-06-23 | C178: 998.5 | D178: 973.75 | E178: 958.75 | F178: 981.5 | G178: 975 | H178: 1014 | I178: 1133.25 | J178: 1161 | K178: 1234.75 | L178: 1333.75 | M178: 1409.75 | N178: 1530.25 | O178: 1590.5 | P178: 1557.25 | Q178: 1568.25 | R178: 1575 | S178: 1610.25 | T178: 1396 | U178: 1238.5 | V178: 1210.25 | W178: 1148.75 | X178: 1113.25 | Y178: 1090 | Z178: 1011.75
A179: 175 | B179: 2014-06-24 | C179: 964.75 | D179: 950.25 | E179: 936.75 | F179: 957 | G179: 963.25 | H179: 964.25 | I179: 1103.25 | J179: 1137 | K179: 1162.25 | L179: 1182.25 | M179: 1203 | N179: 1228 | O179: 1179.75 | P179: 1214.5 | Q179: 1218.5 | R179: 1230.5 | S179: 1175.5 | T179: 1107.5 | U179: 1038.75 | V179: 1006.75 | W179: 945.5 | X179: 919 | Y179: 927.75 | Z179: 930.75
A180: 176 | B180: 2014-06-25 | C180: 926.25 | D180: 917.75 | E180: 930 | F180: 940.25 | G180: 905.5 | H180: 941.75 | I180: 1088.25 | J180: 1064.5 | K180: 1145.5 | L180: 1149.25 | M180: 1132.75 | N180: 1191.25 | O180: 1210.5 | P180: 1170.75 | Q180: 1207.25 | R180: 1189 | S180: 1174.5 | T180: 1138 | U180: 1073 | V180: 1062.75 | W180: 985.5 | X180: 972.5 | Y180: 964 | Z180: 956
A181: 177 | B181: 2014-06-26 | C181: 942.75 | D181: 966 | E181: 957.75 | F181: 934.5 | G181: 910 | H181: 910.75 | I181: 1048 | J181: 1012.5 | K181: 1064.75 | L181: 1101.25 | M181: 1104.25 | N181: 1121 | O181: 1100.5 | P181: 1113.25 | Q181: 1100.25 | R181: 1093 | S181: 1075.5 | T181: 1043.75 | U181: 998.75 | V181: 961 | W181: 946.5 | X181: 917 | Y181: 894.5 | Z181: 889.75
A182: 178 | B182: 2014-06-27 | C182: 727.25 | D182: 726.25 | E182: 794.75 | F182: 789.5 | G182: 744 | H182: 770 | I182: 965.25 | J182: 1002 | K182: 1008.75 | L182: 1007 | M182: 1048 | N182: 1035.25 | O182: 1013 | P182: 1031 | Q182: 1041.75 | R182: 1007.75 | S182: 1006 | T182: 976.5 | U182: 939.5 | V182: 929.5 | W182: 885.5 | X182: 912.25 | Y182: 903.5 | Z182: 905.5
A183: 179 | B183: 2014-06-28 | C183: 891.25 | D183: 902.25 | E183: 901.25 | F183: 904.25 | G183: 879.5 | H183: 889.75 | I183: 917.75 | J183: 931.5 | K183: 943 | L183: 986.75 | M183: 960.25 | N183: 978 | O183: 969.75 | P183: 966.25 | Q183: 970.5 | R183: 951.75 | S183: 946.75 | T183: 910.5 | U183: 913.75 | V183: 869.5 | W183: 810 | X183: 872 | Y183: 862.5 | Z183: 889.75
A184: 180 | B184: 2014-06-29 | C184: 862.5 | D184: 841.5 | E184: 841.25 | F184: 864.75 | G184: 855.5 | H184: 875 | I184: 964 | J184: 986.5 | K184: 1039 | L184: 1058.75 | M184: 1118.75 | N184: 1126.25 | O184: 1179 | P184: 1169 | Q184: 1187.75 | R184: 1173 | S184: 1147.75 | T184: 1094.5 | U184: 1079.5 | V184: 1052.75 | W184: 983.25 | X184: 975.75 | Y184: 952.5 | Z184: 966.25
A185: 181 | B185: 2014-06-30 | C185: 958.5 | D185: 940.5 | E185: 928 | F185: 978.75 | G185: 927.5 | H185: 971 | I185: 1090.25 | J185: 1114 | K185: 1155 | L185: 1152.75 | M185: 1199 | N185: 1215.5 | O185: 1215.75 | P185: 1218.5 | Q185: 1183.25 | R185: 1198 | S185: 1186.25 | T185: 1139 | U185: 1082 | V185: 1056.25 | W185: 964.75 | X185: 950 | Y185: 951.25 | Z185: 946.75
A186: 182 | B186: 2014-07-01 | C186: 810.75 | D186: 808.5 | E186: 763.5 | F186: 790.25 | G186: 788.5 | H186: 840.5 | I186: 1269 | J186: 1211.75 | K186: 1230.75 | L186: 1230.25 | M186: 1242.25 | N186: 1301.25 | O186: 1403.5 | P186: 1428.5 | Q186: 1491.5 | R186: 1460.25 | S186: 1425.75 | T186: 1303.25 | U186: 1177.25 | V186: 1139.75 | W186: 1045.5 | X186: 1002.75 | Y186: 970.5 | Z186: 966.5
A187: 183 | B187: 2014-07-02 | C187: 935.75 | D187: 943 | E187: 929.5 | F187: 932.25 | G187: 917 | H187: 994.25 | I187: 1081 | J187: 1112 | K187: 1136.5 | L187: 1140.5 | M187: 1154.75 | N187: 1175.75 | O187: 1181.25 | P187: 1205.25 | Q187: 1190.5 | R187: 1178.25 | S187: 1138 | T187: 1096.5 | U187: 1033.75 | V187: 1045.5 | W187: 961 | X187: 972.25 | Y187: 943 | Z187: 933.5
A188: 184 | B188: 2014-07-03 | C188: 927 | D188: 926.5 | E188: 914.5 | F188: 915.5 | G188: 877 | H188: 928 | I188: 996.25 | J188: 1000.5 | K188: 1010 | L188: 1020.25 | M188: 1041.25 | N188: 1047.25 | O188: 1052.25 | P188: 1036.75 | Q188: 1079.75 | R188: 1055.25 | S188: 1084.25 | T188: 1015.25 | U188: 1003.5 | V188: 975.5 | W188: 921 | X188: 935.75 | Y188: 918.25 | Z188: 914.25
A189: 185 | B189: 2014-07-04 | C189: 897.75 | D189: 915.5 | E189: 907.5 | F189: 927.5 | G189: 916.25 | H189: 953.25 | I189: 982.5 | J189: 1029.5 | K189: 1052.25 | L189: 1059.25 | M189: 1060.5 | N189: 1059.5 | O189: 1064.5 | P189: 1053.5 | Q189: 1045.75 | R189: 1005.5 | S189: 1006 | T189: 955.75 | U189: 942.5 | V189: 962.5 | W189: 906.25 | X189: 914.5 | Y189: 888 | Z189: 930.75
A190: 186 | B190: 2014-07-05 | C190: 945.25 | D190: 959.75 | E190: 921.75 | F190: 948.5 | G190: 926 | H190: 948 | I190: 973.25 | J190: 996.75 | K190: 1015.5 | L190: 1063.25 | M190: 1047.5 | N190: 1087.25 | O190: 1044 | P190: 1062 | Q190: 1083.75 | R190: 1056.75 | S190: 1067.25 | T190: 1048 | U190: 1041 | V190: 1060.25 | W190: 1030.5 | X190: 1019.5 | Y190: 1010.25 | Z190: 1001.25
A191: 187 | B191: 2014-07-06 | C191: 1022.25 | D191: 1003.25 | E191: 986 | F191: 1016.5 | G191: 986 | H191: 1018.75 | I191: 1088 | J191: 1141.5 | K191: 1186.25 | L191: 1192.75 | M191: 1197.25 | N191: 1214.75 | O191: 1218.5 | P191: 1240 | Q191: 1232.25 | R191: 1211 | S191: 1212 | T191: 1172 | U191: 1168.25 | V191: 1135.75 | W191: 1104.5 | X191: 1072.75 | Y191: 1038.5 | Z191: 1004.5
A192: 188 | B192: 2014-07-07 | C192: 998.75 | D192: 986.25 | E192: 964.5 | F192: 1006 | G192: 998 | H192: 1036.5 | I192: 1155.25 | J192: 1217 | K192: 1291.5 | L192: 1392.5 | M192: 1505.25 | N192: 1530 | O192: 1537.25 | P192: 1525.25 | Q192: 1551.75 | R192: 1540.75 | S192: 1510.5 | T192: 1391.5 | U192: 1354.25 | V192: 1361 | W192: 1191.5 | X192: 1151.5 | Y192: 1161 | Z192: 1271.25
A193: 189 | B193: 2014-07-08 | C193: 1189.75 | D193: 1147.75 | E193: 1126.25 | F193: 1126.25 | G193: 1095.75 | H193: 1150.25 | I193: 1293.75 | J193: 1276.5 | K193: 1367.25 | L193: 1542.75 | M193: 1473 | N193: 1551.5 | O193: 1543.5 | P193: 1535 | Q193: 1535.25 | R193: 1530.5 | S193: 1500.25 | T193: 1395.5 | U193: 1215.25 | V193: 1104.25 | W193: 963 | X193: 950.25 | Y193: 944.5 | Z193: 938.5
A194: 190 | B194: 2014-07-09 | C194: 924.75 | D194: 918.5 | E194: 907.75 | F194: 927.5 | G194: 911.5 | H194: 957.25 | I194: 1063.5 | J194: 1056.5 | K194: 1093.25 | L194: 1126.25 | M194: 1125.25 | N194: 1140.75 | O194: 1159.25 | P194: 1142.75 | Q194: 1144.25 | R194: 1152.75 | S194: 1105.5 | T194: 1062 | U194: 1031.5 | V194: 996.5 | W194: 950.75 | X194: 936 | Y194: 921.5 | Z194: 930.5
A195: 191 | B195: 2014-07-10 | C195: 950.5 | D195: 938.75 | E195: 950.25 | F195: 960.5 | G195: 951.75 | H195: 971.75 | I195: 1051.75 | J195: 1079.5 | K195: 1129.75 | L195: 1204.5 | M195: 1168.25 | N195: 1175.25 | O195: 1180 | P195: 1189.25 | Q195: 1178 | R195: 1170.75 | S195: 1155 | T195: 1079.75 | U195: 1070.75 | V195: 1040.5 | W195: 978.75 | X195: 969.5 | Y195: 955.5 | Z195: 935.75
A196: 192 | B196: 2014-07-11 | C196: 963.25 | D196: 940.5 | E196: 929 | F196: 924.75 | G196: 927.5 | H196: 928.25 | I196: 955.75 | J196: 1015 | K196: 1075.75 | L196: 1081.25 | M196: 1107.25 | N196: 1078.75 | O196: 1084.5 | P196: 1111.5 | Q196: 1064 | R196: 1044.5 | S196: 1054.25 | T196: 988.25 | U196: 1017.75 | V196: 1002 | W196: 997.5 | X196: 995.25 | Y196: 987.75 | Z196: 985.75
A197: 193 | B197: 2014-07-12 | C197: 951.5 | D197: 951.5 | E197: 953.5 | F197: 972 | G197: 984.5 | H197: 980.25 | I197: 997 | J197: 1010 | K197: 1033.5 | L197: 1114.25 | M197: 1123.5 | N197: 1164.5 | O197: 1183.75 | P197: 1114.5 | Q197: 1123.75 | R197: 1100 | S197: 1152.5 | T197: 1098.25 | U197: 1104.25 | V197: 1071.75 | W197: 1081 | X197: 1083.75 | Y197: 1091.5 | Z197: 1084.75
A198: 194 | B198: 2014-07-13 | C198: 1073.75 | D198: 1075.5 | E198: 1053.25 | F198: 1056.5 | G198: 1040.25 | H198: 1097.5 | I198: 1274.5 | J198: 1228.75 | K198: 1213.5 | L198: 1235.25 | M198: 1229.25 | N198: 1206.25 | O198: 1238.75 | P198: 1230.75 | Q198: 1262 | R198: 1229.25 | S198: 1227 | T198: 1206.5 | U198: 1121 | V198: 1089.25 | W198: 1031.25 | X198: 1042.75 | Y198: 1034.25 | Z198: 1000.75
A199: 195 | B199: 2014-07-14 | C199: 1000.5 | D199: 1010.25 | E199: 1033.25 | F199: 1027.75 | G199: 1011.75 | H199: 1066.25 | I199: 1175 | J199: 1218.75 | K199: 1411.5 | L199: 1500.75 | M199: 1490.25 | N199: 1507.75 | O199: 1493.25 | P199: 1486 | Q199: 1501.75 | R199: 1321 | S199: 1497.25 | T199: 1352.75 | U199: 1347.25 | V199: 1188.75 | W199: 1170.25 | X199: 1163.25 | Y199: 1120.25 | Z199: 1165.25
A200: 196 | B200: 2014-07-15 | C200: 1092.5 | D200: 1098 | E200: 1096.75 | F200: 1126.5 | G200: 1099.5 | H200: 1189 | I200: 1374.75 | J200: 1399.75 | K200: 1403 | L200: 1426.5 | M200: 1485.5 | N200: 1526.5 | O200: 1539.5 | P200: 1498 | Q200: 1489.75 | R200: 1535.25 | S200: 1475.75 | T200: 1302.25 | U200: 1162 | V200: 1083.75 | W200: 1040.75 | X200: 1016 | Y200: 986 | Z200: 954.75
... 169 more rows

Sheet 5) CHP System
B1: Project Name: | C1: ='1) Thermal Billing Info'!C1 -> Customer's Name
B4: CHP Data used for the Analysis
B6: Number of Units | C6: 1 | E6: Thermal Dumping when controlled by thermal load following (Note 1)
E7: 1 | F7: 2 | G7: 3 | H7: 4 | I7: 5 | J7: 6 | K7: 7 | L7: 8 | M7: 9 | N7: 10 | O7: 11 | P7: 12
B8: Is Electric Exporting Allowed (Y or N)? | C8: N | E8: 0 | F8: 0 | G8: 0 | H8: 0.024 | I8: 0.024 | J8: 0.05 | K8: 0.05 | L8: 0.05 | M8: 0.05 | N8: 0.02432994443 | O8: 0.02432994443 | P8: 0
B9: If exporting is NOT allowed, then enter minimum buffer allowed (i.e. minimum import) between building load and CHP output. | C9: 5 | D9: kW
B11: Boiler AFUE (Existing) | C11: 0.75 | D11: Enter boiler efficiency consistent with thermal load shown on billing information.
B13: New Boiler AFUE | C13: 0.88 | D13: If existing boilers will continue to be used after the CHP installation, then use the existing boiler efficiency above. If boilers are being replaced, then enter the seasonal efficiency for the new boilers.
B16: Minimum Threshold for Running | C16: 0.5 | D16: Min # of Units (or fraction which are allowed to run)
B19: Each Unit
B21: Capacity | C21: 75 | D21: kW
B23: Fuel Fired (HHV) | C23: =930*1020/100000 -> 9.486 | D23: Therms/hr
E25: Availability (Note 2)
E26: 1 | F26: 2 | G26: 3 | H26: 4 | I26: 5 | J26: 6 | K26: 7 | L26: 8 | M26: 9 | N26: 10 | O26: 11 | P26: 12
E27: 0.95 | F27: 0.95 | G27: 0.95 | H27: 0.95 | I27: 0.95 | J27: 0.95 | K27: 0.95 | L27: 0.95 | M27: 0.95 | N27: 0.95 | O27: 0.95 | P27: 0.95
B29: Thermal Output | C29: 5.23 | D29: Therms/hr
B31: Parasitic Losses | C31: 0.04
B33: Maintenance Cost | C33: 0.016 | D33: per kWh
B35: Net kW | C35: =(1-$C$31)*C21 -> 72 | D35: After deducting for parasitic losses
B37: Heat Rate (w/o parasitics) | C37: =C23/C21*100000 -> 12648 | D37: BTU/kWh HHV
B38: Heat Rate (considering parasitics) | C38: =C23/C35*100000 -> 13175 | D38: BTU/kWh HHV
B40: All Units
B42: Net kW Max. Capacity | C42: =C35*C6 -> 72 | D42: All Units
B45: Notes:
B47: 1) Dumping is applied uniformly for each month based on load following. In reality, dumping occurs during hours where sufficient thermal does not exist. This should lead to a slightly conservative result.
B48: 2) Availability factor applied uniformly throughout each month.

Sheet 6) Run Schedule
B1: Project Name: | C1: ='1) Thermal Billing Info'!C1 -> Customer's Name
B3: This worksheet is only used when CHP run hours are set according to a schedule rather than thermal load following. An example is shown below. Delete if not needed.
B8: If Scheduled, Enter below (not needed if Thermal Load Following)
B9: January
B10: Hour Ending | C10: Normal Weekday (Non Holiday) | D10: Weekend | E10: Holiday
C11: # of Units Operating (or Fraction Operating) | D11: # of Units Operating (or Fraction Operating) | E11: # of Units Operating (or Fraction Operating)
B12: 1 | C12: 1 | D12: 1 | E12: 1
B13: 2 | C13: 1 | D13: 1 | E13: 1
B14: 3 | C14: 1 | D14: 1 | E14: 1
B15: 4 | C15: 1 | D15: 1 | E15: 1
B16: 5 | C16: 1 | D16: 1 | E16: 1
B17: 6 | C17: 1 | D17: 1 | E17: 1
B18: 7 | C18: 1 | D18: 1 | E18: 1
B19: 8 | C19: 1 | D19: 1 | E19: 1
B20: 9 | C20: 1 | D20: 1 | E20: 1
B21: 10 | C21: 1 | D21: 1 | E21: 1
B22: 11 | C22: 1 | D22: 1 | E22: 1
B23: 12 | C23: 1 | D23: 1 | E23: 1
B24: 13 | C24: 1 | D24: 1 | E24: 1
B25: 14 | C25: 1 | D25: 1 | E25: 1
B26: 15 | C26: 1 | D26: 1 | E26: 1
B27: 16 | C27: 1 | D27: 1 | E27: 1
B28: 17 | C28: 1 | D28: 1 | E28: 1
B29: 18 | C29: 1 | D29: 1 | E29: 1
B30: 19 | C30: 1 | D30: 1 | E30: 1
B31: 20 | C31: 1 | D31: 1 | E31: 1
B32: 21 | C32: 1 | D32: 1 | E32: 1
B33: 22 | C33: 1 | D33: 1 | E33: 1
B34: 23 | C34: 1 | D34: 1 | E34: 1
B35: 0 | C35: 1 | D35: 1 | E35: 1
B37: February
B38: Hour Ending | C38: Normal Weekday (Non Holiday) | D38: Weekend | E38: Holiday
C39: # of Units Operating (or Fraction Operating) | D39: # of Units Operating (or Fraction Operating) | E39: # of Units Operating (or Fraction Operating)
B40: 1 | C40: 1 | D40: 1 | E40: 1
B41: 2 | C41: 1 | D41: 1 | E41: 1
B42: 3 | C42: 1 | D42: 1 | E42: 1
B43: 4 | C43: 1 | D43: 1 | E43: 1
B44: 5 | C44: 1 | D44: 1 | E44: 1
B45: 6 | C45: 1 | D45: 1 | E45: 1
B46: 7 | C46: 1 | D46: 1 | E46: 1
B47: 8 | C47: 1 | D47: 1 | E47: 1
B48: 9 | C48: 1 | D48: 1 | E48: 1
B49: 10 | C49: 1 | D49: 1 | E49: 1
B50: 11 | C50: 1 | D50: 1 | E50: 1
B51: 12 | C51: 1 | D51: 1 | E51: 1
B52: 13 | C52: 1 | D52: 1 | E52: 1
B53: 14 | C53: 1 | D53: 1 | E53: 1
B54: 15 | C54: 1 | D54: 1 | E54: 1
B55: 16 | C55: 1 | D55: 1 | E55: 1
B56: 17 | C56: 1 | D56: 1 | E56: 1
B57: 18 | C57: 1 | D57: 1 | E57: 1
B58: 19 | C58: 1 | D58: 1 | E58: 1
B59: 20 | C59: 1 | D59: 1 | E59: 1
B60: 21 | C60: 1 | D60: 1 | E60: 1
B61: 22 | C61: 1 | D61: 1 | E61: 1
B62: 23 | C62: 1 | D62: 1 | E62: 1
B63: 0 | C63: 1 | D63: 1 | E63: 1
B65: March
B66: Hour Ending | C66: Normal Weekday (Non Holiday) | D66: Weekend | E66: Holiday
C67: # of Units Operating (or Fraction Operating) | D67: # of Units Operating (or Fraction Operating) | E67: # of Units Operating (or Fraction Operating)
B68: 1 | C68: 0.75 | D68: 0.75 | E68: 0.75
B69: 2 | C69: 0.75 | D69: 0.75 | E69: 0.75
B70: 3 | C70: 0.75 | D70: 0.75 | E70: 0.75
B71: 4 | C71: 0.75 | D71: 0.75 | E71: 0.75
B72: 5 | C72: 0.75 | D72: 0.75 | E72: 0.75
B73: 6 | C73: 0.75 | D73: 0.75 | E73: 0.75
B74: 7 | C74: 0.75 | D74: 0.75 | E74: 0.75
B75: 8 | C75: 0.75 | D75: 0.75 | E75: 0.75
B76: 9 | C76: 0.75 | D76: 0.75 | E76: 0.75
B77: 10 | C77: 0.75 | D77: 0.75 | E77: 0.75
B78: 11 | C78: 0.75 | D78: 0.75 | E78: 0.75
B79: 12 | C79: 0.75 | D79: 0.75 | E79: 0.75
B80: 13 | C80: 0.75 | D80: 0.75 | E80: 0.75
B81: 14 | C81: 0.75 | D81: 0.75 | E81: 0.75
B82: 15 | C82: 0.75 | D82: 0.75 | E82: 0.75
B83: 16 | C83: 0.75 | D83: 0.75 | E83: 0.75
B84: 17 | C84: 0.75 | D84: 0.75 | E84: 0.75
B85: 18 | C85: 0.75 | D85: 0.75 | E85: 0.75
B86: 19 | C86: 0.75 | D86: 0.75 | E86: 0.75
B87: 20 | C87: 0.75 | D87: 0.75 | E87: 0.75
B88: 21 | C88: 0.75 | D88: 0.75 | E88: 0.75
B89: 22 | C89: 0.75 | D89: 0.75 | E89: 0.75
B90: 23 | C90: 0.75 | D90: 0.75 | E90: 0.75
B91: 0 | C91: 0.75 | D91: 0.75 | E91: 0.75
B93: April
B94: Hour Ending | C94: Normal Weekday (Non Holiday) | D94: Weekend | E94: Holiday
C95: # of Units Operating (or Fraction Operating) | D95: # of Units Operating (or Fraction Operating) | E95: # of Units Operating (or Fraction Operating)
B96: 1 | C96: 0.6 | D96: 0.6 | E96: 0.6
B97: 2 | C97: 0.6 | D97: 0.6 | E97: 0.6
B98: 3 | C98: 0.6 | D98: 0.6 | E98: 0.6
B99: 4 | C99: 0.6 | D99: 0.6 | E99: 0.6
B100: 5 | C100: 0.6 | D100: 0.6 | E100: 0.6
B101: 6 | C101: 0.6 | D101: 0.6 | E101: 0.6
B102: 7 | C102: 0.6 | D102: 0.6 | E102: 0.6
B103: 8 | C103: 0.6 | D103: 0.6 | E103: 0.6
B104: 9 | C104: 0.6 | D104: 0.6 | E104: 0.6
B105: 10 | C105: 0.6 | D105: 0.6 | E105: 0.6
B106: 11 | C106: 0.6 | D106: 0.6 | E106: 0.6
B107: 12 | C107: 0.6 | D107: 0.6 | E107: 0.6
B108: 13 | C108: 0.6 | D108: 0.6 | E108: 0.6
B109: 14 | C109: 0.6 | D109: 0.6 | E109: 0.6
B110: 15 | C110: 0.6 | D110: 0.6 | E110: 0.6
B111: 16 | C111: 0.6 | D111: 0.6 | E111: 0.6
B112: 17 | C112: 0.6 | D112: 0.6 | E112: 0.6
B113: 18 | C113: 0.6 | D113: 0.6 | E113: 0.6
B114: 19 | C114: 0.6 | D114: 0.6 | E114: 0.6
B115: 20 | C115: 0.6 | D115: 0.6 | E115: 0.6
B116: 21 | C116: 0.6 | D116: 0.6 | E116: 0.6
B117: 22 | C117: 0.6 | D117: 0.6 | E117: 0.6
B118: 23 | C118: 0.6 | D118: 0.6 | E118: 0.6
B119: 0 | C119: 0.6 | D119: 0.6 | E119: 0.6
B121: May
B122: Hour Ending | C122: Normal Weekday (Non Holiday) | D122: Weekend | E122: Holiday
C123: # of Units Operating (or Fraction Operating) | D123: # of Units Operating (or Fraction Operating) | E123: # of Units Operating (or Fraction Operating)
B124: 1 | C124: 0.6 | D124: 0.6 | E124: 0.6
B125: 2 | C125: 0.6 | D125: 0.6 | E125: 0.6
B126: 3 | C126: 0.6 | D126: 0.6 | E126: 0.6
B127: 4 | C127: 0.6 | D127: 0.6 | E127: 0.6
B128: 5 | C128: 0.6 | D128: 0.6 | E128: 0.6
B129: 6 | C129: 0.6 | D129: 0.6 | E129: 0.6
B130: 7 | C130: 0.6 | D130: 0.6 | E130: 0.6
B131: 8 | C131: 0.6 | D131: 0.6 | E131: 0.6
B132: 9 | C132: 0.6 | D132: 0.6 | E132: 0.6
B133: 10 | C133: 0.6 | D133: 0.6 | E133: 0.6
B134: 11 | C134: 0.6 | D134: 0.6 | E134: 0.6
B135: 12 | C135: 0.6 | D135: 0.6 | E135: 0.6
B136: 13 | C136: 0.6 | D136: 0.6 | E136: 0.6
B137: 14 | C137: 0.6 | D137: 0.6 | E137: 0.6
B138: 15 | C138: 0.6 | D138: 0.6 | E138: 0.6
B139: 16 | C139: 0.6 | D139: 0.6 | E139: 0.6
B140: 17 | C140: 0.6 | D140: 0.6 | E140: 0.6
B141: 18 | C141: 0.6 | D141: 0.6 | E141: 0.6
B142: 19 | C142: 0.6 | D142: 0.6 | E142: 0.6
B143: 20 | C143: 0.6 | D143: 0.6 | E143: 0.6
B144: 21 | C144: 0.6 | D144: 0.6 | E144: 0.6
B145: 22 | C145: 0.6 | D145: 0.6 | E145: 0.6
B146: 23 | C146: 0.6 | D146: 0.6 | E146: 0.6
B147: 0 | C147: 0.6 | D147: 0.6 | E147: 0.6
B149: June
B150: Hour Ending | C150: Normal Weekday (Non Holiday) | D150: Weekend | E150: Holiday
C151: # of Units Operating (or Fraction Operating) | D151: # of Units Operating (or Fraction Operating) | E151: # of Units Operating (or Fraction Operating)
B152: 1
B153: 2
B154: 3
B155: 4
B156: 5
B157: 6 | C157: 0.6 | D157: 0.6 | E157: 0.6
B158: 7 | C158: 0.6 | D158: 0.6 | E158: 0.6
B159: 8 | C159: 0.6 | D159: 0.6 | E159: 0.6
B160: 9 | C160: 0.6 | D160: 0.6 | E160: 0.6
B161: 10 | C161: 0.6 | D161: 0.6 | E161: 0.6
B162: 11 | C162: 0.6 | D162: 0.6 | E162: 0.6
B163: 12 | C163: 0.6 | D163: 0.6 | E163: 0.6
B164: 13 | C164: 1 | D164: 0.6 | E164: 0.6
B165: 14 | C165: 1 | D165: 0.6 | E165: 0.6
B166: 15 | C166: 1 | D166: 0.6 | E166: 0.6
B167: 16 | C167: 1 | D167: 0.6 | E167: 0.6
B168: 17 | C168: 1 | D168: 0.6 | E168: 0.6
B169: 18 | C169: 0.6 | D169: 0.6 | E169: 0.6
B170: 19 | C170: 0.6 | D170: 0.6 | E170: 0.6
B171: 20 | C171: 0.6 | D171: 0.6 | E171: 0.6
B172: 21 | C172: 0.6 | D172: 0.6 | E172: 0.6
B173: 22 | C173: 0.6 | D173: 0.6 | E173: 0.6
B174: 23 | C174: 0.6 | D174: 0.6 | E174: 0.6
B175: 0
B177: July
B178: Hour Ending | C178: Normal Weekday (Non Holiday) | D178: Weekend | E178: Holiday
C179: # of Units Operating (or Fraction Operating) | D179: # of Units Operating (or Fraction Operating) | E179: # of Units Operating (or Fraction Operating)
B180: 1
B181: 2
B182: 3
B183: 4
B184: 5
B185: 6 | C185: 0.6 | D185: 0.6 | E185: 0.6
B186: 7 | C186: 0.6 | D186: 0.6 | E186: 0.6
B187: 8 | C187: 0.6 | D187: 0.6 | E187: 0.6
B188: 9 | C188: 0.6 | D188: 0.6 | E188: 0.6
B189: 10 | C189: 0.6 | D189: 0.6 | E189: 0.6
B190: 11 | C190: 0.6 | D190: 0.6 | E190: 0.6
B191: 12 | C191: 0.6 | D191: 0.6 | E191: 0.6
B192: 13 | C192: 1 | D192: 0.6 | E192: 0.6
B193: 14 | C193: 1 | D193: 0.6 | E193: 0.6
B194: 15 | C194: 1 | D194: 0.6 | E194: 0.6
B195: 16 | C195: 1 | D195: 0.6 | E195: 0.6
B196: 17 | C196: 1 | D196: 0.6 | E196: 0.6
B197: 18 | C197: 0.6 | D197: 0.6 | E197: 0.6
B198: 19 | C198: 0.6 | D198: 0.6 | E198: 0.6
B199: 20 | C199: 0.6 | D199: 0.6 | E199: 0.6
B200: 21 | C200: 0.6 | D200: 0.6 | E200: 0.6
B201: 22 | C201: 0.6 | D201: 0.6 | E201: 0.6
B202: 23 | C202: 0.6 | D202: 0.6 | E202: 0.6
B203: 0
B205: August
B206: Hour Ending | C206: Normal Weekday (Non Holiday) | D206: Weekend | E206: Holiday
C207: # of Units Operating (or Fraction Operating) | D207: # of Units Operating (or Fraction Operating) | E207: # of Units Operating (or Fraction Operating)
B208: 1
B209: 2
B210: 3
B211: 4
B212: 5
... 127 more rows

Sheet 7) Peak & Seasons
B1: Project Name: | C1: ='1) Thermal Billing Info'!C1 -> Customer's Name
B3: Define Periods
B6: Basis Year | C6: 2014 | E6: Year selected is not critical but must agree with year of holidays defined below.
B11: Period 1 (remaining dates are Period 2)
E12: Error Check
B13: Start Date | C13: 2014-06-01 | E13: =IF(C13>0,IF(YEAR(C13)<>$C$6,"ERROR","OK"),"") -> OK
B14: End End | C14: 2014-09-30 | E14: =IF(C14>0,IF(YEAR(C14)<>$C$6,"ERROR","OK"),"") -> OK
H15: Coincident Demand Reduction Periods
C16: Period 1: Energy Peak Hours applied to Non Holiday Weekdays | E16: Period 2: Energy Peak Hours applied to Non Holiday Weekdays | H16: Winter | I16: Summer
B17: Start (24 hour clock) | C17: 6 | E17: 6 | G17: Start (24 hour clock) | H17: 17 | I17: 13
B18: End (24 hour clock) | C18: 22 | E18: 22 | G18: End (24 hour clock) | H18: 19 | I18: 17
B21: Holidays (which are considered off-peak hours) | C21: Dates (in Chronological Order) | E21: Error Check | G21: Months | H21: Define Winter/Summer
B23: New Year's | C23: 2014-01-01 | E23: =IF(C23>0,IF(YEAR(C23)<>$C$6,"ERROR","OK"),"") -> OK | G23: 1 | H23: Winter
B24: Martin L. King | C24: 2014-01-20 | E24: =IF(C24>0,IF(YEAR(C24)<>$C$6,"ERROR","OK"),"") -> OK | G24: 2 | H24: Winter
B25: President's | C25: 2014-02-17 | E25: OK | G25: 3 | H25: Winter
B26: Patriot's | C26: 2014-04-21 | E26: OK | G26: 4 | H26: Winter
B27: Memorial | C27: 2014-05-26 | E27: OK | G27: 5 | H27: Winter
B28: Independence | C28: 2014-07-04 | E28: OK | G28: 6 | H28: Summer
B29: Labor | C29: 2014-09-01 | E29: OK | G29: 7 | H29: Summer
B30: Columbus | C30: 2014-10-13 | E30: OK | G30: 8 | H30: Summer
B31: Veteran's | C31: 2014-11-11 | E31: OK | G31: 9 | H31: Summer
B32: Thanksgiving | C32: 2014-11-27 | E32: OK | G32: 10 | H32: Winter
B33: Day > Thanks | C33: 2014-11-28 | E33: OK | G33: 11 | H33: Winter
B34: Christmas | C34: 2014-12-25 | E34: OK | G34: 12 | H34: Winter

Sheet Thermal Track Results===>
C11: Thermal Tracking Results ====>

Sheet 8) Blding Use - Thermal Track
B1: Project | C1: ='1) Thermal Billing Info'!C1 -> Customer's Name
C5: CHP Controlled by Thermal Tracking
C6: Pre-CHP | F6: Post-CHP | K6: Difference in Purchased Utilities: Pre-CHP less Post-CHP (positive is a benefit; negative is a cost)
B7: Month | C7: Fuel Purchased (therms) | D7: Max kW (purchased) Note 1 | E7: Purchased Electricity (kWh) | F7: Fuel Purchased (therms) | G7: Max kW (purchased) Note 1 | H7: Purchased Electricity (kWh) | I7: CHP Electricity Consumed Internally (kWh) | J7: Electricity Exported (kWh) | K7: Fuel Purchased (therms) | L7: kW Purchased | M7: kWh Purchased
B8: Jan | C8: ='1) Thermal Billing Info'!F15 -> 15993 | D8: =MAX('12) Hourly Simulation '!AI8:AI751) -> 943 | E8: =SUMIF('12) Hourly Simulation '!$B$8:$B$8767,"=1",'12) Hourly Simulation '!$AI$8:$AI$8767) -> 558871 | F8: =C8:C19+TRANSPOSE('9) CHP Unit - Thermal Track'!F36:Q36) -> 18486.05377 | G8: =MAX('12) Hourly Simulation '!AL8:AL751) -> 874.6 | H8: =SUMIF('12) Hourly Simulation '!$B$8:$B$8767,"=1",'12) Hourly Simulation '!$AL$8:$AL$8767) -> 508205.1565 | I8: =SUMIF('12) Hourly Simulation '!$B$8:$B$8767,"=1",'12) Hourly Simulation '!$AJ$8:$AJ$8767) -> 50665.84353 | J8: =SUMIF('12) Hourly Simulation '!$B$8:$B$8767,"=1",'12) Hourly Simulation '!$AK$8:$AK$8767) -> 0 | K8: =C8-F8 -> -2493.053773 | L8: =D8-G8 -> 68.4 | M8: =E8-H8 -> 50665.84353
B9: Feb | C9: ='1) Thermal Billing Info'!F16 -> 14076 | D9: =MAX('12) Hourly Simulation '!AI752:AI1423) -> 920.75 | E9: =SUMIF('12) Hourly Simulation '!$B$8:$B$8767,"=2",'12) Hourly Simulation '!$AI$8:$AI$8767) -> 506476.5 | F9: 16337.73513 | G9: =MAX('12) Hourly Simulation '!AL752:AL1423) -> 852.35 | H9: =SUMIF('12) Hourly Simulation '!$B$8:$B$8767,"=2",'12) Hourly Simulation '!$AL$8:$AL$8767) -> 460511.7 | I9: =SUMIF('12) Hourly Simulation '!$B$8:$B$8767,"=2",'12) Hourly Simulation '!$AJ$8:$AJ$8767) -> 45964.8 | J9: =SUMIF('12) Hourly Simulation '!$B$8:$B$8767,"=2",'12) Hourly Simulation '!$AK$8:$AK$8767) -> 0 | K9: =C9-F9 -> -2261.735127 | L9: =D9-G9 -> 68.4 | M9: =E9-H9 -> 45964.8
B10: Mar | C10: ='1) Thermal Billing Info'!F17 -> 12894 | D10: =MAX('12) Hourly Simulation '!AI1424:AI2167) -> 896 | E10: =SUMIF('12) Hourly Simulation '!$B$8:$B$8767,"=3",'12) Hourly Simulation '!$AI$8:$AI$8767) -> 534298 | F10: 15317.04385 | G10: =MAX('12) Hourly Simulation '!AL1424:AL2167) -> 844.5019363 | H10: =SUMIF('12) Hourly Simulation '!$B$8:$B$8767,"=3",'12) Hourly Simulation '!$AL$8:$AL$8767) -> 485054.9545 | I10: =SUMIF('12) Hourly Simulation '!$B$8:$B$8767,"=3",'12) Hourly Simulation '!$AJ$8:$AJ$8767) -> 49243.04548 | J10: =SUMIF('12) Hourly Simulation '!$B$8:$B$8767,"=3",'12) Hourly Simulation '!$AK$8:$AK$8767) -> 0 | K10: -2423.043845 | L10: 51.49806367 | M10: =E10-H10 -> 49243.04548
B11: Apr | C11: ='1) Thermal Billing Info'!F18 -> 11038 | D11: =MAX('12) Hourly Simulation '!AI2168:AI2887) -> 1146.75 | E11: =SUMIF('12) Hourly Simulation '!$B$8:$B$8767,"=4",'12) Hourly Simulation '!$AI$8:$AI$8767) -> 579976.25 | F11: 13412.5831 | G11: =MAX('12) Hourly Simulation '!AL2168:AL2887) -> 1088.072626 | H11: =SUMIF('12) Hourly Simulation '!$B$8:$B$8767,"=4",'12) Hourly Simulation '!$AL$8:$AL$8767) -> 533585.7761 | I11: =SUMIF('12) Hourly Simulation '!$B$8:$B$8767,"=4",'12) Hourly Simulation '!$AJ$8:$AJ$8767) -> 46390.47389 | J11: =SUMIF('12) Hourly Simulation '!$B$8:$B$8767,"=4",'12) Hourly Simulation '!$AK$8:$AK$8767) -> 0 | K11: -2374.583095 | L11: 58.67737419 | M11: =E11-H11 -> 46390.47389
B12: May | C12: ='1) Thermal Billing Info'!F19 -> 5577 | D12: =MAX('12) Hourly Simulation '!AI2888:AI3631) -> 1527 | E12: =SUMIF('12) Hourly Simulation '!$B$8:$B$8767,"=5",'12) Hourly Simulation '!$AI$8:$AI$8767) -> 695697.25 | F12: 7467.270075 | G12: =MAX('12) Hourly Simulation '!AL2888:AL3631) -> 1490.951355 | H12: =SUMIF('12) Hourly Simulation '!$B$8:$B$8767,"=5",'12) Hourly Simulation '!$AL$8:$AL$8767) -> 658768.4414 | I12: =SUMIF('12) Hourly Simulation '!$B$8:$B$8767,"=5",'12) Hourly Simulation '!$AJ$8:$AJ$8767) -> 36928.80856 | J12: =SUMIF('12) Hourly Simulation '!$B$8:$B$8767,"=5",'12) Hourly Simulation '!$AK$8:$AK$8767) -> 0 | K12: -1890.270075 | L12: 36.04864457 | M12: =E12-H12 -> 36928.80856
B13: Jun | C13: ='1) Thermal Billing Info'!F20 -> 3644 | D13: =MAX('12) Hourly Simulation '!AI3632:AI4351) -> 1610.25 | E13: =SUMIF('12) Hourly Simulation '!$B$8:$B$8767,"=6",'12) Hourly Simulation '!$AI$8:$AI$8767) -> 710471 | F13: 5390.283796 | G13: =MAX('12) Hourly Simulation '!AL3632:AL4351) -> 1563.901743 | H13: =SUMIF('12) Hourly Simulation '!$B$8:$B$8767,"=6",'12) Hourly Simulation '!$AL$8:$AL$8767) -> 677727.985 | I13: =SUMIF('12) Hourly Simulation '!$B$8:$B$8767,"=6",'12) Hourly Simulation '!$AJ$8:$AJ$8767) -> 32743.01497 | J13: =SUMIF('12) Hourly Simulation '!$B$8:$B$8767,"=6",'12) Hourly Simulation '!$AK$8:$AK$8767) -> 0 | K13: -1746.283796 | L13: 46.3482573 | M13: 32743.01497
B14: Jul | C14: ='1) Thermal Billing Info'!F21 -> 3751 | D14: =MAX('12) Hourly Simulation '!AI4352:AI5095) -> 1618.75 | E14: =SUMIF('12) Hourly Simulation '!$B$8:$B$8767,"=7",'12) Hourly Simulation '!$AI$8:$AI$8767) -> 830891.5 | F14: 5375.374894 | G14: =MAX('12) Hourly Simulation '!AL4352:AL5095) -> 1582.701355 | H14: =SUMIF('12) Hourly Simulation '!$B$8:$B$8767,"=7",'12) Hourly Simulation '!$AL$8:$AL$8767) -> 800434.2905 | I14: =SUMIF('12) Hourly Simulation '!$B$8:$B$8767,"=7",'12) Hourly Simulation '!$AJ$8:$AJ$8767) -> 30457.20953 | J14: =SUMIF('12) Hourly Simulation '!$B$8:$B$8767,"=7",'12) Hourly Simulation '!$AK$8:$AK$8767) -> 0 | K14: -1624.374894 | L14: 36.04864457 | M14: 30457.20953
B15: Aug | C15: ='1) Thermal Billing Info'!F22 -> 3402 | D15: =MAX('12) Hourly Simulation '!AI5096:AI5839) -> 1542.5 | E15: =SUMIF('12) Hourly Simulation '!$B$8:$B$8767,"=8",'12) Hourly Simulation '!$AI$8:$AI$8767) -> 787180 | F15: 5026.374894 | G15: =MAX('12) Hourly Simulation '!AL5096:AL5839) -> 1496.151743 | H15: =SUMIF('12) Hourly Simulation '!$B$8:$B$8767,"=8",'12) Hourly Simulation '!$AL$8:$AL$8767) -> 756722.7905 | I15: =SUMIF('12) Hourly Simulation '!$B$8:$B$8767,"=8",'12) Hourly Simulation '!$AJ$8:$AJ$8767) -> 30457.20953 | J15: =SUMIF('12) Hourly Simulation '!$B$8:$B$8767,"=8",'12) Hourly Simulation '!$AK$8:$AK$8767) -> 0 | K15: -1624.374894 | L15: 46.3482573 | M15: 30457.20953
B16: Sept | C16: ='1) Thermal Billing Info'!F23 -> 3861 | D16: =MAX('12) Hourly Simulation '!AI5840:AI6559) -> 1634.75 | E16: =SUMIF('12) Hourly Simulation '!$B$8:$B$8767,"=9",'12) Hourly Simulation '!$AI$8:$AI$8767) -> 744892.5 | F16: 5515.618543 | G16: =MAX('12) Hourly Simulation '!AL5840:AL6559) -> 1598.701355 | H16: =SUMIF('12) Hourly Simulation '!$B$8:$B$8767,"=9",'12) Hourly Simulation '!$AL$8:$AL$8767) -> 713868.2187 | I16: =SUMIF('12) Hourly Simulation '!$B$8:$B$8767,"=9",'12) Hourly Simulation '!$AJ$8:$AJ$8767) -> 31024.2813 | J16: =SUMIF('12) Hourly Simulation '!$B$8:$B$8767,"=9",'12) Hourly Simulation '!$AK$8:$AK$8767) -> 0 | K16: -1654.618543 | L16: 36.04864457 | M16: 31024.2813
B17: Oct | C17: ='1) Thermal Billing Info'!F24 -> 3536 | D17: =MAX('12) Hourly Simulation '!AI6560:AI7303) -> 1539 | E17: =SUMIF('12) Hourly Simulation '!$B$8:$B$8767,"=10",'12) Hourly Simulation '!$AI$8:$AI$8767) -> 681527.75 | F17: 5541.991402 | G17: =MAX('12) Hourly Simulation '!AL6560:AL7303) -> 1502.951355 | H17: =SUMIF('12) Hourly Simulation '!$B$8:$B$8767,"=10",'12) Hourly Simulation '!$AL$8:$AL$8767) -> 642359.0199 | I17: =SUMIF('12) Hourly Simulation '!$B$8:$B$8767,"=10",'12) Hourly Simulation '!$AJ$8:$AJ$8767) -> 39168.73005 | J17: =SUMIF('12) Hourly Simulation '!$B$8:$B$8767,"=10",'12) Hourly Simulation '!$AK$8:$AK$8767) -> 0 | K17: -2005.991402 | L17: 36.04864457 | M17: 39168.73005
B18: Nov | C18: ='1) Thermal Billing Info'!F25 -> 7695 | D18: =MAX('12) Hourly Simulation '!AI7304:AI8023) -> 1237.25 | E18: =SUMIF('12) Hourly Simulation '!$B$8:$B$8767,"=11",'12) Hourly Simulation '!$AI$8:$AI$8767) -> 547891 | F18: 10060.33083 | G18: =MAX('12) Hourly Simulation '!AL7304:AL8023) -> 1168.85 | H18: =SUMIF('12) Hourly Simulation '!$B$8:$B$8767,"=11",'12) Hourly Simulation '!$AL$8:$AL$8767) -> 501705.8545 | I18: =SUMIF('12) Hourly Simulation '!$B$8:$B$8767,"=11",'12) Hourly Simulation '!$AJ$8:$AJ$8767) -> 46185.14545 | J18: =SUMIF('12) Hourly Simulation '!$B$8:$B$8767,"=11",'12) Hourly Simulation '!$AK$8:$AK$8767) -> 0 | K18: -2365.330828 | L18: 68.4 | M18: 46185.14545
B19: Dec | C19: ='1) Thermal Billing Info'!F26 -> 14116 | D19: =MAX('12) Hourly Simulation '!AI8024:AI8767) -> 1031 | E19: =SUMIF('12) Hourly Simulation '!$B$8:$B$8767,"=12",'12) Hourly Simulation '!$AI$8:$AI$8767) -> 528930 | F19: 16592.63016 | G19: =MAX('12) Hourly Simulation '!AL8024:AL8767) -> 962.6 | H19: =SUMIF('12) Hourly Simulation '!$B$8:$B$8767,"=12",'12) Hourly Simulation '!$AL$8:$AL$8767) -> 478597.9304 | I19: =SUMIF('12) Hourly Simulation '!$B$8:$B$8767,"=12",'12) Hourly Simulation '!$AJ$8:$AJ$8767) -> 50332.06957 | J19: =SUMIF('12) Hourly Simulation '!$B$8:$B$8767,"=12",'12) Hourly Simulation '!$AK$8:$AK$8767) -> 0 | K19: -2476.630155 | L19: 68.4 | M19: 50332.06957
B20: Total/Avg. | C20: =SUM(C8:C19) -> 99583 | D20: =AVERAGE(D8:D19) -> 1303.916667 | E20: 7707102.75 | F20: 124523.2904 | G20: =AVERAGE(G8:G19) -> 1252.194456 | H20: 7217542.118 | I20: 489560.6319 | J20: 0 | K20: -24940.29043 | L20: =AVERAGE(L8:L19) -> 51.72221089 | M20: 489560.6319
C22: Note 1: Not precisely equal to actual billing demand (latter of which is based on 15 minute interval data and may be based off of kVa rather than kW).

Sheet 9) CHP Unit - Thermal Track
B1: Project | C1: ='1) Thermal Billing Info'!C1 -> Customer's Name
F3: Summary is for CHP Controlled on a Thermal Tracking Basis
F4: Monthly Breakdown
D6: Annual Total | F6: 1 | G6: 2 | H6: 3 | I6: 4 | J6: 5 | K6: 6 | L6: 7 | M6: 8 | N6: 9 | O6: 10 | P6: 11 | Q6: 12
F7: =LOOKUP(F6,'7) Peak & Seasons'!$G$23:$H$34) -> Winter | G7: =LOOKUP(G6,'7) Peak & Seasons'!$G$23:$H$34) -> Winter | H7: =LOOKUP(H6,'7) Peak & Seasons'!$G$23:$H$34) -> Winter | I7: =LOOKUP(I6,'7) Peak & Seasons'!$G$23:$H$34) -> Winter | J7: =LOOKUP(J6,'7) Peak & Seasons'!$G$23:$H$34) -> Winter | K7: =LOOKUP(K6,'7) Peak & Seasons'!$G$23:$H$34) -> Summer | L7: =LOOKUP(L6,'7) Peak & Seasons'!$G$23:$H$34) -> Summer | M7: =LOOKUP(M6,'7) Peak & Seasons'!$G$23:$H$34) -> Summer | N7: =LOOKUP(N6,'7) Peak & Seasons'!$G$23:$H$34) -> Summer | O7: =LOOKUP(O6,'7) Peak & Seasons'!$G$23:$H$34) -> Winter | P7: =LOOKUP(P6,'7) Peak & Seasons'!$G$23:$H$34) -> Winter | Q7: =LOOKUP(Q6,'7) Peak & Seasons'!$G$23:$H$34) -> Winter
B8: Run hours | D8: =SUM(F8:Q8) -> 7795.7 | F8: =COUNTIF('12) Hourly Simulation '!$P$8:$P$751,">0")*'5) CHP System'!E27 -> 706.8 | G8: =COUNTIF('12) Hourly Simulation '!$P$752:$P$1423,">0")*'5) CHP System'!F27 -> 638.4 | H8: =COUNTIF('12) Hourly Simulation '!$P$1424:$P$2167,">0")*'5) CHP System'!G27 -> 699.2 | I8: =COUNTIF('12) Hourly Simulation '!$P$2168:$P$2887,">0")*'5) CHP System'!H27 -> 676.4 | J8: =COUNTIF('12) Hourly Simulation '!$P$2888:$P$3631,">0")*'5) CHP System'!I27 -> 648.85 | K8: =COUNTIF('12) Hourly Simulation '!$P$3632:$P$4351,">0")*'5) CHP System'!J27 -> 603.25 | L8: =COUNTIF('12) Hourly Simulation '!$P$4352:$P$5095,">0")*'5) CHP System'!K27 -> 589 | M8: =COUNTIF('12) Hourly Simulation '!$P$5096:$P$5839,">0")*'5) CHP System'!L27 -> 589 | N8: =COUNTIF('12) Hourly Simulation '!$P$5840:$P$6559,">0")*'5) CHP System'!M27 -> 591.85 | O8: =COUNTIF('12) Hourly Simulation '!$P$6560:$P$7303,">0")*'5) CHP System'!N27 -> 671.65 | P8: =COUNTIF('12) Hourly Simulation '!$P$7304:$P$8023,">0")*'5) CHP System'!O27 -> 674.5 | Q8: =COUNTIF('12) Hourly Simulation '!$P$8024:$P$8767,">0")*'5) CHP System'!P27 -> 706.8
B9: Equivalent Full Load Hours (all units) | D9: =IF('5) CHP System'!$C$42=0,0,D12/'5) CHP System'!$C$42) -> 6799.45322 | F9: =IF('5) CHP System'!$C$42=0,0,F12/'5) CHP System'!$C$42) -> 703.6922712 | G9: =IF('5) CHP System'!$C$42=0,0,G12/'5) CHP System'!$C$42) -> 638.4 | H9: =IF('5) CHP System'!$C$42=0,0,H12/'5) CHP System'!$C$42) -> 683.9311872 | I9: =IF('5) CHP System'!$C$42=0,0,I12/'5) CHP System'!$C$42) -> 644.3121373 | J9: =IF('5) CHP System'!$C$42=0,0,J12/'5) CHP System'!$C$42) -> 512.9001189 | K9: =IF('5) CHP System'!$C$42=0,0,K12/'5) CHP System'!$C$42) -> 454.7640968 | L9: =IF('5) CHP System'!$C$42=0,0,L12/'5) CHP System'!$C$42) -> 423.0167991 | M9: =IF('5) CHP System'!$C$42=0,0,M12/'5) CHP System'!$C$42) -> 423.0167991 | N9: =IF('5) CHP System'!$C$42=0,0,N12/'5) CHP System'!$C$42) -> 430.8927958 | O9: =IF('5) CHP System'!$C$42=0,0,O12/'5) CHP System'!$C$42) -> 544.0101396 | P9: =IF('5) CHP System'!$C$42=0,0,P12/'5) CHP System'!$C$42) -> 641.4603535 | Q9: =IF('5) CHP System'!$C$42=0,0,Q12/'5) CHP System'!$C$42) -> 699.0565218
B10: Average Loading | D10: =D9/D8 -> 0.8722056031 | F10: =F9/F8 -> 0.9956031002 | G10: 1 | H10: 0.9781624531 | I10: 0.952560818 | J10: 0.7904756398 | K10: 0.7538567705 | L10: 0.718194905 | M10: 0.718194905 | N10: 0.728043923 | O10: 0.8099607528 | P10: 0.9510160912 | Q10: 0.9890443149
B12: On-site Generation: | C12: =IF(D12=0,0,C13+C14) -> 1 | D12: =SUM('12) Hourly Simulation '!Q8:Q8767) -> 489560.6319 | E12: kWh | F12: =SUM('12) Hourly Simulation '!$Q$8:$Q$751) -> 50665.84353 | G12: =SUM('12) Hourly Simulation '!$Q$752:$Q$1423) -> 45964.8 | H12: =SUM('12) Hourly Simulation '!$Q$1424:$Q$2167) -> 49243.04548 | I12: =SUM('12) Hourly Simulation '!$Q$2168:$Q$2887) -> 46390.47389 | J12: =SUM('12) Hourly Simulation '!$Q$2888:$Q$3631) -> 36928.80856 | K12: =SUM('12) Hourly Simulation '!$Q$3632:$Q$4351) -> 32743.01497 | L12: =SUM('12) Hourly Simulation '!$Q$4352:$Q$5095) -> 30457.20953 | M12: =SUM('12) Hourly Simulation '!$Q$5096:$Q$5839) -> 30457.20953 | N12: =SUM('12) Hourly Simulation '!$Q$5840:$Q$6559) -> 31024.2813 | O12: =SUM('12) Hourly Simulation '!$Q$6560:$Q$7303) -> 39168.73005 | P12: =SUM('12) Hourly Simulation '!$Q$7304:$Q$8023) -> 46185.14545 | Q12: =SUM('12) Hourly Simulation '!$Q$8024:$Q$8767) -> 50332.06957
B13: Peak | C13: =IF(D12=0,0,D13/$D$12) -> 0.5109353304 | D13: =SUMIF('Hidden Tab1'!$K$8:$K$8767,"P",('12) Hourly Simulation '!$Q$8:$Q$8767)) -> 250133.8232 | E13: kWh | F13: =SUMIF('Hidden Tab1'!$K$8:$K$751,"P",('12) Hourly Simulation '!$Q$8:$Q$751)) -> 24274.74787 | G13: =SUMIF('Hidden Tab1'!$K$752:$K$1423,"P",('12) Hourly Simulation '!$Q$752:$Q$1423)) -> 22093.2 | H13: =SUMIF('Hidden Tab1'!$K$1424:$K$2167,"P",('12) Hourly Simulation '!$Q$1424:$Q$2167)) -> 24065.82124 | I13: =SUMIF('Hidden Tab1'!$K$2168:$K$2887,"P",('12) Hourly Simulation '!$Q$2168:$Q$2887)) -> 23203.04982 | J13: =SUMIF('Hidden Tab1'!$K$2888:$K$3631,"P",('12) Hourly Simulation '!$Q$2888:$Q$3631)) -> 19312.56341 | K13: =SUMIF('Hidden Tab1'!$K$3632:$K$4351,"P",('12) Hourly Simulation '!$Q$3632:$Q$4351)) -> 18223.92923 | L13: =SUMIF('Hidden Tab1'!$K$4352:$K$5095,"P",('12) Hourly Simulation '!$Q$4352:$Q$5095)) -> 18725.75249 | M13: =SUMIF('Hidden Tab1'!$K$5096:$K$5839,"P",('12) Hourly Simulation '!$Q$5096:$Q$5839)) -> 17874.58192 | N13: =SUMIF('Hidden Tab1'!$K$5840:$K$6559,"P",('12) Hourly Simulation '!$Q$5840:$Q$6559)) -> 18093.21451 | O13: =SUMIF('Hidden Tab1'!$K$6560:$K$7303,"P",('12) Hourly Simulation '!$Q$6560:$Q$7303)) -> 20653.46802 | P13: =SUMIF('Hidden Tab1'!$K$7304:$K$8023,"P",('12) Hourly Simulation '!$Q$7304:$Q$8023)) -> 18494.41211 | Q13: =SUMIF('Hidden Tab1'!$K$8024:$K$8767,"P",('12) Hourly Simulation '!$Q$8024:$Q$8767)) -> 25119.08257
B14: Off-peak | C14: =IF(D12=0,0,D14/$D$12) -> 0.4890646696 | D14: =SUMIF('Hidden Tab1'!$K$8:$K$8767,"OP",('12) Hourly Simulation '!$Q$8:$Q$8767)) -> 239426.8087 | E14: kWh | F14: =SUMIF('Hidden Tab1'!$K$8:$K$751,"OP",('12) Hourly Simulation '!$Q$8:$Q$751)) -> 26391.09565 | G14: =SUMIF('Hidden Tab1'!$K$752:$K$1423,"OP",('12) Hourly Simulation '!$Q$752:$Q$1423)) -> 23871.6 | H14: =SUMIF('Hidden Tab1'!$K$1424:$K$2167,"OP",('12) Hourly Simulation '!$Q$1424:$Q$2167)) -> 25177.22424 | I14: =SUMIF('Hidden Tab1'!$K$2168:$K$2887,"OP",('12) Hourly Simulation '!$Q$2168:$Q$2887)) -> 23187.42406 | J14: =SUMIF('Hidden Tab1'!$K$2888:$K$3631,"OP",('12) Hourly Simulation '!$Q$2888:$Q$3631)) -> 17616.24516 | K14: =SUMIF('Hidden Tab1'!$K$3632:$K$4351,"OP",('12) Hourly Simulation '!$Q$3632:$Q$4351)) -> 14519.08574 | L14: =SUMIF('Hidden Tab1'!$K$4352:$K$5095,"OP",('12) Hourly Simulation '!$Q$4352:$Q$5095)) -> 11731.45704 | M14: =SUMIF('Hidden Tab1'!$K$5096:$K$5839,"OP",('12) Hourly Simulation '!$Q$5096:$Q$5839)) -> 12582.62761 | N14: =SUMIF('Hidden Tab1'!$K$5840:$K$6559,"OP",('12) Hourly Simulation '!$Q$5840:$Q$6559)) -> 12931.06679 | O14: =SUMIF('Hidden Tab1'!$K$6560:$K$7303,"OP",('12) Hourly Simulation '!$Q$6560:$Q$7303)) -> 18515.26203 | P14: =SUMIF('Hidden Tab1'!$K$7304:$K$8023,"OP",('12) Hourly Simulation '!$Q$7304:$Q$8023)) -> 27690.73334 | Q14: =SUMIF('Hidden Tab1'!$K$8024:$K$8767,"OP",('12) Hourly Simulation '!$Q$8024:$Q$8767)) -> 25212.987
B16: Generation Consumed Internally: | C16: =IF(D16=0,0,C17+C18) -> 1 | D16: =SUM('12) Hourly Simulation '!$AJ$8:$AJ$8767) -> 489560.6319 | E16: kWh | F16: =SUM('12) Hourly Simulation '!$AJ$8:$AJ$751) -> 50665.84353 | G16: =SUM('12) Hourly Simulation '!$AJ$752:$AJ$1423) -> 45964.8 | H16: =SUM('12) Hourly Simulation '!$AJ$1424:$AJ$2167) -> 49243.04548 | I16: =SUM('12) Hourly Simulation '!$AJ$2168:$AJ$2887) -> 46390.47389 | J16: =SUM('12) Hourly Simulation '!$AJ$2888:$AJ$3631) -> 36928.80856 | K16: =SUM('12) Hourly Simulation '!$AJ$3632:$AJ$4351) -> 32743.01497 | L16: =SUM('12) Hourly Simulation '!$AJ$4352:$AJ$5095) -> 30457.20953 | M16: =SUM('12) Hourly Simulation '!$AJ$5096:$AJ$5839) -> 30457.20953 | N16: =SUM('12) Hourly Simulation '!$AJ$5840:$AJ$6559) -> 31024.2813 | O16: =SUM('12) Hourly Simulation '!$AJ$6560:$AJ$7303) -> 39168.73005 | P16: =SUM('12) Hourly Simulation '!$AJ$7304:$AJ$8023) -> 46185.14545 | Q16: =SUM('12) Hourly Simulation '!$AJ$8024:$AJ$8767) -> 50332.06957
B17: Peak | C17: =IF(D16=0,0,D17/$D$16) -> 0.5109353304 | D17: =SUMIF('Hidden Tab1'!$K$8:$K$8767,"P",('12) Hourly Simulation '!$AJ$8:$AJ$8767)) -> 250133.8232 | E17: kWh | F17: =SUMIF('Hidden Tab1'!$K$8:$K$751,"P",('12) Hourly Simulation '!$AJ$8:$AJ$751)) -> 24274.74787 | G17: =SUMIF('Hidden Tab1'!$K$752:$K$1423,"P",('12) Hourly Simulation '!$AJ$752:$AJ$1423)) -> 22093.2 | H17: =SUMIF('Hidden Tab1'!$K$1424:$K$2167,"P",('12) Hourly Simulation '!$AJ$1424:$AJ$2167)) -> 24065.82124 | I17: =SUMIF('Hidden Tab1'!$K$2168:$K$2887,"P",('12) Hourly Simulation '!$AJ$2168:$AJ$2887)) -> 23203.04982 | J17: =SUMIF('Hidden Tab1'!$K$2888:$K$3631,"P",('12) Hourly Simulation '!$AJ$2888:$AJ$3631)) -> 19312.56341 | K17: =SUMIF('Hidden Tab1'!$K$3632:$K$4351,"P",('12) Hourly Simulation '!$AJ$3632:$AJ$4351)) -> 18223.92923 | L17: =SUMIF('Hidden Tab1'!$K$4352:$K$5095,"P",('12) Hourly Simulation '!$AJ$4352:$AJ$5095)) -> 18725.75249 | M17: =SUMIF('Hidden Tab1'!$K$5096:$K$5839,"P",('12) Hourly Simulation '!$AJ$5096:$AJ$5839)) -> 17874.58192 | N17: =SUMIF('Hidden Tab1'!$K$5840:$K$6559,"P",('12) Hourly Simulation '!$AJ$5840:$AJ$6559)) -> 18093.21451 | O17: =SUMIF('Hidden Tab1'!$K$6560:$K$7303,"P",('12) Hourly Simulation '!$AJ$6560:$AJ$7303)) -> 20653.46802 | P17: =SUMIF('Hidden Tab1'!$K$7304:$K$8023,"P",('12) Hourly Simulation '!$AJ$7304:$AJ$8023)) -> 18494.41211 | Q17: =SUMIF('Hidden Tab1'!$K$8024:$K$8767,"P",('12) Hourly Simulation '!$AJ$8024:$AJ$8767)) -> 25119.08257
B18: Off-peak | C18: =IF(D16=0,0,D18/$D$16) -> 0.4890646696 | D18: =SUMIF('Hidden Tab1'!$K$8:$K$8767,"OP",('12) Hourly Simulation '!$AJ$8:$AJ$8767)) -> 239426.8087 | E18: kWh | F18: =SUMIF('Hidden Tab1'!$K$8:$K$751,"OP",('12) Hourly Simulation '!$AJ$8:$AJ$751)) -> 26391.09565 | G18: =SUMIF('Hidden Tab1'!$K$752:$K$1423,"OP",('12) Hourly Simulation '!$AJ$752:$AJ$1423)) -> 23871.6 | H18: =SUMIF('Hidden Tab1'!$K$1424:$K$2167,"OP",('12) Hourly Simulation '!$AJ$1424:$AJ$2167)) -> 25177.22424 | I18: =SUMIF('Hidden Tab1'!$K$2168:$K$2887,"OP",('12) Hourly Simulation '!$AJ$2168:$AJ$2887)) -> 23187.42406 | J18: =SUMIF('Hidden Tab1'!$K$2888:$K$3631,"OP",('12) Hourly Simulation '!$AJ$2888:$AJ$3631)) -> 17616.24516 | K18: =SUMIF('Hidden Tab1'!$K$3632:$K$4351,"OP",('12) Hourly Simulation '!$AJ$3632:$AJ$4351)) -> 14519.08574 | L18: =SUMIF('Hidden Tab1'!$K$4352:$K$5095,"OP",('12) Hourly Simulation '!$AJ$4352:$AJ$5095)) -> 11731.45704 | M18: =SUMIF('Hidden Tab1'!$K$5096:$K$5839,"OP",('12) Hourly Simulation '!$AJ$5096:$AJ$5839)) -> 12582.62761 | N18: =SUMIF('Hidden Tab1'!$K$5840:$K$6559,"OP",('12) Hourly Simulation '!$AJ$5840:$AJ$6559)) -> 12931.06679 | O18: =SUMIF('Hidden Tab1'!$K$6560:$K$7303,"OP",('12) Hourly Simulation '!$AJ$6560:$AJ$7303)) -> 18515.26203 | P18: =SUMIF('Hidden Tab1'!$K$7304:$K$8023,"OP",('12) Hourly Simulation '!$AJ$7304:$AJ$8023)) -> 27690.73334 | Q18: =SUMIF('Hidden Tab1'!$K$8024:$K$8767,"OP",('12) Hourly Simulation '!$AJ$8024:$AJ$8767)) -> 25212.987
B20: Generation Exported: | C20: =IF(D20=0,0,C21+C22) -> 0 | D20: =SUM('12) Hourly Simulation '!$AK$8:$AK$8767) -> 0 | E20: kWh | F20: =SUM('12) Hourly Simulation '!$AK$8:$AK$751) -> 0 | G20: =SUM('12) Hourly Simulation '!$AK$752:$AK$1423) -> 0 | H20: =SUM('12) Hourly Simulation '!$AK$1424:$AK$2167) -> 0 | I20: =SUM('12) Hourly Simulation '!$AK$2168:$AK$2887) -> 0 | J20: =SUM('12) Hourly Simulation '!$AK$2888:$AK$3631) -> 0 | K20: =SUM('12) Hourly Simulation '!$AK$3632:$AK$4351) -> 0 | L20: =SUM('12) Hourly Simulation '!$AK$4352:$AK$5095) -> 0 | M20: =SUM('12) Hourly Simulation '!$AK$5096:$AK$5839) -> 0 | N20: =SUM('12) Hourly Simulation '!$AK$5840:$AK$6559) -> 0 | O20: =SUM('12) Hourly Simulation '!$AK$6560:$AK$7303) -> 0 | P20: =SUM('12) Hourly Simulation '!$AK$7304:$AK$8023) -> 0 | Q20: =SUM('12) Hourly Simulation '!$AK$8024:$AK$8767) -> 0
B21: Peak | C21: =IF(D20=0,0,D21/$D$20) -> 0 | D21: =SUMIF('Hidden Tab1'!$K$8:$K$8767,"P",('12) Hourly Simulation '!$AK$8:$AK$8767)) -> 0 | E21: kWh | F21: =SUMIF('Hidden Tab1'!$K$8:$K$751,"P",('12) Hourly Simulation '!$AK$8:$AK$751)) -> 0 | G21: =SUMIF('Hidden Tab1'!$K$752:$K$1423,"P",('12) Hourly Simulation '!$AK$752:$AK$1423)) -> 0 | H21: =SUMIF('Hidden Tab1'!$K$1424:$K$2167,"P",('12) Hourly Simulation '!$AK$1424:$AK$2167)) -> 0 | I21: =SUMIF('Hidden Tab1'!$K$2168:$K$2887,"P",('12) Hourly Simulation '!$AK$2168:$AK$2887)) -> 0 | J21: =SUMIF('Hidden Tab1'!$K$2888:$K$3631,"P",('12) Hourly Simulation '!$AK$2888:$AK$3631)) -> 0 | K21: =SUMIF('Hidden Tab1'!$K$3632:$K$4351,"P",('12) Hourly Simulation '!$AK$3632:$AK$4351)) -> 0 | L21: =SUMIF('Hidden Tab1'!$K$4352:$K$5095,"P",('12) Hourly Simulation '!$AK$4352:$AK$5095)) -> 0 | M21: =SUMIF('Hidden Tab1'!$K$5096:$K$5839,"P",('12) Hourly Simulation '!$AK$5096:$AK$5839)) -> 0 | N21: =SUMIF('Hidden Tab1'!$K$5840:$K$6559,"P",('12) Hourly Simulation '!$AK$5840:$AK$6559)) -> 0 | O21: =SUMIF('Hidden Tab1'!$K$6560:$K$7303,"P",('12) Hourly Simulation '!$AK$6560:$AK$7303)) -> 0 | P21: =SUMIF('Hidden Tab1'!$K$7304:$K$8023,"P",('12) Hourly Simulation '!$AK$7304:$AK$8023)) -> 0 | Q21: =SUMIF('Hidden Tab1'!$K$8024:$K$8767,"P",('12) Hourly Simulation '!$AK$8024:$AK$8767)) -> 0
B22: Off-peak | C22: =IF(D20=0,0,D22/$D$20) -> 0 | D22: =SUMIF('Hidden Tab1'!$K$8:$K$8767,"OP",('12) Hourly Simulation '!$AK$8:$AK$8767)) -> 0 | E22: kWh | F22: =SUMIF('Hidden Tab1'!$K$8:$K$751,"OP",('12) Hourly Simulation '!$AK$8:$AK$751)) -> 0 | G22: =SUMIF('Hidden Tab1'!$K$752:$K$1423,"OP",('12) Hourly Simulation '!$AK$752:$AK$1423)) -> 0 | H22: =SUMIF('Hidden Tab1'!$K$1424:$K$2167,"OP",('12) Hourly Simulation '!$AK$1424:$AK$2167)) -> 0 | I22: =SUMIF('Hidden Tab1'!$K$2168:$K$2887,"OP",('12) Hourly Simulation '!$AK$2168:$AK$2887)) -> 0 | J22: =SUMIF('Hidden Tab1'!$K$2888:$K$3631,"OP",('12) Hourly Simulation '!$AK$2888:$AK$3631)) -> 0 | K22: =SUMIF('Hidden Tab1'!$K$3632:$K$4351,"OP",('12) Hourly Simulation '!$AK$3632:$AK$4351)) -> 0 | L22: =SUMIF('Hidden Tab1'!$K$4352:$K$5095,"OP",('12) Hourly Simulation '!$AK$4352:$AK$5095)) -> 0 | M22: =SUMIF('Hidden Tab1'!$K$5096:$K$5839,"OP",('12) Hourly Simulation '!$AK$5096:$AK$5839)) -> 0 | N22: =SUMIF('Hidden Tab1'!$K$5840:$K$6559,"OP",('12) Hourly Simulation '!$AK$5840:$AK$6559)) -> 0 | O22: =SUMIF('Hidden Tab1'!$K$6560:$K$7303,"OP",('12) Hourly Simulation '!$AK$6560:$AK$7303)) -> 0 | P22: =SUMIF('Hidden Tab1'!$K$7304:$K$8023,"OP",('12) Hourly Simulation '!$AK$7304:$AK$8023)) -> 0 | Q22: =SUMIF('Hidden Tab1'!$K$8024:$K$8767,"OP",('12) Hourly Simulation '!$AK$8024:$AK$8767)) -> 0
B26: Fuel Fired (HHV) | D26: =SUM('12) Hourly Simulation '!R8:R8767) -> 64499.61325 | E26: therms | F26: =SUM('12) Hourly Simulation '!$R$8:$R$751) -> 6675.224885 | G26: =SUM('12) Hourly Simulation '!$R$752:$R$1423) -> 6055.8624 | H26: =SUM('12) Hourly Simulation '!$R$1424:$R$2167) -> 6487.771242 | I26: =SUM('12) Hourly Simulation '!$R$2168:$R$2887) -> 6111.944935 | J26: =SUM('12) Hourly Simulation '!$R$2888:$R$3631) -> 4865.370528 | K26: =SUM('12) Hourly Simulation '!$R$3632:$R$4351) -> 4313.892222 | L26: =SUM('12) Hourly Simulation '!$R$4352:$R$5095) -> 4012.737356 | M26: =SUM('12) Hourly Simulation '!$R$5096:$R$5839) -> 4012.737356 | N26: =SUM('12) Hourly Simulation '!$R$5840:$R$6559) -> 4087.449061 | O26: =SUM('12) Hourly Simulation '!$R$6560:$R$7303) -> 5160.480185 | P26: =SUM('12) Hourly Simulation '!$R$7304:$R$8023) -> 6084.892913 | Q26: =SUM('12) Hourly Simulation '!$R$8024:$R$8767) -> 6631.250165
B28: Thermal Energy Produced | D28: =SUM('12) Hourly Simulation '!$S$8:$S$8767) -> 35561.14034 | E28: therms | F28: =SUM('12) Hourly Simulation '!$S$8:$S$751) -> 3680.310578 | G28: =SUM('12) Hourly Simulation '!$S$752:$S$1423) -> 3338.832 | H28: =SUM('12) Hourly Simulation '!$S$1424:$S$2167) -> 3576.960109 | I28: =SUM('12) Hourly Simulation '!$S$2168:$S$2887) -> 3369.752478 | J28: =SUM('12) Hourly Simulation '!$S$2888:$S$3631) -> 2682.467622 | K28: =SUM('12) Hourly Simulation '!$S$3632:$S$4351) -> 2378.416226 | L28: =SUM('12) Hourly Simulation '!$S$4352:$S$5095) -> 2212.377859 | M28: =SUM('12) Hourly Simulation '!$S$5096:$S$5839) -> 2212.377859 | N28: =SUM('12) Hourly Simulation '!$S$5840:$S$6559) -> 2253.569322 | O28: =SUM('12) Hourly Simulation '!$S$6560:$S$7303) -> 2845.17303 | P28: =SUM('12) Hourly Simulation '!$S$7304:$S$8023) -> 3354.837649 | Q28: =SUM('12) Hourly Simulation '!$S$8024:$S$8767) -> 3656.065609
B30: Useful Thermal Energy Consumed | D30: =SUM('12) Hourly Simulation '!T8:T8767) -> 34812.20408 | E30: therms | F30: =SUM('12) Hourly Simulation '!$T$8:$T$751) -> 3680.310578 | G30: =SUM('12) Hourly Simulation '!$T$752:$T$1423) -> 3338.832 | H30: =SUM('12) Hourly Simulation '!$T$1424:$T$2167) -> 3576.960109 | I30: =SUM('12) Hourly Simulation '!$T$2168:$T$2887) -> 3288.878419 | J30: =SUM('12) Hourly Simulation '!$T$2888:$T$3631) -> 2618.088399 | K30: =SUM('12) Hourly Simulation '!$T$3632:$T$4351) -> 2259.495415 | L30: =SUM('12) Hourly Simulation '!$T$4352:$T$5095) -> 2101.758966 | M30: =SUM('12) Hourly Simulation '!$T$5096:$T$5839) -> 2101.758966 | N30: =SUM('12) Hourly Simulation '!$T$5840:$T$6559) -> 2140.890856 | O30: =SUM('12) Hourly Simulation '!$T$6560:$T$7303) -> 2775.950129 | P30: =SUM('12) Hourly Simulation '!$T$7304:$T$8023) -> 3273.214635 | Q30: =SUM('12) Hourly Simulation '!$T$8024:$T$8767) -> 3656.065609
B32: Thermal Energy Dumped | D32: =SUM('12) Hourly Simulation '!$U$8:$U$8767) -> 748.936261 | E32: therms | F32: =SUM('12) Hourly Simulation '!$U$8:$U$751) -> 0 | G32: =SUM('12) Hourly Simulation '!$U$752:$U$1423) -> 0 | H32: =SUM('12) Hourly Simulation '!$U$1424:$U$2167) -> 0 | I32: =SUM('12) Hourly Simulation '!$U$2168:$U$2887) -> 80.87405948 | J32: =SUM('12) Hourly Simulation '!$U$2888:$U$3631) -> 64.37922292 | K32: =SUM('12) Hourly Simulation '!$U$3632:$U$4351) -> 118.9208113 | L32: =SUM('12) Hourly Simulation '!$U$4352:$U$5095) -> 110.618893 | M32: =SUM('12) Hourly Simulation '!$U$5096:$U$5839) -> 110.618893 | N32: =SUM('12) Hourly Simulation '!$U$5840:$U$6559) -> 112.6784661 | O32: =SUM('12) Hourly Simulation '!$U$6560:$U$7303) -> 69.22290171 | P32: =SUM('12) Hourly Simulation '!$U$7304:$U$8023) -> 81.62301355 | Q32: =SUM('12) Hourly Simulation '!$U$8024:$U$8767) -> 0
B34: Boiler Fuel Saved | D34: =D30/'5) CHP System'!C13 -> 39559.32282 | E34: therms | F34: =F30/'5) CHP System'!$C$13 -> 4182.171112 | G34: =G30/'5) CHP System'!$C$13 -> 3794.127273 | H34: =H30/'5) CHP System'!$C$13 -> 4064.727397 | I34: =I30/'5) CHP System'!$C$13 -> 3737.361839 | J34: =J30/'5) CHP System'!$C$13 -> 2975.100453 | K34: =K30/'5) CHP System'!$C$13 -> 2567.608426 | L34: =L30/'5) CHP System'!$C$13 -> 2388.362462 | M34: =M30/'5) CHP System'!$C$13 -> 2388.362462 | N34: =N30/'5) CHP System'!$C$13 -> 2432.830518 | O34: =O30/'5) CHP System'!$C$13 -> 3154.488782 | P34: =P30/'5) CHP System'!$C$13 -> 3719.562086 | Q34: =Q30/'5) CHP System'!$C$13 -> 4154.62001
B36: Facility Fuel Increase | D36: =D26-D34 -> 24940.29043 | E36: therms | F36: =F26-F34 -> 2493.053773 | G36: =G26-G34 -> 2261.735127 | H36: =H26-H34 -> 2423.043845 | I36: 2374.583095 | J36: 1890.270075 | K36: 1746.283796 | L36: 1624.374894 | M36: 1624.374894 | N36: 1654.618543 | O36: 2005.991402 | P36: 2365.330828 | Q36: 2476.630155
B38: Maintenance Cost | D38: ='5) CHP System'!$C$33*D12 -> 7832.97011 | F38: ='5) CHP System'!$C$33*F12 -> 810.6534964 | G38: ='5) CHP System'!$C$33*G12 -> 735.4368 | H38: ='5) CHP System'!$C$33*H12 -> 787.8887277 | I38: ='5) CHP System'!$C$33*I12 -> 742.2475822 | J38: ='5) CHP System'!$C$33*J12 -> 590.860937 | K38: ='5) CHP System'!$C$33*K12 -> 523.8882395 | L38: ='5) CHP System'!$C$33*L12 -> 487.3153525 | M38: ='5) CHP System'!$C$33*M12 -> 487.3153525 | N38: ='5) CHP System'!$C$33*N12 -> 496.3885008 | O38: ='5) CHP System'!$C$33*O12 -> 626.6996809 | P38: ='5) CHP System'!$C$33*P12 -> 738.9623272 | Q38: ='5) CHP System'!$C$33*Q12 -> 805.3131131
B40: Electric Efficiency | D40: =IF(D26=0,"NA",D12*3412/(D26*100000)) -> 0.2589753321 | F40: =IF(F26=0,"NA",F12*3412/(F26*100000)) -> 0.2589753321 | G40: 0.2589753321 | H40: 0.2589753321 | I40: 0.2589753321 | J40: 0.2589753321 | K40: 0.2589753321 | L40: 0.2589753321 | M40: 0.2589753321 | N40: 0.2589753321 | O40: 0.2589753321 | P40: 0.2589753321 | Q40: 0.2589753321
B41: Thermal Efficiency | D41: =IF(D26=0,"NA",D30/D26) -> 0.5397273306 | F41: =IF(F26=0,"NA",F30/F26) -> 0.5513388151 | G41: =IF(G26=0,"NA",G30/G26) -> 0.5513388151 | H41: 0.5513388151 | I41: 0.5381066835 | J41: 0.5381066835 | K41: 0.5237718743 | L41: 0.5237718743 | M41: 0.5237718743 | N41: 0.5237718743 | O41: 0.5379247724 | P41: 0.5379247724 | Q41: 0.5513388151
D42: =IF(ISERROR(D40+D41),"NA",D40+D41) -> 0.7987026626 | F42: =IF(ISERROR(F40+F41),"NA",F40+F41) -> 0.8103141472 | G42: =IF(ISERROR(G40+G41),"NA",G40+G41) -> 0.8103141472 | H42: =IF(ISERROR(H40+H41),"NA",H40+H41) -> 0.8103141472 | I42: 0.7970820156 | J42: 0.7970820156 | K42: 0.7827472064 | L42: 0.7827472064 | M42: 0.7827472064 | N42: 0.7827472064 | O42: 0.7969001044 | P42: 0.7969001044 | Q42: 0.8103141472
B44: Thermal Dumping | D44: =IF(D28=0,"NA",D32/D28) -> 0.02106052432 | F44: =IF(F28=0,"NA",F32/F28) -> 0 | G44: =IF(G28=0,"NA",G32/G28) -> 0 | H44: 0 | I44: 0.024 | J44: 0.024 | K44: 0.05 | L44: 0.05 | M44: 0.05 | N44: 0.05 | O44: 0.02432994443 | P44: 0.02432994443 | Q44: 0
B46: Average Coincident Peak kW Reduction | F46: =SUMIF('12) Hourly Simulation '!$B$8:$B$8767,"=1",'12) Hourly Simulation '!$AW$8:$AW$8767)/SUMIF('12) Hourly Simulation '!$B$8:$B$8767,"=1",'12) Hourly Simulation '!$AV$8:$AV$8767) -> 68.4 | G46: =SUMIF('12) Hourly Simulation '!$B$8:$B$8767,"=2",'12) Hourly Simulation '!$AW$8:$AW$8767)/SUMIF('12) Hourly Simulation '!$B$8:$B$8767,"=2",'12) Hourly Simulation '!$AV$8:$AV$8767) -> 68.4 | H46: =SUMIF('12) Hourly Simulation '!$B$8:$B$8767,"=3",'12) Hourly Simulation '!$AW$8:$AW$8767)/SUMIF('12) Hourly Simulation '!$B$8:$B$8767,"=3",'12) Hourly Simulation '!$AV$8:$AV$8767) -> 67.65645311 | I46: =SUMIF('12) Hourly Simulation '!$B$8:$B$8767,"=4",'12) Hourly Simulation '!$AW$8:$AW$8767)/SUMIF('12) Hourly Simulation '!$B$8:$B$8767,"=4",'12) Hourly Simulation '!$AV$8:$AV$8767) -> 66.07901924 | J46: =SUMIF('12) Hourly Simulation '!$B$8:$B$8767,"=5",'12) Hourly Simulation '!$AW$8:$AW$8767)/SUMIF('12) Hourly Simulation '!$B$8:$B$8767,"=5",'12) Hourly Simulation '!$AV$8:$AV$8767) -> 56.13742607 | K46: =SUMIF('12) Hourly Simulation '!$B$8:$B$8767,"=6",'12) Hourly Simulation '!$AW$8:$AW$8767)/SUMIF('12) Hourly Simulation '!$B$8:$B$8767,"=6",'12) Hourly Simulation '!$AV$8:$AV$8767) -> 39.67984991 | L46: =SUMIF('12) Hourly Simulation '!$B$8:$B$8767,"=7",'12) Hourly Simulation '!$AW$8:$AW$8767)/SUMIF('12) Hourly Simulation '!$B$8:$B$8767,"=7",'12) Hourly Simulation '!$AV$8:$AV$8767) -> 39.26727355 | M46: =SUMIF('12) Hourly Simulation '!$B$8:$B$8767,"=8",'12) Hourly Simulation '!$AW$8:$AW$8767)/SUMIF('12) Hourly Simulation '!$B$8:$B$8767,"=8",'12) Hourly Simulation '!$AV$8:$AV$8767) -> 39.26727355 | N46: =SUMIF('12) Hourly Simulation '!$B$8:$B$8767,"=9",'12) Hourly Simulation '!$AW$8:$AW$8767)/SUMIF('12) Hourly Simulation '!$B$8:$B$8767,"=9",'12) Hourly Simulation '!$AV$8:$AV$8767) -> 39.26727355 | O46: =SUMIF('12) Hourly Simulation '!$B$8:$B$8767,"=10",'12) Hourly Simulation '!$AW$8:$AW$8767)/SUMIF('12) Hourly Simulation '!$B$8:$B$8767,"=10",'12) Hourly Simulation '!$AV$8:$AV$8767) -> 57.10925124 | P46: =SUMIF('12) Hourly Simulation '!$B$8:$B$8767,"=11",'12) Hourly Simulation '!$AW$8:$AW$8767)/SUMIF('12) Hourly Simulation '!$B$8:$B$8767,"=11",'12) Hourly Simulation '!$AV$8:$AV$8767) -> 66.10535023 | Q46: =SUMIF('12) Hourly Simulation '!$B$8:$B$8767,"=12",'12) Hourly Simulation '!$AW$8:$AW$8767)/SUMIF('12) Hourly Simulation '!$B$8:$B$8767,"=12",'12) Hourly Simulation '!$AV$8:$AV$8767) -> 68.20396086
B49: Net Electric Generation (kWh) | C49: Winter | D49: Summer | E49: Total
B50: Peak | C50: =SUMIF($F$7:$Q$7,"Winter",$F$13:$Q$13) -> 177216.345 | D50: =SUMIF($F$7:$Q$7,"Summer",$F$13:$Q$13) -> 72917.47815 | E50: =C50+D50 -> 250133.8232
B51: Off-Peak | C51: =SUMIF($F$7:$Q$7,"Winter",$F$14:$Q$14) -> 187662.5715 | D51: =SUMIF($F$7:$Q$7,"Summer",$F$14:$Q$14) -> 51764.23718 | E51: =C51+D51 -> 239426.8087
B52: Total | C52: =C50+C51 -> 364878.9165 | D52: =D50+D51 -> 124681.7153 | E52: =E50+E51 -> 489560.6319
B56: Net Electric Generation (% of total) | C56: Winter | D56: Summer | E56: Total
B57: Peak | C57: =IF($E$52=0,0,C50/$E$52) -> 0.3619905963 | D57: 0.1489447341 | E57: 0.5109353304
B58: Off-Peak | C58: 0.3833285589 | D58: 0.1057361107 | E58: 0.4890646696
B59: Total | C59: =C57+C58 -> 0.7453191551 | D59: =D57+D58 -> 0.2546808449 | E59: =E57+E58 -> 1
D63: Annual Total | F63: 1 | G63: 2 | H63: 3 | I63: 4 | J63: 5 | K63: 6 | L63: 7 | M63: 8 | N63: 9 | O63: 10 | P63: 11 | Q63: 12
B64: Checks
B66: Heat Rate (Btu/kWh), considering parasitics | D66: =IF(D12=0,"NA",IF(ABS(D26*100000/D12-'5) CHP System'!$C$38)>1,"ERROR","OK")) -> OK | F66: =IF(F12=0,"NA",IF(ABS(F26*100000/F12-'5) CHP System'!$C$38)>1,"ERROR","OK")) -> OK | G66: =IF(G12=0,"NA",IF(ABS(G26*100000/G12-'5) CHP System'!$C$38)>1,"ERROR","OK")) -> OK | H66: =IF(H12=0,"NA",IF(ABS(H26*100000/H12-'5) CHP System'!$C$38)>1,"ERROR","OK")) -> OK | I66: =IF(I12=0,"NA",IF(ABS(I26*100000/I12-'5) CHP System'!$C$38)>1,"ERROR","OK")) -> OK | J66: =IF(J12=0,"NA",IF(ABS(J26*100000/J12-'5) CHP System'!$C$38)>1,"ERROR","OK")) -> OK | K66: =IF(K12=0,"NA",IF(ABS(K26*100000/K12-'5) CHP System'!$C$38)>1,"ERROR","OK")) -> OK | L66: =IF(L12=0,"NA",IF(ABS(L26*100000/L12-'5) CHP System'!$C$38)>1,"ERROR","OK")) -> OK | M66: =IF(M12=0,"NA",IF(ABS(M26*100000/M12-'5) CHP System'!$C$38)>1,"ERROR","OK")) -> OK | N66: =IF(N12=0,"NA",IF(ABS(N26*100000/N12-'5) CHP System'!$C$38)>1,"ERROR","OK")) -> OK | O66: =IF(O12=0,"NA",IF(ABS(O26*100000/O12-'5) CHP System'!$C$38)>1,"ERROR","OK")) -> OK | P66: =IF(P12=0,"NA",IF(ABS(P26*100000/P12-'5) CHP System'!$C$38)>1,"ERROR","OK")) -> OK | Q66: =IF(Q12=0,"NA",IF(ABS(Q26*100000/Q12-'5) CHP System'!$C$38)>1,"ERROR","OK")) -> OK
B68: Reconcile Thermal Energy Dumped | D68: =IF(ABS(D28-D30-D32)>1,"ERROR","OK") -> OK | F68: =IF(ABS(F28-F30-F32)>1,"ERROR","OK") -> OK | G68: OK | H68: OK | I68: OK | J68: OK | K68: OK | L68: OK | M68: OK | N68: OK | O68: OK | P68: OK | Q68: OK
B70: Peak vs. Off-Peak Hours | D70: =IF(ABS(D12-D13-D14)>1,"ERROR","OK") -> OK | F70: =IF(ABS(F12-F13-F14)>1,"ERROR","OK") -> OK | G70: OK | H70: OK | I70: OK | J70: OK | K70: OK | L70: OK | M70: OK | N70: OK | O70: OK | P70: OK | Q70: OK

Sheet Scheduled Hours Results===>
D12: Scheduled Hours Results ===>
D14: These results are only applicable if scheduled hours were selected.

Sheet 10)Blding Use - Scheduled Hours
B1: Project | C1: ='1) Thermal Billing Info'!C1 -> Customer's Name
C5: CHP Controlled by Schedule
C6: Pre-CHP | F6: Post-CHP | K6: Difference in Purchased Utilities: Pre-CHP less Post-CHP (positive is a benefit; negative is a cost)
B7: Month | C7: Fuel Purchased (therms) | D7: Max kW (purchased) Note 1 | E7: Purchased Electricity (kWh) | F7: Fuel Purchased (therms) | G7: Max kW (purchased) Note 1 | H7: Purchased Electricity (kWh) | I7: CHP Electricity Consumed Internally (kWh) | J7: Electricity Exported (kWh) | K7: Fuel Purchased (therms) | L7: kW Purchased | M7: kWh Purchased
B8: Jan | C8: ='1) Thermal Billing Info'!F15 -> 15993 | D8: =MAX('12) Hourly Simulation '!AN8:AN751) -> 943 | E8: =SUMIF('12) Hourly Simulation '!$B$8:$B$8767,"=1",'12) Hourly Simulation '!$AN$8:$AN$8767) -> 558871 | F8: =C8:C19+TRANSPOSE('11) CHP Unit - Scheduled Hours'!F36:Q36) -> 18512.01909 | G8: =MAX('12) Hourly Simulation '!AQ8:AQ751) -> 874.6 | H8: =SUMIF('12) Hourly Simulation '!$B$8:$B$8767,"=1",'12) Hourly Simulation '!$AQ$8:$AQ$8767) -> 507981.4 | I8: =SUMIF('12) Hourly Simulation '!$B$8:$B$8767,"=1",'12) Hourly Simulation '!$AO$8:$AO$8767) -> 50889.6 | J8: =SUMIF('12) Hourly Simulation '!$B$8:$B$8767,"=1",'12) Hourly Simulation '!$AP$8:$AP$8767) -> 0 | K8: =C8-F8 -> -2519.019089 | L8: =D8-G8 -> 68.4 | M8: =E8-H8 -> 50889.6
B9: Feb | C9: ='1) Thermal Billing Info'!F16 -> 14076 | D9: =MAX('12) Hourly Simulation '!AN752:AN1423) -> 920.75 | E9: =SUMIF('12) Hourly Simulation '!$B$8:$B$8767,"=2",'12) Hourly Simulation '!$AN$8:$AN$8767) -> 506476.5 | F9: 16337.73513 | G9: =MAX('12) Hourly Simulation '!AQ752:AQ1423) -> 852.35 | H9: =SUMIF('12) Hourly Simulation '!$B$8:$B$8767,"=2",'12) Hourly Simulation '!$AQ$8:$AQ$8767) -> 460511.7 | I9: =SUMIF('12) Hourly Simulation '!$B$8:$B$8767,"=2",'12) Hourly Simulation '!$AO$8:$AO$8767) -> 45964.8 | J9: =SUMIF('12) Hourly Simulation '!$B$8:$B$8767,"=2",'12) Hourly Simulation '!$AP$8:$AP$8767) -> 0 | K9: =C9-F9 -> -2261.735127 | L9: 68.4 | M9: =E9-H9 -> 45964.8
B10: Mar | C10: ='1) Thermal Billing Info'!F17 -> 12894 | D10: =MAX('12) Hourly Simulation '!AN1424:AN2167) -> 896 | E10: =SUMIF('12) Hourly Simulation '!$B$8:$B$8767,"=3",'12) Hourly Simulation '!$AN$8:$AN$8767) -> 534298 | F10: 14802.12178 | G10: =MAX('12) Hourly Simulation '!AQ1424:AQ2167) -> 844.7 | H10: =SUMIF('12) Hourly Simulation '!$B$8:$B$8767,"=3",'12) Hourly Simulation '!$AQ$8:$AQ$8767) -> 496130.8 | I10: =SUMIF('12) Hourly Simulation '!$B$8:$B$8767,"=3",'12) Hourly Simulation '!$AO$8:$AO$8767) -> 38167.2 | J10: =SUMIF('12) Hourly Simulation '!$B$8:$B$8767,"=3",'12) Hourly Simulation '!$AP$8:$AP$8767) -> 0 | K10: -1908.121775 | L10: 51.3 | M10: =E10-H10 -> 38167.2
B11: Apr | C11: ='1) Thermal Billing Info'!F18 -> 11038 | D11: =MAX('12) Hourly Simulation '!AN2168:AN2887) -> 1146.75 | E11: =SUMIF('12) Hourly Simulation '!$B$8:$B$8767,"=4",'12) Hourly Simulation '!$AN$8:$AN$8767) -> 579976.25 | F11: 12501.07186 | G11: =MAX('12) Hourly Simulation '!AQ2168:AQ2887) -> 1105.71 | H11: =SUMIF('12) Hourly Simulation '!$B$8:$B$8767,"=4",'12) Hourly Simulation '!$AQ$8:$AQ$8767) -> 550427.45 | I11: =SUMIF('12) Hourly Simulation '!$B$8:$B$8767,"=4",'12) Hourly Simulation '!$AO$8:$AO$8767) -> 29548.8 | J11: =SUMIF('12) Hourly Simulation '!$B$8:$B$8767,"=4",'12) Hourly Simulation '!$AP$8:$AP$8767) -> 0 | K11: -1463.071857 | L11: 41.04 | M11: =E11-H11 -> 29548.8
B12: May | C12: ='1) Thermal Billing Info'!F19 -> 5577 | D12: =MAX('12) Hourly Simulation '!AN2888:AN3631) -> 1527 | E12: =SUMIF('12) Hourly Simulation '!$B$8:$B$8767,"=5",'12) Hourly Simulation '!$AN$8:$AN$8767) -> 695697.25 | F12: 7133.878232 | G12: =MAX('12) Hourly Simulation '!AQ2888:AQ3631) -> 1485.96 | H12: =SUMIF('12) Hourly Simulation '!$B$8:$B$8767,"=5",'12) Hourly Simulation '!$AQ$8:$AQ$8767) -> 665163.49 | I12: =SUMIF('12) Hourly Simulation '!$B$8:$B$8767,"=5",'12) Hourly Simulation '!$AO$8:$AO$8767) -> 30533.76 | J12: =SUMIF('12) Hourly Simulation '!$B$8:$B$8767,"=5",'12) Hourly Simulation '!$AP$8:$AP$8767) -> 0 | K12: -1556.878232 | L12: 41.04 | M12: 30533.76
B13: Jun | C13: ='1) Thermal Billing Info'!F20 -> 3644 | D13: =MAX('12) Hourly Simulation '!AN3632:AN4351) -> 1610.25 | E13: =SUMIF('12) Hourly Simulation '!$B$8:$B$8767,"=6",'12) Hourly Simulation '!$AN$8:$AN$8767) -> 710471 | F13: 5097.972089 | G13: =MAX('12) Hourly Simulation '!AQ3632:AQ4351) -> 1541.85 | H13: =SUMIF('12) Hourly Simulation '!$B$8:$B$8767,"=6",'12) Hourly Simulation '!$AQ$8:$AQ$8767) -> 685436.6 | I13: =SUMIF('12) Hourly Simulation '!$B$8:$B$8767,"=6",'12) Hourly Simulation '!$AO$8:$AO$8767) -> 25034.4 | J13: =SUMIF('12) Hourly Simulation '!$B$8:$B$8767,"=6",'12) Hourly Simulation '!$AP$8:$AP$8767) -> 0 | K13: -1453.972089 | L13: 68.4 | M13: 25034.4
B14: Jul | C14: ='1) Thermal Billing Info'!F21 -> 3751 | D14: =MAX('12) Hourly Simulation '!AN4352:AN5095) -> 1618.75 | E14: =SUMIF('12) Hourly Simulation '!$B$8:$B$8767,"=7",'12) Hourly Simulation '!$AN$8:$AN$8767) -> 830891.5 | F14: 5264.00248 | G14: =MAX('12) Hourly Simulation '!AQ4352:AQ5095) -> 1550.35 | H14: =SUMIF('12) Hourly Simulation '!$B$8:$B$8767,"=7",'12) Hourly Simulation '!$AQ$8:$AQ$8767) -> 804981.58 | I14: =SUMIF('12) Hourly Simulation '!$B$8:$B$8767,"=7",'12) Hourly Simulation '!$AO$8:$AO$8767) -> 25909.92 | J14: =SUMIF('12) Hourly Simulation '!$B$8:$B$8767,"=7",'12) Hourly Simulation '!$AP$8:$AP$8767) -> 0 | K14: -1513.00248 | L14: 68.4 | M14: 25909.92
B15: Aug | C15: ='1) Thermal Billing Info'!F22 -> 3402 | D15: =MAX('12) Hourly Simulation '!AN5096:AN5839) -> 1542.5 | E15: =SUMIF('12) Hourly Simulation '!$B$8:$B$8767,"=8",'12) Hourly Simulation '!$AN$8:$AN$8767) -> 787180 | F15: 5345.201946 | G15: =MAX('12) Hourly Simulation '!AQ5096:AQ5839) -> 1474.1 | H15: =SUMIF('12) Hourly Simulation '!$B$8:$B$8767,"=8",'12) Hourly Simulation '!$AQ$8:$AQ$8767) -> 755209.84 | I15: =SUMIF('12) Hourly Simulation '!$B$8:$B$8767,"=8",'12) Hourly Simulation '!$AO$8:$AO$8767) -> 31970.16 | J15: =SUMIF('12) Hourly Simulation '!$B$8:$B$8767,"=8",'12) Hourly Simulation '!$AP$8:$AP$8767) -> 0 | K15: -1943.201946 | L15: 68.4 | M15: 31970.16
B16: Sept | C16: ='1) Thermal Billing Info'!F23 -> 3861 | D16: =MAX('12) Hourly Simulation '!AN5840:AN6559) -> 1634.75 | E16: =SUMIF('12) Hourly Simulation '!$B$8:$B$8767,"=9",'12) Hourly Simulation '!$AN$8:$AN$8767) -> 744892.5 | F16: 5546.95547 | G16: =MAX('12) Hourly Simulation '!AQ5840:AQ6559) -> 1580.03 | H16: =SUMIF('12) Hourly Simulation '!$B$8:$B$8767,"=9",'12) Hourly Simulation '!$AQ$8:$AQ$8767) -> 715343.7 | I16: =SUMIF('12) Hourly Simulation '!$B$8:$B$8767,"=9",'12) Hourly Simulation '!$AO$8:$AO$8767) -> 29548.8 | J16: =SUMIF('12) Hourly Simulation '!$B$8:$B$8767,"=9",'12) Hourly Simulation '!$AP$8:$AP$8767) -> 0 | K16: -1685.95547 | L16: 54.72 | M16: 29548.8
B17: Oct | C17: ='1) Thermal Billing Info'!F24 -> 3536 | D17: =MAX('12) Hourly Simulation '!AN6560:AN7303) -> 1539 | E17: =SUMIF('12) Hourly Simulation '!$B$8:$B$8767,"=10",'12) Hourly Simulation '!$AN$8:$AN$8767) -> 681527.75 | F17: 5194.894795 | G17: =MAX('12) Hourly Simulation '!AQ6560:AQ7303) -> 1484.28 | H17: =SUMIF('12) Hourly Simulation '!$B$8:$B$8767,"=10",'12) Hourly Simulation '!$AQ$8:$AQ$8767) -> 650993.99 | I17: =SUMIF('12) Hourly Simulation '!$B$8:$B$8767,"=10",'12) Hourly Simulation '!$AO$8:$AO$8767) -> 30533.76 | J17: =SUMIF('12) Hourly Simulation '!$B$8:$B$8767,"=10",'12) Hourly Simulation '!$AP$8:$AP$8767) -> 0 | K17: -1658.894795 | L17: 54.72 | M17: 30533.76
B18: Nov | C18: ='1) Thermal Billing Info'!F25 -> 7695 | D18: =MAX('12) Hourly Simulation '!AN7304:AN8023) -> 1237.25 | E18: =SUMIF('12) Hourly Simulation '!$B$8:$B$8767,"=11",'12) Hourly Simulation '!$AN$8:$AN$8767) -> 547891 | F18: 9705.623135 | G18: =MAX('12) Hourly Simulation '!AQ7304:AQ8023) -> 1182.53 | H18: =SUMIF('12) Hourly Simulation '!$B$8:$B$8767,"=11",'12) Hourly Simulation '!$AQ$8:$AQ$8767) -> 508492.6 | I18: =SUMIF('12) Hourly Simulation '!$B$8:$B$8767,"=11",'12) Hourly Simulation '!$AO$8:$AO$8767) -> 39398.4 | J18: =SUMIF('12) Hourly Simulation '!$B$8:$B$8767,"=11",'12) Hourly Simulation '!$AP$8:$AP$8767) -> 0 | K18: -2010.623135 | L18: 54.72 | M18: 39398.4
B19: Dec | C19: ='1) Thermal Billing Info'!F26 -> 14116 | D19: =MAX('12) Hourly Simulation '!AN8024:AN8767) -> 1031 | E19: =SUMIF('12) Hourly Simulation '!$B$8:$B$8767,"=12",'12) Hourly Simulation '!$AN$8:$AN$8767) -> 528930 | F19: 16658.07601 | G19: =MAX('12) Hourly Simulation '!AQ8024:AQ8767) -> 962.6 | H19: =SUMIF('12) Hourly Simulation '!$B$8:$B$8767,"=12",'12) Hourly Simulation '!$AQ$8:$AQ$8767) -> 478040.4 | I19: =SUMIF('12) Hourly Simulation '!$B$8:$B$8767,"=12",'12) Hourly Simulation '!$AO$8:$AO$8767) -> 50889.6 | J19: =SUMIF('12) Hourly Simulation '!$B$8:$B$8767,"=12",'12) Hourly Simulation '!$AP$8:$AP$8767) -> 0 | K19: -2542.076006 | L19: 68.4 | M19: 50889.6
B20: Total/Avg. | C20: =SUM(C8:C19) -> 99583 | D20: =AVERAGE(D8:D19) -> 1303.916667 | E20: 7707102.75 | F20: 122099.552 | G20: =AVERAGE(G8:G19) -> 1244.921667 | H20: 7278713.55 | I20: 428389.2 | J20: 0 | K20: -22516.552 | L20: =AVERAGE(L8:L19) -> 58.995 | M20: 428389.2
C23: Note 1: Not precisely equal to actual billing demand (latter of which is based on 15 minute interval data and may be based off of kVa rather than kW).

Sheet 11) CHP Unit - Scheduled Hours
B1: Project Name: | C1: ='1) Thermal Billing Info'!C1 -> Customer's Name
F3: Summary is for CHP Controlled based on Scheduled Run Hours
F4: Monthly Breakdown
D6: Annual Total | F6: 1 | G6: 2 | H6: 3 | I6: 4 | J6: 5 | K6: 6 | L6: 7 | M6: 8 | N6: 9 | O6: 10 | P6: 11 | Q6: 12
F7: =LOOKUP(F6,'7) Peak & Seasons'!$G$23:$H$34) -> Winter | G7: =LOOKUP(G6,'7) Peak & Seasons'!$G$23:$H$34) -> Winter | H7: =LOOKUP(H6,'7) Peak & Seasons'!$G$23:$H$34) -> Winter | I7: =LOOKUP(I6,'7) Peak & Seasons'!$G$23:$H$34) -> Winter | J7: =LOOKUP(J6,'7) Peak & Seasons'!$G$23:$H$34) -> Winter | K7: =LOOKUP(K6,'7) Peak & Seasons'!$G$23:$H$34) -> Summer | L7: =LOOKUP(L6,'7) Peak & Seasons'!$G$23:$H$34) -> Summer | M7: =LOOKUP(M6,'7) Peak & Seasons'!$G$23:$H$34) -> Summer | N7: =LOOKUP(N6,'7) Peak & Seasons'!$G$23:$H$34) -> Summer | O7: =LOOKUP(O6,'7) Peak & Seasons'!$G$23:$H$34) -> Winter | P7: =LOOKUP(P6,'7) Peak & Seasons'!$G$23:$H$34) -> Winter | Q7: =LOOKUP(Q6,'7) Peak & Seasons'!$G$23:$H$34) -> Winter
B8: Run hours | D8: =SUM(F8:Q8) -> 7449.9 | F8: =COUNTIF('12) Hourly Simulation '!$AA$8:$AA$751,">0")*'5) CHP System'!E27 -> 706.8 | G8: =COUNTIF('12) Hourly Simulation '!$AA$752:$AA$1423,">0")*'5) CHP System'!F27 -> 638.4 | H8: =COUNTIF('12) Hourly Simulation '!$AA$1424:$AA$2167,">0")*'5) CHP System'!G27 -> 706.8 | I8: =COUNTIF('12) Hourly Simulation '!$AA$2168:$AA$2887,">0")*'5) CHP System'!H27 -> 684 | J8: =COUNTIF('12) Hourly Simulation '!$AA$2888:$AA$3631,">0")*'5) CHP System'!I27 -> 706.8 | K8: =COUNTIF('12) Hourly Simulation '!$AA$3632:$AA$4351,">0")*'5) CHP System'!J27 -> 513 | L8: =COUNTIF('12) Hourly Simulation '!$AA$4352:$AA$5095,">0")*'5) CHP System'!K27 -> 530.1 | M8: =COUNTIF('12) Hourly Simulation '!$AA$5096:$AA$5839,">0")*'5) CHP System'!L27 -> 530.1 | N8: =COUNTIF('12) Hourly Simulation '!$AA$5840:$AA$6559,">0")*'5) CHP System'!M27 -> 513 | O8: =COUNTIF('12) Hourly Simulation '!$AA$6560:$AA$7303,">0")*'5) CHP System'!N27 -> 530.1 | P8: =COUNTIF('12) Hourly Simulation '!$AA$7304:$AA$8023,">0")*'5) CHP System'!O27 -> 684 | Q8: =COUNTIF('12) Hourly Simulation '!$AA$8024:$AA$8767,">0")*'5) CHP System'!P27 -> 706.8
B9: Equivalent Full Load Hours (all units) | D9: =D12/'5) CHP System'!$C$42 -> 5949.85 | F9: =F12/'5) CHP System'!$C$42 -> 706.8 | G9: =G12/'5) CHP System'!$C$42 -> 638.4 | H9: =H12/'5) CHP System'!$C$42 -> 530.1 | I9: =I12/'5) CHP System'!$C$42 -> 410.4 | J9: =J12/'5) CHP System'!$C$42 -> 424.08 | K9: =K12/'5) CHP System'!$C$42 -> 347.7 | L9: =L12/'5) CHP System'!$C$42 -> 359.86 | M9: =M12/'5) CHP System'!$C$42 -> 444.03 | N9: =N12/'5) CHP System'!$C$42 -> 410.4 | O9: =O12/'5) CHP System'!$C$42 -> 424.08 | P9: =P12/'5) CHP System'!$C$42 -> 547.2 | Q9: =Q12/'5) CHP System'!$C$42 -> 706.8
B10: Average Loading | D10: =D9/D8 -> 0.798648304 | F10: =F9/F8 -> 1 | G10: 1 | H10: 0.75 | I10: 0.6 | J10: 0.6 | K10: 0.6777777778 | L10: 0.6788530466 | M10: 0.8376344086 | N10: 0.8 | O10: 0.8 | P10: 0.8 | Q10: 1
B12: On-site generation: | C12: =IF($D$12=0,0,C13+C14) -> 1 | D12: =SUM('12) Hourly Simulation '!AB8:AB8767) -> 428389.2 | E12: kWh | F12: =SUM('12) Hourly Simulation '!$AB$8:$AB$751) -> 50889.6 | G12: =SUM('12) Hourly Simulation '!$AB$752:$AB$1423) -> 45964.8 | H12: =SUM('12) Hourly Simulation '!$AB$1424:$AB$2167) -> 38167.2 | I12: =SUM('12) Hourly Simulation '!$AB$2168:$AB$2887) -> 29548.8 | J12: =SUM('12) Hourly Simulation '!$AB$2888:$AB$3631) -> 30533.76 | K12: =SUM('12) Hourly Simulation '!$AB$3632:$AB$4351) -> 25034.4 | L12: =SUM('12) Hourly Simulation '!$AB$4352:$AB$5095) -> 25909.92 | M12: =SUM('12) Hourly Simulation '!$AB$5096:$AB$5839) -> 31970.16 | N12: =SUM('12) Hourly Simulation '!$AB$5840:$AB$6559) -> 29548.8 | O12: =SUM('12) Hourly Simulation '!$AB$6560:$AB$7303) -> 30533.76 | P12: =SUM('12) Hourly Simulation '!$AB$7304:$AB$8023) -> 39398.4 | Q12: =SUM('12) Hourly Simulation '!$AB$8024:$AB$8767) -> 50889.6
B13: Peak | C13: =IF($D$12=0,0,D13/$D$12) -> 0.5424477088 | D13: =SUMIF('Hidden Tab1'!$K$8:$K$8767,"P",('12) Hourly Simulation '!$AB$8:$AB$8767)) -> 232378.74 | E13: kWh | F13: =SUMIF('Hidden Tab1'!$K$8:$K$751,"P",('12) Hourly Simulation '!$AB$8:$AB$751)) -> 24418.8 | G13: =SUMIF('Hidden Tab1'!$K$752:$K$1423,"P",('12) Hourly Simulation '!$AB$752:$AB$1423)) -> 22093.2 | H13: =SUMIF('Hidden Tab1'!$K$1424:$K$2167,"P",('12) Hourly Simulation '!$AB$1424:$AB$2167)) -> 18314.1 | I13: =SUMIF('Hidden Tab1'!$K$2168:$K$2887,"P",('12) Hourly Simulation '!$AB$2168:$AB$2887)) -> 14651.28 | J13: =SUMIF('Hidden Tab1'!$K$2888:$K$3631,"P",('12) Hourly Simulation '!$AB$2888:$AB$3631)) -> 14651.28 | K13: =SUMIF('Hidden Tab1'!$K$3632:$K$4351,"P",('12) Hourly Simulation '!$AB$3632:$AB$4351)) -> 17524.08 | L13: =SUMIF('Hidden Tab1'!$K$4352:$K$5095,"P",('12) Hourly Simulation '!$AB$4352:$AB$5095)) -> 18358.56 | M13: =SUMIF('Hidden Tab1'!$K$5096:$K$5839,"P",('12) Hourly Simulation '!$AB$5096:$AB$5839)) -> 20971.44 | N13: =SUMIF('Hidden Tab1'!$K$5840:$K$6559,"P",('12) Hourly Simulation '!$AB$5840:$AB$6559)) -> 19535.04 | O13: =SUMIF('Hidden Tab1'!$K$6560:$K$7303,"P",('12) Hourly Simulation '!$AB$6560:$AB$7303)) -> 20465.28 | P13: =SUMIF('Hidden Tab1'!$K$7304:$K$8023,"P",('12) Hourly Simulation '!$AB$7304:$AB$8023)) -> 15814.08 | Q13: =SUMIF('Hidden Tab1'!$K$8024:$K$8767,"P",('12) Hourly Simulation '!$AB$8024:$AB$8767)) -> 25581.6
B14: Off-peak | C14: =IF($D$12=0,0,D14/$D$12) -> 0.4575522912 | D14: =SUMIF('Hidden Tab1'!$K$8:$K$8767,"OP",('12) Hourly Simulation '!$AB$8:$AB$8767)) -> 196010.46 | E14: kWh | F14: =SUMIF('Hidden Tab1'!$K$8:$K$751,"OP",('12) Hourly Simulation '!$AB$8:$AB$751)) -> 26470.8 | G14: =SUMIF('Hidden Tab1'!$K$752:$K$1423,"OP",('12) Hourly Simulation '!$AB$752:$AB$1423)) -> 23871.6 | H14: =SUMIF('Hidden Tab1'!$K$1424:$K$2167,"OP",('12) Hourly Simulation '!$AB$1424:$AB$2167)) -> 19853.1 | I14: =SUMIF('Hidden Tab1'!$K$2168:$K$2887,"OP",('12) Hourly Simulation '!$AB$2168:$AB$2887)) -> 14897.52 | J14: =SUMIF('Hidden Tab1'!$K$2888:$K$3631,"OP",('12) Hourly Simulation '!$AB$2888:$AB$3631)) -> 15882.48 | K14: =SUMIF('Hidden Tab1'!$K$3632:$K$4351,"OP",('12) Hourly Simulation '!$AB$3632:$AB$4351)) -> 7510.32 | L14: =SUMIF('Hidden Tab1'!$K$4352:$K$5095,"OP",('12) Hourly Simulation '!$AB$4352:$AB$5095)) -> 7551.36 | M14: =SUMIF('Hidden Tab1'!$K$5096:$K$5839,"OP",('12) Hourly Simulation '!$AB$5096:$AB$5839)) -> 10998.72 | N14: =SUMIF('Hidden Tab1'!$K$5840:$K$6559,"OP",('12) Hourly Simulation '!$AB$5840:$AB$6559)) -> 10013.76 | O14: =SUMIF('Hidden Tab1'!$K$6560:$K$7303,"OP",('12) Hourly Simulation '!$AB$6560:$AB$7303)) -> 10068.48 | P14: =SUMIF('Hidden Tab1'!$K$7304:$K$8023,"OP",('12) Hourly Simulation '!$AB$7304:$AB$8023)) -> 23584.32 | Q14: =SUMIF('Hidden Tab1'!$K$8024:$K$8767,"OP",('12) Hourly Simulation '!$AB$8024:$AB$8767)) -> 25308
B16: Generation Consumed Internally: | C16: =IF(D16=0,0,C17+C18) -> 1 | D16: =SUM('12) Hourly Simulation '!$AO$8:$AO$8767) -> 428389.2 | E16: kWh | F16: =SUM('12) Hourly Simulation '!$AO$8:$AO$751) -> 50889.6 | G16: =SUM('12) Hourly Simulation '!$AO$752:$AO$1423) -> 45964.8 | H16: =SUM('12) Hourly Simulation '!$AO$1424:$AO$2167) -> 38167.2 | I16: =SUM('12) Hourly Simulation '!$AO$2168:$AO$2887) -> 29548.8 | J16: =SUM('12) Hourly Simulation '!$AO$2888:$AO$3631) -> 30533.76 | K16: =SUM('12) Hourly Simulation '!$AO$3632:$AO$4351) -> 25034.4 | L16: =SUM('12) Hourly Simulation '!$AO$4352:$AO$5095) -> 25909.92 | M16: =SUM('12) Hourly Simulation '!$AO$5096:$AO$5839) -> 31970.16 | N16: =SUM('12) Hourly Simulation '!$AO$5840:$AO$6559) -> 29548.8 | O16: =SUM('12) Hourly Simulation '!$AO$6560:$AO$7303) -> 30533.76 | P16: =SUM('12) Hourly Simulation '!$AO$7304:$AO$8023) -> 39398.4 | Q16: =SUM('12) Hourly Simulation '!$AO$8024:$AO$8767) -> 50889.6
B17: Peak | C17: =IF(D16=0,0,D17/$D$16) -> 0.5424477088 | D17: =SUMIF('Hidden Tab1'!$K$8:$K$8767,"P",('12) Hourly Simulation '!$AO$8:$AO$8767)) -> 232378.74 | E17: kWh | F17: =SUMIF('Hidden Tab1'!$K$8:$K$751,"P",('12) Hourly Simulation '!$AO$8:$AO$751)) -> 24418.8 | G17: =SUMIF('Hidden Tab1'!$K$752:$K$1423,"P",('12) Hourly Simulation '!$AO$752:$AO$1423)) -> 22093.2 | H17: =SUMIF('Hidden Tab1'!$K$1424:$K$2167,"P",('12) Hourly Simulation '!$AO$1424:$AO$2167)) -> 18314.1 | I17: =SUMIF('Hidden Tab1'!$K$2168:$K$2887,"P",('12) Hourly Simulation '!$AO$2168:$AO$2887)) -> 14651.28 | J17: =SUMIF('Hidden Tab1'!$K$2888:$K$3631,"P",('12) Hourly Simulation '!$AO$2888:$AO$3631)) -> 14651.28 | K17: =SUMIF('Hidden Tab1'!$K$3632:$K$4351,"P",('12) Hourly Simulation '!$AO$3632:$AO$4351)) -> 17524.08 | L17: =SUMIF('Hidden Tab1'!$K$4352:$K$5095,"P",('12) Hourly Simulation '!$AO$4352:$AO$5095)) -> 18358.56 | M17: =SUMIF('Hidden Tab1'!$K$5096:$K$5839,"P",('12) Hourly Simulation '!$AO$5096:$AO$5839)) -> 20971.44 | N17: =SUMIF('Hidden Tab1'!$K$5840:$K$6559,"P",('12) Hourly Simulation '!$AO$5840:$AO$6559)) -> 19535.04 | O17: =SUMIF('Hidden Tab1'!$K$6560:$K$7303,"P",('12) Hourly Simulation '!$AO$6560:$AO$7303)) -> 20465.28 | P17: =SUMIF('Hidden Tab1'!$K$7304:$K$8023,"P",('12) Hourly Simulation '!$AO$7304:$AO$8023)) -> 15814.08 | Q17: =SUMIF('Hidden Tab1'!$K$8024:$K$8767,"P",('12) Hourly Simulation '!$AO$8024:$AO$8767)) -> 25581.6
B18: Off-peak | C18: =IF(D16=0,0,D18/$D$16) -> 0.4575522912 | D18: =SUMIF('Hidden Tab1'!$K$8:$K$8767,"OP",('12) Hourly Simulation '!$AO$8:$AO$8767)) -> 196010.46 | E18: kWh | F18: =SUMIF('Hidden Tab1'!$K$8:$K$751,"OP",('12) Hourly Simulation '!$AO$8:$AO$751)) -> 26470.8 | G18: =SUMIF('Hidden Tab1'!$K$752:$K$1423,"OP",('12) Hourly Simulation '!$AO$752:$AO$1423)) -> 23871.6 | H18: =SUMIF('Hidden Tab1'!$K$1424:$K$2167,"OP",('12) Hourly Simulation '!$AO$1424:$AO$2167)) -> 19853.1 | I18: =SUMIF('Hidden Tab1'!$K$2168:$K$2887,"OP",('12) Hourly Simulation '!$AO$2168:$AO$2887)) -> 14897.52 | J18: =SUMIF('Hidden Tab1'!$K$2888:$K$3631,"OP",('12) Hourly Simulation '!$AO$2888:$AO$3631)) -> 15882.48 | K18: =SUMIF('Hidden Tab1'!$K$3632:$K$4351,"OP",('12) Hourly Simulation '!$AO$3632:$AO$4351)) -> 7510.32 | L18: =SUMIF('Hidden Tab1'!$K$4352:$K$5095,"OP",('12) Hourly Simulation '!$AO$4352:$AO$5095)) -> 7551.36 | M18: =SUMIF('Hidden Tab1'!$K$5096:$K$5839,"OP",('12) Hourly Simulation '!$AO$5096:$AO$5839)) -> 10998.72 | N18: =SUMIF('Hidden Tab1'!$K$5840:$K$6559,"OP",('12) Hourly Simulation '!$AO$5840:$AO$6559)) -> 10013.76 | O18: =SUMIF('Hidden Tab1'!$K$6560:$K$7303,"OP",('12) Hourly Simulation '!$AO$6560:$AO$7303)) -> 10068.48 | P18: =SUMIF('Hidden Tab1'!$K$7304:$K$8023,"OP",('12) Hourly Simulation '!$AO$7304:$AO$8023)) -> 23584.32 | Q18: =SUMIF('Hidden Tab1'!$K$8024:$K$8767,"OP",('12) Hourly Simulation '!$AO$8024:$AO$8767)) -> 25308
B20: Generation Exported: | C20: =IF(D20=0,0,C21+C22) -> 0 | D20: =SUM('12) Hourly Simulation '!$AP$8:$AP$8767) -> 0 | E20: kWh | F20: =SUM('12) Hourly Simulation '!$AP$8:$AP$751) -> 0 | G20: =SUM('12) Hourly Simulation '!$AP$752:$AP$1423) -> 0 | H20: =SUM('12) Hourly Simulation '!$AP$1424:$AP$2167) -> 0 | I20: =SUM('12) Hourly Simulation '!$AP$2168:$AP$2887) -> 0 | J20: =SUM('12) Hourly Simulation '!$AP$2888:$AP$3631) -> 0 | K20: =SUM('12) Hourly Simulation '!$AP$3632:$AP$4351) -> 0 | L20: =SUM('12) Hourly Simulation '!$AP$4352:$AP$5095) -> 0 | M20: =SUM('12) Hourly Simulation '!$AP$5096:$AP$5839) -> 0 | N20: =SUM('12) Hourly Simulation '!$AP$5840:$AP$6559) -> 0 | O20: =SUM('12) Hourly Simulation '!$AP$6560:$AP$7303) -> 0 | P20: =SUM('12) Hourly Simulation '!$AP$7304:$AP$8023) -> 0 | Q20: =SUM('12) Hourly Simulation '!$AP$8024:$AP$8767) -> 0
B21: Peak | C21: =IF(D20=0,0,D21/$D$20) -> 0 | D21: =SUMIF('Hidden Tab1'!$K$8:$K$8767,"P",('12) Hourly Simulation '!$AP$8:$AP$8767)) -> 0 | E21: kWh | F21: =SUMIF('Hidden Tab1'!$K$8:$K$751,"P",('12) Hourly Simulation '!$AP$8:$AP$751)) -> 0 | G21: =SUMIF('Hidden Tab1'!$K$752:$K$1423,"P",('12) Hourly Simulation '!$AP$752:$AP$1423)) -> 0 | H21: =SUMIF('Hidden Tab1'!$K$1424:$K$2167,"P",('12) Hourly Simulation '!$AP$1424:$AP$2167)) -> 0 | I21: =SUMIF('Hidden Tab1'!$K$2168:$K$2887,"P",('12) Hourly Simulation '!$AP$2168:$AP$2887)) -> 0 | J21: =SUMIF('Hidden Tab1'!$K$2888:$K$3631,"P",('12) Hourly Simulation '!$AP$2888:$AP$3631)) -> 0 | K21: =SUMIF('Hidden Tab1'!$K$3632:$K$4351,"P",('12) Hourly Simulation '!$AP$3632:$AP$4351)) -> 0 | L21: =SUMIF('Hidden Tab1'!$K$4352:$K$5095,"P",('12) Hourly Simulation '!$AP$4352:$AP$5095)) -> 0 | M21: =SUMIF('Hidden Tab1'!$K$5096:$K$5839,"P",('12) Hourly Simulation '!$AP$5096:$AP$5839)) -> 0 | N21: =SUMIF('Hidden Tab1'!$K$5840:$K$6559,"P",('12) Hourly Simulation '!$AP$5840:$AP$6559)) -> 0 | O21: =SUMIF('Hidden Tab1'!$K$6560:$K$7303,"P",('12) Hourly Simulation '!$AP$6560:$AP$7303)) -> 0 | P21: =SUMIF('Hidden Tab1'!$K$7304:$K$8023,"P",('12) Hourly Simulation '!$AP$7304:$AP$8023)) -> 0 | Q21: =SUMIF('Hidden Tab1'!$K$8024:$K$8767,"P",('12) Hourly Simulation '!$AP$8024:$AP$8767)) -> 0
B22: Off-peak | C22: =IF(D20=0,0,D22/$D$20) -> 0 | D22: =SUMIF('Hidden Tab1'!$K$8:$K$8767,"OP",('12) Hourly Simulation '!$AP$8:$AP$8767)) -> 0 | E22: kWh | F22: =SUMIF('Hidden Tab1'!$K$8:$K$751,"OP",('12) Hourly Simulation '!$AP$8:$AP$751)) -> 0 | G22: =SUMIF('Hidden Tab1'!$K$752:$K$1423,"OP",('12) Hourly Simulation '!$AP$752:$AP$1423)) -> 0 | H22: =SUMIF('Hidden Tab1'!$K$1424:$K$2167,"OP",('12) Hourly Simulation '!$AP$1424:$AP$2167)) -> 0 | I22: =SUMIF('Hidden Tab1'!$K$2168:$K$2887,"OP",('12) Hourly Simulation '!$AP$2168:$AP$2887)) -> 0 | J22: =SUMIF('Hidden Tab1'!$K$2888:$K$3631,"OP",('12) Hourly Simulation '!$AP$2888:$AP$3631)) -> 0 | K22: =SUMIF('Hidden Tab1'!$K$3632:$K$4351,"OP",('12) Hourly Simulation '!$AP$3632:$AP$4351)) -> 0 | L22: =SUMIF('Hidden Tab1'!$K$4352:$K$5095,"OP",('12) Hourly Simulation '!$AP$4352:$AP$5095)) -> 0 | M22: =SUMIF('Hidden Tab1'!$K$5096:$K$5839,"OP",('12) Hourly Simulation '!$AP$5096:$AP$5839)) -> 0 | N22: =SUMIF('Hidden Tab1'!$K$5840:$K$6559,"OP",('12) Hourly Simulation '!$AP$5840:$AP$6559)) -> 0 | O22: =SUMIF('Hidden Tab1'!$K$6560:$K$7303,"OP",('12) Hourly Simulation '!$AP$6560:$AP$7303)) -> 0 | P22: =SUMIF('Hidden Tab1'!$K$7304:$K$8023,"OP",('12) Hourly Simulation '!$AP$7304:$AP$8023)) -> 0 | Q22: =SUMIF('Hidden Tab1'!$K$8024:$K$8767,"OP",('12) Hourly Simulation '!$AP$8024:$AP$8767)) -> 0
B26: Fuel Fired (HHV) | D26: =SUM('12) Hourly Simulation '!AC8:AC8767) -> 56440.2771 | E26: therms | F26: =SUM('12) Hourly Simulation '!$AC$8:$AC$751) -> 6704.7048 | G26: =SUM('12) Hourly Simulation '!$AC$752:$AC$1423) -> 6055.8624 | H26: =SUM('12) Hourly Simulation '!$AC$1424:$AC$2167) -> 5028.5286 | I26: =SUM('12) Hourly Simulation '!$AC$2168:$AC$2887) -> 3893.0544 | J26: =SUM('12) Hourly Simulation '!$AC$2888:$AC$3631) -> 4022.82288 | K26: =SUM('12) Hourly Simulation '!$AC$3632:$AC$4351) -> 3298.2822 | L26: =SUM('12) Hourly Simulation '!$AC$4352:$AC$5095) -> 3413.63196 | M26: =SUM('12) Hourly Simulation '!$AC$5096:$AC$5839) -> 4212.06858 | N26: =SUM('12) Hourly Simulation '!$AC$5840:$AC$6559) -> 3893.0544 | O26: =SUM('12) Hourly Simulation '!$AC$6560:$AC$7303) -> 4022.82288 | P26: =SUM('12) Hourly Simulation '!$AC$7304:$AC$8023) -> 5190.7392 | Q26: =SUM('12) Hourly Simulation '!$AC$8024:$AC$8767) -> 6704.7048
B28: Thermal Energy Produced | D28: =SUM('12) Hourly Simulation '!$AD$8:$AD$8767) -> 31117.7155 | E28: therms | F28: =SUM('12) Hourly Simulation '!$AD$8:$AD$751) -> 3696.564 | G28: =SUM('12) Hourly Simulation '!$AD$752:$AD$1423) -> 3338.832 | H28: =SUM('12) Hourly Simulation '!$AD$1424:$AD$2167) -> 2772.423 | I28: =SUM('12) Hourly Simulation '!$AD$2168:$AD$2887) -> 2146.392 | J28: =SUM('12) Hourly Simulation '!$AD$2888:$AD$3631) -> 2217.9384 | K28: =SUM('12) Hourly Simulation '!$AD$3632:$AD$4351) -> 1818.471 | L28: =SUM('12) Hourly Simulation '!$AD$4352:$AD$5095) -> 1882.0678 | M28: =SUM('12) Hourly Simulation '!$AD$5096:$AD$5839) -> 2322.2769 | N28: =SUM('12) Hourly Simulation '!$AD$5840:$AD$6559) -> 2146.392 | O28: =SUM('12) Hourly Simulation '!$AD$6560:$AD$7303) -> 2217.9384 | P28: =SUM('12) Hourly Simulation '!$AD$7304:$AD$8023) -> 2861.856 | Q28: =SUM('12) Hourly Simulation '!$AD$8024:$AD$8767) -> 3696.564
B30: Useful Thermal Energy Consumed | D30: =SUM('12) Hourly Simulation '!AE8:AE8767) -> 29852.87809 | E30: therms | F30: =SUM('12) Hourly Simulation '!$AE$8:$AE$751) -> 3683.403426 | G30: =SUM('12) Hourly Simulation '!$AE$752:$AE$1423) -> 3338.832 | H30: =SUM('12) Hourly Simulation '!$AE$1424:$AE$2167) -> 2745.958006 | I30: =SUM('12) Hourly Simulation '!$AE$2168:$AE$2887) -> 2138.384638 | J30: =SUM('12) Hourly Simulation '!$AE$2888:$AE$3631) -> 2170.031291 | K30: =SUM('12) Hourly Simulation '!$AE$3632:$AE$4351) -> 1622.992897 | L30: =SUM('12) Hourly Simulation '!$AE$4352:$AE$5095) -> 1672.553942 | M30: =SUM('12) Hourly Simulation '!$AE$5096:$AE$5839) -> 1996.602638 | N30: =SUM('12) Hourly Simulation '!$AE$5840:$AE$6559) -> 1942.247059 | O30: =SUM('12) Hourly Simulation '!$AE$6560:$AE$7303) -> 2080.256715 | P30: =SUM('12) Hourly Simulation '!$AE$7304:$AE$8023) -> 2798.502137 | Q30: =SUM('12) Hourly Simulation '!$AE$8024:$AE$8767) -> 3663.113339
B32: Thermal Energy Dumped | D32: =SUM('12) Hourly Simulation '!$AF$8:$AF$8767) -> 1264.837413 | E32: therms | F32: =SUM('12) Hourly Simulation '!$AF$8:$AF$751) -> 13.16057409 | G32: =SUM('12) Hourly Simulation '!$AF$752:$AF$1423) -> 0 | H32: =SUM('12) Hourly Simulation '!$AF$1424:$AF$2167) -> 26.4649943 | I32: =SUM('12) Hourly Simulation '!$AF$2168:$AF$2887) -> 8.007362356 | J32: =SUM('12) Hourly Simulation '!$AF$2888:$AF$3631) -> 47.90710934 | K32: =SUM('12) Hourly Simulation '!$AF$3632:$AF$4351) -> 195.4781025 | L32: =SUM('12) Hourly Simulation '!$AF$4352:$AF$5095) -> 209.5138577 | M32: =SUM('12) Hourly Simulation '!$AF$5096:$AF$5839) -> 325.6742617 | N32: =SUM('12) Hourly Simulation '!$AF$5840:$AF$6559) -> 204.1449413 | O32: =SUM('12) Hourly Simulation '!$AF$6560:$AF$7303) -> 137.6816852 | P32: =SUM('12) Hourly Simulation '!$AF$7304:$AF$8023) -> 63.35386278 | Q32: =SUM('12) Hourly Simulation '!$AF$8024:$AF$8767) -> 33.45066145
B34: Boiler Fuel Saved | D34: =D30/'5) CHP System'!C13 -> 33923.7251 | E34: therms | F34: =F30/'5) CHP System'!$C$13 -> 4185.685711 | G34: =G30/'5) CHP System'!$C$13 -> 3794.127273 | H34: =H30/'5) CHP System'!$C$13 -> 3120.406825 | I34: =I30/'5) CHP System'!$C$13 -> 2429.982543 | J34: =J30/'5) CHP System'!$C$13 -> 2465.944648 | K34: =K30/'5) CHP System'!$C$13 -> 1844.310111 | L34: =L30/'5) CHP System'!$C$13 -> 1900.62948 | M34: =M30/'5) CHP System'!$C$13 -> 2268.866634 | N34: =N30/'5) CHP System'!$C$13 -> 2207.09893 | O34: =O30/'5) CHP System'!$C$13 -> 2363.928085 | P34: =P30/'5) CHP System'!$C$13 -> 3180.116065 | Q34: =Q30/'5) CHP System'!$C$13 -> 4162.628794
B36: Facility Fuel Increase | D36: =D26-D34 -> 22516.552 | E36: therms | F36: =F26-F34 -> 2519.019089 | G36: =G26-G34 -> 2261.735127 | H36: =H26-H34 -> 1908.121775 | I36: 1463.071857 | J36: 1556.878232 | K36: 1453.972089 | L36: 1513.00248 | M36: 1943.201946 | N36: 1685.95547 | O36: 1658.894795 | P36: 2010.623135 | Q36: 2542.076006
B38: Maintenance Cost | D38: ='5) CHP System'!$C$33*D12 -> 6854.2272 | F38: ='5) CHP System'!$C$33*F12 -> 814.2336 | G38: ='5) CHP System'!$C$33*G12 -> 735.4368 | H38: ='5) CHP System'!$C$33*H12 -> 610.6752 | I38: ='5) CHP System'!$C$33*I12 -> 472.7808 | J38: ='5) CHP System'!$C$33*J12 -> 488.54016 | K38: ='5) CHP System'!$C$33*K12 -> 400.5504 | L38: ='5) CHP System'!$C$33*L12 -> 414.55872 | M38: ='5) CHP System'!$C$33*M12 -> 511.52256 | N38: ='5) CHP System'!$C$33*N12 -> 472.7808 | O38: ='5) CHP System'!$C$33*O12 -> 488.54016 | P38: ='5) CHP System'!$C$33*P12 -> 630.3744 | Q38: ='5) CHP System'!$C$33*Q12 -> 814.2336
B40: Electric Efficiency | D40: =IF(D26=0,"NA",D12*3412/(D26*100000)) -> 0.2589753321 | F40: =IF(F26=0,"NA",F12*3412/(F26*100000)) -> 0.2589753321 | G40: 0.2589753321 | H40: 0.2589753321 | I40: 0.2589753321 | J40: 0.2589753321 | K40: 0.2589753321 | L40: 0.2589753321 | M40: 0.2589753321 | N40: 0.2589753321 | O40: 0.2589753321 | P40: 0.2589753321 | Q40: 0.2589753321
B41: Thermal Efficiency | D41: =IF(D26=0,"NA",D30/D26) -> 0.5289286237 | F41: =IF(F26=0,"NA",F30/F26) -> 0.5493759287 | G41: =IF(G26=0,"NA",G30/G26) -> 0.5513388151 | H41: 0.5460758453 | I41: 0.5492819822 | J41: 0.5394299862 | K41: 0.4920721755 | L41: 0.4899631717 | M41: 0.4740194991 | N41: 0.4989005699 | O41: 0.5171136729 | P41: 0.5391336435 | Q41: 0.5463496825
D42: =IF(ISERROR(D40+D41),"NA",D40+D41) -> 0.7879039558 | F42: =IF(ISERROR(F40+F41),"NA",F40+F41) -> 0.8083512607 | G42: =IF(ISERROR(G40+G41),"NA",G40+G41) -> 0.8103141472 | H42: 0.8050511773 | I42: 0.8082573143 | J42: 0.7984053183 | K42: 0.7510475075 | L42: 0.7489385038 | M42: 0.7329948311 | N42: 0.7578759019 | O42: 0.7760890049 | P42: 0.7981089755 | Q42: 0.8053250145
B44: Thermal Dumping | D44: =IF(D28=0,"NA",D32/D28) -> 0.04064685959 | F44: =IF(F28=0,"NA",F32/F28) -> 0.003560218109 | G44: =IF(G28=0,"NA",G32/G28) -> 0 | H44: 0.009545799578 | I44: 0.003730615077 | J44: 0.02159983764 | K44: 0.1074958592 | L44: 0.1113211 | M44: 0.140239203 | N44: 0.09511074459 | O44: 0.06207642433 | P44: 0.02213733423 | Q44: 0.009049122767
B46: Average Coincident Peak kW Reduction | F46: =SUMIF('12) Hourly Simulation '!$B$8:$B$8767,"=1",'12) Hourly Simulation '!$AX$8:$AX$8767)/SUMIF('12) Hourly Simulation '!$B$8:$B$8767,"=1",'12) Hourly Simulation '!$AV$8:$AV$8767) -> 68.4 | G46: =SUMIF('12) Hourly Simulation '!$B$8:$B$8767,"=2",'12) Hourly Simulation '!$AX$8:$AX$8767)/SUMIF('12) Hourly Simulation '!$B$8:$B$8767,"=2",'12) Hourly Simulation '!$AV$8:$AV$8767) -> 68.4 | H46: =SUMIF('12) Hourly Simulation '!$B$8:$B$8767,"=3",'12) Hourly Simulation '!$AX$8:$AX$8767)/SUMIF('12) Hourly Simulation '!$B$8:$B$8767,"=3",'12) Hourly Simulation '!$AV$8:$AV$8767) -> 51.3 | I46: =SUMIF('12) Hourly Simulation '!$B$8:$B$8767,"=4",'12) Hourly Simulation '!$AX$8:$AX$8767)/SUMIF('12) Hourly Simulation '!$B$8:$B$8767,"=4",'12) Hourly Simulation '!$AV$8:$AV$8767) -> 41.04 | J46: =SUMIF('12) Hourly Simulation '!$B$8:$B$8767,"=5",'12) Hourly Simulation '!$AX$8:$AX$8767)/SUMIF('12) Hourly Simulation '!$B$8:$B$8767,"=5",'12) Hourly Simulation '!$AV$8:$AV$8767) -> 41.04 | K46: =SUMIF('12) Hourly Simulation '!$B$8:$B$8767,"=6",'12) Hourly Simulation '!$AX$8:$AX$8767)/SUMIF('12) Hourly Simulation '!$B$8:$B$8767,"=6",'12) Hourly Simulation '!$AV$8:$AV$8767) -> 68.4 | L46: =SUMIF('12) Hourly Simulation '!$B$8:$B$8767,"=7",'12) Hourly Simulation '!$AX$8:$AX$8767)/SUMIF('12) Hourly Simulation '!$B$8:$B$8767,"=7",'12) Hourly Simulation '!$AV$8:$AV$8767) -> 68.4 | M46: =SUMIF('12) Hourly Simulation '!$B$8:$B$8767,"=8",'12) Hourly Simulation '!$AX$8:$AX$8767)/SUMIF('12) Hourly Simulation '!$B$8:$B$8767,"=8",'12) Hourly Simulation '!$AV$8:$AV$8767) -> 68.4 | N46: =SUMIF('12) Hourly Simulation '!$B$8:$B$8767,"=9",'12) Hourly Simulation '!$AX$8:$AX$8767)/SUMIF('12) Hourly Simulation '!$B$8:$B$8767,"=9",'12) Hourly Simulation '!$AV$8:$AV$8767) -> 54.72 | O46: =SUMIF('12) Hourly Simulation '!$B$8:$B$8767,"=10",'12) Hourly Simulation '!$AX$8:$AX$8767)/SUMIF('12) Hourly Simulation '!$B$8:$B$8767,"=10",'12) Hourly Simulation '!$AV$8:$AV$8767) -> 54.72 | P46: =SUMIF('12) Hourly Simulation '!$B$8:$B$8767,"=11",'12) Hourly Simulation '!$AX$8:$AX$8767)/SUMIF('12) Hourly Simulation '!$B$8:$B$8767,"=11",'12) Hourly Simulation '!$AV$8:$AV$8767) -> 54.72 | Q46: =SUMIF('12) Hourly Simulation '!$B$8:$B$8767,"=12",'12) Hourly Simulation '!$AX$8:$AX$8767)/SUMIF('12) Hourly Simulation '!$B$8:$B$8767,"=12",'12) Hourly Simulation '!$AV$8:$AV$8767) -> 68.4
B49: Net Electric Generation (kWh) | C49: Winter | D49: Summer | E49: Total
B50: Peak | C50: =SUMIF($F$7:$Q$7,"Winter",$F$13:$Q$13) -> 155989.62 | D50: =SUMIF($F$7:$Q$7,"Summer",$F$13:$Q$13) -> 76389.12 | E50: =C50+D50 -> 232378.74
B51: Off-Peak | C51: =SUMIF($F$7:$Q$7,"Winter",$F$14:$Q$14) -> 159936.3 | D51: =SUMIF($F$7:$Q$7,"Summer",$F$14:$Q$14) -> 36074.16 | E51: =C51+D51 -> 196010.46
B52: Total | C52: =C50+C51 -> 315925.92 | D52: =D50+D51 -> 112463.28 | E52: =E50+E51 -> 428389.2
B56: Net Electric Generation (% of total) | C56: Winter | D56: Summer | E56: Total
B57: Peak | C57: =IF($E$52=0,0,C50/$E$52) -> 0.3641306083 | D57: 0.1783171004 | E57: 0.5424477088
B58: Off-Peak | C58: 0.3733434456 | D58: 0.0842088456 | E58: 0.4575522912
B59: Total | C59: =C57+C58 -> 0.737474054 | D59: =D57+D58 -> 0.262525946 | E59: =E57+E58 -> 1
D63: Annual Total | F63: 1 | G63: 2 | H63: 3 | I63: 4 | J63: 5 | K63: 6 | L63: 7 | M63: 8 | N63: 9 | O63: 10 | P63: 11 | Q63: 12
B64: Checks
B66: Gross Heat Rate (Btu/kWh) | D66: =IF(D12=0,"NA",IF(ABS(D26*100000/D12-'5) CHP System'!$C$38)<1,"OK","ERROR")) -> OK | F66: =IF(F12=0,"NA",IF(ABS(F26*100000/F12-'5) CHP System'!$C$38)<1,"OK","ERROR")) -> OK | G66: =IF(G12=0,"NA",IF(ABS(G26*100000/G12-'5) CHP System'!$C$38)<1,"OK","ERROR")) -> OK | H66: =IF(H12=0,"NA",IF(ABS(H26*100000/H12-'5) CHP System'!$C$38)<1,"OK","ERROR")) -> OK | I66: =IF(I12=0,"NA",IF(ABS(I26*100000/I12-'5) CHP System'!$C$38)<1,"OK","ERROR")) -> OK | J66: =IF(J12=0,"NA",IF(ABS(J26*100000/J12-'5) CHP System'!$C$38)<1,"OK","ERROR")) -> OK | K66: =IF(K12=0,"NA",IF(ABS(K26*100000/K12-'5) CHP System'!$C$38)<1,"OK","ERROR")) -> OK | L66: =IF(L12=0,"NA",IF(ABS(L26*100000/L12-'5) CHP System'!$C$38)<1,"OK","ERROR")) -> OK | M66: =IF(M12=0,"NA",IF(ABS(M26*100000/M12-'5) CHP System'!$C$38)<1,"OK","ERROR")) -> OK | N66: =IF(N12=0,"NA",IF(ABS(N26*100000/N12-'5) CHP System'!$C$38)<1,"OK","ERROR")) -> OK | O66: =IF(O12=0,"NA",IF(ABS(O26*100000/O12-'5) CHP System'!$C$38)<1,"OK","ERROR")) -> OK | P66: =IF(P12=0,"NA",IF(ABS(P26*100000/P12-'5) CHP System'!$C$38)<1,"OK","ERROR")) -> OK | Q66: =IF(Q12=0,"NA",IF(ABS(Q26*100000/Q12-'5) CHP System'!$C$38)<1,"OK","ERROR")) -> OK
B68: Reconcile Thermal Energy Dumped | D68: =IF(ABS(D28-D30-D32)>1,"ERROR","OK") -> OK | F68: =IF(ABS(F28-F30-F32)>1,"ERROR","OK") -> OK | G68: OK | H68: OK | I68: OK | J68: OK | K68: OK | L68: OK | M68: OK | N68: OK | O68: OK | P68: OK | Q68: OK
B70: Peak vs. Off-Peak Hours | D70: =IF(ABS(D12-D13-D14)>1,"ERROR","OK") -> OK | F70: =IF(ABS(F12-F13-F14)>1,"ERROR","OK") -> OK | G70: OK | H70: OK | I70: OK | J70: OK | K70: OK | L70: OK | M70: OK | N70: OK | O70: OK | P70: OK | Q70: OK

Sheet Base Load Use & Base Temp==>
C8: Base Load Use & Base Temp
C10: Refer to the Following Two Tabs

Sheet 12) Hourly Simulation
A1: 725090 | B1: Boston - Typical Temperature Data | H1: =MIN(H8756:H8767) -> 38 | J1: =MIN(J8756:J8767) -> 10 | K1: 6.843868262 | L1: 3.675134719 | M1: 10.51900298 | O1: =MIN(O8756:O8767) -> 0.95 | P1: 1 | Q1: 68.4 | R1: 9.0117 | S1: 4.9685 | T1: 4.9685 | U1: 0 | V1: 0 | X1: =MIN(X8756:X8767) -> 9.254385965 | Y1: 1 | Z1: 1 | AA1: 1 | AB1: 68.4 | AC1: 9.0117 | AD1: 4.9685 | AE1: 4.9685 | AF1: 0 | AG1: 0 | AI1: =MIN(AI8756:AI8767) -> 638 | AJ1: 68.4 | AK1: 0 | AL1: 569.6 | AN1: =MIN(AN8756:AN8767) -> 638 | AO1: 68.4 | AP1: 0 | AQ1: 569.6
E2: If data is desired to be used for other than Boston, copy/paste new temperatures below in degrees C. It is available as one of the columns in the below link. | H2: =MAX(H8:H8767) -> 99 | J2: =MAX(J8:J8767) -> 59 | K2: 44.91108292 | L2: 7.612779061 | M2: 50.2402476 | O2: =MAX(O8:O8767) -> 0.95 | P2: 1 | Q2: 68.4 | R2: 9.0117 | S2: 4.9685 | T2: 4.9685 | U2: 0.248425 | V2: 0.05 | X2: =MAX(X8:X8767) -> 23.82675439 | Y2: 1 | Z2: 1 | AA2: 1 | AB2: 68.4 | AC2: 9.0117 | AD2: 4.9685 | AE2: 4.9685 | AF2: 2.212148961 | AG2: 0.4452347712 | AI2: =MAX(AI8:AI8767) -> 1634.75 | AJ2: 68.4 | AK2: 0 | AL2: 1598.701355 | AN2: =MAX(AN8:AN8767) -> 1634.75 | AO2: 68.4 | AP2: 0 | AQ2: 1580.03
H3: =SUM(H8:H8767) -> 447459 | J3: =SUM(J8:J8767) -> 83918 | K3: 60016.62298 | L3: 41488.33333 | M3: 101504.9563 | O3: =SUM(O8:O8767) -> 8322 | P3: 7157.319179 | Q3: 489560.6319 | R3: 64499.61325 | S3: 35561.14034 | T3: 34812.20408 | U3: 748.936261 | V3: 217.1550386 | X3: =SUM(X8:X8767) -> 112036.5899 | Y3: 6263 | Z3: 6263 | AA3: 6263 | AB3: 428389.2 | AC3: 56440.2771 | AD3: 31117.7155 | AE3: 29852.87809 | AF3: 1264.837413 | AG3: 292.1032037 | AI3: =SUM(AI8:AI8767) -> 7707102.75 | AJ3: 489560.6319 | AK3: 0 | AL3: 7217542.118 | AN3: =SUM(AN8:AN8767) -> 7707102.75 | AO3: 428389.2 | AP3: 0 | AQ3: 7278713.55
A4: Base Temperature | C4: ='3) Base Temp & Degree Days'!C5 -> 55 | E4: http://rredc.nrel.gov/solar/old_data/nsrdb/1991-2005/tmy3/by_state_and_city.html
E5: Boston | F5: =IF(ABS(SUM(E8:E8767)-92852.3)>2,"Dry Bulb Temps do not match Boston. Make sure city name matches data.","") ->  | AT5: Intermediate Calculations
E6: Typical Temperatures | H6: Typical Temperatures converted to F | J6: Calculations from the Input Base Temperature | P6: Thermal Tracking | X6: Intermediate Calcs | AA6: Scheduled | AI6: Electric Profile (with CHP being thermal following) | AN6: Electric Profile (with CHP being scheduled) | AT6: Winter | AU6: Summer | AV6: Overall | AY6: What limits the CHP system (being primarily in a thermal following mode) | BA6: Intermediate Calculations
A7: Date (MM/DD/YYYY) for Typical Temperatures | B7: Month | C7: Day | D7: Time | E7: Dry-bulb (C) | F7: Time (Integer) | G7: Schedule (WKN =1; WE = 2; H =3) | H7: Dry Bulb (F); Calculated from Dry-Bulb Temp entered in degrees C | I7: Intentionally Left Blank | J7: Base Temp - Dry Bulb | K7: Allocate Space Heating Therms Fired for a Typical Year | L7: Base Load Therms Fired (which can be provided by CHP - excludes loads which can't be met by CHP - i.e. cooking, gas dryer, etc.) | M7: Total Therms Fired for Space Heating and Baseline | O7: Availability | P7: # of Units Operating (According to Thermal Tracking & limited if exporting is prohibited) | Q7: kW (net) | R7: CHP Fuel Fired | S7: CHP Available Therms Produced | T7: Therms Used | U7: Therms Dumped | V7: % Therms Dumped | X7: Ratio of (Facility kW less buffer) ÷ (CHP Output x Avail) | Y7: Used when exporting allowed - Scheduled # (or zero if < threshold # for operating) | Z7: Used when exporting NOT allowed - Smaller of Ratio or Scheduled (or zero if < threshold # for operating) | AA7: # of Units Operating (According to Schedule and limited depending if exporting is allowed) | AB7: kW (net) | AC7: CHP Fuel Fired | AD7: CHP Available Therms Produced | AE7: Therms Used | AF7: Therms Dumped | AG7: % Therms Dumped | AI7: Facility Purchased kWh (Existing - actual bills - not weather adjusted) | AJ7: kWh Generation consumed internally | AK7: kWh Generation exported | AL7: Post CHP Purchased kWh (if thermal following) | AN7: Facility Purchased kWh (Existing - actual bills - not weather adjusted) | AO7: kWh Generation consumed internally | AP7: kWh Generation exported | AQ7: Post CHP Purchased kWh (if scheduled) | AS7: Winter/Summer | AT7: Coincident Period (1 = Yes; 0 = No) | AU7: Coincident Period (1 = Yes; 0 = No) | AV7: Coincident Period Multiplier (1 = Yes; 0 = No) | AW7: Thermal Following Basis | AX7: Scheduled Basis | AY7: Hours that Min Turndown Limit Applies | AZ7: Number of Hours that Output is Limited from Prohibition of Electric Exporting | BA7: # of hours that thermal load exceeds CHP available output | BB7: # of hours that thermal load is <= CHP Available Output - INFO Only - Not Used | BC7: # of hours CHP units are operating - INFO Only - Not used
A8: 1976-01-01 | B8: =MONTH(A8) -> 1 | C8: =DAY(A8) -> 1 | D8: 01:00:00 | E8: 1.7 | F8: =HOUR(D8) -> 1 | G8: =IF('Hidden Tab1'!F8="WKN",1,IF('Hidden Tab1'!F8="WE",2,"3")) -> 3 | H8: =ROUND(E8*1.8+32,0) -> 35 | J8: =IF(H8<$C$4,$C$4-H8,0) -> 20 | K8: =J8*'13) Normalized Monthly Data'!$I$9/IF(SUM($J$8:$J$751)=0,1,SUM($J$8:$J$751)) -> 15.22409591 | L8: =LOOKUP(F8,'2a) Base thermal profile'!$B$12:$B$35,'2a) Base thermal profile'!$E$12:$E$35) -> 3.937644342 | M8: =K8+L8 -> 19.16174025 | O8: =LOOKUP(B8,'5) CHP System'!$E$26:$P$27) -> 0.95 | P8: =IF('5) CHP System'!$C$35=0,0,IF(MIN('5) CHP System'!$C$6,'5) CHP System'!$C$11*M8/'5) CHP System'!$C$29,IF(LEFT('5) CHP System'!$C$8,1)="Y",'5) CHP System'!$C$6,(AI8-'5) CHP System'!$C$9)/(O8*'5) CHP System'!$C$35)))<'5) CHP System'!$C$16,0,MIN('5) CHP System'!$C$6,'5) CHP System'!$C$11*M8/'5) CHP System'!$C$29,IF(LEFT('5) CHP System'!$C$8,1)="Y",'5) CHP System'!$C$6,(AI8-'5) CHP System'!$C$9)/(O8*'5) CHP System'!$C$35))))) -> 1 | Q8: =P8*'5) CHP System'!$C$35*O8 -> 68.4 | R8: =P8*'5) CHP System'!$C$23*O8 -> 9.0117 | S8: =P8*'5) CHP System'!$C$29*O8 -> 4.9685 | T8: =S8*(1-V8) -> 4.9685 | U8: =S8-T8 -> 0 | V8: =LOOKUP($B8,'5) CHP System'!$E$7:$P$8) -> 0 | X8: =IF('5) CHP System'!$C$42=0,0,(AN8-'5) CHP System'!$C$9)/(O8*'5) CHP System'!$C$35)) -> 9.22880117 | Y8: =IF(INDEX(Jan,IF(F8=0,24,F8),G8)<'5) CHP System'!$C$16,0,INDEX(Jan,IF(F8=0,24,F8),G8)) -> 1 | Z8: =IF(MIN(X8:Y8)<'5) CHP System'!$C$16,0,MIN(X8:Y8)) -> 1 | AA8: =MIN('5) CHP System'!$C$6,IF(LEFT('5) CHP System'!$C$8,1)="Y",Y8,Z8)) -> 1 | AB8: =AA8*'5) CHP System'!$C$35*O8 -> 68.4 | AC8: =AA8*'5) CHP System'!$C$23*O8 -> 9.0117 | AD8: =AA8*'5) CHP System'!$C$29*O8 -> 4.9685 | AE8: =IF('5) CHP System'!$C$11*M8>=AD8,AD8,'5) CHP System'!$C$11*M8) -> 4.9685 | AF8: =AD8-AE8 -> 0 | AG8: =IF(AD8=0,0,AF8/AD8) -> 0 | AI8: ='Hidden Tab2'!H4 -> 636.25 | AJ8: =MIN(AI8,Q8) -> 68.4 | AK8: =Q8-AJ8 -> 0 | AL8: =AI8-AJ8 -> 567.85 | AN8: ='Hidden Tab2'!H4 -> 636.25 | AO8: =MIN(AN8,AB8) -> 68.4 | AP8: =AB8-AO8 -> 0 | AQ8: =AI8-AO8 -> 567.85 | AS8: =LOOKUP(B8,'7) Peak & Seasons'!$G$23:$H$34) -> Winter | AT8: =IF('Hidden Tab1'!$F8="WKN",IF($AS8="Winter",IF($F8<'7) Peak & Seasons'!$H$17,0,IF('12) Hourly Simulation '!$F8>='7) Peak & Seasons'!$H$18,0,1))),0) -> 0 | AU8: =IF('Hidden Tab1'!$F8="WKN",IF($AS8="Summer",IF($F8<'7) Peak & Seasons'!$I$17,0,IF('12) Hourly Simulation '!$F8>='7) Peak & Seasons'!$I$18,0,1))),0) -> 0 | AV8: =IF(AT8=FALSE,AU8,IF(AU8=FALSE,AT8,0)) -> 0 | AW8: =AJ8*AV8 -> 0 | AX8: =AO8*AV8 -> 0 | AY8: =IF(AND(M8>0,P8=0,AZ8=0),1,0) -> 0 | AZ8: =IF(LEFT('5) CHP System'!$C$8,1)="N",IF(ABS(AI8-AJ8-'5) CHP System'!$C$9)<0.0001,1,0),0) -> 0 | BA8: =IF('5) CHP System'!$C$11*'12) Hourly Simulation '!M8>'5) CHP System'!$C$6*'5) CHP System'!$C$29,0,1) -> 0 | BB8: =IF(BA8=0,1,0) -> 1 | BC8: =IF(P8>0,IF(P8<='5) CHP System'!$C$6,1,0),0) -> 1
A9: 1976-01-01 | B9: =MONTH(A9) -> 1 | C9: =DAY(A9) -> 1 | D9: 02:00:00 | E9: 1.7 | F9: =HOUR(D9) -> 2 | G9: =IF('Hidden Tab1'!F9="WKN",1,IF('Hidden Tab1'!F9="WE",2,"3")) -> 3 | H9: =ROUND(E9*1.8+32,0) -> 35 | J9: 20 | K9: =J9*'13) Normalized Monthly Data'!$I$9/IF(SUM($J$8:$J$751)=0,1,SUM($J$8:$J$751)) -> 15.22409591 | L9: =LOOKUP(F9,'2a) Base thermal profile'!$B$12:$B$35,'2a) Base thermal profile'!$E$12:$E$35) -> 3.150115473 | M9: =K9+L9 -> 18.37421138 | O9: =LOOKUP(B9,'5) CHP System'!$E$26:$P$27) -> 0.95 | P9: =IF('5) CHP System'!$C$35=0,0,IF(MIN('5) CHP System'!$C$6,'5) CHP System'!$C$11*M9/'5) CHP System'!$C$29,IF(LEFT('5) CHP System'!$C$8,1)="Y",'5) CHP System'!$C$6,(AI9-'5) CHP System'!$C$9)/(O9*'5) CHP System'!$C$35)))<'5) CHP System'!$C$16,0,MIN('5) CHP System'!$C$6,'5) CHP System'!$C$11*M9/'5) CHP System'!$C$29,IF(LEFT('5) CHP System'!$C$8,1)="Y",'5) CHP System'!$C$6,(AI9-'5) CHP System'!$C$9)/(O9*'5) CHP System'!$C$35))))) -> 1 | Q9: =P9*'5) CHP System'!$C$35*O9 -> 68.4 | R9: =P9*'5) CHP System'!$C$23*O9 -> 9.0117 | S9: =P9*'5) CHP System'!$C$29*O9 -> 4.9685 | T9: 4.9685 | U9: =S9-T9 -> 0 | V9: =LOOKUP(B9,'5) CHP System'!$E$7:$P$8) -> 0 | X9: =IF('5) CHP System'!$C$42=0,0,(AN9-'5) CHP System'!$C$9)/(O9*'5) CHP System'!$C$35)) -> 9.342105263 | Y9: =IF(INDEX(Jan,IF(F9=0,24,F9),G9)<'5) CHP System'!$C$16,0,INDEX(Jan,IF(F9=0,24,F9),G9)) -> 1 | Z9: =IF(MIN(X9:Y9)<'5) CHP System'!$C$16,0,MIN(X9:Y9)) -> 1 | AA9: =MIN('5) CHP System'!$C$6,IF(LEFT('5) CHP System'!$C$8,1)="Y",Y9,Z9)) -> 1 | AB9: =AA9*'5) CHP System'!$C$35*O9 -> 68.4 | AC9: =AA9*'5) CHP System'!$C$23*O9 -> 9.0117 | AD9: =AA9*'5) CHP System'!$C$29*O9 -> 4.9685 | AE9: =IF('5) CHP System'!$C$11*M9>=AD9,AD9,'5) CHP System'!$C$11*M9) -> 4.9685 | AF9: =AD9-AE9 -> 0 | AG9: =IF(AD9=0,0,AF9/AD9) -> 0 | AI9: ='Hidden Tab2'!H5 -> 644 | AJ9: 68.4 | AK9: 0 | AL9: =AI9-AJ9 -> 575.6 | AN9: ='Hidden Tab2'!H5 -> 644 | AO9: =MIN(AN9,AB9) -> 68.4 | AP9: =AB9-AO9 -> 0 | AQ9: =AI9-AO9 -> 575.6 | AS9: =LOOKUP(B9,'7) Peak & Seasons'!$G$23:$H$34) -> Winter | AT9: =IF('Hidden Tab1'!$F9="WKN",IF($AS9="Winter",IF($F9<'7) Peak & Seasons'!$H$17,0,IF('12) Hourly Simulation '!$F9>='7) Peak & Seasons'!$H$18,0,1))),0) -> 0 | AU9: =IF('Hidden Tab1'!$F9="WKN",IF($AS9="Summer",IF($F9<'7) Peak & Seasons'!$I$17,0,IF('12) Hourly Simulation '!$F9>='7) Peak & Seasons'!$I$18,0,1))),0) -> 0 | AV9: =IF(AT9=FALSE,AU9,IF(AU9=FALSE,AT9,0)) -> 0 | AW9: =AJ9*AV9 -> 0 | AX9: =AO9*AV9 -> 0 | AY9: =IF(AND(M9>0,P9=0,AZ9=0),1,0) -> 0 | AZ9: =IF(LEFT('5) CHP System'!$C$8,1)="N",IF(ABS(AI9-AJ9-'5) CHP System'!$C$9)<0.0001,1,0),0) -> 0 | BA9: =IF('5) CHP System'!$C$11*'12) Hourly Simulation '!M9>'5) CHP System'!$C$6*'5) CHP System'!$C$29,0,1) -> 0 | BB9: =IF(BA9=0,1,0) -> 1 | BC9: =IF(P9>0,IF(P9<='5) CHP System'!$C$6,1,0),0) -> 1
A10: 1976-01-01 | B10: 1 | C10: 1 | D10: 03:00:00 | E10: 1.1 | F10: 3 | G10: =IF('Hidden Tab1'!F10="WKN",1,IF('Hidden Tab1'!F10="WE",2,"3")) -> 3 | H10: 34 | J10: 21 | K10: =J10*'13) Normalized Monthly Data'!$I$9/IF(SUM($J$8:$J$751)=0,1,SUM($J$8:$J$751)) -> 15.9853007 | L10: =LOOKUP(F10,'2a) Base thermal profile'!$B$12:$B$35,'2a) Base thermal profile'!$E$12:$E$35) -> 3.412625096 | M10: 19.3979258 | O10: =LOOKUP(B10,'5) CHP System'!$E$26:$P$27) -> 0.95 | P10: =IF('5) CHP System'!$C$35=0,0,IF(MIN('5) CHP System'!$C$6,'5) CHP System'!$C$11*M10/'5) CHP System'!$C$29,IF(LEFT('5) CHP System'!$C$8,1)="Y",'5) CHP System'!$C$6,(AI10-'5) CHP System'!$C$9)/(O10*'5) CHP System'!$C$35)))<'5) CHP System'!$C$16,0,MIN('5) CHP System'!$C$6,'5) CHP System'!$C$11*M10/'5) CHP System'!$C$29,IF(LEFT('5) CHP System'!$C$8,1)="Y",'5) CHP System'!$C$6,(AI10-'5) CHP System'!$C$9)/(O10*'5) CHP System'!$C$35))))) -> 1 | Q10: =P10*'5) CHP System'!$C$35*O10 -> 68.4 | R10: =P10*'5) CHP System'!$C$23*O10 -> 9.0117 | S10: =P10*'5) CHP System'!$C$29*O10 -> 4.9685 | T10: 4.9685 | U10: 0 | V10: =LOOKUP(B10,'5) CHP System'!$E$7:$P$8) -> 0 | X10: =IF('5) CHP System'!$C$42=0,0,(AN10-'5) CHP System'!$C$9)/(O10*'5) CHP System'!$C$35)) -> 9.451754386 | Y10: =IF(INDEX(Jan,IF(F10=0,24,F10),G10)<'5) CHP System'!$C$16,0,INDEX(Jan,IF(F10=0,24,F10),G10)) -> 1 | Z10: =IF(MIN(X10:Y10)<'5) CHP System'!$C$16,0,MIN(X10:Y10)) -> 1 | AA10: =MIN('5) CHP System'!$C$6,IF(LEFT('5) CHP System'!$C$8,1)="Y",Y10,Z10)) -> 1 | AB10: =AA10*'5) CHP System'!$C$35*O10 -> 68.4 | AC10: =AA10*'5) CHP System'!$C$23*O10 -> 9.0117 | AD10: =AA10*'5) CHP System'!$C$29*O10 -> 4.9685 | AE10: =IF('5) CHP System'!$C$11*M10>=AD10,AD10,'5) CHP System'!$C$11*M10) -> 4.9685 | AF10: 0 | AG10: 0 | AI10: ='Hidden Tab2'!H6 -> 651.5 | AJ10: 68.4 | AK10: 0 | AL10: 583.1 | AN10: ='Hidden Tab2'!H6 -> 651.5 | AO10: 68.4 | AP10: 0 | AQ10: 583.1 | AS10: =LOOKUP(B10,'7) Peak & Seasons'!$G$23:$H$34) -> Winter | AT10: =IF('Hidden Tab1'!$F10="WKN",IF($AS10="Winter",IF($F10<'7) Peak & Seasons'!$H$17,0,IF('12) Hourly Simulation '!$F10>='7) Peak & Seasons'!$H$18,0,1))),0) -> 0 | AU10: =IF('Hidden Tab1'!$F10="WKN",IF($AS10="Summer",IF($F10<'7) Peak & Seasons'!$I$17,0,IF('12) Hourly Simulation '!$F10>='7) Peak & Seasons'!$I$18,0,1))),0) -> 0 | AV10: =IF(AT10=FALSE,AU10,IF(AU10=FALSE,AT10,0)) -> 0 | AW10: 0 | AX10: 0 | AY10: 0 | AZ10: =IF(LEFT('5) CHP System'!$C$8,1)="N",IF(ABS(AI10-AJ10-'5) CHP System'!$C$9)<0.0001,1,0),0) -> 0 | BA10: =IF('5) CHP System'!$C$11*'12) Hourly Simulation '!M10>'5) CHP System'!$C$6*'5) CHP System'!$C$29,0,1) -> 0 | BB10: 1 | BC10: =IF(P10>0,IF(P10<='5) CHP System'!$C$6,1,0),0) -> 1
A11: 1976-01-01 | B11: 1 | C11: 1 | D11: 04:00:00 | E11: 1.1 | F11: 4 | G11: =IF('Hidden Tab1'!F11="WKN",1,IF('Hidden Tab1'!F11="WE",2,"3")) -> 3 | H11: 34 | J11: 21 | K11: =J11*'13) Normalized Monthly Data'!$I$9/IF(SUM($J$8:$J$751)=0,1,SUM($J$8:$J$751)) -> 15.9853007 | L11: =LOOKUP(F11,'2a) Base thermal profile'!$B$12:$B$35,'2a) Base thermal profile'!$E$12:$E$35) -> 3.150115473 | M11: 19.13541617 | O11: =LOOKUP(B11,'5) CHP System'!$E$26:$P$27) -> 0.95 | P11: =IF('5) CHP System'!$C$35=0,0,IF(MIN('5) CHP System'!$C$6,'5) CHP System'!$C$11*M11/'5) CHP System'!$C$29,IF(LEFT('5) CHP System'!$C$8,1)="Y",'5) CHP System'!$C$6,(AI11-'5) CHP System'!$C$9)/(O11*'5) CHP System'!$C$35)))<'5) CHP System'!$C$16,0,MIN('5) CHP System'!$C$6,'5) CHP System'!$C$11*M11/'5) CHP System'!$C$29,IF(LEFT('5) CHP System'!$C$8,1)="Y",'5) CHP System'!$C$6,(AI11-'5) CHP System'!$C$9)/(O11*'5) CHP System'!$C$35))))) -> 1 | Q11: =P11*'5) CHP System'!$C$35*O11 -> 68.4 | R11: =P11*'5) CHP System'!$C$23*O11 -> 9.0117 | S11: =P11*'5) CHP System'!$C$29*O11 -> 4.9685 | T11: 4.9685 | U11: 0 | V11: =LOOKUP(B11,'5) CHP System'!$E$7:$P$8) -> 0 | X11: =IF('5) CHP System'!$C$42=0,0,(AN11-'5) CHP System'!$C$9)/(O11*'5) CHP System'!$C$35)) -> 9.415204678 | Y11: =IF(INDEX(Jan,IF(F11=0,24,F11),G11)<'5) CHP System'!$C$16,0,INDEX(Jan,IF(F11=0,24,F11),G11)) -> 1 | Z11: =IF(MIN(X11:Y11)<'5) CHP System'!$C$16,0,MIN(X11:Y11)) -> 1 | AA11: =MIN('5) CHP System'!$C$6,IF(LEFT('5) CHP System'!$C$8,1)="Y",Y11,Z11)) -> 1 | AB11: =AA11*'5) CHP System'!$C$35*O11 -> 68.4 | AC11: =AA11*'5) CHP System'!$C$23*O11 -> 9.0117 | AD11: =AA11*'5) CHP System'!$C$29*O11 -> 4.9685 | AE11: =IF('5) CHP System'!$C$11*M11>=AD11,AD11,'5) CHP System'!$C$11*M11) -> 4.9685 | AF11: 0 | AG11: 0 | AI11: ='Hidden Tab2'!H7 -> 649 | AJ11: 68.4 | AK11: 0 | AL11: 580.6 | AN11: ='Hidden Tab2'!H7 -> 649 | AO11: 68.4 | AP11: 0 | AQ11: 580.6 | AS11: =LOOKUP(B11,'7) Peak & Seasons'!$G$23:$H$34) -> Winter | AT11: =IF('Hidden Tab1'!$F11="WKN",IF($AS11="Winter",IF($F11<'7) Peak & Seasons'!$H$17,0,IF('12) Hourly Simulation '!$F11>='7) Peak & Seasons'!$H$18,0,1))),0) -> 0 | AU11: =IF('Hidden Tab1'!$F11="WKN",IF($AS11="Summer",IF($F11<'7) Peak & Seasons'!$I$17,0,IF('12) Hourly Simulation '!$F11>='7) Peak & Seasons'!$I$18,0,1))),0) -> 0 | AV11: 0 | AW11: 0 | AX11: 0 | AY11: 0 | AZ11: =IF(LEFT('5) CHP System'!$C$8,1)="N",IF(ABS(AI11-AJ11-'5) CHP System'!$C$9)<0.0001,1,0),0) -> 0 | BA11: =IF('5) CHP System'!$C$11*'12) Hourly Simulation '!M11>'5) CHP System'!$C$6*'5) CHP System'!$C$29,0,1) -> 0 | BB11: 1 | BC11: =IF(P11>0,IF(P11<='5) CHP System'!$C$6,1,0),0) -> 1
A12: 1976-01-01 | B12: 1 | C12: 1 | D12: 05:00:00 | E12: 1.1 | F12: 5 | G12: =IF('Hidden Tab1'!F12="WKN",1,IF('Hidden Tab1'!F12="WE",2,"3")) -> 3 | H12: 34 | J12: 21 | K12: =J12*'13) Normalized Monthly Data'!$I$9/IF(SUM($J$8:$J$751)=0,1,SUM($J$8:$J$751)) -> 15.9853007 | L12: =LOOKUP(F12,'2a) Base thermal profile'!$B$12:$B$35,'2a) Base thermal profile'!$E$12:$E$35) -> 3.150115473 | M12: 19.13541617 | O12: =LOOKUP(B12,'5) CHP System'!$E$26:$P$27) -> 0.95 | P12: =IF('5) CHP System'!$C$35=0,0,IF(MIN('5) CHP System'!$C$6,'5) CHP System'!$C$11*M12/'5) CHP System'!$C$29,IF(LEFT('5) CHP System'!$C$8,1)="Y",'5) CHP System'!$C$6,(AI12-'5) CHP System'!$C$9)/(O12*'5) CHP System'!$C$35)))<'5) CHP System'!$C$16,0,MIN('5) CHP System'!$C$6,'5) CHP System'!$C$11*M12/'5) CHP System'!$C$29,IF(LEFT('5) CHP System'!$C$8,1)="Y",'5) CHP System'!$C$6,(AI12-'5) CHP System'!$C$9)/(O12*'5) CHP System'!$C$35))))) -> 1 | Q12: =P12*'5) CHP System'!$C$35*O12 -> 68.4 | R12: =P12*'5) CHP System'!$C$23*O12 -> 9.0117 | S12: =P12*'5) CHP System'!$C$29*O12 -> 4.9685 | T12: 4.9685 | U12: 0 | V12: =LOOKUP(B12,'5) CHP System'!$E$7:$P$8) -> 0 | X12: =IF('5) CHP System'!$C$42=0,0,(AN12-'5) CHP System'!$C$9)/(O12*'5) CHP System'!$C$35)) -> 9.173976608 | Y12: =IF(INDEX(Jan,IF(F12=0,24,F12),G12)<'5) CHP System'!$C$16,0,INDEX(Jan,IF(F12=0,24,F12),G12)) -> 1 | Z12: =IF(MIN(X12:Y12)<'5) CHP System'!$C$16,0,MIN(X12:Y12)) -> 1 | AA12: =MIN('5) CHP System'!$C$6,IF(LEFT('5) CHP System'!$C$8,1)="Y",Y12,Z12)) -> 1 | AB12: =AA12*'5) CHP System'!$C$35*O12 -> 68.4 | AC12: =AA12*'5) CHP System'!$C$23*O12 -> 9.0117 | AD12: =AA12*'5) CHP System'!$C$29*O12 -> 4.9685 | AE12: =IF('5) CHP System'!$C$11*M12>=AD12,AD12,'5) CHP System'!$C$11*M12) -> 4.9685 | AF12: 0 | AG12: 0 | AI12: ='Hidden Tab2'!H8 -> 632.5 | AJ12: 68.4 | AK12: 0 | AL12: 564.1 | AN12: ='Hidden Tab2'!H8 -> 632.5 | AO12: 68.4 | AP12: 0 | AQ12: 564.1 | AS12: =LOOKUP(B12,'7) Peak & Seasons'!$G$23:$H$34) -> Winter | AT12: =IF('Hidden Tab1'!$F12="WKN",IF($AS12="Winter",IF($F12<'7) Peak & Seasons'!$H$17,0,IF('12) Hourly Simulation '!$F12>='7) Peak & Seasons'!$H$18,0,1))),0) -> 0 | AU12: =IF('Hidden Tab1'!$F12="WKN",IF($AS12="Summer",IF($F12<'7) Peak & Seasons'!$I$17,0,IF('12) Hourly Simulation '!$F12>='7) Peak & Seasons'!$I$18,0,1))),0) -> 0 | AV12: 0 | AW12: 0 | AX12: 0 | AY12: 0 | AZ12: =IF(LEFT('5) CHP System'!$C$8,1)="N",IF(ABS(AI12-AJ12-'5) CHP System'!$C$9)<0.0001,1,0),0) -> 0 | BA12: =IF('5) CHP System'!$C$11*'12) Hourly Simulation '!M12>'5) CHP System'!$C$6*'5) CHP System'!$C$29,0,1) -> 0 | BB12: 1 | BC12: =IF(P12>0,IF(P12<='5) CHP System'!$C$6,1,0),0) -> 1
A13: 1976-01-01 | B13: 1 | C13: 1 | D13: 06:00:00 | E13: 1.1 | F13: 6 | G13: =IF('Hidden Tab1'!F13="WKN",1,IF('Hidden Tab1'!F13="WE",2,"3")) -> 3 | H13: 34 | J13: 21 | K13: =J13*'13) Normalized Monthly Data'!$I$9/IF(SUM($J$8:$J$751)=0,1,SUM($J$8:$J$751)) -> 15.9853007 | L13: =LOOKUP(F13,'2a) Base thermal profile'!$B$12:$B$35,'2a) Base thermal profile'!$E$12:$E$35) -> 3.937644342 | M13: 19.92294504 | O13: =LOOKUP(B13,'5) CHP System'!$E$26:$P$27) -> 0.95 | P13: =IF('5) CHP System'!$C$35=0,0,IF(MIN('5) CHP System'!$C$6,'5) CHP System'!$C$11*M13/'5) CHP System'!$C$29,IF(LEFT('5) CHP System'!$C$8,1)="Y",'5) CHP System'!$C$6,(AI13-'5) CHP System'!$C$9)/(O13*'5) CHP System'!$C$35)))<'5) CHP System'!$C$16,0,MIN('5) CHP System'!$C$6,'5) CHP System'!$C$11*M13/'5) CHP System'!$C$29,IF(LEFT('5) CHP System'!$C$8,1)="Y",'5) CHP System'!$C$6,(AI13-'5) CHP System'!$C$9)/(O13*'5) CHP System'!$C$35))))) -> 1 | Q13: =P13*'5) CHP System'!$C$35*O13 -> 68.4 | R13: =P13*'5) CHP System'!$C$23*O13 -> 9.0117 | S13: =P13*'5) CHP System'!$C$29*O13 -> 4.9685 | T13: 4.9685 | U13: 0 | V13: =LOOKUP(B13,'5) CHP System'!$E$7:$P$8) -> 0 | X13: =IF('5) CHP System'!$C$42=0,0,(AN13-'5) CHP System'!$C$9)/(O13*'5) CHP System'!$C$35)) -> 9.100877193 | Y13: =IF(INDEX(Jan,IF(F13=0,24,F13),G13)<'5) CHP System'!$C$16,0,INDEX(Jan,IF(F13=0,24,F13),G13)) -> 1 | Z13: =IF(MIN(X13:Y13)<'5) CHP System'!$C$16,0,MIN(X13:Y13)) -> 1 | AA13: =MIN('5) CHP System'!$C$6,IF(LEFT('5) CHP System'!$C$8,1)="Y",Y13,Z13)) -> 1 | AB13: =AA13*'5) CHP System'!$C$35*O13 -> 68.4 | AC13: =AA13*'5) CHP System'!$C$23*O13 -> 9.0117 | AD13: =AA13*'5) CHP System'!$C$29*O13 -> 4.9685 | AE13: =IF('5) CHP System'!$C$11*M13>=AD13,AD13,'5) CHP System'!$C$11*M13) -> 4.9685 | AF13: 0 | AG13: 0 | AI13: ='Hidden Tab2'!H9 -> 627.5 | AJ13: 68.4 | AK13: 0 | AL13: 559.1 | AN13: ='Hidden Tab2'!H9 -> 627.5 | AO13: 68.4 | AP13: 0 | AQ13: 559.1 | AS13: =LOOKUP(B13,'7) Peak & Seasons'!$G$23:$H$34) -> Winter | AT13: =IF('Hidden Tab1'!$F13="WKN",IF($AS13="Winter",IF($F13<'7) Peak & Seasons'!$H$17,0,IF('12) Hourly Simulation '!$F13>='7) Peak & Seasons'!$H$18,0,1))),0) -> 0 | AU13: =IF('Hidden Tab1'!$F13="WKN",IF($AS13="Summer",IF($F13<'7) Peak & Seasons'!$I$17,0,IF('12) Hourly Simulation '!$F13>='7) Peak & Seasons'!$I$18,0,1))),0) -> 0 | AV13: 0 | AW13: 0 | AX13: 0 | AY13: 0 | AZ13: =IF(LEFT('5) CHP System'!$C$8,1)="N",IF(ABS(AI13-AJ13-'5) CHP System'!$C$9)<0.0001,1,0),0) -> 0 | BA13: =IF('5) CHP System'!$C$11*'12) Hourly Simulation '!M13>'5) CHP System'!$C$6*'5) CHP System'!$C$29,0,1) -> 0 | BB13: 1 | BC13: =IF(P13>0,IF(P13<='5) CHP System'!$C$6,1,0),0) -> 1
A14: 1976-01-01 | B14: 1 | C14: 1 | D14: 07:00:00 | E14: 0.6 | F14: 7 | G14: =IF('Hidden Tab1'!F14="WKN",1,IF('Hidden Tab1'!F14="WE",2,"3")) -> 3 | H14: 33 | J14: 22 | K14: =J14*'13) Normalized Monthly Data'!$I$9/IF(SUM($J$8:$J$751)=0,1,SUM($J$8:$J$751)) -> 16.7465055 | L14: =LOOKUP(F14,'2a) Base thermal profile'!$B$12:$B$35,'2a) Base thermal profile'!$E$12:$E$35) -> 4.72517321 | M14: 21.47167871 | O14: =LOOKUP(B14,'5) CHP System'!$E$26:$P$27) -> 0.95 | P14: =IF('5) CHP System'!$C$35=0,0,IF(MIN('5) CHP System'!$C$6,'5) CHP System'!$C$11*M14/'5) CHP System'!$C$29,IF(LEFT('5) CHP System'!$C$8,1)="Y",'5) CHP System'!$C$6,(AI14-'5) CHP System'!$C$9)/(O14*'5) CHP System'!$C$35)))<'5) CHP System'!$C$16,0,MIN('5) CHP System'!$C$6,'5) CHP System'!$C$11*M14/'5) CHP System'!$C$29,IF(LEFT('5) CHP System'!$C$8,1)="Y",'5) CHP System'!$C$6,(AI14-'5) CHP System'!$C$9)/(O14*'5) CHP System'!$C$35))))) -> 1 | Q14: =P14*'5) CHP System'!$C$35*O14 -> 68.4 | R14: =P14*'5) CHP System'!$C$23*O14 -> 9.0117 | S14: =P14*'5) CHP System'!$C$29*O14 -> 4.9685 | T14: 4.9685 | U14: 0 | V14: =LOOKUP(B14,'5) CHP System'!$E$7:$P$8) -> 0 | X14: =IF('5) CHP System'!$C$42=0,0,(AN14-'5) CHP System'!$C$9)/(O14*'5) CHP System'!$C$35)) -> 9.283625731 | Y14: =IF(INDEX(Jan,IF(F14=0,24,F14),G14)<'5) CHP System'!$C$16,0,INDEX(Jan,IF(F14=0,24,F14),G14)) -> 1 | Z14: =IF(MIN(X14:Y14)<'5) CHP System'!$C$16,0,MIN(X14:Y14)) -> 1 | AA14: =MIN('5) CHP System'!$C$6,IF(LEFT('5) CHP System'!$C$8,1)="Y",Y14,Z14)) -> 1 | AB14: =AA14*'5) CHP System'!$C$35*O14 -> 68.4 | AC14: =AA14*'5) CHP System'!$C$23*O14 -> 9.0117 | AD14: =AA14*'5) CHP System'!$C$29*O14 -> 4.9685 | AE14: =IF('5) CHP System'!$C$11*M14>=AD14,AD14,'5) CHP System'!$C$11*M14) -> 4.9685 | AF14: 0 | AG14: 0 | AI14: ='Hidden Tab2'!H10 -> 640 | AJ14: 68.4 | AK14: 0 | AL14: 571.6 | AN14: ='Hidden Tab2'!H10 -> 640 | AO14: 68.4 | AP14: 0 | AQ14: 571.6 | AS14: =LOOKUP(B14,'7) Peak & Seasons'!$G$23:$H$34) -> Winter | AT14: =IF('Hidden Tab1'!$F14="WKN",IF($AS14="Winter",IF($F14<'7) Peak & Seasons'!$H$17,0,IF('12) Hourly Simulation '!$F14>='7) Peak & Seasons'!$H$18,0,1))),0) -> 0 | AU14: =IF('Hidden Tab1'!$F14="WKN",IF($AS14="Summer",IF($F14<'7) Peak & Seasons'!$I$17,0,IF('12) Hourly Simulation '!$F14>='7) Peak & Seasons'!$I$18,0,1))),0) -> 0 | AV14: 0 | AW14: 0 | AX14: 0 | AY14: 0 | AZ14: =IF(LEFT('5) CHP System'!$C$8,1)="N",IF(ABS(AI14-AJ14-'5) CHP System'!$C$9)<0.0001,1,0),0) -> 0 | BA14: =IF('5) CHP System'!$C$11*'12) Hourly Simulation '!M14>'5) CHP System'!$C$6*'5) CHP System'!$C$29,0,1) -> 0 | BB14: 1 | BC14: =IF(P14>0,IF(P14<='5) CHP System'!$C$6,1,0),0) -> 1
A15: 1976-01-01 | B15: 1 | C15: 1 | D15: 08:00:00 | E15: 0.6 | F15: 8 | G15: =IF('Hidden Tab1'!F15="WKN",1,IF('Hidden Tab1'!F15="WE",2,"3")) -> 3 | H15: 33 | J15: 22 | K15: =J15*'13) Normalized Monthly Data'!$I$9/IF(SUM($J$8:$J$751)=0,1,SUM($J$8:$J$751)) -> 16.7465055 | L15: =LOOKUP(F15,'2a) Base thermal profile'!$B$12:$B$35,'2a) Base thermal profile'!$E$12:$E$35) -> 7.612779061 | M15: 24.35928456 | O15: =LOOKUP(B15,'5) CHP System'!$E$26:$P$27) -> 0.95 | P15: =IF('5) CHP System'!$C$35=0,0,IF(MIN('5) CHP System'!$C$6,'5) CHP System'!$C$11*M15/'5) CHP System'!$C$29,IF(LEFT('5) CHP System'!$C$8,1)="Y",'5) CHP System'!$C$6,(AI15-'5) CHP System'!$C$9)/(O15*'5) CHP System'!$C$35)))<'5) CHP System'!$C$16,0,MIN('5) CHP System'!$C$6,'5) CHP System'!$C$11*M15/'5) CHP System'!$C$29,IF(LEFT('5) CHP System'!$C$8,1)="Y",'5) CHP System'!$C$6,(AI15-'5) CHP System'!$C$9)/(O15*'5) CHP System'!$C$35))))) -> 1 | Q15: =P15*'5) CHP System'!$C$35*O15 -> 68.4 | R15: =P15*'5) CHP System'!$C$23*O15 -> 9.0117 | S15: =P15*'5) CHP System'!$C$29*O15 -> 4.9685 | T15: 4.9685 | U15: 0 | V15: =LOOKUP(B15,'5) CHP System'!$E$7:$P$8) -> 0 | X15: =IF('5) CHP System'!$C$42=0,0,(AN15-'5) CHP System'!$C$9)/(O15*'5) CHP System'!$C$35)) -> 10.35087719 | Y15: =IF(INDEX(Jan,IF(F15=0,24,F15),G15)<'5) CHP System'!$C$16,0,INDEX(Jan,IF(F15=0,24,F15),G15)) -> 1 | Z15: =IF(MIN(X15:Y15)<'5) CHP System'!$C$16,0,MIN(X15:Y15)) -> 1 | AA15: =MIN('5) CHP System'!$C$6,IF(LEFT('5) CHP System'!$C$8,1)="Y",Y15,Z15)) -> 1 | AB15: =AA15*'5) CHP System'!$C$35*O15 -> 68.4 | AC15: =AA15*'5) CHP System'!$C$23*O15 -> 9.0117 | AD15: =AA15*'5) CHP System'!$C$29*O15 -> 4.9685 | AE15: =IF('5) CHP System'!$C$11*M15>=AD15,AD15,'5) CHP System'!$C$11*M15) -> 4.9685 | AF15: 0 | AG15: 0 | AI15: ='Hidden Tab2'!H11 -> 713 | AJ15: 68.4 | AK15: 0 | AL15: 644.6 | AN15: ='Hidden Tab2'!H11 -> 713 | AO15: 68.4 | AP15: 0 | AQ15: 644.6 | AS15: =LOOKUP(B15,'7) Peak & Seasons'!$G$23:$H$34) -> Winter | AT15: =IF('Hidden Tab1'!$F15="WKN",IF($AS15="Winter",IF($F15<'7) Peak & Seasons'!$H$17,0,IF('12) Hourly Simulation '!$F15>='7) Peak & Seasons'!$H$18,0,1))),0) -> 0 | AU15: =IF('Hidden Tab1'!$F15="WKN",IF($AS15="Summer",IF($F15<'7) Peak & Seasons'!$I$17,0,IF('12) Hourly Simulation '!$F15>='7) Peak & Seasons'!$I$18,0,1))),0) -> 0 | AV15: 0 | AW15: 0 | AX15: 0 | AY15: 0 | AZ15: =IF(LEFT('5) CHP System'!$C$8,1)="N",IF(ABS(AI15-AJ15-'5) CHP System'!$C$9)<0.0001,1,0),0) -> 0 | BA15: =IF('5) CHP System'!$C$11*'12) Hourly Simulation '!M15>'5) CHP System'!$C$6*'5) CHP System'!$C$29,0,1) -> 0 | BB15: 1 | BC15: =IF(P15>0,IF(P15<='5) CHP System'!$C$6,1,0),0) -> 1
A16: 1976-01-01 | B16: 1 | C16: 1 | D16: 09:00:00 | E16: 0.6 | F16: 9 | G16: =IF('Hidden Tab1'!F16="WKN",1,IF('Hidden Tab1'!F16="WE",2,"3")) -> 3 | H16: 33 | J16: 22 | K16: =J16*'13) Normalized Monthly Data'!$I$9/IF(SUM($J$8:$J$751)=0,1,SUM($J$8:$J$751)) -> 16.7465055 | L16: =LOOKUP(F16,'2a) Base thermal profile'!$B$12:$B$35,'2a) Base thermal profile'!$E$12:$E$35) -> 6.56274057 | M16: 23.30924607 | O16: =LOOKUP(B16,'5) CHP System'!$E$26:$P$27) -> 0.95 | P16: =IF('5) CHP System'!$C$35=0,0,IF(MIN('5) CHP System'!$C$6,'5) CHP System'!$C$11*M16/'5) CHP System'!$C$29,IF(LEFT('5) CHP System'!$C$8,1)="Y",'5) CHP System'!$C$6,(AI16-'5) CHP System'!$C$9)/(O16*'5) CHP System'!$C$35)))<'5) CHP System'!$C$16,0,MIN('5) CHP System'!$C$6,'5) CHP System'!$C$11*M16/'5) CHP System'!$C$29,IF(LEFT('5) CHP System'!$C$8,1)="Y",'5) CHP System'!$C$6,(AI16-'5) CHP System'!$C$9)/(O16*'5) CHP System'!$C$35))))) -> 1 | Q16: =P16*'5) CHP System'!$C$35*O16 -> 68.4 | R16: =P16*'5) CHP System'!$C$23*O16 -> 9.0117 | S16: =P16*'5) CHP System'!$C$29*O16 -> 4.9685 | T16: 4.9685 | U16: 0 | V16: =LOOKUP(B16,'5) CHP System'!$E$7:$P$8) -> 0 | X16: =IF('5) CHP System'!$C$42=0,0,(AN16-'5) CHP System'!$C$9)/(O16*'5) CHP System'!$C$35)) -> 10.27412281 | Y16: =IF(INDEX(Jan,IF(F16=0,24,F16),G16)<'5) CHP System'!$C$16,0,INDEX(Jan,IF(F16=0,24,F16),G16)) -> 1 | Z16: =IF(MIN(X16:Y16)<'5) CHP System'!$C$16,0,MIN(X16:Y16)) -> 1 | AA16: =MIN('5) CHP System'!$C$6,IF(LEFT('5) CHP System'!$C$8,1)="Y",Y16,Z16)) -> 1 | AB16: =AA16*'5) CHP System'!$C$35*O16 -> 68.4 | AC16: =AA16*'5) CHP System'!$C$23*O16 -> 9.0117 | AD16: =AA16*'5) CHP System'!$C$29*O16 -> 4.9685 | AE16: =IF('5) CHP System'!$C$11*M16>=AD16,AD16,'5) CHP System'!$C$11*M16) -> 4.9685 | AF16: 0 | AG16: 0 | AI16: ='Hidden Tab2'!H12 -> 707.75 | AJ16: 68.4 | AK16: 0 | AL16: 639.35 | AN16: ='Hidden Tab2'!H12 -> 707.75 | AO16: 68.4 | AP16: 0 | AQ16: 639.35 | AS16: =LOOKUP(B16,'7) Peak & Seasons'!$G$23:$H$34) -> Winter | AT16: =IF('Hidden Tab1'!$F16="WKN",IF($AS16="Winter",IF($F16<'7) Peak & Seasons'!$H$17,0,IF('12) Hourly Simulation '!$F16>='7) Peak & Seasons'!$H$18,0,1))),0) -> 0 | AU16: =IF('Hidden Tab1'!$F16="WKN",IF($AS16="Summer",IF($F16<'7) Peak & Seasons'!$I$17,0,IF('12) Hourly Simulation '!$F16>='7) Peak & Seasons'!$I$18,0,1))),0) -> 0 | AV16: 0 | AW16: 0 | AX16: 0 | AY16: 0 | AZ16: =IF(LEFT('5) CHP System'!$C$8,1)="N",IF(ABS(AI16-AJ16-'5) CHP System'!$C$9)<0.0001,1,0),0) -> 0 | BA16: =IF('5) CHP System'!$C$11*'12) Hourly Simulation '!M16>'5) CHP System'!$C$6*'5) CHP System'!$C$29,0,1) -> 0 | BB16: 1 | BC16: =IF(P16>0,IF(P16<='5) CHP System'!$C$6,1,0),0) -> 1
A17: 1976-01-01 | B17: 1 | C17: 1 | D17: 10:00:00 | E17: 0 | F17: 10 | G17: =IF('Hidden Tab1'!F17="WKN",1,IF('Hidden Tab1'!F17="WE",2,"3")) -> 3 | H17: 32 | J17: 23 | K17: =J17*'13) Normalized Monthly Data'!$I$9/IF(SUM($J$8:$J$751)=0,1,SUM($J$8:$J$751)) -> 17.50771029 | L17: =LOOKUP(F17,'2a) Base thermal profile'!$B$12:$B$35,'2a) Base thermal profile'!$E$12:$E$35) -> 6.037721324 | M17: 23.54543162 | O17: =LOOKUP(B17,'5) CHP System'!$E$26:$P$27) -> 0.95 | P17: =IF('5) CHP System'!$C$35=0,0,IF(MIN('5) CHP System'!$C$6,'5) CHP System'!$C$11*M17/'5) CHP System'!$C$29,IF(LEFT('5) CHP System'!$C$8,1)="Y",'5) CHP System'!$C$6,(AI17-'5) CHP System'!$C$9)/(O17*'5) CHP System'!$C$35)))<'5) CHP System'!$C$16,0,MIN('5) CHP System'!$C$6,'5) CHP System'!$C$11*M17/'5) CHP System'!$C$29,IF(LEFT('5) CHP System'!$C$8,1)="Y",'5) CHP System'!$C$6,(AI17-'5) CHP System'!$C$9)/(O17*'5) CHP System'!$C$35))))) -> 1 | Q17: =P17*'5) CHP System'!$C$35*O17 -> 68.4 | R17: =P17*'5) CHP System'!$C$23*O17 -> 9.0117 | S17: =P17*'5) CHP System'!$C$29*O17 -> 4.9685 | T17: 4.9685 | U17: 0 | V17: =LOOKUP(B17,'5) CHP System'!$E$7:$P$8) -> 0 | X17: =IF('5) CHP System'!$C$42=0,0,(AN17-'5) CHP System'!$C$9)/(O17*'5) CHP System'!$C$35)) -> 9.80628655 | Y17: =IF(INDEX(Jan,IF(F17=0,24,F17),G17)<'5) CHP System'!$C$16,0,INDEX(Jan,IF(F17=0,24,F17),G17)) -> 1 | Z17: =IF(MIN(X17:Y17)<'5) CHP System'!$C$16,0,MIN(X17:Y17)) -> 1 | AA17: =MIN('5) CHP System'!$C$6,IF(LEFT('5) CHP System'!$C$8,1)="Y",Y17,Z17)) -> 1 | AB17: =AA17*'5) CHP System'!$C$35*O17 -> 68.4 | AC17: =AA17*'5) CHP System'!$C$23*O17 -> 9.0117 | AD17: =AA17*'5) CHP System'!$C$29*O17 -> 4.9685 | AE17: =IF('5) CHP System'!$C$11*M17>=AD17,AD17,'5) CHP System'!$C$11*M17) -> 4.9685 | AF17: 0 | AG17: 0 | AI17: ='Hidden Tab2'!H13 -> 675.75 | AJ17: 68.4 | AK17: 0 | AL17: 607.35 | AN17: ='Hidden Tab2'!H13 -> 675.75 | AO17: 68.4 | AP17: 0 | AQ17: 607.35 | AS17: =LOOKUP(B17,'7) Peak & Seasons'!$G$23:$H$34) -> Winter | AT17: =IF('Hidden Tab1'!$F17="WKN",IF($AS17="Winter",IF($F17<'7) Peak & Seasons'!$H$17,0,IF('12) Hourly Simulation '!$F17>='7) Peak & Seasons'!$H$18,0,1))),0) -> 0 | AU17: =IF('Hidden Tab1'!$F17="WKN",IF($AS17="Summer",IF($F17<'7) Peak & Seasons'!$I$17,0,IF('12) Hourly Simulation '!$F17>='7) Peak & Seasons'!$I$18,0,1))),0) -> 0 | AV17: 0 | AW17: 0 | AX17: 0 | AY17: 0 | AZ17: =IF(LEFT('5) CHP System'!$C$8,1)="N",IF(ABS(AI17-AJ17-'5) CHP System'!$C$9)<0.0001,1,0),0) -> 0 | BA17: =IF('5) CHP System'!$C$11*'12) Hourly Simulation '!M17>'5) CHP System'!$C$6*'5) CHP System'!$C$29,0,1) -> 0 | BB17: 1 | BC17: =IF(P17>0,IF(P17<='5) CHP System'!$C$6,1,0),0) -> 1
A18: 1976-01-01 | B18: 1 | C18: 1 | D18: 11:00:00 | E18: 1.1 | F18: 11 | G18: =IF('Hidden Tab1'!F18="WKN",1,IF('Hidden Tab1'!F18="WE",2,"3")) -> 3 | H18: 34 | J18: 21 | K18: =J18*'13) Normalized Monthly Data'!$I$9/IF(SUM($J$8:$J$751)=0,1,SUM($J$8:$J$751)) -> 15.9853007 | L18: =LOOKUP(F18,'2a) Base thermal profile'!$B$12:$B$35,'2a) Base thermal profile'!$E$12:$E$35) -> 5.250192456 | M18: 21.23549316 | O18: =LOOKUP(B18,'5) CHP System'!$E$26:$P$27) -> 0.95 | P18: =IF('5) CHP System'!$C$35=0,0,IF(MIN('5) CHP System'!$C$6,'5) CHP System'!$C$11*M18/'5) CHP System'!$C$29,IF(LEFT('5) CHP System'!$C$8,1)="Y",'5) CHP System'!$C$6,(AI18-'5) CHP System'!$C$9)/(O18*'5) CHP System'!$C$35)))<'5) CHP System'!$C$16,0,MIN('5) CHP System'!$C$6,'5) CHP System'!$C$11*M18/'5) CHP System'!$C$29,IF(LEFT('5) CHP System'!$C$8,1)="Y",'5) CHP System'!$C$6,(AI18-'5) CHP System'!$C$9)/(O18*'5) CHP System'!$C$35))))) -> 1 | Q18: =P18*'5) CHP System'!$C$35*O18 -> 68.4 | R18: =P18*'5) CHP System'!$C$23*O18 -> 9.0117 | S18: =P18*'5) CHP System'!$C$29*O18 -> 4.9685 | T18: 4.9685 | U18: 0 | V18: =LOOKUP(B18,'5) CHP System'!$E$7:$P$8) -> 0 | X18: =IF('5) CHP System'!$C$42=0,0,(AN18-'5) CHP System'!$C$9)/(O18*'5) CHP System'!$C$35)) -> 10.41666667 | Y18: =IF(INDEX(Jan,IF(F18=0,24,F18),G18)<'5) CHP System'!$C$16,0,INDEX(Jan,IF(F18=0,24,F18),G18)) -> 1 | Z18: =IF(MIN(X18:Y18)<'5) CHP System'!$C$16,0,MIN(X18:Y18)) -> 1 | AA18: =MIN('5) CHP System'!$C$6,IF(LEFT('5) CHP System'!$C$8,1)="Y",Y18,Z18)) -> 1 | AB18: =AA18*'5) CHP System'!$C$35*O18 -> 68.4 | AC18: =AA18*'5) CHP System'!$C$23*O18 -> 9.0117 | AD18: =AA18*'5) CHP System'!$C$29*O18 -> 4.9685 | AE18: =IF('5) CHP System'!$C$11*M18>=AD18,AD18,'5) CHP System'!$C$11*M18) -> 4.9685 | AF18: 0 | AG18: 0 | AI18: ='Hidden Tab2'!H14 -> 717.5 | AJ18: 68.4 | AK18: 0 | AL18: 649.1 | AN18: ='Hidden Tab2'!H14 -> 717.5 | AO18: 68.4 | AP18: 0 | AQ18: 649.1 | AS18: =LOOKUP(B18,'7) Peak & Seasons'!$G$23:$H$34) -> Winter | AT18: =IF('Hidden Tab1'!$F18="WKN",IF($AS18="Winter",IF($F18<'7) Peak & Seasons'!$H$17,0,IF('12) Hourly Simulation '!$F18>='7) Peak & Seasons'!$H$18,0,1))),0) -> 0 | AU18: =IF('Hidden Tab1'!$F18="WKN",IF($AS18="Summer",IF($F18<'7) Peak & Seasons'!$I$17,0,IF('12) Hourly Simulation '!$F18>='7) Peak & Seasons'!$I$18,0,1))),0) -> 0 | AV18: 0 | AW18: 0 | AX18: 0 | AY18: 0 | AZ18: =IF(LEFT('5) CHP System'!$C$8,1)="N",IF(ABS(AI18-AJ18-'5) CHP System'!$C$9)<0.0001,1,0),0) -> 0 | BA18: =IF('5) CHP System'!$C$11*'12) Hourly Simulation '!M18>'5) CHP System'!$C$6*'5) CHP System'!$C$29,0,1) -> 0 | BB18: 1 | BC18: =IF(P18>0,IF(P18<='5) CHP System'!$C$6,1,0),0) -> 1
A19: 1976-01-01 | B19: 1 | C19: 1 | D19: 12:00:00 | E19: 1.1 | F19: 12 | G19: =IF('Hidden Tab1'!F19="WKN",1,IF('Hidden Tab1'!F19="WE",2,"3")) -> 3 | H19: 34 | J19: 21 | K19: =J19*'13) Normalized Monthly Data'!$I$9/IF(SUM($J$8:$J$751)=0,1,SUM($J$8:$J$751)) -> 15.9853007 | L19: =LOOKUP(F19,'2a) Base thermal profile'!$B$12:$B$35,'2a) Base thermal profile'!$E$12:$E$35) -> 5.250192456 | M19: 21.23549316 | O19: =LOOKUP(B19,'5) CHP System'!$E$26:$P$27) -> 0.95 | P19: =IF('5) CHP System'!$C$35=0,0,IF(MIN('5) CHP System'!$C$6,'5) CHP System'!$C$11*M19/'5) CHP System'!$C$29,IF(LEFT('5) CHP System'!$C$8,1)="Y",'5) CHP System'!$C$6,(AI19-'5) CHP System'!$C$9)/(O19*'5) CHP System'!$C$35)))<'5) CHP System'!$C$16,0,MIN('5) CHP System'!$C$6,'5) CHP System'!$C$11*M19/'5) CHP System'!$C$29,IF(LEFT('5) CHP System'!$C$8,1)="Y",'5) CHP System'!$C$6,(AI19-'5) CHP System'!$C$9)/(O19*'5) CHP System'!$C$35))))) -> 1 | Q19: =P19*'5) CHP System'!$C$35*O19 -> 68.4 | R19: =P19*'5) CHP System'!$C$23*O19 -> 9.0117 | S19: =P19*'5) CHP System'!$C$29*O19 -> 4.9685 | T19: 4.9685 | U19: 0 | V19: =LOOKUP(B19,'5) CHP System'!$E$7:$P$8) -> 0 | X19: =IF('5) CHP System'!$C$42=0,0,(AN19-'5) CHP System'!$C$9)/(O19*'5) CHP System'!$C$35)) -> 10.15350877 | Y19: =IF(INDEX(Jan,IF(F19=0,24,F19),G19)<'5) CHP System'!$C$16,0,INDEX(Jan,IF(F19=0,24,F19),G19)) -> 1 | Z19: =IF(MIN(X19:Y19)<'5) CHP System'!$C$16,0,MIN(X19:Y19)) -> 1 | AA19: =MIN('5) CHP System'!$C$6,IF(LEFT('5) CHP System'!$C$8,1)="Y",Y19,Z19)) -> 1 | AB19: =AA19*'5) CHP System'!$C$35*O19 -> 68.4 | AC19: =AA19*'5) CHP System'!$C$23*O19 -> 9.0117 | AD19: =AA19*'5) CHP System'!$C$29*O19 -> 4.9685 | AE19: =IF('5) CHP System'!$C$11*M19>=AD19,AD19,'5) CHP System'!$C$11*M19) -> 4.9685 | AF19: 0 | AG19: 0 | AI19: ='Hidden Tab2'!H15 -> 699.5 | AJ19: 68.4 | AK19: 0 | AL19: 631.1 | AN19: ='Hidden Tab2'!H15 -> 699.5 | AO19: 68.4 | AP19: 0 | AQ19: 631.1 | AS19: =LOOKUP(B19,'7) Peak & Seasons'!$G$23:$H$34) -> Winter | AT19: =IF('Hidden Tab1'!$F19="WKN",IF($AS19="Winter",IF($F19<'7) Peak & Seasons'!$H$17,0,IF('12) Hourly Simulation '!$F19>='7) Peak & Seasons'!$H$18,0,1))),0) -> 0 | AU19: =IF('Hidden Tab1'!$F19="WKN",IF($AS19="Summer",IF($F19<'7) Peak & Seasons'!$I$17,0,IF('12) Hourly Simulation '!$F19>='7) Peak & Seasons'!$I$18,0,1))),0) -> 0 | AV19: 0 | AW19: 0 | AX19: 0 | AY19: 0 | AZ19: =IF(LEFT('5) CHP System'!$C$8,1)="N",IF(ABS(AI19-AJ19-'5) CHP System'!$C$9)<0.0001,1,0),0) -> 0 | BA19: =IF('5) CHP System'!$C$11*'12) Hourly Simulation '!M19>'5) CHP System'!$C$6*'5) CHP System'!$C$29,0,1) -> 0 | BB19: 1 | BC19: =IF(P19>0,IF(P19<='5) CHP System'!$C$6,1,0),0) -> 1
A20: 1976-01-01 | B20: 1 | C20: 1 | D20: 13:00:00 | E20: 2.2 | F20: 13 | G20: =IF('Hidden Tab1'!F20="WKN",1,IF('Hidden Tab1'!F20="WE",2,"3")) -> 3 | H20: 36 | J20: 19 | K20: =J20*'13) Normalized Monthly Data'!$I$9/IF(SUM($J$8:$J$751)=0,1,SUM($J$8:$J$751)) -> 14.46289111 | L20: =LOOKUP(F20,'2a) Base thermal profile'!$B$12:$B$35,'2a) Base thermal profile'!$E$12:$E$35) -> 4.72517321 | M20: 19.18806432 | O20: =LOOKUP(B20,'5) CHP System'!$E$26:$P$27) -> 0.95 | P20: =IF('5) CHP System'!$C$35=0,0,IF(MIN('5) CHP System'!$C$6,'5) CHP System'!$C$11*M20/'5) CHP System'!$C$29,IF(LEFT('5) CHP System'!$C$8,1)="Y",'5) CHP System'!$C$6,(AI20-'5) CHP System'!$C$9)/(O20*'5) CHP System'!$C$35)))<'5) CHP System'!$C$16,0,MIN('5) CHP System'!$C$6,'5) CHP System'!$C$11*M20/'5) CHP System'!$C$29,IF(LEFT('5) CHP System'!$C$8,1)="Y",'5) CHP System'!$C$6,(AI20-'5) CHP System'!$C$9)/(O20*'5) CHP System'!$C$35))))) -> 1 | Q20: =P20*'5) CHP System'!$C$35*O20 -> 68.4 | R20: =P20*'5) CHP System'!$C$23*O20 -> 9.0117 | S20: =P20*'5) CHP System'!$C$29*O20 -> 4.9685 | T20: 4.9685 | U20: 0 | V20: =LOOKUP(B20,'5) CHP System'!$E$7:$P$8) -> 0 | X20: =IF('5) CHP System'!$C$42=0,0,(AN20-'5) CHP System'!$C$9)/(O20*'5) CHP System'!$C$35)) -> 9.312865497 | Y20: =IF(INDEX(Jan,IF(F20=0,24,F20),G20)<'5) CHP System'!$C$16,0,INDEX(Jan,IF(F20=0,24,F20),G20)) -> 1 | Z20: =IF(MIN(X20:Y20)<'5) CHP System'!$C$16,0,MIN(X20:Y20)) -> 1 | AA20: =MIN('5) CHP System'!$C$6,IF(LEFT('5) CHP System'!$C$8,1)="Y",Y20,Z20)) -> 1 | AB20: =AA20*'5) CHP System'!$C$35*O20 -> 68.4 | AC20: =AA20*'5) CHP System'!$C$23*O20 -> 9.0117 | AD20: =AA20*'5) CHP System'!$C$29*O20 -> 4.9685 | AE20: =IF('5) CHP System'!$C$11*M20>=AD20,AD20,'5) CHP System'!$C$11*M20) -> 4.9685 | AF20: 0 | AG20: 0 | AI20: ='Hidden Tab2'!H16 -> 642 | AJ20: 68.4 | AK20: 0 | AL20: 573.6 | AN20: ='Hidden Tab2'!H16 -> 642 | AO20: 68.4 | AP20: 0 | AQ20: 573.6 | AS20: =LOOKUP(B20,'7) Peak & Seasons'!$G$23:$H$34) -> Winter | AT20: =IF('Hidden Tab1'!$F20="WKN",IF($AS20="Winter",IF($F20<'7) Peak & Seasons'!$H$17,0,IF('12) Hourly Simulation '!$F20>='7) Peak & Seasons'!$H$18,0,1))),0) -> 0 | AU20: =IF('Hidden Tab1'!$F20="WKN",IF($AS20="Summer",IF($F20<'7) Peak & Seasons'!$I$17,0,IF('12) Hourly Simulation '!$F20>='7) Peak & Seasons'!$I$18,0,1))),0) -> 0 | AV20: 0 | AW20: 0 | AX20: 0 | AY20: 0 | AZ20: =IF(LEFT('5) CHP System'!$C$8,1)="N",IF(ABS(AI20-AJ20-'5) CHP System'!$C$9)<0.0001,1,0),0) -> 0 | BA20: =IF('5) CHP System'!$C$11*'12) Hourly Simulation '!M20>'5) CHP System'!$C$6*'5) CHP System'!$C$29,0,1) -> 0 | BB20: 1 | BC20: =IF(P20>0,IF(P20<='5) CHP System'!$C$6,1,0),0) -> 1
A21: 1976-01-01 | B21: 1 | C21: 1 | D21: 14:00:00 | E21: 2.8 | F21: 14 | G21: =IF('Hidden Tab1'!F21="WKN",1,IF('Hidden Tab1'!F21="WE",2,"3")) -> 3 | H21: 37 | J21: 18 | K21: =J21*'13) Normalized Monthly Data'!$I$9/IF(SUM($J$8:$J$751)=0,1,SUM($J$8:$J$751)) -> 13.70168632 | L21: =LOOKUP(F21,'2a) Base thermal profile'!$B$12:$B$35,'2a) Base thermal profile'!$E$12:$E$35) -> 3.937644342 | M21: 17.63933066 | O21: =LOOKUP(B21,'5) CHP System'!$E$26:$P$27) -> 0.95 | P21: =IF('5) CHP System'!$C$35=0,0,IF(MIN('5) CHP System'!$C$6,'5) CHP System'!$C$11*M21/'5) CHP System'!$C$29,IF(LEFT('5) CHP System'!$C$8,1)="Y",'5) CHP System'!$C$6,(AI21-'5) CHP System'!$C$9)/(O21*'5) CHP System'!$C$35)))<'5) CHP System'!$C$16,0,MIN('5) CHP System'!$C$6,'5) CHP System'!$C$11*M21/'5) CHP System'!$C$29,IF(LEFT('5) CHP System'!$C$8,1)="Y",'5) CHP System'!$C$6,(AI21-'5) CHP System'!$C$9)/(O21*'5) CHP System'!$C$35))))) -> 1 | Q21: =P21*'5) CHP System'!$C$35*O21 -> 68.4 | R21: =P21*'5) CHP System'!$C$23*O21 -> 9.0117 | S21: =P21*'5) CHP System'!$C$29*O21 -> 4.9685 | T21: 4.9685 | U21: 0 | V21: =LOOKUP(B21,'5) CHP System'!$E$7:$P$8) -> 0 | X21: =IF('5) CHP System'!$C$42=0,0,(AN21-'5) CHP System'!$C$9)/(O21*'5) CHP System'!$C$35)) -> 9.367690058 | Y21: =IF(INDEX(Jan,IF(F21=0,24,F21),G21)<'5) CHP System'!$C$16,0,INDEX(Jan,IF(F21=0,24,F21),G21)) -> 1 | Z21: =IF(MIN(X21:Y21)<'5) CHP System'!$C$16,0,MIN(X21:Y21)) -> 1 | AA21: =MIN('5) CHP System'!$C$6,IF(LEFT('5) CHP System'!$C$8,1)="Y",Y21,Z21)) -> 1 | AB21: =AA21*'5) CHP System'!$C$35*O21 -> 68.4 | AC21: =AA21*'5) CHP System'!$C$23*O21 -> 9.0117 | AD21: =AA21*'5) CHP System'!$C$29*O21 -> 4.9685 | AE21: =IF('5) CHP System'!$C$11*M21>=AD21,AD21,'5) CHP System'!$C$11*M21) -> 4.9685 | AF21: 0 | AG21: 0 | AI21: ='Hidden Tab2'!H17 -> 645.75 | AJ21: 68.4 | AK21: 0 | AL21: 577.35 | AN21: ='Hidden Tab2'!H17 -> 645.75 | AO21: 68.4 | AP21: 0 | AQ21: 577.35 | AS21: =LOOKUP(B21,'7) Peak & Seasons'!$G$23:$H$34) -> Winter | AT21: =IF('Hidden Tab1'!$F21="WKN",IF($AS21="Winter",IF($F21<'7) Peak & Seasons'!$H$17,0,IF('12) Hourly Simulation '!$F21>='7) Peak & Seasons'!$H$18,0,1))),0) -> 0 | AU21: =IF('Hidden Tab1'!$F21="WKN",IF($AS21="Summer",IF($F21<'7) Peak & Seasons'!$I$17,0,IF('12) Hourly Simulation '!$F21>='7) Peak & Seasons'!$I$18,0,1))),0) -> 0 | AV21: 0 | AW21: 0 | AX21: 0 | AY21: 0 | AZ21: =IF(LEFT('5) CHP System'!$C$8,1)="N",IF(ABS(AI21-AJ21-'5) CHP System'!$C$9)<0.0001,1,0),0) -> 0 | BA21: =IF('5) CHP System'!$C$11*'12) Hourly Simulation '!M21>'5) CHP System'!$C$6*'5) CHP System'!$C$29,0,1) -> 0 | BB21: 1 | BC21: =IF(P21>0,IF(P21<='5) CHP System'!$C$6,1,0),0) -> 1
A22: 1976-01-01 | B22: 1 | C22: 1 | D22: 15:00:00 | E22: 2.8 | F22: 15 | G22: =IF('Hidden Tab1'!F22="WKN",1,IF('Hidden Tab1'!F22="WE",2,"3")) -> 3 | H22: 37 | J22: 18 | K22: =J22*'13) Normalized Monthly Data'!$I$9/IF(SUM($J$8:$J$751)=0,1,SUM($J$8:$J$751)) -> 13.70168632 | L22: =LOOKUP(F22,'2a) Base thermal profile'!$B$12:$B$35,'2a) Base thermal profile'!$E$12:$E$35) -> 3.675134719 | M22: 17.37682103 | O22: =LOOKUP(B22,'5) CHP System'!$E$26:$P$27) -> 0.95 | P22: =IF('5) CHP System'!$C$35=0,0,IF(MIN('5) CHP System'!$C$6,'5) CHP System'!$C$11*M22/'5) CHP System'!$C$29,IF(LEFT('5) CHP System'!$C$8,1)="Y",'5) CHP System'!$C$6,(AI22-'5) CHP System'!$C$9)/(O22*'5) CHP System'!$C$35)))<'5) CHP System'!$C$16,0,MIN('5) CHP System'!$C$6,'5) CHP System'!$C$11*M22/'5) CHP System'!$C$29,IF(LEFT('5) CHP System'!$C$8,1)="Y",'5) CHP System'!$C$6,(AI22-'5) CHP System'!$C$9)/(O22*'5) CHP System'!$C$35))))) -> 1 | Q22: =P22*'5) CHP System'!$C$35*O22 -> 68.4 | R22: =P22*'5) CHP System'!$C$23*O22 -> 9.0117 | S22: =P22*'5) CHP System'!$C$29*O22 -> 4.9685 | T22: 4.9685 | U22: 0 | V22: =LOOKUP(B22,'5) CHP System'!$E$7:$P$8) -> 0 | X22: =IF('5) CHP System'!$C$42=0,0,(AN22-'5) CHP System'!$C$9)/(O22*'5) CHP System'!$C$35)) -> 9.367690058 | Y22: =IF(INDEX(Jan,IF(F22=0,24,F22),G22)<'5) CHP System'!$C$16,0,INDEX(Jan,IF(F22=0,24,F22),G22)) -> 1 | Z22: =IF(MIN(X22:Y22)<'5) CHP System'!$C$16,0,MIN(X22:Y22)) -> 1 | AA22: =MIN('5) CHP System'!$C$6,IF(LEFT('5) CHP System'!$C$8,1)="Y",Y22,Z22)) -> 1 | AB22: =AA22*'5) CHP System'!$C$35*O22 -> 68.4 | AC22: =AA22*'5) CHP System'!$C$23*O22 -> 9.0117 | AD22: =AA22*'5) CHP System'!$C$29*O22 -> 4.9685 | AE22: =IF('5) CHP System'!$C$11*M22>=AD22,AD22,'5) CHP System'!$C$11*M22) -> 4.9685 | AF22: 0 | AG22: 0 | AI22: ='Hidden Tab2'!H18 -> 645.75 | AJ22: 68.4 | AK22: 0 | AL22: 577.35 | AN22: ='Hidden Tab2'!H18 -> 645.75 | AO22: 68.4 | AP22: 0 | AQ22: 577.35 | AS22: =LOOKUP(B22,'7) Peak & Seasons'!$G$23:$H$34) -> Winter | AT22: =IF('Hidden Tab1'!$F22="WKN",IF($AS22="Winter",IF($F22<'7) Peak & Seasons'!$H$17,0,IF('12) Hourly Simulation '!$F22>='7) Peak & Seasons'!$H$18,0,1))),0) -> 0 | AU22: =IF('Hidden Tab1'!$F22="WKN",IF($AS22="Summer",IF($F22<'7) Peak & Seasons'!$I$17,0,IF('12) Hourly Simulation '!$F22>='7) Peak & Seasons'!$I$18,0,1))),0) -> 0 | AV22: 0 | AW22: 0 | AX22: 0 | AY22: 0 | AZ22: =IF(LEFT('5) CHP System'!$C$8,1)="N",IF(ABS(AI22-AJ22-'5) CHP System'!$C$9)<0.0001,1,0),0) -> 0 | BA22: =IF('5) CHP System'!$C$11*'12) Hourly Simulation '!M22>'5) CHP System'!$C$6*'5) CHP System'!$C$29,0,1) -> 0 | BB22: 1 | BC22: =IF(P22>0,IF(P22<='5) CHP System'!$C$6,1,0),0) -> 1
A23: 1976-01-01 | B23: 1 | C23: 1 | D23: 16:00:00 | E23: 2.2 | F23: 16 | G23: =IF('Hidden Tab1'!F23="WKN",1,IF('Hidden Tab1'!F23="WE",2,"3")) -> 3 | H23: 36 | J23: 19 | K23: =J23*'13) Normalized Monthly Data'!$I$9/IF(SUM($J$8:$J$751)=0,1,SUM($J$8:$J$751)) -> 14.46289111 | L23: =LOOKUP(F23,'2a) Base thermal profile'!$B$12:$B$35,'2a) Base thermal profile'!$E$12:$E$35) -> 3.675134719 | M23: 18.13802583 | O23: =LOOKUP(B23,'5) CHP System'!$E$26:$P$27) -> 0.95 | P23: =IF('5) CHP System'!$C$35=0,0,IF(MIN('5) CHP System'!$C$6,'5) CHP System'!$C$11*M23/'5) CHP System'!$C$29,IF(LEFT('5) CHP System'!$C$8,1)="Y",'5) CHP System'!$C$6,(AI23-'5) CHP System'!$C$9)/(O23*'5) CHP System'!$C$35)))<'5) CHP System'!$C$16,0,MIN('5) CHP System'!$C$6,'5) CHP System'!$C$11*M23/'5) CHP System'!$C$29,IF(LEFT('5) CHP System'!$C$8,1)="Y",'5) CHP System'!$C$6,(AI23-'5) CHP System'!$C$9)/(O23*'5) CHP System'!$C$35))))) -> 1 | Q23: =P23*'5) CHP System'!$C$35*O23 -> 68.4 | R23: =P23*'5) CHP System'!$C$23*O23 -> 9.0117 | S23: =P23*'5) CHP System'!$C$29*O23 -> 4.9685 | T23: 4.9685 | U23: 0 | V23: =LOOKUP(B23,'5) CHP System'!$E$7:$P$8) -> 0 | X23: =IF('5) CHP System'!$C$42=0,0,(AN23-'5) CHP System'!$C$9)/(O23*'5) CHP System'!$C$35)) -> 9.356725146 | Y23: =IF(INDEX(Jan,IF(F23=0,24,F23),G23)<'5) CHP System'!$C$16,0,INDEX(Jan,IF(F23=0,24,F23),G23)) -> 1 | Z23: =IF(MIN(X23:Y23)<'5) CHP System'!$C$16,0,MIN(X23:Y23)) -> 1 | AA23: =MIN('5) CHP System'!$C$6,IF(LEFT('5) CHP System'!$C$8,1)="Y",Y23,Z23)) -> 1 | AB23: =AA23*'5) CHP System'!$C$35*O23 -> 68.4 | AC23: =AA23*'5) CHP System'!$C$23*O23 -> 9.0117 | AD23: =AA23*'5) CHP System'!$C$29*O23 -> 4.9685 | AE23: =IF('5) CHP System'!$C$11*M23>=AD23,AD23,'5) CHP System'!$C$11*M23) -> 4.9685 | AF23: 0 | AG23: 0 | AI23: ='Hidden Tab2'!H19 -> 645 | AJ23: 68.4 | AK23: 0 | AL23: 576.6 | AN23: ='Hidden Tab2'!H19 -> 645 | AO23: 68.4 | AP23: 0 | AQ23: 576.6 | AS23: =LOOKUP(B23,'7) Peak & Seasons'!$G$23:$H$34) -> Winter | AT23: =IF('Hidden Tab1'!$F23="WKN",IF($AS23="Winter",IF($F23<'7) Peak & Seasons'!$H$17,0,IF('12) Hourly Simulation '!$F23>='7) Peak & Seasons'!$H$18,0,1))),0) -> 0 | AU23: =IF('Hidden Tab1'!$F23="WKN",IF($AS23="Summer",IF($F23<'7) Peak & Seasons'!$I$17,0,IF('12) Hourly Simulation '!$F23>='7) Peak & Seasons'!$I$18,0,1))),0) -> 0 | AV23: 0 | AW23: 0 | AX23: 0 | AY23: 0 | AZ23: =IF(LEFT('5) CHP System'!$C$8,1)="N",IF(ABS(AI23-AJ23-'5) CHP System'!$C$9)<0.0001,1,0),0) -> 0 | BA23: =IF('5) CHP System'!$C$11*'12) Hourly Simulation '!M23>'5) CHP System'!$C$6*'5) CHP System'!$C$29,0,1) -> 0 | BB23: 1 | BC23: =IF(P23>0,IF(P23<='5) CHP System'!$C$6,1,0),0) -> 1
A24: 1976-01-01 | B24: 1 | C24: 1 | D24: 17:00:00 | E24: 1.1 | F24: 17 | G24: =IF('Hidden Tab1'!F24="WKN",1,IF('Hidden Tab1'!F24="WE",2,"3")) -> 3 | H24: 34 | J24: 21 | K24: =J24*'13) Normalized Monthly Data'!$I$9/IF(SUM($J$8:$J$751)=0,1,SUM($J$8:$J$751)) -> 15.9853007 | L24: =LOOKUP(F24,'2a) Base thermal profile'!$B$12:$B$35,'2a) Base thermal profile'!$E$12:$E$35) -> 4.72517321 | M24: 20.71047391 | O24: =LOOKUP(B24,'5) CHP System'!$E$26:$P$27) -> 0.95 | P24: =IF('5) CHP System'!$C$35=0,0,IF(MIN('5) CHP System'!$C$6,'5) CHP System'!$C$11*M24/'5) CHP System'!$C$29,IF(LEFT('5) CHP System'!$C$8,1)="Y",'5) CHP System'!$C$6,(AI24-'5) CHP System'!$C$9)/(O24*'5) CHP System'!$C$35)))<'5) CHP System'!$C$16,0,MIN('5) CHP System'!$C$6,'5) CHP System'!$C$11*M24/'5) CHP System'!$C$29,IF(LEFT('5) CHP System'!$C$8,1)="Y",'5) CHP System'!$C$6,(AI24-'5) CHP System'!$C$9)/(O24*'5) CHP System'!$C$35))))) -> 1 | Q24: =P24*'5) CHP System'!$C$35*O24 -> 68.4 | R24: =P24*'5) CHP System'!$C$23*O24 -> 9.0117 | S24: =P24*'5) CHP System'!$C$29*O24 -> 4.9685 | T24: 4.9685 | U24: 0 | V24: =LOOKUP(B24,'5) CHP System'!$E$7:$P$8) -> 0 | X24: =IF('5) CHP System'!$C$42=0,0,(AN24-'5) CHP System'!$C$9)/(O24*'5) CHP System'!$C$35)) -> 9.13377193 | Y24: =IF(INDEX(Jan,IF(F24=0,24,F24),G24)<'5) CHP System'!$C$16,0,INDEX(Jan,IF(F24=0,24,F24),G24)) -> 1 | Z24: =IF(MIN(X24:Y24)<'5) CHP System'!$C$16,0,MIN(X24:Y24)) -> 1 | AA24: =MIN('5) CHP System'!$C$6,IF(LEFT('5) CHP System'!$C$8,1)="Y",Y24,Z24)) -> 1 | AB24: =AA24*'5) CHP System'!$C$35*O24 -> 68.4 | AC24: =AA24*'5) CHP System'!$C$23*O24 -> 9.0117 | AD24: =AA24*'5) CHP System'!$C$29*O24 -> 4.9685 | AE24: =IF('5) CHP System'!$C$11*M24>=AD24,AD24,'5) CHP System'!$C$11*M24) -> 4.9685 | AF24: 0 | AG24: 0 | AI24: ='Hidden Tab2'!H20 -> 629.75 | AJ24: 68.4 | AK24: 0 | AL24: 561.35 | AN24: ='Hidden Tab2'!H20 -> 629.75 | AO24: 68.4 | AP24: 0 | AQ24: 561.35 | AS24: =LOOKUP(B24,'7) Peak & Seasons'!$G$23:$H$34) -> Winter | AT24: =IF('Hidden Tab1'!$F24="WKN",IF($AS24="Winter",IF($F24<'7) Peak & Seasons'!$H$17,0,IF('12) Hourly Simulation '!$F24>='7) Peak & Seasons'!$H$18,0,1))),0) -> 0 | AU24: =IF('Hidden Tab1'!$F24="WKN",IF($AS24="Summer",IF($F24<'7) Peak & Seasons'!$I$17,0,IF('12) Hourly Simulation '!$F24>='7) Peak & Seasons'!$I$18,0,1))),0) -> 0 | AV24: 0 | AW24: 0 | AX24: 0 | AY24: 0 | AZ24: =IF(LEFT('5) CHP System'!$C$8,1)="N",IF(ABS(AI24-AJ24-'5) CHP System'!$C$9)<0.0001,1,0),0) -> 0 | BA24: =IF('5) CHP System'!$C$11*'12) Hourly Simulation '!M24>'5) CHP System'!$C$6*'5) CHP System'!$C$29,0,1) -> 0 | BB24: 1 | BC24: =IF(P24>0,IF(P24<='5) CHP System'!$C$6,1,0),0) -> 1
A25: 1976-01-01 | B25: 1 | C25: 1 | D25: 18:00:00 | E25: 0 | F25: 18 | G25: =IF('Hidden Tab1'!F25="WKN",1,IF('Hidden Tab1'!F25="WE",2,"3")) -> 3 | H25: 32 | J25: 23 | K25: =J25*'13) Normalized Monthly Data'!$I$9/IF(SUM($J$8:$J$751)=0,1,SUM($J$8:$J$751)) -> 17.50771029 | L25: =LOOKUP(F25,'2a) Base thermal profile'!$B$12:$B$35,'2a) Base thermal profile'!$E$12:$E$35) -> 6.037721324 | M25: 23.54543162 | O25: =LOOKUP(B25,'5) CHP System'!$E$26:$P$27) -> 0.95 | P25: =IF('5) CHP System'!$C$35=0,0,IF(MIN('5) CHP System'!$C$6,'5) CHP System'!$C$11*M25/'5) CHP System'!$C$29,IF(LEFT('5) CHP System'!$C$8,1)="Y",'5) CHP System'!$C$6,(AI25-'5) CHP System'!$C$9)/(O25*'5) CHP System'!$C$35)))<'5) CHP System'!$C$16,0,MIN('5) CHP System'!$C$6,'5) CHP System'!$C$11*M25/'5) CHP System'!$C$29,IF(LEFT('5) CHP System'!$C$8,1)="Y",'5) CHP System'!$C$6,(AI25-'5) CHP System'!$C$9)/(O25*'5) CHP System'!$C$35))))) -> 1 | Q25: =P25*'5) CHP System'!$C$35*O25 -> 68.4 | R25: =P25*'5) CHP System'!$C$23*O25 -> 9.0117 | S25: =P25*'5) CHP System'!$C$29*O25 -> 4.9685 | T25: 4.9685 | U25: 0 | V25: =LOOKUP(B25,'5) CHP System'!$E$7:$P$8) -> 0 | X25: =IF('5) CHP System'!$C$42=0,0,(AN25-'5) CHP System'!$C$9)/(O25*'5) CHP System'!$C$35)) -> 9.104532164 | Y25: =IF(INDEX(Jan,IF(F25=0,24,F25),G25)<'5) CHP System'!$C$16,0,INDEX(Jan,IF(F25=0,24,F25),G25)) -> 1 | Z25: =IF(MIN(X25:Y25)<'5) CHP System'!$C$16,0,MIN(X25:Y25)) -> 1 | AA25: =MIN('5) CHP System'!$C$6,IF(LEFT('5) CHP System'!$C$8,1)="Y",Y25,Z25)) -> 1 | AB25: =AA25*'5) CHP System'!$C$35*O25 -> 68.4 | AC25: =AA25*'5) CHP System'!$C$23*O25 -> 9.0117 | AD25: =AA25*'5) CHP System'!$C$29*O25 -> 4.9685 | AE25: =IF('5) CHP System'!$C$11*M25>=AD25,AD25,'5) CHP System'!$C$11*M25) -> 4.9685 | AF25: 0 | AG25: 0 | AI25: ='Hidden Tab2'!H21 -> 627.75 | AJ25: 68.4 | AK25: 0 | AL25: 559.35 | AN25: ='Hidden Tab2'!H21 -> 627.75 | AO25: 68.4 | AP25: 0 | AQ25: 559.35 | AS25: =LOOKUP(B25,'7) Peak & Seasons'!$G$23:$H$34) -> Winter | AT25: =IF('Hidden Tab1'!$F25="WKN",IF($AS25="Winter",IF($F25<'7) Peak & Seasons'!$H$17,0,IF('12) Hourly Simulation '!$F25>='7) Peak & Seasons'!$H$18,0,1))),0) -> 0 | AU25: =IF('Hidden Tab1'!$F25="WKN",IF($AS25="Summer",IF($F25<'7) Peak & Seasons'!$I$17,0,IF('12) Hourly Simulation '!$F25>='7) Peak & Seasons'!$I$18,0,1))),0) -> 0 | AV25: 0 | AW25: 0 | AX25: 0 | AY25: 0 | AZ25: =IF(LEFT('5) CHP System'!$C$8,1)="N",IF(ABS(AI25-AJ25-'5) CHP System'!$C$9)<0.0001,1,0),0) -> 0 | BA25: =IF('5) CHP System'!$C$11*'12) Hourly Simulation '!M25>'5) CHP System'!$C$6*'5) CHP System'!$C$29,0,1) -> 0 | BB25: 1 | BC25: =IF(P25>0,IF(P25<='5) CHP System'!$C$6,1,0),0) -> 1
A26: 1976-01-01 | B26: 1 | C26: 1 | D26: 19:00:00 | E26: -1.1 | F26: 19 | G26: =IF('Hidden Tab1'!F26="WKN",1,IF('Hidden Tab1'!F26="WE",2,"3")) -> 3 | H26: 30 | J26: 25 | K26: =J26*'13) Normalized Monthly Data'!$I$9/IF(SUM($J$8:$J$751)=0,1,SUM($J$8:$J$751)) -> 19.03011988 | L26: =LOOKUP(F26,'2a) Base thermal profile'!$B$12:$B$35,'2a) Base thermal profile'!$E$12:$E$35) -> 6.56274057 | M26: 25.59286045 | O26: =LOOKUP(B26,'5) CHP System'!$E$26:$P$27) -> 0.95 | P26: =IF('5) CHP System'!$C$35=0,0,IF(MIN('5) CHP System'!$C$6,'5) CHP System'!$C$11*M26/'5) CHP System'!$C$29,IF(LEFT('5) CHP System'!$C$8,1)="Y",'5) CHP System'!$C$6,(AI26-'5) CHP System'!$C$9)/(O26*'5) CHP System'!$C$35)))<'5) CHP System'!$C$16,0,MIN('5) CHP System'!$C$6,'5) CHP System'!$C$11*M26/'5) CHP System'!$C$29,IF(LEFT('5) CHP System'!$C$8,1)="Y",'5) CHP System'!$C$6,(AI26-'5) CHP System'!$C$9)/(O26*'5) CHP System'!$C$35))))) -> 1 | Q26: =P26*'5) CHP System'!$C$35*O26 -> 68.4 | R26: =P26*'5) CHP System'!$C$23*O26 -> 9.0117 | S26: =P26*'5) CHP System'!$C$29*O26 -> 4.9685 | T26: 4.9685 | U26: 0 | V26: =LOOKUP(B26,'5) CHP System'!$E$7:$P$8) -> 0 | X26: =IF('5) CHP System'!$C$42=0,0,(AN26-'5) CHP System'!$C$9)/(O26*'5) CHP System'!$C$35)) -> 9.839181287 | Y26: =IF(INDEX(Jan,IF(F26=0,24,F26),G26)<'5) CHP System'!$C$16,0,INDEX(Jan,IF(F26=0,24,F26),G26)) -> 1 | Z26: =IF(MIN(X26:Y26)<'5) CHP System'!$C$16,0,MIN(X26:Y26)) -> 1 | AA26: =MIN('5) CHP System'!$C$6,IF(LEFT('5) CHP System'!$C$8,1)="Y",Y26,Z26)) -> 1 | AB26: =AA26*'5) CHP System'!$C$35*O26 -> 68.4 | AC26: =AA26*'5) CHP System'!$C$23*O26 -> 9.0117 | AD26: =AA26*'5) CHP System'!$C$29*O26 -> 4.9685 | AE26: =IF('5) CHP System'!$C$11*M26>=AD26,AD26,'5) CHP System'!$C$11*M26) -> 4.9685 | AF26: 0 | AG26: 0 | AI26: ='Hidden Tab2'!H22 -> 678 | AJ26: 68.4 | AK26: 0 | AL26: 609.6 | AN26: ='Hidden Tab2'!H22 -> 678 | AO26: 68.4 | AP26: 0 | AQ26: 609.6 | AS26: =LOOKUP(B26,'7) Peak & Seasons'!$G$23:$H$34) -> Winter | AT26: =IF('Hidden Tab1'!$F26="WKN",IF($AS26="Winter",IF($F26<'7) Peak & Seasons'!$H$17,0,IF('12) Hourly Simulation '!$F26>='7) Peak & Seasons'!$H$18,0,1))),0) -> 0 | AU26: =IF('Hidden Tab1'!$F26="WKN",IF($AS26="Summer",IF($F26<'7) Peak & Seasons'!$I$17,0,IF('12) Hourly Simulation '!$F26>='7) Peak & Seasons'!$I$18,0,1))),0) -> 0 | AV26: 0 | AW26: 0 | AX26: 0 | AY26: 0 | AZ26: =IF(LEFT('5) CHP System'!$C$8,1)="N",IF(ABS(AI26-AJ26-'5) CHP System'!$C$9)<0.0001,1,0),0) -> 0 | BA26: =IF('5) CHP System'!$C$11*'12) Hourly Simulation '!M26>'5) CHP System'!$C$6*'5) CHP System'!$C$29,0,1) -> 0 | BB26: 1 | BC26: =IF(P26>0,IF(P26<='5) CHP System'!$C$6,1,0),0) -> 1
A27: 1976-01-01 | B27: 1 | C27: 1 | D27: 20:00:00 | E27: -2.2 | F27: 20 | G27: =IF('Hidden Tab1'!F27="WKN",1,IF('Hidden Tab1'!F27="WE",2,"3")) -> 3 | H27: 28 | J27: 27 | K27: =J27*'13) Normalized Monthly Data'!$I$9/IF(SUM($J$8:$J$751)=0,1,SUM($J$8:$J$751)) -> 20.55252947 | L27: =LOOKUP(F27,'2a) Base thermal profile'!$B$12:$B$35,'2a) Base thermal profile'!$E$12:$E$35) -> 5.775211701 | M27: 26.32774117 | O27: =LOOKUP(B27,'5) CHP System'!$E$26:$P$27) -> 0.95 | P27: =IF('5) CHP System'!$C$35=0,0,IF(MIN('5) CHP System'!$C$6,'5) CHP System'!$C$11*M27/'5) CHP System'!$C$29,IF(LEFT('5) CHP System'!$C$8,1)="Y",'5) CHP System'!$C$6,(AI27-'5) CHP System'!$C$9)/(O27*'5) CHP System'!$C$35)))<'5) CHP System'!$C$16,0,MIN('5) CHP System'!$C$6,'5) CHP System'!$C$11*M27/'5) CHP System'!$C$29,IF(LEFT('5) CHP System'!$C$8,1)="Y",'5) CHP System'!$C$6,(AI27-'5) CHP System'!$C$9)/(O27*'5) CHP System'!$C$35))))) -> 1 | Q27: =P27*'5) CHP System'!$C$35*O27 -> 68.4 | R27: =P27*'5) CHP System'!$C$23*O27 -> 9.0117 | S27: =P27*'5) CHP System'!$C$29*O27 -> 4.9685 | T27: 4.9685 | U27: 0 | V27: =LOOKUP(B27,'5) CHP System'!$E$7:$P$8) -> 0 | X27: =IF('5) CHP System'!$C$42=0,0,(AN27-'5) CHP System'!$C$9)/(O27*'5) CHP System'!$C$35)) -> 10.55921053 | Y27: =IF(INDEX(Jan,IF(F27=0,24,F27),G27)<'5) CHP System'!$C$16,0,INDEX(Jan,IF(F27=0,24,F27),G27)) -> 1 | Z27: =IF(MIN(X27:Y27)<'5) CHP System'!$C$16,0,MIN(X27:Y27)) -> 1 | AA27: =MIN('5) CHP System'!$C$6,IF(LEFT('5) CHP System'!$C$8,1)="Y",Y27,Z27)) -> 1 | AB27: =AA27*'5) CHP System'!$C$35*O27 -> 68.4 | AC27: =AA27*'5) CHP System'!$C$23*O27 -> 9.0117 | AD27: =AA27*'5) CHP System'!$C$29*O27 -> 4.9685 | AE27: =IF('5) CHP System'!$C$11*M27>=AD27,AD27,'5) CHP System'!$C$11*M27) -> 4.9685 | AF27: 0 | AG27: 0 | AI27: ='Hidden Tab2'!H23 -> 727.25 | AJ27: 68.4 | AK27: 0 | AL27: 658.85 | AN27: ='Hidden Tab2'!H23 -> 727.25 | AO27: 68.4 | AP27: 0 | AQ27: 658.85 | AS27: =LOOKUP(B27,'7) Peak & Seasons'!$G$23:$H$34) -> Winter | AT27: =IF('Hidden Tab1'!$F27="WKN",IF($AS27="Winter",IF($F27<'7) Peak & Seasons'!$H$17,0,IF('12) Hourly Simulation '!$F27>='7) Peak & Seasons'!$H$18,0,1))),0) -> 0 | AU27: =IF('Hidden Tab1'!$F27="WKN",IF($AS27="Summer",IF($F27<'7) Peak & Seasons'!$I$17,0,IF('12) Hourly Simulation '!$F27>='7) Peak & Seasons'!$I$18,0,1))),0) -> 0 | AV27: 0 | AW27: 0 | AX27: 0 | AY27: 0 | AZ27: =IF(LEFT('5) CHP System'!$C$8,1)="N",IF(ABS(AI27-AJ27-'5) CHP System'!$C$9)<0.0001,1,0),0) -> 0 | BA27: =IF('5) CHP System'!$C$11*'12) Hourly Simulation '!M27>'5) CHP System'!$C$6*'5) CHP System'!$C$29,0,1) -> 0 | BB27: 1 | BC27: =IF(P27>0,IF(P27<='5) CHP System'!$C$6,1,0),0) -> 1
A28: 1976-01-01 | B28: 1 | C28: 1 | D28: 21:00:00 | E28: -3.3 | F28: 21 | G28: =IF('Hidden Tab1'!F28="WKN",1,IF('Hidden Tab1'!F28="WE",2,"3")) -> 3 | H28: 26 | J28: 29 | K28: =J28*'13) Normalized Monthly Data'!$I$9/IF(SUM($J$8:$J$751)=0,1,SUM($J$8:$J$751)) -> 22.07493906 | L28: =LOOKUP(F28,'2a) Base thermal profile'!$B$12:$B$35,'2a) Base thermal profile'!$E$12:$E$35) -> 4.72517321 | M28: 26.80011227 | O28: =LOOKUP(B28,'5) CHP System'!$E$26:$P$27) -> 0.95 | P28: =IF('5) CHP System'!$C$35=0,0,IF(MIN('5) CHP System'!$C$6,'5) CHP System'!$C$11*M28/'5) CHP System'!$C$29,IF(LEFT('5) CHP System'!$C$8,1)="Y",'5) CHP System'!$C$6,(AI28-'5) CHP System'!$C$9)/(O28*'5) CHP System'!$C$35)))<'5) CHP System'!$C$16,0,MIN('5) CHP System'!$C$6,'5) CHP System'!$C$11*M28/'5) CHP System'!$C$29,IF(LEFT('5) CHP System'!$C$8,1)="Y",'5) CHP System'!$C$6,(AI28-'5) CHP System'!$C$9)/(O28*'5) CHP System'!$C$35))))) -> 1 | Q28: =P28*'5) CHP System'!$C$35*O28 -> 68.4 | R28: =P28*'5) CHP System'!$C$23*O28 -> 9.0117 | S28: =P28*'5) CHP System'!$C$29*O28 -> 4.9685 | T28: 4.9685 | U28: 0 | V28: =LOOKUP(B28,'5) CHP System'!$E$7:$P$8) -> 0 | X28: =IF('5) CHP System'!$C$42=0,0,(AN28-'5) CHP System'!$C$9)/(O28*'5) CHP System'!$C$35)) -> 9.912280702 | Y28: =IF(INDEX(Jan,IF(F28=0,24,F28),G28)<'5) CHP System'!$C$16,0,INDEX(Jan,IF(F28=0,24,F28),G28)) -> 1 | Z28: =IF(MIN(X28:Y28)<'5) CHP System'!$C$16,0,MIN(X28:Y28)) -> 1 | AA28: =MIN('5) CHP System'!$C$6,IF(LEFT('5) CHP System'!$C$8,1)="Y",Y28,Z28)) -> 1 | AB28: =AA28*'5) CHP System'!$C$35*O28 -> 68.4 | AC28: =AA28*'5) CHP System'!$C$23*O28 -> 9.0117 | AD28: =AA28*'5) CHP System'!$C$29*O28 -> 4.9685 | AE28: =IF('5) CHP System'!$C$11*M28>=AD28,AD28,'5) CHP System'!$C$11*M28) -> 4.9685 | AF28: 0 | AG28: 0 | AI28: ='Hidden Tab2'!H24 -> 683 | AJ28: 68.4 | AK28: 0 | AL28: 614.6 | AN28: ='Hidden Tab2'!H24 -> 683 | AO28: 68.4 | AP28: 0 | AQ28: 614.6 | AS28: =LOOKUP(B28,'7) Peak & Seasons'!$G$23:$H$34) -> Winter | AT28: =IF('Hidden Tab1'!$F28="WKN",IF($AS28="Winter",IF($F28<'7) Peak & Seasons'!$H$17,0,IF('12) Hourly Simulation '!$F28>='7) Peak & Seasons'!$H$18,0,1))),0) -> 0 | AU28: =IF('Hidden Tab1'!$F28="WKN",IF($AS28="Summer",IF($F28<'7) Peak & Seasons'!$I$17,0,IF('12) Hourly Simulation '!$F28>='7) Peak & Seasons'!$I$18,0,1))),0) -> 0 | AV28: 0 | AW28: 0 | AX28: 0 | AY28: 0 | AZ28: =IF(LEFT('5) CHP System'!$C$8,1)="N",IF(ABS(AI28-AJ28-'5) CHP System'!$C$9)<0.0001,1,0),0) -> 0 | BA28: =IF('5) CHP System'!$C$11*'12) Hourly Simulation '!M28>'5) CHP System'!$C$6*'5) CHP System'!$C$29,0,1) -> 0 | BB28: 1 | BC28: =IF(P28>0,IF(P28<='5) CHP System'!$C$6,1,0),0) -> 1
A29: 1976-01-01 | B29: 1 | C29: 1 | D29: 22:00:00 | E29: -4.4 | F29: 22 | G29: =IF('Hidden Tab1'!F29="WKN",1,IF('Hidden Tab1'!F29="WE",2,"3")) -> 3 | H29: 24 | J29: 31 | K29: =J29*'13) Normalized Monthly Data'!$I$9/IF(SUM($J$8:$J$751)=0,1,SUM($J$8:$J$751)) -> 23.59734865 | L29: =LOOKUP(F29,'2a) Base thermal profile'!$B$12:$B$35,'2a) Base thermal profile'!$E$12:$E$35) -> 4.200153965 | M29: 27.79750262 | O29: =LOOKUP(B29,'5) CHP System'!$E$26:$P$27) -> 0.95 | P29: =IF('5) CHP System'!$C$35=0,0,IF(MIN('5) CHP System'!$C$6,'5) CHP System'!$C$11*M29/'5) CHP System'!$C$29,IF(LEFT('5) CHP System'!$C$8,1)="Y",'5) CHP System'!$C$6,(AI29-'5) CHP System'!$C$9)/(O29*'5) CHP System'!$C$35)))<'5) CHP System'!$C$16,0,MIN('5) CHP System'!$C$6,'5) CHP System'!$C$11*M29/'5) CHP System'!$C$29,IF(LEFT('5) CHP System'!$C$8,1)="Y",'5) CHP System'!$C$6,(AI29-'5) CHP System'!$C$9)/(O29*'5) CHP System'!$C$35))))) -> 1 | Q29: =P29*'5) CHP System'!$C$35*O29 -> 68.4 | R29: =P29*'5) CHP System'!$C$23*O29 -> 9.0117 | S29: =P29*'5) CHP System'!$C$29*O29 -> 4.9685 | T29: 4.9685 | U29: 0 | V29: =LOOKUP(B29,'5) CHP System'!$E$7:$P$8) -> 0 | X29: =IF('5) CHP System'!$C$42=0,0,(AN29-'5) CHP System'!$C$9)/(O29*'5) CHP System'!$C$35)) -> 10.0255848 | Y29: =IF(INDEX(Jan,IF(F29=0,24,F29),G29)<'5) CHP System'!$C$16,0,INDEX(Jan,IF(F29=0,24,F29),G29)) -> 1 | Z29: =IF(MIN(X29:Y29)<'5) CHP System'!$C$16,0,MIN(X29:Y29)) -> 1 | AA29: =MIN('5) CHP System'!$C$6,IF(LEFT('5) CHP System'!$C$8,1)="Y",Y29,Z29)) -> 1 | AB29: =AA29*'5) CHP System'!$C$35*O29 -> 68.4 | AC29: =AA29*'5) CHP System'!$C$23*O29 -> 9.0117 | AD29: =AA29*'5) CHP System'!$C$29*O29 -> 4.9685 | AE29: =IF('5) CHP System'!$C$11*M29>=AD29,AD29,'5) CHP System'!$C$11*M29) -> 4.9685 | AF29: 0 | AG29: 0 | AI29: ='Hidden Tab2'!H25 -> 690.75 | AJ29: 68.4 | AK29: 0 | AL29: 622.35 | AN29: ='Hidden Tab2'!H25 -> 690.75 | AO29: 68.4 | AP29: 0 | AQ29: 622.35 | AS29: =LOOKUP(B29,'7) Peak & Seasons'!$G$23:$H$34) -> Winter | AT29: =IF('Hidden Tab1'!$F29="WKN",IF($AS29="Winter",IF($F29<'7) Peak & Seasons'!$H$17,0,IF('12) Hourly Simulation '!$F29>='7) Peak & Seasons'!$H$18,0,1))),0) -> 0 | AU29: =IF('Hidden Tab1'!$F29="WKN",IF($AS29="Summer",IF($F29<'7) Peak & Seasons'!$I$17,0,IF('12) Hourly Simulation '!$F29>='7) Peak & Seasons'!$I$18,0,1))),0) -> 0 | AV29: 0 | AW29: 0 | AX29: 0 | AY29: 0 | AZ29: =IF(LEFT('5) CHP System'!$C$8,1)="N",IF(ABS(AI29-AJ29-'5) CHP System'!$C$9)<0.0001,1,0),0) -> 0 | BA29: =IF('5) CHP System'!$C$11*'12) Hourly Simulation '!M29>'5) CHP System'!$C$6*'5) CHP System'!$C$29,0,1) -> 0 | BB29: 1 | BC29: =IF(P29>0,IF(P29<='5) CHP System'!$C$6,1,0),0) -> 1
A30: 1976-01-01 | B30: 1 | C30: 1 | D30: 23:00:00 | E30: -5.6 | F30: 23 | G30: =IF('Hidden Tab1'!F30="WKN",1,IF('Hidden Tab1'!F30="WE",2,"3")) -> 3 | H30: 22 | J30: 33 | K30: =J30*'13) Normalized Monthly Data'!$I$9/IF(SUM($J$8:$J$751)=0,1,SUM($J$8:$J$751)) -> 25.11975825 | L30: =LOOKUP(F30,'2a) Base thermal profile'!$B$12:$B$35,'2a) Base thermal profile'!$E$12:$E$35) -> 5.250192456 | M30: 30.3699507 | O30: =LOOKUP(B30,'5) CHP System'!$E$26:$P$27) -> 0.95 | P30: =IF('5) CHP System'!$C$35=0,0,IF(MIN('5) CHP System'!$C$6,'5) CHP System'!$C$11*M30/'5) CHP System'!$C$29,IF(LEFT('5) CHP System'!$C$8,1)="Y",'5) CHP System'!$C$6,(AI30-'5) CHP System'!$C$9)/(O30*'5) CHP System'!$C$35)))<'5) CHP System'!$C$16,0,MIN('5) CHP System'!$C$6,'5) CHP System'!$C$11*M30/'5) CHP System'!$C$29,IF(LEFT('5) CHP System'!$C$8,1)="Y",'5) CHP System'!$C$6,(AI30-'5) CHP System'!$C$9)/(O30*'5) CHP System'!$C$35))))) -> 1 | Q30: =P30*'5) CHP System'!$C$35*O30 -> 68.4 | R30: =P30*'5) CHP System'!$C$23*O30 -> 9.0117 | S30: =P30*'5) CHP System'!$C$29*O30 -> 4.9685 | T30: 4.9685 | U30: 0 | V30: =LOOKUP(B30,'5) CHP System'!$E$7:$P$8) -> 0 | X30: =IF('5) CHP System'!$C$42=0,0,(AN30-'5) CHP System'!$C$9)/(O30*'5) CHP System'!$C$35)) -> 10.36915205 | Y30: =IF(INDEX(Jan,IF(F30=0,24,F30),G30)<'5) CHP System'!$C$16,0,INDEX(Jan,IF(F30=0,24,F30),G30)) -> 1 | Z30: =IF(MIN(X30:Y30)<'5) CHP System'!$C$16,0,MIN(X30:Y30)) -> 1 | AA30: =MIN('5) CHP System'!$C$6,IF(LEFT('5) CHP System'!$C$8,1)="Y",Y30,Z30)) -> 1 | AB30: =AA30*'5) CHP System'!$C$35*O30 -> 68.4 | AC30: =AA30*'5) CHP System'!$C$23*O30 -> 9.0117 | AD30: =AA30*'5) CHP System'!$C$29*O30 -> 4.9685 | AE30: =IF('5) CHP System'!$C$11*M30>=AD30,AD30,'5) CHP System'!$C$11*M30) -> 4.9685 | AF30: 0 | AG30: 0 | AI30: ='Hidden Tab2'!H26 -> 714.25 | AJ30: 68.4 | AK30: 0 | AL30: 645.85 | AN30: ='Hidden Tab2'!H26 -> 714.25 | AO30: 68.4 | AP30: 0 | AQ30: 645.85 | AS30: =LOOKUP(B30,'7) Peak & Seasons'!$G$23:$H$34) -> Winter | AT30: =IF('Hidden Tab1'!$F30="WKN",IF($AS30="Winter",IF($F30<'7) Peak & Seasons'!$H$17,0,IF('12) Hourly Simulation '!$F30>='7) Peak & Seasons'!$H$18,0,1))),0) -> 0 | AU30: =IF('Hidden Tab1'!$F30="WKN",IF($AS30="Summer",IF($F30<'7) Peak & Seasons'!$I$17,0,IF('12) Hourly Simulation '!$F30>='7) Peak & Seasons'!$I$18,0,1))),0) -> 0 | AV30: 0 | AW30: 0 | AX30: 0 | AY30: 0 | AZ30: =IF(LEFT('5) CHP System'!$C$8,1)="N",IF(ABS(AI30-AJ30-'5) CHP System'!$C$9)<0.0001,1,0),0) -> 0 | BA30: =IF('5) CHP System'!$C$11*'12) Hourly Simulation '!M30>'5) CHP System'!$C$6*'5) CHP System'!$C$29,0,1) -> 0 | BB30: 1 | BC30: =IF(P30>0,IF(P30<='5) CHP System'!$C$6,1,0),0) -> 1
A31: 1976-01-01 | B31: 1 | C31: 1 | D31: 1 | E31: -6.7 | F31: 0 | G31: =IF('Hidden Tab1'!F31="WKN",1,IF('Hidden Tab1'!F31="WE",2,"3")) -> 3 | H31: 20 | J31: 35 | K31: =J31*'13) Normalized Monthly Data'!$I$9/IF(SUM($J$8:$J$751)=0,1,SUM($J$8:$J$751)) -> 26.64216784 | L31: =LOOKUP(F31,'2a) Base thermal profile'!$B$12:$B$35,'2a) Base thermal profile'!$E$12:$E$35) -> 4.200153965 | M31: 30.8423218 | O31: =LOOKUP(B31,'5) CHP System'!$E$26:$P$27) -> 0.95 | P31: =IF('5) CHP System'!$C$35=0,0,IF(MIN('5) CHP System'!$C$6,'5) CHP System'!$C$11*M31/'5) CHP System'!$C$29,IF(LEFT('5) CHP System'!$C$8,1)="Y",'5) CHP System'!$C$6,(AI31-'5) CHP System'!$C$9)/(O31*'5) CHP System'!$C$35)))<'5) CHP System'!$C$16,0,MIN('5) CHP System'!$C$6,'5) CHP System'!$C$11*M31/'5) CHP System'!$C$29,IF(LEFT('5) CHP System'!$C$8,1)="Y",'5) CHP System'!$C$6,(AI31-'5) CHP System'!$C$9)/(O31*'5) CHP System'!$C$35))))) -> 1 | Q31: =P31*'5) CHP System'!$C$35*O31 -> 68.4 | R31: =P31*'5) CHP System'!$C$23*O31 -> 9.0117 | S31: =P31*'5) CHP System'!$C$29*O31 -> 4.9685 | T31: 4.9685 | U31: 0 | V31: =LOOKUP(B31,'5) CHP System'!$E$7:$P$8) -> 0 | X31: =IF('5) CHP System'!$C$42=0,0,(AN31-'5) CHP System'!$C$9)/(O31*'5) CHP System'!$C$35)) -> 9.22880117 | Y31: =IF(INDEX(Jan,IF(F31=0,24,F31),G31)<'5) CHP System'!$C$16,0,INDEX(Jan,IF(F31=0,24,F31),G31)) -> 1 | Z31: =IF(MIN(X31:Y31)<'5) CHP System'!$C$16,0,MIN(X31:Y31)) -> 1 | AA31: =MIN('5) CHP System'!$C$6,IF(LEFT('5) CHP System'!$C$8,1)="Y",Y31,Z31)) -> 1 | AB31: =AA31*'5) CHP System'!$C$35*O31 -> 68.4 | AC31: =AA31*'5) CHP System'!$C$23*O31 -> 9.0117 | AD31: =AA31*'5) CHP System'!$C$29*O31 -> 4.9685 | AE31: =IF('5) CHP System'!$C$11*M31>=AD31,AD31,'5) CHP System'!$C$11*M31) -> 4.9685 | AF31: 0 | AG31: 0 | AI31: ='Hidden Tab2'!H27 -> 636.25 | AJ31: 68.4 | AK31: 0 | AL31: 567.85 | AN31: ='Hidden Tab2'!H27 -> 636.25 | AO31: 68.4 | AP31: 0 | AQ31: 567.85 | AS31: =LOOKUP(B31,'7) Peak & Seasons'!$G$23:$H$34) -> Winter | AT31: =IF('Hidden Tab1'!$F31="WKN",IF($AS31="Winter",IF($F31<'7) Peak & Seasons'!$H$17,0,IF('12) Hourly Simulation '!$F31>='7) Peak & Seasons'!$H$18,0,1))),0) -> 0 | AU31: =IF('Hidden Tab1'!$F31="WKN",IF($AS31="Summer",IF($F31<'7) Peak & Seasons'!$I$17,0,IF('12) Hourly Simulation '!$F31>='7) Peak & Seasons'!$I$18,0,1))),0) -> 0 | AV31: 0 | AW31: 0 | AX31: 0 | AY31: 0 | AZ31: =IF(LEFT('5) CHP System'!$C$8,1)="N",IF(ABS(AI31-AJ31-'5) CHP System'!$C$9)<0.0001,1,0),0) -> 0 | BA31: =IF('5) CHP System'!$C$11*'12) Hourly Simulation '!M31>'5) CHP System'!$C$6*'5) CHP System'!$C$29,0,1) -> 0 | BB31: 1 | BC31: =IF(P31>0,IF(P31<='5) CHP System'!$C$6,1,0),0) -> 1
A32: 1976-01-02 | B32: 1 | C32: 2 | D32: 01:00:00 | E32: -6.7 | F32: 1 | G32: =IF('Hidden Tab1'!F32="WKN",1,IF('Hidden Tab1'!F32="WE",2,"3")) -> 1 | H32: 20 | J32: 35 | K32: =J32*'13) Normalized Monthly Data'!$I$9/IF(SUM($J$8:$J$751)=0,1,SUM($J$8:$J$751)) -> 26.64216784 | L32: =LOOKUP(F32,'2a) Base thermal profile'!$B$12:$B$35,'2a) Base thermal profile'!$E$12:$E$35) -> 3.937644342 | M32: 30.57981218 | O32: =LOOKUP(B32,'5) CHP System'!$E$26:$P$27) -> 0.95 | P32: =IF('5) CHP System'!$C$35=0,0,IF(MIN('5) CHP System'!$C$6,'5) CHP System'!$C$11*M32/'5) CHP System'!$C$29,IF(LEFT('5) CHP System'!$C$8,1)="Y",'5) CHP System'!$C$6,(AI32-'5) CHP System'!$C$9)/(O32*'5) CHP System'!$C$35)))<'5) CHP System'!$C$16,0,MIN('5) CHP System'!$C$6,'5) CHP System'!$C$11*M32/'5) CHP System'!$C$29,IF(LEFT('5) CHP System'!$C$8,1)="Y",'5) CHP System'!$C$6,(AI32-'5) CHP System'!$C$9)/(O32*'5) CHP System'!$C$35))))) -> 1 | Q32: =P32*'5) CHP System'!$C$35*O32 -> 68.4 | R32: =P32*'5) CHP System'!$C$23*O32 -> 9.0117 | S32: =P32*'5) CHP System'!$C$29*O32 -> 4.9685 | T32: 4.9685 | U32: 0 | V32: =LOOKUP(B32,'5) CHP System'!$E$7:$P$8) -> 0 | X32: =IF('5) CHP System'!$C$42=0,0,(AN32-'5) CHP System'!$C$9)/(O32*'5) CHP System'!$C$35)) -> 9.342105263 | Y32: =IF(INDEX(Jan,IF(F32=0,24,F32),G32)<'5) CHP System'!$C$16,0,INDEX(Jan,IF(F32=0,24,F32),G32)) -> 1 | Z32: =IF(MIN(X32:Y32)<'5) CHP System'!$C$16,0,MIN(X32:Y32)) -> 1 | AA32: =MIN('5) CHP System'!$C$6,IF(LEFT('5) CHP System'!$C$8,1)="Y",Y32,Z32)) -> 1 | AB32: =AA32*'5) CHP System'!$C$35*O32 -> 68.4 | AC32: =AA32*'5) CHP System'!$C$23*O32 -> 9.0117 | AD32: =AA32*'5) CHP System'!$C$29*O32 -> 4.9685 | AE32: =IF('5) CHP System'!$C$11*M32>=AD32,AD32,'5) CHP System'!$C$11*M32) -> 4.9685 | AF32: 0 | AG32: 0 | AI32: ='Hidden Tab2'!H28 -> 644 | AJ32: 68.4 | AK32: 0 | AL32: 575.6 | AN32: ='Hidden Tab2'!H28 -> 644 | AO32: 68.4 | AP32: 0 | AQ32: 575.6 | AS32: =LOOKUP(B32,'7) Peak & Seasons'!$G$23:$H$34) -> Winter | AT32: =IF('Hidden Tab1'!$F32="WKN",IF($AS32="Winter",IF($F32<'7) Peak & Seasons'!$H$17,0,IF('12) Hourly Simulation '!$F32>='7) Peak & Seasons'!$H$18,0,1))),0) -> 0 | AU32: =IF('Hidden Tab1'!$F32="WKN",IF($AS32="Summer",IF($F32<'7) Peak & Seasons'!$I$17,0,IF('12) Hourly Simulation '!$F32>='7) Peak & Seasons'!$I$18,0,1))),0) -> FALSE | AV32: 0 | AW32: 0 | AX32: 0 | AY32: 0 | AZ32: =IF(LEFT('5) CHP System'!$C$8,1)="N",IF(ABS(AI32-AJ32-'5) CHP System'!$C$9)<0.0001,1,0),0) -> 0 | BA32: =IF('5) CHP System'!$C$11*'12) Hourly Simulation '!M32>'5) CHP System'!$C$6*'5) CHP System'!$C$29,0,1) -> 0 | BB32: 1 | BC32: =IF(P32>0,IF(P32<='5) CHP System'!$C$6,1,0),0) -> 1
A33: 1976-01-02 | B33: 1 | C33: 2 | D33: 02:00:00 | E33: -7.2 | F33: 2 | G33: =IF('Hidden Tab1'!F33="WKN",1,IF('Hidden Tab1'!F33="WE",2,"3")) -> 1 | H33: 19 | J33: 36 | K33: =J33*'13) Normalized Monthly Data'!$I$9/IF(SUM($J$8:$J$751)=0,1,SUM($J$8:$J$751)) -> 27.40337263 | L33: =LOOKUP(F33,'2a) Base thermal profile'!$B$12:$B$35,'2a) Base thermal profile'!$E$12:$E$35) -> 3.150115473 | M33: 30.5534881 | O33: =LOOKUP(B33,'5) CHP System'!$E$26:$P$27) -> 0.95 | P33: =IF('5) CHP System'!$C$35=0,0,IF(MIN('5) CHP System'!$C$6,'5) CHP System'!$C$11*M33/'5) CHP System'!$C$29,IF(LEFT('5) CHP System'!$C$8,1)="Y",'5) CHP System'!$C$6,(AI33-'5) CHP System'!$C$9)/(O33*'5) CHP System'!$C$35)))<'5) CHP System'!$C$16,0,MIN('5) CHP System'!$C$6,'5) CHP System'!$C$11*M33/'5) CHP System'!$C$29,IF(LEFT('5) CHP System'!$C$8,1)="Y",'5) CHP System'!$C$6,(AI33-'5) CHP System'!$C$9)/(O33*'5) CHP System'!$C$35))))) -> 1 | Q33: =P33*'5) CHP System'!$C$35*O33 -> 68.4 | R33: =P33*'5) CHP System'!$C$23*O33 -> 9.0117 | S33: =P33*'5) CHP System'!$C$29*O33 -> 4.9685 | T33: 4.9685 | U33: 0 | V33: =LOOKUP(B33,'5) CHP System'!$E$7:$P$8) -> 0 | X33: =IF('5) CHP System'!$C$42=0,0,(AN33-'5) CHP System'!$C$9)/(O33*'5) CHP System'!$C$35)) -> 9.451754386 | Y33: =IF(INDEX(Jan,IF(F33=0,24,F33),G33)<'5) CHP System'!$C$16,0,INDEX(Jan,IF(F33=0,24,F33),G33)) -> 1 | Z33: =IF(MIN(X33:Y33)<'5) CHP System'!$C$16,0,MIN(X33:Y33)) -> 1 | AA33: =MIN('5) CHP System'!$C$6,IF(LEFT('5) CHP System'!$C$8,1)="Y",Y33,Z33)) -> 1 | AB33: =AA33*'5) CHP System'!$C$35*O33 -> 68.4 | AC33: =AA33*'5) CHP System'!$C$23*O33 -> 9.0117 | AD33: =AA33*'5) CHP System'!$C$29*O33 -> 4.9685 | AE33: =IF('5) CHP System'!$C$11*M33>=AD33,AD33,'5) CHP System'!$C$11*M33) -> 4.9685 | AF33: 0 | AG33: 0 | AI33: ='Hidden Tab2'!H29 -> 651.5 | AJ33: 68.4 | AK33: 0 | AL33: 583.1 | AN33: ='Hidden Tab2'!H29 -> 651.5 | AO33: 68.4 | AP33: 0 | AQ33: 583.1 | AS33: =LOOKUP(B33,'7) Peak & Seasons'!$G$23:$H$34) -> Winter | AT33: =IF('Hidden Tab1'!$F33="WKN",IF($AS33="Winter",IF($F33<'7) Peak & Seasons'!$H$17,0,IF('12) Hourly Simulation '!$F33>='7) Peak & Seasons'!$H$18,0,1))),0) -> 0 | AU33: =IF('Hidden Tab1'!$F33="WKN",IF($AS33="Summer",IF($F33<'7) Peak & Seasons'!$I$17,0,IF('12) Hourly Simulation '!$F33>='7) Peak & Seasons'!$I$18,0,1))),0) -> FALSE | AV33: 0 | AW33: 0 | AX33: 0 | AY33: 0 | AZ33: =IF(LEFT('5) CHP System'!$C$8,1)="N",IF(ABS(AI33-AJ33-'5) CHP System'!$C$9)<0.0001,1,0),0) -> 0 | BA33: =IF('5) CHP System'!$C$11*'12) Hourly Simulation '!M33>'5) CHP System'!$C$6*'5) CHP System'!$C$29,0,1) -> 0 | BB33: 1 | BC33: =IF(P33>0,IF(P33<='5) CHP System'!$C$6,1,0),0) -> 1
A34: 1976-01-02 | B34: 1 | C34: 2 | D34: 03:00:00 | E34: -7.8 | F34: 3 | G34: =IF('Hidden Tab1'!F34="WKN",1,IF('Hidden Tab1'!F34="WE",2,"3")) -> 1 | H34: 18 | J34: 37 | K34: =J34*'13) Normalized Monthly Data'!$I$9/IF(SUM($J$8:$J$751)=0,1,SUM($J$8:$J$751)) -> 28.16457743 | L34: =LOOKUP(F34,'2a) Base thermal profile'!$B$12:$B$35,'2a) Base thermal profile'!$E$12:$E$35) -> 3.412625096 | M34: 31.57720252 | O34: =LOOKUP(B34,'5) CHP System'!$E$26:$P$27) -> 0.95 | P34: =IF('5) CHP System'!$C$35=0,0,IF(MIN('5) CHP System'!$C$6,'5) CHP System'!$C$11*M34/'5) CHP System'!$C$29,IF(LEFT('5) CHP System'!$C$8,1)="Y",'5) CHP System'!$C$6,(AI34-'5) CHP System'!$C$9)/(O34*'5) CHP System'!$C$35)))<'5) CHP System'!$C$16,0,MIN('5) CHP System'!$C$6,'5) CHP System'!$C$11*M34/'5) CHP System'!$C$29,IF(LEFT('5) CHP System'!$C$8,1)="Y",'5) CHP System'!$C$6,(AI34-'5) CHP System'!$C$9)/(O34*'5) CHP System'!$C$35))))) -> 1 | Q34: =P34*'5) CHP System'!$C$35*O34 -> 68.4 | R34: =P34*'5) CHP System'!$C$23*O34 -> 9.0117 | S34: =P34*'5) CHP System'!$C$29*O34 -> 4.9685 | T34: 4.9685 | U34: 0 | V34: =LOOKUP(B34,'5) CHP System'!$E$7:$P$8) -> 0 | X34: =IF('5) CHP System'!$C$42=0,0,(AN34-'5) CHP System'!$C$9)/(O34*'5) CHP System'!$C$35)) -> 9.415204678 | Y34: =IF(INDEX(Jan,IF(F34=0,24,F34),G34)<'5) CHP System'!$C$16,0,INDEX(Jan,IF(F34=0,24,F34),G34)) -> 1 | Z34: =IF(MIN(X34:Y34)<'5) CHP System'!$C$16,0,MIN(X34:Y34)) -> 1 | AA34: =MIN('5) CHP System'!$C$6,IF(LEFT('5) CHP System'!$C$8,1)="Y",Y34,Z34)) -> 1 | AB34: =AA34*'5) CHP System'!$C$35*O34 -> 68.4 | AC34: =AA34*'5) CHP System'!$C$23*O34 -> 9.0117 | AD34: =AA34*'5) CHP System'!$C$29*O34 -> 4.9685 | AE34: =IF('5) CHP System'!$C$11*M34>=AD34,AD34,'5) CHP System'!$C$11*M34) -> 4.9685 | AF34: 0 | AG34: 0 | AI34: ='Hidden Tab2'!H30 -> 649 | AJ34: 68.4 | AK34: 0 | AL34: 580.6 | AN34: ='Hidden Tab2'!H30 -> 649 | AO34: 68.4 | AP34: 0 | AQ34: 580.6 | AS34: =LOOKUP(B34,'7) Peak & Seasons'!$G$23:$H$34) -> Winter | AT34: =IF('Hidden Tab1'!$F34="WKN",IF($AS34="Winter",IF($F34<'7) Peak & Seasons'!$H$17,0,IF('12) Hourly Simulation '!$F34>='7) Peak & Seasons'!$H$18,0,1))),0) -> 0 | AU34: =IF('Hidden Tab1'!$F34="WKN",IF($AS34="Summer",IF($F34<'7) Peak & Seasons'!$I$17,0,IF('12) Hourly Simulation '!$F34>='7) Peak & Seasons'!$I$18,0,1))),0) -> FALSE | AV34: 0 | AW34: 0 | AX34: 0 | AY34: 0 | AZ34: =IF(LEFT('5) CHP System'!$C$8,1)="N",IF(ABS(AI34-AJ34-'5) CHP System'!$C$9)<0.0001,1,0),0) -> 0 | BA34: =IF('5) CHP System'!$C$11*'12) Hourly Simulation '!M34>'5) CHP System'!$C$6*'5) CHP System'!$C$29,0,1) -> 0 | BB34: 1 | BC34: =IF(P34>0,IF(P34<='5) CHP System'!$C$6,1,0),0) -> 1
A35: 1976-01-02 | B35: 1 | C35: 2 | D35: 04:00:00 | E35: -7.8 | F35: 4 | G35: =IF('Hidden Tab1'!F35="WKN",1,IF('Hidden Tab1'!F35="WE",2,"3")) -> 1 | H35: 18 | J35: 37 | K35: =J35*'13) Normalized Monthly Data'!$I$9/IF(SUM($J$8:$J$751)=0,1,SUM($J$8:$J$751)) -> 28.16457743 | L35: =LOOKUP(F35,'2a) Base thermal profile'!$B$12:$B$35,'2a) Base thermal profile'!$E$12:$E$35) -> 3.150115473 | M35: 31.3146929 | O35: =LOOKUP(B35,'5) CHP System'!$E$26:$P$27) -> 0.95 | P35: =IF('5) CHP System'!$C$35=0,0,IF(MIN('5) CHP System'!$C$6,'5) CHP System'!$C$11*M35/'5) CHP System'!$C$29,IF(LEFT('5) CHP System'!$C$8,1)="Y",'5) CHP System'!$C$6,(AI35-'5) CHP System'!$C$9)/(O35*'5) CHP System'!$C$35)))<'5) CHP System'!$C$16,0,MIN('5) CHP System'!$C$6,'5) CHP System'!$C$11*M35/'5) CHP System'!$C$29,IF(LEFT('5) CHP System'!$C$8,1)="Y",'5) CHP System'!$C$6,(AI35-'5) CHP System'!$C$9)/(O35*'5) CHP System'!$C$35))))) -> 1 | Q35: =P35*'5) CHP System'!$C$35*O35 -> 68.4 | R35: =P35*'5) CHP System'!$C$23*O35 -> 9.0117 | S35: =P35*'5) CHP System'!$C$29*O35 -> 4.9685 | T35: 4.9685 | U35: 0 | V35: =LOOKUP(B35,'5) CHP System'!$E$7:$P$8) -> 0 | X35: =IF('5) CHP System'!$C$42=0,0,(AN35-'5) CHP System'!$C$9)/(O35*'5) CHP System'!$C$35)) -> 9.173976608 | Y35: =IF(INDEX(Jan,IF(F35=0,24,F35),G35)<'5) CHP System'!$C$16,0,INDEX(Jan,IF(F35=0,24,F35),G35)) -> 1 | Z35: =IF(MIN(X35:Y35)<'5) CHP System'!$C$16,0,MIN(X35:Y35)) -> 1 | AA35: =MIN('5) CHP System'!$C$6,IF(LEFT('5) CHP System'!$C$8,1)="Y",Y35,Z35)) -> 1 | AB35: =AA35*'5) CHP System'!$C$35*O35 -> 68.4 | AC35: =AA35*'5) CHP System'!$C$23*O35 -> 9.0117 | AD35: =AA35*'5) CHP System'!$C$29*O35 -> 4.9685 | AE35: =IF('5) CHP System'!$C$11*M35>=AD35,AD35,'5) CHP System'!$C$11*M35) -> 4.9685 | AF35: 0 | AG35: 0 | AI35: ='Hidden Tab2'!H31 -> 632.5 | AJ35: 68.4 | AK35: 0 | AL35: 564.1 | AN35: ='Hidden Tab2'!H31 -> 632.5 | AO35: 68.4 | AP35: 0 | AQ35: 564.1 | AS35: =LOOKUP(B35,'7) Peak & Seasons'!$G$23:$H$34) -> Winter | AT35: =IF('Hidden Tab1'!$F35="WKN",IF($AS35="Winter",IF($F35<'7) Peak & Seasons'!$H$17,0,IF('12) Hourly Simulation '!$F35>='7) Peak & Seasons'!$H$18,0,1))),0) -> 0 | AU35: =IF('Hidden Tab1'!$F35="WKN",IF($AS35="Summer",IF($F35<'7) Peak & Seasons'!$I$17,0,IF('12) Hourly Simulation '!$F35>='7) Peak & Seasons'!$I$18,0,1))),0) -> FALSE | AV35: 0 | AW35: 0 | AX35: 0 | AY35: 0 | AZ35: =IF(LEFT('5) CHP System'!$C$8,1)="N",IF(ABS(AI35-AJ35-'5) CHP System'!$C$9)<0.0001,1,0),0) -> 0 | BA35: =IF('5) CHP System'!$C$11*'12) Hourly Simulation '!M35>'5) CHP System'!$C$6*'5) CHP System'!$C$29,0,1) -> 0 | BB35: 1 | BC35: =IF(P35>0,IF(P35<='5) CHP System'!$C$6,1,0),0) -> 1
A36: 1976-01-02 | B36: 1 | C36: 2 | D36: 05:00:00 | E36: -7.8 | F36: 5 | G36: =IF('Hidden Tab1'!F36="WKN",1,IF('Hidden Tab1'!F36="WE",2,"3")) -> 1 | H36: 18 | J36: 37 | K36: =J36*'13) Normalized Monthly Data'!$I$9/IF(SUM($J$8:$J$751)=0,1,SUM($J$8:$J$751)) -> 28.16457743 | L36: =LOOKUP(F36,'2a) Base thermal profile'!$B$12:$B$35,'2a) Base thermal profile'!$E$12:$E$35) -> 3.150115473 | M36: 31.3146929 | O36: =LOOKUP(B36,'5) CHP System'!$E$26:$P$27) -> 0.95 | P36: =IF('5) CHP System'!$C$35=0,0,IF(MIN('5) CHP System'!$C$6,'5) CHP System'!$C$11*M36/'5) CHP System'!$C$29,IF(LEFT('5) CHP System'!$C$8,1)="Y",'5) CHP System'!$C$6,(AI36-'5) CHP System'!$C$9)/(O36*'5) CHP System'!$C$35)))<'5) CHP System'!$C$16,0,MIN('5) CHP System'!$C$6,'5) CHP System'!$C$11*M36/'5) CHP System'!$C$29,IF(LEFT('5) CHP System'!$C$8,1)="Y",'5) CHP System'!$C$6,(AI36-'5) CHP System'!$C$9)/(O36*'5) CHP System'!$C$35))))) -> 1 | Q36: =P36*'5) CHP System'!$C$35*O36 -> 68.4 | R36: =P36*'5) CHP System'!$C$23*O36 -> 9.0117 | S36: =P36*'5) CHP System'!$C$29*O36 -> 4.9685 | T36: 4.9685 | U36: 0 | V36: =LOOKUP(B36,'5) CHP System'!$E$7:$P$8) -> 0 | X36: =IF('5) CHP System'!$C$42=0,0,(AN36-'5) CHP System'!$C$9)/(O36*'5) CHP System'!$C$35)) -> 9.100877193 | Y36: =IF(INDEX(Jan,IF(F36=0,24,F36),G36)<'5) CHP System'!$C$16,0,INDEX(Jan,IF(F36=0,24,F36),G36)) -> 1 | Z36: =IF(MIN(X36:Y36)<'5) CHP System'!$C$16,0,MIN(X36:Y36)) -> 1 | AA36: =MIN('5) CHP System'!$C$6,IF(LEFT('5) CHP System'!$C$8,1)="Y",Y36,Z36)) -> 1 | AB36: =AA36*'5) CHP System'!$C$35*O36 -> 68.4 | AC36: =AA36*'5) CHP System'!$C$23*O36 -> 9.0117 | AD36: =AA36*'5) CHP System'!$C$29*O36 -> 4.9685 | AE36: =IF('5) CHP System'!$C$11*M36>=AD36,AD36,'5) CHP System'!$C$11*M36) -> 4.9685 | AF36: 0 | AG36: 0 | AI36: ='Hidden Tab2'!H32 -> 627.5 | AJ36: 68.4 | AK36: 0 | AL36: 559.1 | AN36: ='Hidden Tab2'!H32 -> 627.5 | AO36: 68.4 | AP36: 0 | AQ36: 559.1 | AS36: =LOOKUP(B36,'7) Peak & Seasons'!$G$23:$H$34) -> Winter | AT36: =IF('Hidden Tab1'!$F36="WKN",IF($AS36="Winter",IF($F36<'7) Peak & Seasons'!$H$17,0,IF('12) Hourly Simulation '!$F36>='7) Peak & Seasons'!$H$18,0,1))),0) -> 0 | AU36: =IF('Hidden Tab1'!$F36="WKN",IF($AS36="Summer",IF($F36<'7) Peak & Seasons'!$I$17,0,IF('12) Hourly Simulation '!$F36>='7) Peak & Seasons'!$I$18,0,1))),0) -> FALSE | AV36: 0 | AW36: 0 | AX36: 0 | AY36: 0 | AZ36: =IF(LEFT('5) CHP System'!$C$8,1)="N",IF(ABS(AI36-AJ36-'5) CHP System'!$C$9)<0.0001,1,0),0) -> 0 | BA36: =IF('5) CHP System'!$C$11*'12) Hourly Simulation '!M36>'5) CHP System'!$C$6*'5) CHP System'!$C$29,0,1) -> 0 | BB36: 1 | BC36: =IF(P36>0,IF(P36<='5) CHP System'!$C$6,1,0),0) -> 1
A37: 1976-01-02 | B37: 1 | C37: 2 | D37: 06:00:00 | E37: -8.3 | F37: 6 | G37: =IF('Hidden Tab1'!F37="WKN",1,IF('Hidden Tab1'!F37="WE",2,"3")) -> 1 | H37: 17 | J37: 38 | K37: =J37*'13) Normalized Monthly Data'!$I$9/IF(SUM($J$8:$J$751)=0,1,SUM($J$8:$J$751)) -> 28.92578222 | L37: =LOOKUP(F37,'2a) Base thermal profile'!$B$12:$B$35,'2a) Base thermal profile'!$E$12:$E$35) -> 3.937644342 | M37: 32.86342656 | O37: =LOOKUP(B37,'5) CHP System'!$E$26:$P$27) -> 0.95 | P37: =IF('5) CHP System'!$C$35=0,0,IF(MIN('5) CHP System'!$C$6,'5) CHP System'!$C$11*M37/'5) CHP System'!$C$29,IF(LEFT('5) CHP System'!$C$8,1)="Y",'5) CHP System'!$C$6,(AI37-'5) CHP System'!$C$9)/(O37*'5) CHP System'!$C$35)))<'5) CHP System'!$C$16,0,MIN('5) CHP System'!$C$6,'5) CHP System'!$C$11*M37/'5) CHP System'!$C$29,IF(LEFT('5) CHP System'!$C$8,1)="Y",'5) CHP System'!$C$6,(AI37-'5) CHP System'!$C$9)/(O37*'5) CHP System'!$C$35))))) -> 1 | Q37: =P37*'5) CHP System'!$C$35*O37 -> 68.4 | R37: =P37*'5) CHP System'!$C$23*O37 -> 9.0117 | S37: =P37*'5) CHP System'!$C$29*O37 -> 4.9685 | T37: 4.9685 | U37: 0 | V37: =LOOKUP(B37,'5) CHP System'!$E$7:$P$8) -> 0 | X37: =IF('5) CHP System'!$C$42=0,0,(AN37-'5) CHP System'!$C$9)/(O37*'5) CHP System'!$C$35)) -> 9.283625731 | Y37: =IF(INDEX(Jan,IF(F37=0,24,F37),G37)<'5) CHP System'!$C$16,0,INDEX(Jan,IF(F37=0,24,F37),G37)) -> 1 | Z37: =IF(MIN(X37:Y37)<'5) CHP System'!$C$16,0,MIN(X37:Y37)) -> 1 | AA37: =MIN('5) CHP System'!$C$6,IF(LEFT('5) CHP System'!$C$8,1)="Y",Y37,Z37)) -> 1 | AB37: =AA37*'5) CHP System'!$C$35*O37 -> 68.4 | AC37: =AA37*'5) CHP System'!$C$23*O37 -> 9.0117 | AD37: =AA37*'5) CHP System'!$C$29*O37 -> 4.9685 | AE37: =IF('5) CHP System'!$C$11*M37>=AD37,AD37,'5) CHP System'!$C$11*M37) -> 4.9685 | AF37: 0 | AG37: 0 | AI37: ='Hidden Tab2'!H33 -> 640 | AJ37: 68.4 | AK37: 0 | AL37: 571.6 | AN37: ='Hidden Tab2'!H33 -> 640 | AO37: 68.4 | AP37: 0 | AQ37: 571.6 | AS37: =LOOKUP(B37,'7) Peak & Seasons'!$G$23:$H$34) -> Winter | AT37: =IF('Hidden Tab1'!$F37="WKN",IF($AS37="Winter",IF($F37<'7) Peak & Seasons'!$H$17,0,IF('12) Hourly Simulation '!$F37>='7) Peak & Seasons'!$H$18,0,1))),0) -> 0 | AU37: =IF('Hidden Tab1'!$F37="WKN",IF($AS37="Summer",IF($F37<'7) Peak & Seasons'!$I$17,0,IF('12) Hourly Simulation '!$F37>='7) Peak & Seasons'!$I$18,0,1))),0) -> FALSE | AV37: 0 | AW37: 0 | AX37: 0 | AY37: 0 | AZ37: =IF(LEFT('5) CHP System'!$C$8,1)="N",IF(ABS(AI37-AJ37-'5) CHP System'!$C$9)<0.0001,1,0),0) -> 0 | BA37: =IF('5) CHP System'!$C$11*'12) Hourly Simulation '!M37>'5) CHP System'!$C$6*'5) CHP System'!$C$29,0,1) -> 0 | BB37: 1 | BC37: =IF(P37>0,IF(P37<='5) CHP System'!$C$6,1,0),0) -> 1
A38: 1976-01-02 | B38: 1 | C38: 2 | D38: 07:00:00 | E38: -8.3 | F38: 7 | G38: =IF('Hidden Tab1'!F38="WKN",1,IF('Hidden Tab1'!F38="WE",2,"3")) -> 1 | H38: 17 | J38: 38 | K38: =J38*'13) Normalized Monthly Data'!$I$9/IF(SUM($J$8:$J$751)=0,1,SUM($J$8:$J$751)) -> 28.92578222 | L38: =LOOKUP(F38,'2a) Base thermal profile'!$B$12:$B$35,'2a) Base thermal profile'!$E$12:$E$35) -> 4.72517321 | M38: 33.65095543 | O38: =LOOKUP(B38,'5) CHP System'!$E$26:$P$27) -> 0.95 | P38: =IF('5) CHP System'!$C$35=0,0,IF(MIN('5) CHP System'!$C$6,'5) CHP System'!$C$11*M38/'5) CHP System'!$C$29,IF(LEFT('5) CHP System'!$C$8,1)="Y",'5) CHP System'!$C$6,(AI38-'5) CHP System'!$C$9)/(O38*'5) CHP System'!$C$35)))<'5) CHP System'!$C$16,0,MIN('5) CHP System'!$C$6,'5) CHP System'!$C$11*M38/'5) CHP System'!$C$29,IF(LEFT('5) CHP System'!$C$8,1)="Y",'5) CHP System'!$C$6,(AI38-'5) CHP System'!$C$9)/(O38*'5) CHP System'!$C$35))))) -> 1 | Q38: =P38*'5) CHP System'!$C$35*O38 -> 68.4 | R38: =P38*'5) CHP System'!$C$23*O38 -> 9.0117 | S38: =P38*'5) CHP System'!$C$29*O38 -> 4.9685 | T38: 4.9685 | U38: 0 | V38: =LOOKUP(B38,'5) CHP System'!$E$7:$P$8) -> 0 | X38: =IF('5) CHP System'!$C$42=0,0,(AN38-'5) CHP System'!$C$9)/(O38*'5) CHP System'!$C$35)) -> 10.35087719 | Y38: =IF(INDEX(Jan,IF(F38=0,24,F38),G38)<'5) CHP System'!$C$16,0,INDEX(Jan,IF(F38=0,24,F38),G38)) -> 1 | Z38: =IF(MIN(X38:Y38)<'5) CHP System'!$C$16,0,MIN(X38:Y38)) -> 1 | AA38: =MIN('5) CHP System'!$C$6,IF(LEFT('5) CHP System'!$C$8,1)="Y",Y38,Z38)) -> 1 | AB38: =AA38*'5) CHP System'!$C$35*O38 -> 68.4 | AC38: =AA38*'5) CHP System'!$C$23*O38 -> 9.0117 | AD38: =AA38*'5) CHP System'!$C$29*O38 -> 4.9685 | AE38: =IF('5) CHP System'!$C$11*M38>=AD38,AD38,'5) CHP System'!$C$11*M38) -> 4.9685 | AF38: 0 | AG38: 0 | AI38: ='Hidden Tab2'!H34 -> 713 | AJ38: 68.4 | AK38: 0 | AL38: 644.6 | AN38: ='Hidden Tab2'!H34 -> 713 | AO38: 68.4 | AP38: 0 | AQ38: 644.6 | AS38: =LOOKUP(B38,'7) Peak & Seasons'!$G$23:$H$34) -> Winter | AT38: =IF('Hidden Tab1'!$F38="WKN",IF($AS38="Winter",IF($F38<'7) Peak & Seasons'!$H$17,0,IF('12) Hourly Simulation '!$F38>='7) Peak & Seasons'!$H$18,0,1))),0) -> 0 | AU38: =IF('Hidden Tab1'!$F38="WKN",IF($AS38="Summer",IF($F38<'7) Peak & Seasons'!$I$17,0,IF('12) Hourly Simulation '!$F38>='7) Peak & Seasons'!$I$18,0,1))),0) -> FALSE | AV38: 0 | AW38: 0 | AX38: 0 | AY38: 0 | AZ38: =IF(LEFT('5) CHP System'!$C$8,1)="N",IF(ABS(AI38-AJ38-'5) CHP System'!$C$9)<0.0001,1,0),0) -> 0 | BA38: =IF('5) CHP System'!$C$11*'12) Hourly Simulation '!M38>'5) CHP System'!$C$6*'5) CHP System'!$C$29,0,1) -> 0 | BB38: 1 | BC38: =IF(P38>0,IF(P38<='5) CHP System'!$C$6,1,0),0) -> 1
A39: 1976-01-02 | B39: 1 | C39: 2 | D39: 08:00:00 | E39: -8.3 | F39: 8 | G39: =IF('Hidden Tab1'!F39="WKN",1,IF('Hidden Tab1'!F39="WE",2,"3")) -> 1 | H39: 17 | J39: 38 | K39: =J39*'13) Normalized Monthly Data'!$I$9/IF(SUM($J$8:$J$751)=0,1,SUM($J$8:$J$751)) -> 28.92578222 | L39: =LOOKUP(F39,'2a) Base thermal profile'!$B$12:$B$35,'2a) Base thermal profile'!$E$12:$E$35) -> 7.612779061 | M39: 36.53856128 | O39: =LOOKUP(B39,'5) CHP System'!$E$26:$P$27) -> 0.95 | P39: =IF('5) CHP System'!$C$35=0,0,IF(MIN('5) CHP System'!$C$6,'5) CHP System'!$C$11*M39/'5) CHP System'!$C$29,IF(LEFT('5) CHP System'!$C$8,1)="Y",'5) CHP System'!$C$6,(AI39-'5) CHP System'!$C$9)/(O39*'5) CHP System'!$C$35)))<'5) CHP System'!$C$16,0,MIN('5) CHP System'!$C$6,'5) CHP System'!$C$11*M39/'5) CHP System'!$C$29,IF(LEFT('5) CHP System'!$C$8,1)="Y",'5) CHP System'!$C$6,(AI39-'5) CHP System'!$C$9)/(O39*'5) CHP System'!$C$35))))) -> 1 | Q39: =P39*'5) CHP System'!$C$35*O39 -> 68.4 | R39: =P39*'5) CHP System'!$C$23*O39 -> 9.0117 | S39: =P39*'5) CHP System'!$C$29*O39 -> 4.9685 | T39: 4.9685 | U39: 0 | V39: =LOOKUP(B39,'5) CHP System'!$E$7:$P$8) -> 0 | X39: =IF('5) CHP System'!$C$42=0,0,(AN39-'5) CHP System'!$C$9)/(O39*'5) CHP System'!$C$35)) -> 10.27412281 | Y39: =IF(INDEX(Jan,IF(F39=0,24,F39),G39)<'5) CHP System'!$C$16,0,INDEX(Jan,IF(F39=0,24,F39),G39)) -> 1 | Z39: =IF(MIN(X39:Y39)<'5) CHP System'!$C$16,0,MIN(X39:Y39)) -> 1 | AA39: =MIN('5) CHP System'!$C$6,IF(LEFT('5) CHP System'!$C$8,1)="Y",Y39,Z39)) -> 1 | AB39: =AA39*'5) CHP System'!$C$35*O39 -> 68.4 | AC39: =AA39*'5) CHP System'!$C$23*O39 -> 9.0117 | AD39: =AA39*'5) CHP System'!$C$29*O39 -> 4.9685 | AE39: =IF('5) CHP System'!$C$11*M39>=AD39,AD39,'5) CHP System'!$C$11*M39) -> 4.9685 | AF39: 0 | AG39: 0 | AI39: ='Hidden Tab2'!H35 -> 707.75 | AJ39: 68.4 | AK39: 0 | AL39: 639.35 | AN39: ='Hidden Tab2'!H35 -> 707.75 | AO39: 68.4 | AP39: 0 | AQ39: 639.35 | AS39: =LOOKUP(B39,'7) Peak & Seasons'!$G$23:$H$34) -> Winter | AT39: =IF('Hidden Tab1'!$F39="WKN",IF($AS39="Winter",IF($F39<'7) Peak & Seasons'!$H$17,0,IF('12) Hourly Simulation '!$F39>='7) Peak & Seasons'!$H$18,0,1))),0) -> 0 | AU39: =IF('Hidden Tab1'!$F39="WKN",IF($AS39="Summer",IF($F39<'7) Peak & Seasons'!$I$17,0,IF('12) Hourly Simulation '!$F39>='7) Peak & Seasons'!$I$18,0,1))),0) -> FALSE | AV39: 0 | AW39: 0 | AX39: 0 | AY39: 0 | AZ39: =IF(LEFT('5) CHP System'!$C$8,1)="N",IF(ABS(AI39-AJ39-'5) CHP System'!$C$9)<0.0001,1,0),0) -> 0 | BA39: =IF('5) CHP System'!$C$11*'12) Hourly Simulation '!M39>'5) CHP System'!$C$6*'5) CHP System'!$C$29,0,1) -> 0 | BB39: 1 | BC39: =IF(P39>0,IF(P39<='5) CHP System'!$C$6,1,0),0) -> 1
A40: 1976-01-02 | B40: 1 | C40: 2 | D40: 09:00:00 | E40: -7.2 | F40: 9 | G40: =IF('Hidden Tab1'!F40="WKN",1,IF('Hidden Tab1'!F40="WE",2,"3")) -> 1 | H40: 19 | J40: 36 | K40: =J40*'13) Normalized Monthly Data'!$I$9/IF(SUM($J$8:$J$751)=0,1,SUM($J$8:$J$751)) -> 27.40337263 | L40: =LOOKUP(F40,'2a) Base thermal profile'!$B$12:$B$35,'2a) Base thermal profile'!$E$12:$E$35) -> 6.56274057 | M40: 33.9661132 | O40: =LOOKUP(B40,'5) CHP System'!$E$26:$P$27) -> 0.95 | P40: =IF('5) CHP System'!$C$35=0,0,IF(MIN('5) CHP System'!$C$6,'5) CHP System'!$C$11*M40/'5) CHP System'!$C$29,IF(LEFT('5) CHP System'!$C$8,1)="Y",'5) CHP System'!$C$6,(AI40-'5) CHP System'!$C$9)/(O40*'5) CHP System'!$C$35)))<'5) CHP System'!$C$16,0,MIN('5) CHP System'!$C$6,'5) CHP System'!$C$11*M40/'5) CHP System'!$C$29,IF(LEFT('5) CHP System'!$C$8,1)="Y",'5) CHP System'!$C$6,(AI40-'5) CHP System'!$C$9)/(O40*'5) CHP System'!$C$35))))) -> 1 | Q40: =P40*'5) CHP System'!$C$35*O40 -> 68.4 | R40: =P40*'5) CHP System'!$C$23*O40 -> 9.0117 | S40: =P40*'5) CHP System'!$C$29*O40 -> 4.9685 | T40: 4.9685 | U40: 0 | V40: =LOOKUP(B40,'5) CHP System'!$E$7:$P$8) -> 0 | X40: =IF('5) CHP System'!$C$42=0,0,(AN40-'5) CHP System'!$C$9)/(O40*'5) CHP System'!$C$35)) -> 9.80628655 | Y40: =IF(INDEX(Jan,IF(F40=0,24,F40),G40)<'5) CHP System'!$C$16,0,INDEX(Jan,IF(F40=0,24,F40),G40)) -> 1 | Z40: =IF(MIN(X40:Y40)<'5) CHP System'!$C$16,0,MIN(X40:Y40)) -> 1 | AA40: =MIN('5) CHP System'!$C$6,IF(LEFT('5) CHP System'!$C$8,1)="Y",Y40,Z40)) -> 1 | AB40: =AA40*'5) CHP System'!$C$35*O40 -> 68.4 | AC40: =AA40*'5) CHP System'!$C$23*O40 -> 9.0117 | AD40: =AA40*'5) CHP System'!$C$29*O40 -> 4.9685 | AE40: =IF('5) CHP System'!$C$11*M40>=AD40,AD40,'5) CHP System'!$C$11*M40) -> 4.9685 | AF40: 0 | AG40: 0 | AI40: ='Hidden Tab2'!H36 -> 675.75 | AJ40: 68.4 | AK40: 0 | AL40: 607.35 | AN40: ='Hidden Tab2'!H36 -> 675.75 | AO40: 68.4 | AP40: 0 | AQ40: 607.35 | AS40: =LOOKUP(B40,'7) Peak & Seasons'!$G$23:$H$34) -> Winter | AT40: =IF('Hidden Tab1'!$F40="WKN",IF($AS40="Winter",IF($F40<'7) Peak & Seasons'!$H$17,0,IF('12) Hourly Simulation '!$F40>='7) Peak & Seasons'!$H$18,0,1))),0) -> 0 | AU40: =IF('Hidden Tab1'!$F40="WKN",IF($AS40="Summer",IF($F40<'7) Peak & Seasons'!$I$17,0,IF('12) Hourly Simulation '!$F40>='7) Peak & Seasons'!$I$18,0,1))),0) -> FALSE | AV40: 0 | AW40: 0 | AX40: 0 | AY40: 0 | AZ40: =IF(LEFT('5) CHP System'!$C$8,1)="N",IF(ABS(AI40-AJ40-'5) CHP System'!$C$9)<0.0001,1,0),0) -> 0 | BA40: =IF('5) CHP System'!$C$11*'12) Hourly Simulation '!M40>'5) CHP System'!$C$6*'5) CHP System'!$C$29,0,1) -> 0 | BB40: 1 | BC40: =IF(P40>0,IF(P40<='5) CHP System'!$C$6,1,0),0) -> 1
A41: 1976-01-02 | B41: 1 | C41: 2 | D41: 10:00:00 | E41: -5.6 | F41: 10 | G41: =IF('Hidden Tab1'!F41="WKN",1,IF('Hidden Tab1'!F41="WE",2,"3")) -> 1 | H41: 22 | J41: 33 | K41: =J41*'13) Normalized Monthly Data'!$I$9/IF(SUM($J$8:$J$751)=0,1,SUM($J$8:$J$751)) -> 25.11975825 | L41: =LOOKUP(F41,'2a) Base thermal profile'!$B$12:$B$35,'2a) Base thermal profile'!$E$12:$E$35) -> 6.037721324 | M41: 31.15747957 | O41: =LOOKUP(B41,'5) CHP System'!$E$26:$P$27) -> 0.95 | P41: =IF('5) CHP System'!$C$35=0,0,IF(MIN('5) CHP System'!$C$6,'5) CHP System'!$C$11*M41/'5) CHP System'!$C$29,IF(LEFT('5) CHP System'!$C$8,1)="Y",'5) CHP System'!$C$6,(AI41-'5) CHP System'!$C$9)/(O41*'5) CHP System'!$C$35)))<'5) CHP System'!$C$16,0,MIN('5) CHP System'!$C$6,'5) CHP System'!$C$11*M41/'5) CHP System'!$C$29,IF(LEFT('5) CHP System'!$C$8,1)="Y",'5) CHP System'!$C$6,(AI41-'5) CHP System'!$C$9)/(O41*'5) CHP System'!$C$35))))) -> 1 | Q41: =P41*'5) CHP System'!$C$35*O41 -> 68.4 | R41: =P41*'5) CHP System'!$C$23*O41 -> 9.0117 | S41: =P41*'5) CHP System'!$C$29*O41 -> 4.9685 | T41: 4.9685 | U41: 0 | V41: =LOOKUP(B41,'5) CHP System'!$E$7:$P$8) -> 0 | X41: =IF('5) CHP System'!$C$42=0,0,(AN41-'5) CHP System'!$C$9)/(O41*'5) CHP System'!$C$35)) -> 10.41666667 | Y41: =IF(INDEX(Jan,IF(F41=0,24,F41),G41)<'5) CHP System'!$C$16,0,INDEX(Jan,IF(F41=0,24,F41),G41)) -> 1 | Z41: =IF(MIN(X41:Y41)<'5) CHP System'!$C$16,0,MIN(X41:Y41)) -> 1 | AA41: =MIN('5) CHP System'!$C$6,IF(LEFT('5) CHP System'!$C$8,1)="Y",Y41,Z41)) -> 1 | AB41: =AA41*'5) CHP System'!$C$35*O41 -> 68.4 | AC41: =AA41*'5) CHP System'!$C$23*O41 -> 9.0117 | AD41: =AA41*'5) CHP System'!$C$29*O41 -> 4.9685 | AE41: =IF('5) CHP System'!$C$11*M41>=AD41,AD41,'5) CHP System'!$C$11*M41) -> 4.9685 | AF41: 0 | AG41: 0 | AI41: ='Hidden Tab2'!H37 -> 717.5 | AJ41: 68.4 | AK41: 0 | AL41: 649.1 | AN41: ='Hidden Tab2'!H37 -> 717.5 | AO41: 68.4 | AP41: 0 | AQ41: 649.1 | AS41: =LOOKUP(B41,'7) Peak & Seasons'!$G$23:$H$34) -> Winter | AT41: =IF('Hidden Tab1'!$F41="WKN",IF($AS41="Winter",IF($F41<'7) Peak & Seasons'!$H$17,0,IF('12) Hourly Simulation '!$F41>='7) Peak & Seasons'!$H$18,0,1))),0) -> 0 | AU41: =IF('Hidden Tab1'!$F41="WKN",IF($AS41="Summer",IF($F41<'7) Peak & Seasons'!$I$17,0,IF('12) Hourly Simulation '!$F41>='7) Peak & Seasons'!$I$18,0,1))),0) -> FALSE | AV41: 0 | AW41: 0 | AX41: 0 | AY41: 0 | AZ41: =IF(LEFT('5) CHP System'!$C$8,1)="N",IF(ABS(AI41-AJ41-'5) CHP System'!$C$9)<0.0001,1,0),0) -> 0 | BA41: =IF('5) CHP System'!$C$11*'12) Hourly Simulation '!M41>'5) CHP System'!$C$6*'5) CHP System'!$C$29,0,1) -> 0 | BB41: 1 | BC41: =IF(P41>0,IF(P41<='5) CHP System'!$C$6,1,0),0) -> 1
A42: 1976-01-02 | B42: 1 | C42: 2 | D42: 11:00:00 | E42: -4.4 | F42: 11 | G42: =IF('Hidden Tab1'!F42="WKN",1,IF('Hidden Tab1'!F42="WE",2,"3")) -> 1 | H42: 24 | J42: 31 | K42: =J42*'13) Normalized Monthly Data'!$I$9/IF(SUM($J$8:$J$751)=0,1,SUM($J$8:$J$751)) -> 23.59734865 | L42: =LOOKUP(F42,'2a) Base thermal profile'!$B$12:$B$35,'2a) Base thermal profile'!$E$12:$E$35) -> 5.250192456 | M42: 28.84754111 | O42: =LOOKUP(B42,'5) CHP System'!$E$26:$P$27) -> 0.95 | P42: =IF('5) CHP System'!$C$35=0,0,IF(MIN('5) CHP System'!$C$6,'5) CHP System'!$C$11*M42/'5) CHP System'!$C$29,IF(LEFT('5) CHP System'!$C$8,1)="Y",'5) CHP System'!$C$6,(AI42-'5) CHP System'!$C$9)/(O42*'5) CHP System'!$C$35)))<'5) CHP System'!$C$16,0,MIN('5) CHP System'!$C$6,'5) CHP System'!$C$11*M42/'5) CHP System'!$C$29,IF(LEFT('5) CHP System'!$C$8,1)="Y",'5) CHP System'!$C$6,(AI42-'5) CHP System'!$C$9)/(O42*'5) CHP System'!$C$35))))) -> 1 | Q42: =P42*'5) CHP System'!$C$35*O42 -> 68.4 | R42: =P42*'5) CHP System'!$C$23*O42 -> 9.0117 | S42: =P42*'5) CHP System'!$C$29*O42 -> 4.9685 | T42: 4.9685 | U42: 0 | V42: =LOOKUP(B42,'5) CHP System'!$E$7:$P$8) -> 0 | X42: =IF('5) CHP System'!$C$42=0,0,(AN42-'5) CHP System'!$C$9)/(O42*'5) CHP System'!$C$35)) -> 9.744152047 | Y42: =IF(INDEX(Jan,IF(F42=0,24,F42),G42)<'5) CHP System'!$C$16,0,INDEX(Jan,IF(F42=0,24,F42),G42)) -> 1 | Z42: =IF(MIN(X42:Y42)<'5) CHP System'!$C$16,0,MIN(X42:Y42)) -> 1 | AA42: =MIN('5) CHP System'!$C$6,IF(LEFT('5) CHP System'!$C$8,1)="Y",Y42,Z42)) -> 1 | AB42: =AA42*'5) CHP System'!$C$35*O42 -> 68.4 | AC42: =AA42*'5) CHP System'!$C$23*O42 -> 9.0117 | AD42: =AA42*'5) CHP System'!$C$29*O42 -> 4.9685 | AE42: =IF('5) CHP System'!$C$11*M42>=AD42,AD42,'5) CHP System'!$C$11*M42) -> 4.9685 | AF42: 0 | AG42: 0 | AI42: ='Hidden Tab2'!H38 -> 671.5 | AJ42: 68.4 | AK42: 0 | AL42: 603.1 | AN42: ='Hidden Tab2'!H38 -> 671.5 | AO42: 68.4 | AP42: 0 | AQ42: 603.1 | AS42: =LOOKUP(B42,'7) Peak & Seasons'!$G$23:$H$34) -> Winter | AT42: =IF('Hidden Tab1'!$F42="WKN",IF($AS42="Winter",IF($F42<'7) Peak & Seasons'!$H$17,0,IF('12) Hourly Simulation '!$F42>='7) Peak & Seasons'!$H$18,0,1))),0) -> 0 | AU42: =IF('Hidden Tab1'!$F42="WKN",IF($AS42="Summer",IF($F42<'7) Peak & Seasons'!$I$17,0,IF('12) Hourly Simulation '!$F42>='7) Peak & Seasons'!$I$18,0,1))),0) -> FALSE | AV42: 0 | AW42: 0 | AX42: 0 | AY42: 0 | AZ42: =IF(LEFT('5) CHP System'!$C$8,1)="N",IF(ABS(AI42-AJ42-'5) CHP System'!$C$9)<0.0001,1,0),0) -> 0 | BA42: =IF('5) CHP System'!$C$11*'12) Hourly Simulation '!M42>'5) CHP System'!$C$6*'5) CHP System'!$C$29,0,1) -> 0 | BB42: 1 | BC42: =IF(P42>0,IF(P42<='5) CHP System'!$C$6,1,0),0) -> 1
A43: 1976-01-02 | B43: 1 | C43: 2 | D43: 12:00:00 | E43: -3.3 | F43: 12 | G43: =IF('Hidden Tab1'!F43="WKN",1,IF('Hidden Tab1'!F43="WE",2,"3")) -> 1 | H43: 26 | J43: 29 | K43: =J43*'13) Normalized Monthly Data'!$I$9/IF(SUM($J$8:$J$751)=0,1,SUM($J$8:$J$751)) -> 22.07493906 | L43: =LOOKUP(F43,'2a) Base thermal profile'!$B$12:$B$35,'2a) Base thermal profile'!$E$12:$E$35) -> 5.250192456 | M43: 27.32513152 | O43: =LOOKUP(B43,'5) CHP System'!$E$26:$P$27) -> 0.95 | P43: =IF('5) CHP System'!$C$35=0,0,IF(MIN('5) CHP System'!$C$6,'5) CHP System'!$C$11*M43/'5) CHP System'!$C$29,IF(LEFT('5) CHP System'!$C$8,1)="Y",'5) CHP System'!$C$6,(AI43-'5) CHP System'!$C$9)/(O43*'5) CHP System'!$C$35)))<'5) CHP System'!$C$16,0,MIN('5) CHP System'!$C$6,'5) CHP System'!$C$11*M43/'5) CHP System'!$C$29,IF(LEFT('5) CHP System'!$C$8,1)="Y",'5) CHP System'!$C$6,(AI43-'5) CHP System'!$C$9)/(O43*'5) CHP System'!$C$35))))) -> 1 | Q43: =P43*'5) CHP System'!$C$35*O43 -> 68.4 | R43: =P43*'5) CHP System'!$C$23*O43 -> 9.0117 | S43: =P43*'5) CHP System'!$C$29*O43 -> 4.9685 | T43: 4.9685 | U43: 0 | V43: =LOOKUP(B43,'5) CHP System'!$E$7:$P$8) -> 0 | X43: =IF('5) CHP System'!$C$42=0,0,(AN43-'5) CHP System'!$C$9)/(O43*'5) CHP System'!$C$35)) -> 9.312865497 | Y43: =IF(INDEX(Jan,IF(F43=0,24,F43),G43)<'5) CHP System'!$C$16,0,INDEX(Jan,IF(F43=0,24,F43),G43)) -> 1 | Z43: =IF(MIN(X43:Y43)<'5) CHP System'!$C$16,0,MIN(X43:Y43)) -> 1 | AA43: =MIN('5) CHP System'!$C$6,IF(LEFT('5) CHP System'!$C$8,1)="Y",Y43,Z43)) -> 1 | AB43: =AA43*'5) CHP System'!$C$35*O43 -> 68.4 | AC43: =AA43*'5) CHP System'!$C$23*O43 -> 9.0117 | AD43: =AA43*'5) CHP System'!$C$29*O43 -> 4.9685 | AE43: =IF('5) CHP System'!$C$11*M43>=AD43,AD43,'5) CHP System'!$C$11*M43) -> 4.9685 | AF43: 0 | AG43: 0 | AI43: ='Hidden Tab2'!H39 -> 642 | AJ43: 68.4 | AK43: 0 | AL43: 573.6 | AN43: ='Hidden Tab2'!H39 -> 642 | AO43: 68.4 | AP43: 0 | AQ43: 573.6 | AS43: =LOOKUP(B43,'7) Peak & Seasons'!$G$23:$H$34) -> Winter | AT43: =IF('Hidden Tab1'!$F43="WKN",IF($AS43="Winter",IF($F43<'7) Peak & Seasons'!$H$17,0,IF('12) Hourly Simulation '!$F43>='7) Peak & Seasons'!$H$18,0,1))),0) -> 0 | AU43: =IF('Hidden Tab1'!$F43="WKN",IF($AS43="Summer",IF($F43<'7) Peak & Seasons'!$I$17,0,IF('12) Hourly Simulation '!$F43>='7) Peak & Seasons'!$I$18,0,1))),0) -> FALSE | AV43: 0 | AW43: 0 | AX43: 0 | AY43: 0 | AZ43: =IF(LEFT('5) CHP System'!$C$8,1)="N",IF(ABS(AI43-AJ43-'5) CHP System'!$C$9)<0.0001,1,0),0) -> 0 | BA43: =IF('5) CHP System'!$C$11*'12) Hourly Simulation '!M43>'5) CHP System'!$C$6*'5) CHP System'!$C$29,0,1) -> 0 | BB43: 1 | BC43: =IF(P43>0,IF(P43<='5) CHP System'!$C$6,1,0),0) -> 1
A44: 1976-01-02 | B44: 1 | C44: 2 | D44: 13:00:00 | E44: -1.7 | F44: 13 | G44: =IF('Hidden Tab1'!F44="WKN",1,IF('Hidden Tab1'!F44="WE",2,"3")) -> 1 | H44: 29 | J44: 26 | K44: =J44*'13) Normalized Monthly Data'!$I$9/IF(SUM($J$8:$J$751)=0,1,SUM($J$8:$J$751)) -> 19.79132468 | L44: =LOOKUP(F44,'2a) Base thermal profile'!$B$12:$B$35,'2a) Base thermal profile'!$E$12:$E$35) -> 4.72517321 | M44: 24.51649789 | O44: =LOOKUP(B44,'5) CHP System'!$E$26:$P$27) -> 0.95 | P44: =IF('5) CHP System'!$C$35=0,0,IF(MIN('5) CHP System'!$C$6,'5) CHP System'!$C$11*M44/'5) CHP System'!$C$29,IF(LEFT('5) CHP System'!$C$8,1)="Y",'5) CHP System'!$C$6,(AI44-'5) CHP System'!$C$9)/(O44*'5) CHP System'!$C$35)))<'5) CHP System'!$C$16,0,MIN('5) CHP System'!$C$6,'5) CHP System'!$C$11*M44/'5) CHP System'!$C$29,IF(LEFT('5) CHP System'!$C$8,1)="Y",'5) CHP System'!$C$6,(AI44-'5) CHP System'!$C$9)/(O44*'5) CHP System'!$C$35))))) -> 1 | Q44: =P44*'5) CHP System'!$C$35*O44 -> 68.4 | R44: =P44*'5) CHP System'!$C$23*O44 -> 9.0117 | S44: =P44*'5) CHP System'!$C$29*O44 -> 4.9685 | T44: 4.9685 | U44: 0 | V44: =LOOKUP(B44,'5) CHP System'!$E$7:$P$8) -> 0 | X44: =IF('5) CHP System'!$C$42=0,0,(AN44-'5) CHP System'!$C$9)/(O44*'5) CHP System'!$C$35)) -> 9.367690058 | Y44: =IF(INDEX(Jan,IF(F44=0,24,F44),G44)<'5) CHP System'!$C$16,0,INDEX(Jan,IF(F44=0,24,F44),G44)) -> 1 | Z44: =IF(MIN(X44:Y44)<'5) CHP System'!$C$16,0,MIN(X44:Y44)) -> 1 | AA44: =MIN('5) CHP System'!$C$6,IF(LEFT('5) CHP System'!$C$8,1)="Y",Y44,Z44)) -> 1 | AB44: =AA44*'5) CHP System'!$C$35*O44 -> 68.4 | AC44: =AA44*'5) CHP System'!$C$23*O44 -> 9.0117 | AD44: =AA44*'5) CHP System'!$C$29*O44 -> 4.9685 | AE44: =IF('5) CHP System'!$C$11*M44>=AD44,AD44,'5) CHP System'!$C$11*M44) -> 4.9685 | AF44: 0 | AG44: 0 | AI44: ='Hidden Tab2'!H40 -> 645.75 | AJ44: 68.4 | AK44: 0 | AL44: 577.35 | AN44: ='Hidden Tab2'!H40 -> 645.75 | AO44: 68.4 | AP44: 0 | AQ44: 577.35 | AS44: =LOOKUP(B44,'7) Peak & Seasons'!$G$23:$H$34) -> Winter | AT44: =IF('Hidden Tab1'!$F44="WKN",IF($AS44="Winter",IF($F44<'7) Peak & Seasons'!$H$17,0,IF('12) Hourly Simulation '!$F44>='7) Peak & Seasons'!$H$18,0,1))),0) -> 0 | AU44: =IF('Hidden Tab1'!$F44="WKN",IF($AS44="Summer",IF($F44<'7) Peak & Seasons'!$I$17,0,IF('12) Hourly Simulation '!$F44>='7) Peak & Seasons'!$I$18,0,1))),0) -> FALSE | AV44: 0 | AW44: 0 | AX44: 0 | AY44: 0 | AZ44: =IF(LEFT('5) CHP System'!$C$8,1)="N",IF(ABS(AI44-AJ44-'5) CHP System'!$C$9)<0.0001,1,0),0) -> 0 | BA44: =IF('5) CHP System'!$C$11*'12) Hourly Simulation '!M44>'5) CHP System'!$C$6*'5) CHP System'!$C$29,0,1) -> 0 | BB44: 1 | BC44: =IF(P44>0,IF(P44<='5) CHP System'!$C$6,1,0),0) -> 1
A45: 1976-01-02 | B45: 1 | C45: 2 | D45: 14:00:00 | E45: -1.1 | F45: 14 | G45: =IF('Hidden Tab1'!F45="WKN",1,IF('Hidden Tab1'!F45="WE",2,"3")) -> 1 | H45: 30 | J45: 25 | K45: =J45*'13) Normalized Monthly Data'!$I$9/IF(SUM($J$8:$J$751)=0,1,SUM($J$8:$J$751)) -> 19.03011988 | L45: =LOOKUP(F45,'2a) Base thermal profile'!$B$12:$B$35,'2a) Base thermal profile'!$E$12:$E$35) -> 3.937644342 | M45: 22.96776422 | O45: =LOOKUP(B45,'5) CHP System'!$E$26:$P$27) -> 0.95 | P45: =IF('5) CHP System'!$C$35=0,0,IF(MIN('5) CHP System'!$C$6,'5) CHP System'!$C$11*M45/'5) CHP System'!$C$29,IF(LEFT('5) CHP System'!$C$8,1)="Y",'5) CHP System'!$C$6,(AI45-'5) CHP System'!$C$9)/(O45*'5) CHP System'!$C$35)))<'5) CHP System'!$C$16,0,MIN('5) CHP System'!$C$6,'5) CHP System'!$C$11*M45/'5) CHP System'!$C$29,IF(LEFT('5) CHP System'!$C$8,1)="Y",'5) CHP System'!$C$6,(AI45-'5) CHP System'!$C$9)/(O45*'5) CHP System'!$C$35))))) -> 1 | Q45: =P45*'5) CHP System'!$C$35*O45 -> 68.4 | R45: =P45*'5) CHP System'!$C$23*O45 -> 9.0117 | S45: =P45*'5) CHP System'!$C$29*O45 -> 4.9685 | T45: 4.9685 | U45: 0 | V45: =LOOKUP(B45,'5) CHP System'!$E$7:$P$8) -> 0 | X45: =IF('5) CHP System'!$C$42=0,0,(AN45-'5) CHP System'!$C$9)/(O45*'5) CHP System'!$C$35)) -> 9.367690058 | Y45: =IF(INDEX(Jan,IF(F45=0,24,F45),G45)<'5) CHP System'!$C$16,0,INDEX(Jan,IF(F45=0,24,F45),G45)) -> 1 | Z45: =IF(MIN(X45:Y45)<'5) CHP System'!$C$16,0,MIN(X45:Y45)) -> 1 | AA45: =MIN('5) CHP System'!$C$6,IF(LEFT('5) CHP System'!$C$8,1)="Y",Y45,Z45)) -> 1 | AB45: =AA45*'5) CHP System'!$C$35*O45 -> 68.4 | AC45: =AA45*'5) CHP System'!$C$23*O45 -> 9.0117 | AD45: =AA45*'5) CHP System'!$C$29*O45 -> 4.9685 | AE45: =IF('5) CHP System'!$C$11*M45>=AD45,AD45,'5) CHP System'!$C$11*M45) -> 4.9685 | AF45: 0 | AG45: 0 | AI45: ='Hidden Tab2'!H41 -> 645.75 | AJ45: 68.4 | AK45: 0 | AL45: 577.35 | AN45: ='Hidden Tab2'!H41 -> 645.75 | AO45: 68.4 | AP45: 0 | AQ45: 577.35 | AS45: =LOOKUP(B45,'7) Peak & Seasons'!$G$23:$H$34) -> Winter | AT45: =IF('Hidden Tab1'!$F45="WKN",IF($AS45="Winter",IF($F45<'7) Peak & Seasons'!$H$17,0,IF('12) Hourly Simulation '!$F45>='7) Peak & Seasons'!$H$18,0,1))),0) -> 0 | AU45: =IF('Hidden Tab1'!$F45="WKN",IF($AS45="Summer",IF($F45<'7) Peak & Seasons'!$I$17,0,IF('12) Hourly Simulation '!$F45>='7) Peak & Seasons'!$I$18,0,1))),0) -> FALSE | AV45: 0 | AW45: 0 | AX45: 0 | AY45: 0 | AZ45: =IF(LEFT('5) CHP System'!$C$8,1)="N",IF(ABS(AI45-AJ45-'5) CHP System'!$C$9)<0.0001,1,0),0) -> 0 | BA45: =IF('5) CHP System'!$C$11*'12) Hourly Simulation '!M45>'5) CHP System'!$C$6*'5) CHP System'!$C$29,0,1) -> 0 | BB45: 1 | BC45: =IF(P45>0,IF(P45<='5) CHP System'!$C$6,1,0),0) -> 1
A46: 1976-01-02 | B46: 1 | C46: 2 | D46: 15:00:00 | E46: -1.1 | F46: 15 | G46: =IF('Hidden Tab1'!F46="WKN",1,IF('Hidden Tab1'!F46="WE",2,"3")) -> 1 | H46: 30 | J46: 25 | K46: =J46*'13) Normalized Monthly Data'!$I$9/IF(SUM($J$8:$J$751)=0,1,SUM($J$8:$J$751)) -> 19.03011988 | L46: =LOOKUP(F46,'2a) Base thermal profile'!$B$12:$B$35,'2a) Base thermal profile'!$E$12:$E$35) -> 3.675134719 | M46: 22.7052546 | O46: =LOOKUP(B46,'5) CHP System'!$E$26:$P$27) -> 0.95 | P46: =IF('5) CHP System'!$C$35=0,0,IF(MIN('5) CHP System'!$C$6,'5) CHP System'!$C$11*M46/'5) CHP System'!$C$29,IF(LEFT('5) CHP System'!$C$8,1)="Y",'5) CHP System'!$C$6,(AI46-'5) CHP System'!$C$9)/(O46*'5) CHP System'!$C$35)))<'5) CHP System'!$C$16,0,MIN('5) CHP System'!$C$6,'5) CHP System'!$C$11*M46/'5) CHP System'!$C$29,IF(LEFT('5) CHP System'!$C$8,1)="Y",'5) CHP System'!$C$6,(AI46-'5) CHP System'!$C$9)/(O46*'5) CHP System'!$C$35))))) -> 1 | Q46: =P46*'5) CHP System'!$C$35*O46 -> 68.4 | R46: =P46*'5) CHP System'!$C$23*O46 -> 9.0117 | S46: =P46*'5) CHP System'!$C$29*O46 -> 4.9685 | T46: 4.9685 | U46: 0 | V46: =LOOKUP(B46,'5) CHP System'!$E$7:$P$8) -> 0 | X46: =IF('5) CHP System'!$C$42=0,0,(AN46-'5) CHP System'!$C$9)/(O46*'5) CHP System'!$C$35)) -> 9.356725146 | Y46: =IF(INDEX(Jan,IF(F46=0,24,F46),G46)<'5) CHP System'!$C$16,0,INDEX(Jan,IF(F46=0,24,F46),G46)) -> 1 | Z46: =IF(MIN(X46:Y46)<'5) CHP System'!$C$16,0,MIN(X46:Y46)) -> 1 | AA46: =MIN('5) CHP System'!$C$6,IF(LEFT('5) CHP System'!$C$8,1)="Y",Y46,Z46)) -> 1 | AB46: =AA46*'5) CHP System'!$C$35*O46 -> 68.4 | AC46: =AA46*'5) CHP System'!$C$23*O46 -> 9.0117 | AD46: =AA46*'5) CHP System'!$C$29*O46 -> 4.9685 | AE46: =IF('5) CHP System'!$C$11*M46>=AD46,AD46,'5) CHP System'!$C$11*M46) -> 4.9685 | AF46: 0 | AG46: 0 | AI46: ='Hidden Tab2'!H42 -> 645 | AJ46: 68.4 | AK46: 0 | AL46: 576.6 | AN46: ='Hidden Tab2'!H42 -> 645 | AO46: 68.4 | AP46: 0 | AQ46: 576.6 | AS46: =LOOKUP(B46,'7) Peak & Seasons'!$G$23:$H$34) -> Winter | AT46: =IF('Hidden Tab1'!$F46="WKN",IF($AS46="Winter",IF($F46<'7) Peak & Seasons'!$H$17,0,IF('12) Hourly Simulation '!$F46>='7) Peak & Seasons'!$H$18,0,1))),0) -> 0 | AU46: =IF('Hidden Tab1'!$F46="WKN",IF($AS46="Summer",IF($F46<'7) Peak & Seasons'!$I$17,0,IF('12) Hourly Simulation '!$F46>='7) Peak & Seasons'!$I$18,0,1))),0) -> FALSE | AV46: 0 | AW46: 0 | AX46: 0 | AY46: 0 | AZ46: =IF(LEFT('5) CHP System'!$C$8,1)="N",IF(ABS(AI46-AJ46-'5) CHP System'!$C$9)<0.0001,1,0),0) -> 0 | BA46: =IF('5) CHP System'!$C$11*'12) Hourly Simulation '!M46>'5) CHP System'!$C$6*'5) CHP System'!$C$29,0,1) -> 0 | BB46: 1 | BC46: =IF(P46>0,IF(P46<='5) CHP System'!$C$6,1,0),0) -> 1
A47: 1976-01-02 | B47: 1 | C47: 2 | D47: 16:00:00 | E47: -1.7 | F47: 16 | G47: =IF('Hidden Tab1'!F47="WKN",1,IF('Hidden Tab1'!F47="WE",2,"3")) -> 1 | H47: 29 | J47: 26 | K47: =J47*'13) Normalized Monthly Data'!$I$9/IF(SUM($J$8:$J$751)=0,1,SUM($J$8:$J$751)) -> 19.79132468 | L47: =LOOKUP(F47,'2a) Base thermal profile'!$B$12:$B$35,'2a) Base thermal profile'!$E$12:$E$35) -> 3.675134719 | M47: 23.4664594 | O47: =LOOKUP(B47,'5) CHP System'!$E$26:$P$27) -> 0.95 | P47: =IF('5) CHP System'!$C$35=0,0,IF(MIN('5) CHP System'!$C$6,'5) CHP System'!$C$11*M47/'5) CHP System'!$C$29,IF(LEFT('5) CHP System'!$C$8,1)="Y",'5) CHP System'!$C$6,(AI47-'5) CHP System'!$C$9)/(O47*'5) CHP System'!$C$35)))<'5) CHP System'!$C$16,0,MIN('5) CHP System'!$C$6,'5) CHP System'!$C$11*M47/'5) CHP System'!$C$29,IF(LEFT('5) CHP System'!$C$8,1)="Y",'5) CHP System'!$C$6,(AI47-'5) CHP System'!$C$9)/(O47*'5) CHP System'!$C$35))))) -> 1 | Q47: =P47*'5) CHP System'!$C$35*O47 -> 68.4 | R47: =P47*'5) CHP System'!$C$23*O47 -> 9.0117 | S47: =P47*'5) CHP System'!$C$29*O47 -> 4.9685 | T47: 4.9685 | U47: 0 | V47: =LOOKUP(B47,'5) CHP System'!$E$7:$P$8) -> 0 | X47: =IF('5) CHP System'!$C$42=0,0,(AN47-'5) CHP System'!$C$9)/(O47*'5) CHP System'!$C$35)) -> 9.13377193 | Y47: =IF(INDEX(Jan,IF(F47=0,24,F47),G47)<'5) CHP System'!$C$16,0,INDEX(Jan,IF(F47=0,24,F47),G47)) -> 1 | Z47: =IF(MIN(X47:Y47)<'5) CHP System'!$C$16,0,MIN(X47:Y47)) -> 1 | AA47: =MIN('5) CHP System'!$C$6,IF(LEFT('5) CHP System'!$C$8,1)="Y",Y47,Z47)) -> 1 | AB47: =AA47*'5) CHP System'!$C$35*O47 -> 68.4 | AC47: =AA47*'5) CHP System'!$C$23*O47 -> 9.0117 | AD47: =AA47*'5) CHP System'!$C$29*O47 -> 4.9685 | AE47: =IF('5) CHP System'!$C$11*M47>=AD47,AD47,'5) CHP System'!$C$11*M47) -> 4.9685 | AF47: 0 | AG47: 0 | AI47: ='Hidden Tab2'!H43 -> 629.75 | AJ47: 68.4 | AK47: 0 | AL47: 561.35 | AN47: ='Hidden Tab2'!H43 -> 629.75 | AO47: 68.4 | AP47: 0 | AQ47: 561.35 | AS47: =LOOKUP(B47,'7) Peak & Seasons'!$G$23:$H$34) -> Winter | AT47: =IF('Hidden Tab1'!$F47="WKN",IF($AS47="Winter",IF($F47<'7) Peak & Seasons'!$H$17,0,IF('12) Hourly Simulation '!$F47>='7) Peak & Seasons'!$H$18,0,1))),0) -> 0 | AU47: =IF('Hidden Tab1'!$F47="WKN",IF($AS47="Summer",IF($F47<'7) Peak & Seasons'!$I$17,0,IF('12) Hourly Simulation '!$F47>='7) Peak & Seasons'!$I$18,0,1))),0) -> FALSE | AV47: 0 | AW47: 0 | AX47: 0 | AY47: 0 | AZ47: =IF(LEFT('5) CHP System'!$C$8,1)="N",IF(ABS(AI47-AJ47-'5) CHP System'!$C$9)<0.0001,1,0),0) -> 0 | BA47: =IF('5) CHP System'!$C$11*'12) Hourly Simulation '!M47>'5) CHP System'!$C$6*'5) CHP System'!$C$29,0,1) -> 0 | BB47: 1 | BC47: =IF(P47>0,IF(P47<='5) CHP System'!$C$6,1,0),0) -> 1
A48: 1976-01-02 | B48: 1 | C48: 2 | D48: 17:00:00 | E48: -1.7 | F48: 17 | G48: =IF('Hidden Tab1'!F48="WKN",1,IF('Hidden Tab1'!F48="WE",2,"3")) -> 1 | H48: 29 | J48: 26 | K48: =J48*'13) Normalized Monthly Data'!$I$9/IF(SUM($J$8:$J$751)=0,1,SUM($J$8:$J$751)) -> 19.79132468 | L48: =LOOKUP(F48,'2a) Base thermal profile'!$B$12:$B$35,'2a) Base thermal profile'!$E$12:$E$35) -> 4.72517321 | M48: 24.51649789 | O48: =LOOKUP(B48,'5) CHP System'!$E$26:$P$27) -> 0.95 | P48: =IF('5) CHP System'!$C$35=0,0,IF(MIN('5) CHP System'!$C$6,'5) CHP System'!$C$11*M48/'5) CHP System'!$C$29,IF(LEFT('5) CHP System'!$C$8,1)="Y",'5) CHP System'!$C$6,(AI48-'5) CHP System'!$C$9)/(O48*'5) CHP System'!$C$35)))<'5) CHP System'!$C$16,0,MIN('5) CHP System'!$C$6,'5) CHP System'!$C$11*M48/'5) CHP System'!$C$29,IF(LEFT('5) CHP System'!$C$8,1)="Y",'5) CHP System'!$C$6,(AI48-'5) CHP System'!$C$9)/(O48*'5) CHP System'!$C$35))))) -> 1 | Q48: =P48*'5) CHP System'!$C$35*O48 -> 68.4 | R48: =P48*'5) CHP System'!$C$23*O48 -> 9.0117 | S48: =P48*'5) CHP System'!$C$29*O48 -> 4.9685 | T48: 4.9685 | U48: 0 | V48: =LOOKUP(B48,'5) CHP System'!$E$7:$P$8) -> 0 | X48: =IF('5) CHP System'!$C$42=0,0,(AN48-'5) CHP System'!$C$9)/(O48*'5) CHP System'!$C$35)) -> 9.104532164 | Y48: =IF(INDEX(Jan,IF(F48=0,24,F48),G48)<'5) CHP System'!$C$16,0,INDEX(Jan,IF(F48=0,24,F48),G48)) -> 1 | Z48: =IF(MIN(X48:Y48)<'5) CHP System'!$C$16,0,MIN(X48:Y48)) -> 1 | AA48: =MIN('5) CHP System'!$C$6,IF(LEFT('5) CHP System'!$C$8,1)="Y",Y48,Z48)) -> 1 | AB48: =AA48*'5) CHP System'!$C$35*O48 -> 68.4 | AC48: =AA48*'5) CHP System'!$C$23*O48 -> 9.0117 | AD48: =AA48*'5) CHP System'!$C$29*O48 -> 4.9685 | AE48: =IF('5) CHP System'!$C$11*M48>=AD48,AD48,'5) CHP System'!$C$11*M48) -> 4.9685 | AF48: 0 | AG48: 0 | AI48: ='Hidden Tab2'!H44 -> 627.75 | AJ48: 68.4 | AK48: 0 | AL48: 559.35 | AN48: ='Hidden Tab2'!H44 -> 627.75 | AO48: 68.4 | AP48: 0 | AQ48: 559.35 | AS48: =LOOKUP(B48,'7) Peak & Seasons'!$G$23:$H$34) -> Winter | AT48: =IF('Hidden Tab1'!$F48="WKN",IF($AS48="Winter",IF($F48<'7) Peak & Seasons'!$H$17,0,IF('12) Hourly Simulation '!$F48>='7) Peak & Seasons'!$H$18,0,1))),0) -> 1 | AU48: =IF('Hidden Tab1'!$F48="WKN",IF($AS48="Summer",IF($F48<'7) Peak & Seasons'!$I$17,0,IF('12) Hourly Simulation '!$F48>='7) Peak & Seasons'!$I$18,0,1))),0) -> FALSE | AV48: 1 | AW48: 68.4 | AX48: 68.4 | AY48: 0 | AZ48: =IF(LEFT('5) CHP System'!$C$8,1)="N",IF(ABS(AI48-AJ48-'5) CHP System'!$C$9)<0.0001,1,0),0) -> 0 | BA48: =IF('5) CHP System'!$C$11*'12) Hourly Simulation '!M48>'5) CHP System'!$C$6*'5) CHP System'!$C$29,0,1) -> 0 | BB48: 1 | BC48: =IF(P48>0,IF(P48<='5) CHP System'!$C$6,1,0),0) -> 1
A49: 1976-01-02 | B49: 1 | C49: 2 | D49: 18:00:00 | E49: -1.7 | F49: 18 | G49: =IF('Hidden Tab1'!F49="WKN",1,IF('Hidden Tab1'!F49="WE",2,"3")) -> 1 | H49: 29 | J49: 26 | K49: =J49*'13) Normalized Monthly Data'!$I$9/IF(SUM($J$8:$J$751)=0,1,SUM($J$8:$J$751)) -> 19.79132468 | L49: =LOOKUP(F49,'2a) Base thermal profile'!$B$12:$B$35,'2a) Base thermal profile'!$E$12:$E$35) -> 6.037721324 | M49: 25.829046 | O49: =LOOKUP(B49,'5) CHP System'!$E$26:$P$27) -> 0.95 | P49: =IF('5) CHP System'!$C$35=0,0,IF(MIN('5) CHP System'!$C$6,'5) CHP System'!$C$11*M49/'5) CHP System'!$C$29,IF(LEFT('5) CHP System'!$C$8,1)="Y",'5) CHP System'!$C$6,(AI49-'5) CHP System'!$C$9)/(O49*'5) CHP System'!$C$35)))<'5) CHP System'!$C$16,0,MIN('5) CHP System'!$C$6,'5) CHP System'!$C$11*M49/'5) CHP System'!$C$29,IF(LEFT('5) CHP System'!$C$8,1)="Y",'5) CHP System'!$C$6,(AI49-'5) CHP System'!$C$9)/(O49*'5) CHP System'!$C$35))))) -> 1 | Q49: =P49*'5) CHP System'!$C$35*O49 -> 68.4 | R49: =P49*'5) CHP System'!$C$23*O49 -> 9.0117 | S49: =P49*'5) CHP System'!$C$29*O49 -> 4.9685 | T49: 4.9685 | U49: 0 | V49: =LOOKUP(B49,'5) CHP System'!$E$7:$P$8) -> 0 | X49: =IF('5) CHP System'!$C$42=0,0,(AN49-'5) CHP System'!$C$9)/(O49*'5) CHP System'!$C$35)) -> 9.839181287 | Y49: =IF(INDEX(Jan,IF(F49=0,24,F49),G49)<'5) CHP System'!$C$16,0,INDEX(Jan,IF(F49=0,24,F49),G49)) -> 1 | Z49: =IF(MIN(X49:Y49)<'5) CHP System'!$C$16,0,MIN(X49:Y49)) -> 1 | AA49: =MIN('5) CHP System'!$C$6,IF(LEFT('5) CHP System'!$C$8,1)="Y",Y49,Z49)) -> 1 | AB49: =AA49*'5) CHP System'!$C$35*O49 -> 68.4 | AC49: =AA49*'5) CHP System'!$C$23*O49 -> 9.0117 | AD49: =AA49*'5) CHP System'!$C$29*O49 -> 4.9685 | AE49: =IF('5) CHP System'!$C$11*M49>=AD49,AD49,'5) CHP System'!$C$11*M49) -> 4.9685 | AF49: 0 | AG49: 0 | AI49: ='Hidden Tab2'!H45 -> 678 | AJ49: 68.4 | AK49: 0 | AL49: 609.6 | AN49: ='Hidden Tab2'!H45 -> 678 | AO49: 68.4 | AP49: 0 | AQ49: 609.6 | AS49: =LOOKUP(B49,'7) Peak & Seasons'!$G$23:$H$34) -> Winter | AT49: =IF('Hidden Tab1'!$F49="WKN",IF($AS49="Winter",IF($F49<'7) Peak & Seasons'!$H$17,0,IF('12) Hourly Simulation '!$F49>='7) Peak & Seasons'!$H$18,0,1))),0) -> 1 | AU49: =IF('Hidden Tab1'!$F49="WKN",IF($AS49="Summer",IF($F49<'7) Peak & Seasons'!$I$17,0,IF('12) Hourly Simulation '!$F49>='7) Peak & Seasons'!$I$18,0,1))),0) -> FALSE | AV49: 1 | AW49: 68.4 | AX49: 68.4 | AY49: 0 | AZ49: =IF(LEFT('5) CHP System'!$C$8,1)="N",IF(ABS(AI49-AJ49-'5) CHP System'!$C$9)<0.0001,1,0),0) -> 0 | BA49: =IF('5) CHP System'!$C$11*'12) Hourly Simulation '!M49>'5) CHP System'!$C$6*'5) CHP System'!$C$29,0,1) -> 0 | BB49: 1 | BC49: =IF(P49>0,IF(P49<='5) CHP System'!$C$6,1,0),0) -> 1
A50: 1976-01-02 | B50: 1 | C50: 2 | D50: 19:00:00 | E50: -1.7 | F50: 19 | G50: =IF('Hidden Tab1'!F50="WKN",1,IF('Hidden Tab1'!F50="WE",2,"3")) -> 1 | H50: 29 | J50: 26 | K50: =J50*'13) Normalized Monthly Data'!$I$9/IF(SUM($J$8:$J$751)=0,1,SUM($J$8:$J$751)) -> 19.79132468 | L50: =LOOKUP(F50,'2a) Base thermal profile'!$B$12:$B$35,'2a) Base thermal profile'!$E$12:$E$35) -> 6.56274057 | M50: 26.35406525 | O50: =LOOKUP(B50,'5) CHP System'!$E$26:$P$27) -> 0.95 | P50: =IF('5) CHP System'!$C$35=0,0,IF(MIN('5) CHP System'!$C$6,'5) CHP System'!$C$11*M50/'5) CHP System'!$C$29,IF(LEFT('5) CHP System'!$C$8,1)="Y",'5) CHP System'!$C$6,(AI50-'5) CHP System'!$C$9)/(O50*'5) CHP System'!$C$35)))<'5) CHP System'!$C$16,0,MIN('5) CHP System'!$C$6,'5) CHP System'!$C$11*M50/'5) CHP System'!$C$29,IF(LEFT('5) CHP System'!$C$8,1)="Y",'5) CHP System'!$C$6,(AI50-'5) CHP System'!$C$9)/(O50*'5) CHP System'!$C$35))))) -> 1 | Q50: =P50*'5) CHP System'!$C$35*O50 -> 68.4 | R50: =P50*'5) CHP System'!$C$23*O50 -> 9.0117 | S50: =P50*'5) CHP System'!$C$29*O50 -> 4.9685 | T50: 4.9685 | U50: 0 | V50: =LOOKUP(B50,'5) CHP System'!$E$7:$P$8) -> 0 | X50: =IF('5) CHP System'!$C$42=0,0,(AN50-'5) CHP System'!$C$9)/(O50*'5) CHP System'!$C$35)) -> 10.55921053 | Y50: =IF(INDEX(Jan,IF(F50=0,24,F50),G50)<'5) CHP System'!$C$16,0,INDEX(Jan,IF(F50=0,24,F50),G50)) -> 1 | Z50: =IF(MIN(X50:Y50)<'5) CHP System'!$C$16,0,MIN(X50:Y50)) -> 1 | AA50: =MIN('5) CHP System'!$C$6,IF(LEFT('5) CHP System'!$C$8,1)="Y",Y50,Z50)) -> 1 | AB50: =AA50*'5) CHP System'!$C$35*O50 -> 68.4 | AC50: =AA50*'5) CHP System'!$C$23*O50 -> 9.0117 | AD50: =AA50*'5) CHP System'!$C$29*O50 -> 4.9685 | AE50: =IF('5) CHP System'!$C$11*M50>=AD50,AD50,'5) CHP System'!$C$11*M50) -> 4.9685 | AF50: 0 | AG50: 0 | AI50: ='Hidden Tab2'!H46 -> 727.25 | AJ50: 68.4 | AK50: 0 | AL50: 658.85 | AN50: ='Hidden Tab2'!H46 -> 727.25 | AO50: 68.4 | AP50: 0 | AQ50: 658.85 | AS50: =LOOKUP(B50,'7) Peak & Seasons'!$G$23:$H$34) -> Winter | AT50: =IF('Hidden Tab1'!$F50="WKN",IF($AS50="Winter",IF($F50<'7) Peak & Seasons'!$H$17,0,IF('12) Hourly Simulation '!$F50>='7) Peak & Seasons'!$H$18,0,1))),0) -> 0 | AU50: =IF('Hidden Tab1'!$F50="WKN",IF($AS50="Summer",IF($F50<'7) Peak & Seasons'!$I$17,0,IF('12) Hourly Simulation '!$F50>='7) Peak & Seasons'!$I$18,0,1))),0) -> FALSE | AV50: 0 | AW50: 0 | AX50: 0 | AY50: 0 | AZ50: =IF(LEFT('5) CHP System'!$C$8,1)="N",IF(ABS(AI50-AJ50-'5) CHP System'!$C$9)<0.0001,1,0),0) -> 0 | BA50: =IF('5) CHP System'!$C$11*'12) Hourly Simulation '!M50>'5) CHP System'!$C$6*'5) CHP System'!$C$29,0,1) -> 0 | BB50: 1 | BC50: =IF(P50>0,IF(P50<='5) CHP System'!$C$6,1,0),0) -> 1
